Workbook

Sheet 공통(사업장수)
A1: 규모 | B1: 업종(소) | C1: 고용지청 | D1: 사업장수
D2: 2021년 | E2: 2022년 | F2: 2023년 11월
A3: 50인 미만 | B3: 건물등의종합관리사업 | C3: 합계 | D3: 121,711 | E3: 124,558 | F3: 127,797
C4: 서 울 청 | D4: 7,189 | E4: 7,181 | F4: 7,254
C5: 서울강남 | D5: 5,369 | E5: 5,374 | F5: 5,461
C6: 서울동부 | D6: 4,747 | E6: 4,838 | F6: 4,917
C7: 서울서부 | D7: 3,973 | E7: 3,908 | F7: 3,969
C8: 서울남부 | D8: 4,068 | E8: 4,137 | F8: 4,270
C9: 서울북부 | D9: 3,961 | E9: 4,016 | F9: 4,092
C10: 서울관악 | D10: 3,662 | E10: 3,791 | F10: 3,803
C11: 의 정 부 | D11: 4,323 | E11: 4,524 | F11: 4,644
C12: 강 원 | D12: 1,102 | E12: 1,146 | F12: 1,172
C13: 태 백 | D13: 178 | E13: 184 | F13: 194
C14: 강 릉 | D14: 1,025 | E14: 1,072 | F14: 1,110
C15: 원 주 | D15: 1,000 | E15: 998 | F15: 1,047
C16: 영 월 | D16: 218 | E16: 227 | F16: 236
C17: 부 산 청 | D17: 3,774 | E17: 3,864 | F17: 3,926
C18: 부산동부 | D18: 2,636 | E18: 2,673 | F18: 2,715
C19: 부산북부 | D19: 1,356 | E19: 1,355 | F19: 1,392
C20: 창 원 | D20: 2,493 | E20: 2,581 | F20: 2,554
C21: 울 산 | D21: 2,903 | E21: 2,548 | F21: 2,628
C22: 양 산 | D22: 1,767 | E22: 1,858 | F22: 1,940
C23: 진 주 | D23: 950 | E23: 997 | F23: 1,009
C24: 통 영 | D24: 746 | E24: 762 | F24: 775
C25: 대 구 청 | D25: 3,438 | E25: 3,537 | F25: 3,631
C26: 대구서부 | D26: 2,194 | E26: 2,249 | F26: 2,346
C27: 포 항 | D27: 1,699 | E27: 1,760 | F27: 1,815
C28: 구 미 | D28: 1,205 | E28: 1,199 | F28: 1,265
C29: 영 주 | D29: 348 | E29: 366 | F29: 377
C30: 안 동 | D30: 421 | E30: 451 | F30: 502
C31: 중 부 청 | D31: 3,504 | E31: 3,535 | F31: 3,652
C32: 인천북부 | D32: 2,786 | E32: 2,880 | F32: 2,972
C33: 경 기 | D33: 6,999 | E33: 7,251 | F33: 7,602
C34: 부 천 | D34: 2,555 | E34: 2,578 | F34: 2,610
C35: 안 양 | D35: 2,914 | E35: 3,055 | F35: 3,135
C36: 안 산 | D36: 2,916 | E36: 3,060 | F36: 3,070
C37: 성 남 | D37: 4,528 | E37: 4,788 | F37: 4,925
C38: 평 택 | D38: 2,372 | E38: 2,380 | F38: 2,528
C39: 고 양 | D39: 3,040 | E39: 3,231 | F39: 3,373
C40: 광 주 청 | D40: 3,833 | E40: 3,939 | F40: 4,058
C41: 전 주 | D41: 2,246 | E41: 2,302 | F41: 2,359
C42: 익 산 | D42: 622 | E42: 641 | F42: 651
C43: 군 산 | D43: 706 | E43: 735 | F43: 752
C44: 목 포 | D44: 913 | E44: 955 | F44: 950
C45: 여 수 | D45: 1,416 | E45: 1,445 | F45: 1,489
C46: 제 주 | D46: 1,077 | E46: 1,161 | F46: 1,169
C47: 대 전 청 | D47: 5,262 | E47: 5,488 | F47: 5,695
C48: 청 주 | D48: 2,260 | E48: 2,375 | F48: 2,424
C49: 충 주 | D49: 873 | E49: 930 | F49: 937
C50: 천 안 | D50: 3,101 | E50: 3,169 | F50: 3,259
C51: 보 령 | D51: 545 | E51: 559 | F51: 595
C52: 서 산 | D52: 498 | E52: 505 | F52: 548

Sheet 서울
A1: 업종(소) | B1: 고용지청 | C1: 기준년월 | D1: 2021년 12월 | P1: 2022년 12월 | AB1: 2023년 11월
C2: 규모(소) | D2: 규모별 합계 | F2: 5인 미만 | H2: 5인 ~ 9인 | J2: 10인 ~ 19인 | L2: 20인 ~ 29인 | N2: 30인 ~ 49인 | P2: 규모별 합계 | R2: 5인 미만 | T2: 5인 ~ 9인 | V2: 10인 ~ 19인 | X2: 20인 ~ 29인 | Z2: 30인 ~ 49인 | AB2: 규모별 합계 | AD2: 5인 미만 | AF2: 5인 ~ 9인 | AH2: 10인 ~ 19인 | AJ2: 20인 ~ 29인 | AL2: 30인 ~ 49인
C3: 발생형태(중) | D3: 사고재해자수 합계 | E3: 사고사망자수 합계 | F3: 사고재해자수 | G3: 사고사망자수 | H3: 사고재해자수 | I3: 사고사망자수 | J3: 사고재해자수 | K3: 사고사망자수 | L3: 사고재해자수 | M3: 사고사망자수 | N3: 사고재해자수 | O3: 사고사망자수 | P3: 사고재해자수 합계 | Q3: 사고사망자수 합계 | R3: 사고재해자수 | S3: 사고사망자수 | T3: 사고재해자수 | U3: 사고사망자수 | V3: 사고재해자수 | W3: 사고사망자수 | X3: 사고재해자수 | Y3: 사고사망자수 | Z3: 사고재해자수 | AA3: 사고사망자수 | AB3: 사고재해자수 합계 | AC3: 사고사망자수 합계 | AD3: 사고재해자수 | AE3: 사고사망자수 | AF3: 사고재해자수 | AG3: 사고사망자수 | AH3: 사고재해자수 | AI3: 사고사망자수 | AJ3: 사고재해자수 | AK3: 사고사망자수 | AL3: 사고재해자수 | AM3: 사고사망자수
A4: 건물등의종합관리사업 | B4: 합계 | D4: =D5+D26+D43+D63+D82+D101+D120+D138+D154+D164+D178+D191 -> 745 | E4: =E5+E26+E43+E63+E82+E101+E120+E138+E154+E164+E178+E191 -> 3 | F4: =F5+F26+F43+F63+F82+F101+F120+F138+F154+F164+F178+F191 -> 218 | G4: =G5+G26+G43+G63+G82+G101+G120+G138+G154+G164+G178+G191 -> 1 | H4: 202 | I4: 1 | J4: 172 | K4: 1 | L4: 79 | M4: 0 | N4: 74 | O4: 0 | P4: 783 | Q4: 7 | R4: 248 | S4: 3 | T4: 202 | U4: 3 | V4: 169 | W4: 0 | X4: 80 | Y4: 1 | Z4: 84 | AA4: 0 | AB4: 793 | AC4: 6 | AD4: 251 | AE4: 1 | AF4: 200 | AG4: 4 | AH4: 198 | AI4: 1 | AJ4: 78 | AK4: 0 | AL4: 66 | AM4: =AM5+AM26+AM43+AM63+AM82+AM101+AM120+AM138+AM154+AM164+AM178+AM191 -> 0
B5: 서 울 청 | C5: 합계 | D5: =F5+H5+J5+L5+N5 -> 121 | E5: =G5+I5+K5+M5+O5 -> 0 | F5: 30 | G5: 0 | H5: 32 | I5: 0 | J5: 32 | K5: 0 | L5: 6 | M5: 0 | N5: 21 | O5: 0 | P5: =R5+T5+V5+X5+Z5 -> 140 | Q5: =S5+U5+W5+Y5+AA5 -> 1 | R5: 37 | S5: 1 | T5: 29 | U5: 0 | V5: 25 | W5: 0 | X5: 20 | Y5: 0 | Z5: 29 | AA5: 0 | AB5: =AD5+AF5+AH5+AJ5+AL5 -> 141 | AC5: =AE5+AG5+AI5+AK5+AM5 -> 2 | AD5: 42 | AE5: 0 | AF5: 33 | AG5: 1 | AH5: 33 | AI5: 1 | AJ5: 16 | AK5: 0 | AL5: 17 | AM5: 0
C6: 떨어짐(높이가 있는 곳에서 사람이 떨어짐) | D6: 22 | E6: 0 | F6: 4 | G6: 0 | H6: 5 | I6: 0 | J6: 4 | K6: 0 | L6: 2 | M6: 0 | N6: 7 | O6: 0 | P6: 19 | Q6: 1 | R6: 4 | S6: 1 | T6: 5 | U6: 0 | V6: 4 | W6: 0 | X6: 2 | Y6: 0 | Z6: 4 | AA6: 0 | AB6: 19 | AC6: 1 | AD6: 2 | AE6: 0 | AF6: 7 | AG6: 1 | AH6: 6 | AI6: 0 | AJ6: 3 | AK6: 0 | AL6: 1 | AM6: 0
C7: 넘어짐(사람이 미끄러지거나 넘어짐) | D7: 59 | E7: 0 | F7: 15 | G7: 0 | H7: 18 | I7: 0 | J7: 16 | K7: 0 | L7: 3 | M7: 0 | N7: 7 | O7: 0 | P7: 83 | Q7: 0 | R7: 25 | S7: 0 | T7: 17 | U7: 0 | V7: 15 | W7: 0 | X7: 9 | Y7: 0 | Z7: 17 | AA7: 0 | AB7: 81 | AC7: 1 | AD7: 27 | AE7: 0 | AF7: 20 | AG7: 0 | AH7: 17 | AI7: 1 | AJ7: 8 | AK7: 0 | AL7: 9 | AM7: 0
C8: 깔림·뒤집힘(물체의 쓰러짐이나 뒤집힘) | D8: 0 | E8: 0 | F8: 0 | G8: 0 | H8: 0 | I8: 0 | J8: 0 | K8: 0 | L8: 0 | M8: 0 | N8: 0 | O8: 0 | P8: 1 | Q8: 0 | R8: 0 | S8: 0 | T8: 1 | U8: 0 | V8: 0 | W8: 0 | X8: 0 | Y8: 0 | Z8: 0 | AA8: 0 | AB8: 2 | AC8: 0 | AD8: 1 | AE8: 0 | AF8: 1 | AG8: 0 | AH8: 0 | AI8: 0 | AJ8: 0 | AK8: 0 | AL8: 0 | AM8: 0
C9: 부딪힘(물체에 부딪힘) | D9: 9 | E9: 0 | F9: 3 | G9: 0 | H9: 4 | I9: 0 | J9: 0 | K9: 0 | L9: 0 | M9: 0 | N9: 2 | O9: 0 | P9: 7 | Q9: 0 | R9: 0 | S9: 0 | T9: 1 | U9: 0 | V9: 2 | W9: 0 | X9: 1 | Y9: 0 | Z9: 3 | AA9: 0 | AB9: 4 | AC9: 0 | AD9: 0 | AE9: 0 | AF9: 2 | AG9: 0 | AH9: 2 | AI9: 0 | AJ9: 0 | AK9: 0 | AL9: 0 | AM9: 0
C10: 물체에 맞음(날아오거나 떨어진 물체에 맞음) | D10: 4 | E10: 0 | F10: 0 | G10: 0 | H10: 2 | I10: 0 | J10: 1 | K10: 0 | L10: 0 | M10: 0 | N10: 1 | O10: 0 | P10: 2 | Q10: 0 | R10: 1 | S10: 0 | T10: 0 | U10: 0 | V10: 0 | W10: 0 | X10: 0 | Y10: 0 | Z10: 1 | AA10: 0 | AB10: 4 | AC10: 0 | AD10: 1 | AE10: 0 | AF10: 0 | AG10: 0 | AH10: 2 | AI10: 0 | AJ10: 0 | AK10: 0 | AL10: 1 | AM10: 0
C11: 끼임(기계설비에 끼이거나 감김) | D11: 5 | E11: 0 | F11: 2 | G11: 0 | H11: 0 | I11: 0 | J11: 1 | K11: 0 | L11: 0 | M11: 0 | N11: 2 | O11: 0 | P11: 7 | Q11: 0 | R11: 1 | S11: 0 | T11: 2 | U11: 0 | V11: 1 | W11: 0 | X11: 1 | Y11: 0 | Z11: 2 | AA11: 0 | AB11: 12 | AC11: 0 | AD11: 5 | AE11: 0 | AF11: 0 | AG11: 0 | AH11: 3 | AI11: 0 | AJ11: 2 | AK11: 0 | AL11: 2 | AM11: 0
C12: 절단·베임·찔림 | D12: 9 | E12: 0 | F12: 2 | G12: 0 | H12: 1 | I12: 0 | J12: 5 | K12: 0 | L12: 1 | M12: 0 | N12: 0 | O12: 0 | P12: 10 | Q12: 0 | R12: 2 | S12: 0 | T12: 0 | U12: 0 | V12: 2 | W12: 0 | X12: 4 | Y12: 0 | Z12: 2 | AA12: 0 | AB12: 3 | AC12: 0 | AD12: 0 | AE12: 0 | AF12: 1 | AG12: 0 | AH12: 2 | AI12: 0 | AJ12: 0 | AK12: 0 | AL12: 0 | AM12: 0
C13: 폭발·파열 | D13: 0 | E13: 0 | F13: 0 | G13: 0 | H13: 0 | I13: 0 | J13: 0 | K13: 0 | L13: 0 | M13: 0 | N13: 0 | O13: 0 | P13: 1 | Q13: 0 | R13: 0 | S13: 0 | T13: 1 | U13: 0 | V13: 0 | W13: 0 | X13: 0 | Y13: 0 | Z13: 0 | AA13: 0 | AB13: 0 | AC13: 0 | AD13: 0 | AE13: 0 | AF13: 0 | AG13: 0 | AH13: 0 | AI13: 0 | AJ13: 0 | AK13: 0 | AL13: 0 | AM13: 0
C14: 불균형 및 무리한 동작 | D14: 8 | E14: 0 | F14: 4 | G14: 0 | H14: 0 | I14: 0 | J14: 3 | K14: 0 | L14: 0 | M14: 0 | N14: 1 | O14: 0 | P14: 5 | Q14: 0 | R14: 3 | S14: 0 | T14: 0 | U14: 0 | V14: 0 | W14: 0 | X14: 2 | Y14: 0 | Z14: 0 | AA14: 0 | AB14: 9 | AC14: 0 | AD14: 3 | AE14: 0 | AF14: 1 | AG14: 0 | AH14: 0 | AI14: 0 | AJ14: 1 | AK14: 0 | AL14: 4 | AM14: 0
C15: 이상온도 접촉 | D15: 4 | E15: 0 | F15: 0 | G15: 0 | H15: 2 | I15: 0 | J15: 1 | K15: 0 | L15: 0 | M15: 0 | N15: 1 | O15: 0 | P15: 1 | Q15: 0 | R15: 0 | S15: 0 | T15: 0 | U15: 0 | V15: 1 | W15: 0 | X15: 0 | Y15: 0 | Z15: 0 | AA15: 0 | AB15: 4 | AC15: 0 | AD15: 2 | AE15: 0 | AF15: 1 | AG15: 0 | AH15: 1 | AI15: 0 | AJ15: 0 | AK15: 0 | AL15: 0 | AM15: 0
C16: 화학물질누출·접촉 | D16: 1 | E16: 0 | F16: 0 | G16: 0 | H16: 0 | I16: 0 | J16: 1 | K16: 0 | L16: 0 | M16: 0 | N16: 0 | O16: 0 | P16: 1 | Q16: 0 | R16: 0 | S16: 0 | T16: 1 | U16: 0 | V16: 0 | W16: 0 | X16: 0 | Y16: 0 | Z16: 0 | AA16: 0 | AB16: 2 | AC16: 0 | AD16: 1 | AE16: 0 | AF16: 0 | AG16: 0 | AH16: 0 | AI16: 0 | AJ16: 1 | AK16: 0 | AL16: 0 | AM16: 0
C17: 사업장외 교통사고 | D17: 0 | E17: 0 | F17: 0 | G17: 0 | H17: 0 | I17: 0 | J17: 0 | K17: 0 | L17: 0 | M17: 0 | N17: 0 | O17: 0 | P17: 2 | Q17: 0 | R17: 1 | S17: 0 | T17: 0 | U17: 0 | V17: 0 | W17: 0 | X17: 1 | Y17: 0 | Z17: 0 | AA17: 0 | AB17: 0 | AC17: 0 | AD17: 0 | AE17: 0 | AF17: 0 | AG17: 0 | AH17: 0 | AI17: 0 | AJ17: 0 | AK17: 0 | AL17: 0 | AM17: 0
C18: 체육행사 등의 사고 | D18: 0 | E18: 0 | F18: 0 | G18: 0 | H18: 0 | I18: 0 | J18: 0 | K18: 0 | L18: 0 | M18: 0 | N18: 0 | O18: 0 | P18: 0 | Q18: 0 | R18: 0 | S18: 0 | T18: 0 | U18: 0 | V18: 0 | W18: 0 | X18: 0 | Y18: 0 | Z18: 0 | AA18: 0 | AB18: 1 | AC18: 0 | AD18: 0 | AE18: 0 | AF18: 0 | AG18: 0 | AH18: 0 | AI18: 0 | AJ18: 1 | AK18: 0 | AL18: 0 | AM18: 0
C19: 폭력행위 | D19: 0 | E19: 0 | F19: 0 | G19: 0 | H19: 0 | I19: 0 | J19: 0 | K19: 0 | L19: 0 | M19: 0 | N19: 0 | O19: 0 | P19: 1 | Q19: 0 | R19: 0 | S19: 0 | T19: 1 | U19: 0 | V19: 0 | W19: 0 | X19: 0 | Y19: 0 | Z19: 0 | AA19: 0 | AB19: 0 | AC19: 0 | AD19: 0 | AE19: 0 | AF19: 0 | AG19: 0 | AH19: 0 | AI19: 0 | AJ19: 0 | AK19: 0 | AL19: 0 | AM19: 0
C20: 화학적인자 | D20: 0 | E20: 0 | F20: 0 | G20: 0 | H20: 0 | I20: 0 | J20: 0 | K20: 0 | L20: 0 | M20: 0 | N20: 0 | O20: 0 | P20: 0 | Q20: 0 | R20: 0 | S20: 0 | T20: 0 | U20: 0 | V20: 0 | W20: 0 | X20: 0 | Y20: 0 | Z20: 0 | AA20: 0 | AB20: 0 | AC20: 0 | AD20: 0 | AE20: 0 | AF20: 0 | AG20: 0 | AH20: 0 | AI20: 0 | AJ20: 0 | AK20: 0 | AL20: 0 | AM20: 0
C21: 생물학적인자 | D21: 0 | E21: 0 | F21: 0 | G21: 0 | H21: 0 | I21: 0 | J21: 0 | K21: 0 | L21: 0 | M21: 0 | N21: 0 | O21: 0 | P21: 0 | Q21: 0 | R21: 0 | S21: 0 | T21: 0 | U21: 0 | V21: 0 | W21: 0 | X21: 0 | Y21: 0 | Z21: 0 | AA21: 0 | AB21: 0 | AC21: 0 | AD21: 0 | AE21: 0 | AF21: 0 | AG21: 0 | AH21: 0 | AI21: 0 | AJ21: 0 | AK21: 0 | AL21: 0 | AM21: 0
C22: 직업병기타 | D22: 0 | E22: 0 | F22: 0 | G22: 0 | H22: 0 | I22: 0 | J22: 0 | K22: 0 | L22: 0 | M22: 0 | N22: 0 | O22: 0 | P22: 0 | Q22: 0 | R22: 0 | S22: 0 | T22: 0 | U22: 0 | V22: 0 | W22: 0 | X22: 0 | Y22: 0 | Z22: 0 | AA22: 0 | AB22: 0 | AC22: 0 | AD22: 0 | AE22: 0 | AF22: 0 | AG22: 0 | AH22: 0 | AI22: 0 | AJ22: 0 | AK22: 0 | AL22: 0 | AM22: 0
C23: 뇌심혈관질환 | D23: 0 | E23: 0 | F23: 0 | G23: 0 | H23: 0 | I23: 0 | J23: 0 | K23: 0 | L23: 0 | M23: 0 | N23: 0 | O23: 0 | P23: 0 | Q23: 0 | R23: 0 | S23: 0 | T23: 0 | U23: 0 | V23: 0 | W23: 0 | X23: 0 | Y23: 0 | Z23: 0 | AA23: 0 | AB23: 0 | AC23: 0 | AD23: 0 | AE23: 0 | AF23: 0 | AG23: 0 | AH23: 0 | AI23: 0 | AJ23: 0 | AK23: 0 | AL23: 0 | AM23: 0
C24: 근골격계질환 | D24: 0 | E24: 0 | F24: 0 | G24: 0 | H24: 0 | I24: 0 | J24: 0 | K24: 0 | L24: 0 | M24: 0 | N24: 0 | O24: 0 | P24: 0 | Q24: 0 | R24: 0 | S24: 0 | T24: 0 | U24: 0 | V24: 0 | W24: 0 | X24: 0 | Y24: 0 | Z24: 0 | AA24: 0 | AB24: 0 | AC24: 0 | AD24: 0 | AE24: 0 | AF24: 0 | AG24: 0 | AH24: 0 | AI24: 0 | AJ24: 0 | AK24: 0 | AL24: 0 | AM24: 0
C25: 작업관련성질환 기타 | D25: 0 | E25: 0 | F25: 0 | G25: 0 | H25: 0 | I25: 0 | J25: 0 | K25: 0 | L25: 0 | M25: 0 | N25: 0 | O25: 0 | P25: 0 | Q25: 0 | R25: 0 | S25: 0 | T25: 0 | U25: 0 | V25: 0 | W25: 0 | X25: 0 | Y25: 0 | Z25: 0 | AA25: 0 | AB25: 0 | AC25: 0 | AD25: 0 | AE25: 0 | AF25: 0 | AG25: 0 | AH25: 0 | AI25: 0 | AJ25: 0 | AK25: 0 | AL25: 0 | AM25: 0
B26: 서울강남 | C26: 합계 | D26: 98 | E26: 0 | F26: 38 | G26: 0 | H26: 21 | I26: 0 | J26: 19 | K26: 0 | L26: 11 | M26: 0 | N26: 9 | O26: 0 | P26: 88 | Q26: 0 | R26: 21 | S26: 0 | T26: 29 | U26: 0 | V26: 25 | W26: 0 | X26: 6 | Y26: 0 | Z26: 7 | AA26: 0 | AB26: 112 | AC26: 0 | AD26: 34 | AE26: 0 | AF26: 32 | AG26: 0 | AH26: 29 | AI26: 0 | AJ26: 5 | AK26: 0 | AL26: 12 | AM26: 0
C27: 떨어짐(높이가 있는 곳에서 사람이 떨어짐) | D27: 12 | E27: 0 | F27: 4 | G27: 0 | H27: 2 | I27: 0 | J27: 3 | K27: 0 | L27: 2 | M27: 0 | N27: 1 | O27: 0 | P27: 18 | Q27: 0 | R27: 6 | S27: 0 | T27: 6 | U27: 0 | V27: 5 | W27: 0 | X27: 0 | Y27: 0 | Z27: 1 | AA27: 0 | AB27: 21 | AC27: 0 | AD27: 7 | AE27: 0 | AF27: 6 | AG27: 0 | AH27: 5 | AI27: 0 | AJ27: 1 | AK27: 0 | AL27: 2 | AM27: 0
C28: 넘어짐(사람이 미끄러지거나 넘어짐) | D28: 59 | E28: 0 | F28: 26 | G28: 0 | H28: 13 | I28: 0 | J28: 13 | K28: 0 | L28: 6 | M28: 0 | N28: 1 | O28: 0 | P28: 40 | Q28: 0 | R28: 8 | S28: 0 | T28: 13 | U28: 0 | V28: 10 | W28: 0 | X28: 5 | Y28: 0 | Z28: 4 | AA28: 0 | AB28: 62 | AC28: 0 | AD28: 21 | AE28: 0 | AF28: 14 | AG28: 0 | AH28: 15 | AI28: 0 | AJ28: 3 | AK28: 0 | AL28: 9 | AM28: 0
C29: 깔림·뒤집힘(물체의 쓰러짐이나 뒤집힘) | D29: 2 | E29: 0 | F29: 1 | G29: 0 | H29: 0 | I29: 0 | J29: 0 | K29: 0 | L29: 1 | M29: 0 | N29: 0 | O29: 0 | P29: 2 | Q29: 0 | R29: 1 | S29: 0 | T29: 0 | U29: 0 | V29: 1 | W29: 0 | X29: 0 | Y29: 0 | Z29: 0 | AA29: 0 | AB29: 1 | AC29: 0 | AD29: 0 | AE29: 0 | AF29: 0 | AG29: 0 | AH29: 1 | AI29: 0 | AJ29: 0 | AK29: 0 | AL29: 0 | AM29: 0
C30: 부딪힘(물체에 부딪힘) | D30: 7 | E30: 0 | F30: 2 | G30: 0 | H30: 3 | I30: 0 | J30: 0 | K30: 0 | L30: 0 | M30: 0 | N30: 2 | O30: 0 | P30: 7 | Q30: 0 | R30: 0 | S30: 0 | T30: 3 | U30: 0 | V30: 2 | W30: 0 | X30: 1 | Y30: 0 | Z30: 1 | AA30: 0 | AB30: 5 | AC30: 0 | AD30: 1 | AE30: 0 | AF30: 2 | AG30: 0 | AH30: 2 | AI30: 0 | AJ30: 0 | AK30: 0 | AL30: 0 | AM30: 0
C31: 물체에 맞음(날아오거나 떨어진 물체에 맞음) | D31: 0 | E31: 0 | F31: 0 | G31: 0 | H31: 0 | I31: 0 | J31: 0 | K31: 0 | L31: 0 | M31: 0 | N31: 0 | O31: 0 | P31: 2 | Q31: 0 | R31: 1 | S31: 0 | T31: 0 | U31: 0 | V31: 1 | W31: 0 | X31: 0 | Y31: 0 | Z31: 0 | AA31: 0 | AB31: 1 | AC31: 0 | AD31: 1 | AE31: 0 | AF31: 0 | AG31: 0 | AH31: 0 | AI31: 0 | AJ31: 0 | AK31: 0 | AL31: 0 | AM31: 0
C32: 끼임(기계설비에 끼이거나 감김) | D32: 5 | E32: 0 | F32: 1 | G32: 0 | H32: 2 | I32: 0 | J32: 0 | K32: 0 | L32: 0 | M32: 0 | N32: 2 | O32: 0 | P32: 7 | Q32: 0 | R32: 1 | S32: 0 | T32: 3 | U32: 0 | V32: 3 | W32: 0 | X32: 0 | Y32: 0 | Z32: 0 | AA32: 0 | AB32: 4 | AC32: 0 | AD32: 1 | AE32: 0 | AF32: 1 | AG32: 0 | AH32: 2 | AI32: 0 | AJ32: 0 | AK32: 0 | AL32: 0 | AM32: 0
C33: 절단·베임·찔림 | D33: 6 | E33: 0 | F33: 1 | G33: 0 | H33: 0 | I33: 0 | J33: 2 | K33: 0 | L33: 2 | M33: 0 | N33: 1 | O33: 0 | P33: 3 | Q33: 0 | R33: 1 | S33: 0 | T33: 2 | U33: 0 | V33: 0 | W33: 0 | X33: 0 | Y33: 0 | Z33: 0 | AA33: 0 | AB33: 6 | AC33: 0 | AD33: 0 | AE33: 0 | AF33: 3 | AG33: 0 | AH33: 2 | AI33: 0 | AJ33: 0 | AK33: 0 | AL33: 1 | AM33: 0
C34: 폭발·파열 | D34: 0 | E34: 0 | F34: 0 | G34: 0 | H34: 0 | I34: 0 | J34: 0 | K34: 0 | L34: 0 | M34: 0 | N34: 0 | O34: 0 | P34: 0 | Q34: 0 | R34: 0 | S34: 0 | T34: 0 | U34: 0 | V34: 0 | W34: 0 | X34: 0 | Y34: 0 | Z34: 0 | AA34: 0 | AB34: 1 | AC34: 0 | AD34: 1 | AE34: 0 | AF34: 0 | AG34: 0 | AH34: 0 | AI34: 0 | AJ34: 0 | AK34: 0 | AL34: 0 | AM34: 0
C35: 불균형 및 무리한 동작 | D35: 4 | E35: 0 | F35: 1 | G35: 0 | H35: 1 | I35: 0 | J35: 1 | K35: 0 | L35: 0 | M35: 0 | N35: 1 | O35: 0 | P35: 7 | Q35: 0 | R35: 2 | S35: 0 | T35: 2 | U35: 0 | V35: 2 | W35: 0 | X35: 0 | Y35: 0 | Z35: 1 | AA35: 0 | AB35: 9 | AC35: 0 | AD35: 1 | AE35: 0 | AF35: 5 | AG35: 0 | AH35: 2 | AI35: 0 | AJ35: 1 | AK35: 0 | AL35: 0 | AM35: 0
C36: 이상온도 접촉 | D36: 1 | E36: 0 | F36: 1 | G36: 0 | H36: 0 | I36: 0 | J36: 0 | K36: 0 | L36: 0 | M36: 0 | N36: 0 | O36: 0 | P36: 1 | Q36: 0 | R36: 0 | S36: 0 | T36: 0 | U36: 0 | V36: 1 | W36: 0 | X36: 0 | Y36: 0 | Z36: 0 | AA36: 0 | AB36: 1 | AC36: 0 | AD36: 0 | AE36: 0 | AF36: 1 | AG36: 0 | AH36: 0 | AI36: 0 | AJ36: 0 | AK36: 0 | AL36: 0 | AM36: 0
C37: 사업장외 교통사고 | D37: =F37+H37+J37+L37+N37 -> 1 | E37: =G37+I37+K37+M37+O37 -> 0 | F37: 0 | G37: 0 | H37: 0 | I37: 0 | J37: 0 | K37: 0 | L37: 0 | M37: 0 | N37: 1 | O37: 0 | P37: =R37+T37+V37+X37+Z37 -> 0 | Q37: =S37+U37+W37+Y37+AA37 -> 0 | R37: 0 | S37: 0 | T37: 0 | U37: 0 | V37: 0 | W37: 0 | X37: 0 | Y37: 0 | Z37: 0 | AA37: 0 | AB37: =AD37+AF37+AH37+AJ37+AL37 -> 0 | AC37: =AE37+AG37+AI37+AK37+AM37 -> 0 | AD37: 0 | AE37: 0 | AF37: 0 | AG37: 0 | AH37: 0 | AI37: 0 | AJ37: 0 | AK37: 0 | AL37: 0 | AM37: 0
C38: 폭력행위 | D38: 1 | E38: 0 | F38: 1 | G38: 0 | H38: 0 | I38: 0 | J38: 0 | K38: 0 | L38: 0 | M38: 0 | N38: 0 | O38: 0 | P38: 1 | Q38: 0 | R38: 1 | S38: 0 | T38: 0 | U38: 0 | V38: 0 | W38: 0 | X38: 0 | Y38: 0 | Z38: 0 | AA38: 0 | AB38: 1 | AC38: 0 | AD38: 1 | AE38: 0 | AF38: 0 | AG38: 0 | AH38: 0 | AI38: 0 | AJ38: 0 | AK38: 0 | AL38: 0 | AM38: 0
C39: 물리적인자 | D39: 0 | E39: 0 | F39: 0 | G39: 0 | H39: 0 | I39: 0 | J39: 0 | K39: 0 | L39: 0 | M39: 0 | N39: 0 | O39: 0 | P39: 0 | Q39: 0 | R39: 0 | S39: 0 | T39: 0 | U39: 0 | V39: 0 | W39: 0 | X39: 0 | Y39: 0 | Z39: 0 | AA39: 0 | AB39: 0 | AC39: 0 | AD39: 0 | AE39: 0 | AF39: 0 | AG39: 0 | AH39: 0 | AI39: 0 | AJ39: 0 | AK39: 0 | AL39: 0 | AM39: 0
C40: 생물학적인자 | D40: 0 | E40: 0 | F40: 0 | G40: 0 | H40: 0 | I40: 0 | J40: 0 | K40: 0 | L40: 0 | M40: 0 | N40: 0 | O40: 0 | P40: 0 | Q40: 0 | R40: 0 | S40: 0 | T40: 0 | U40: 0 | V40: 0 | W40: 0 | X40: 0 | Y40: 0 | Z40: 0 | AA40: 0 | AB40: 0 | AC40: 0 | AD40: 0 | AE40: 0 | AF40: 0 | AG40: 0 | AH40: 0 | AI40: 0 | AJ40: 0 | AK40: 0 | AL40: 0 | AM40: 0
C41: 뇌심혈관질환 | D41: 0 | E41: 0 | F41: 0 | G41: 0 | H41: 0 | I41: 0 | J41: 0 | K41: 0 | L41: 0 | M41: 0 | N41: 0 | O41: 0 | P41: 0 | Q41: 0 | R41: 0 | S41: 0 | T41: 0 | U41: 0 | V41: 0 | W41: 0 | X41: 0 | Y41: 0 | Z41: 0 | AA41: 0 | AB41: 0 | AC41: 0 | AD41: 0 | AE41: 0 | AF41: 0 | AG41: 0 | AH41: 0 | AI41: 0 | AJ41: 0 | AK41: 0 | AL41: 0 | AM41: 0
C42: 근골격계질환 | D42: 0 | E42: 0 | F42: 0 | G42: 0 | H42: 0 | I42: 0 | J42: 0 | K42: 0 | L42: 0 | M42: 0 | N42: 0 | O42: 0 | P42: 0 | Q42: 0 | R42: 0 | S42: 0 | T42: 0 | U42: 0 | V42: 0 | W42: 0 | X42: 0 | Y42: 0 | Z42: 0 | AA42: 0 | AB42: 0 | AC42: 0 | AD42: 0 | AE42: 0 | AF42: 0 | AG42: 0 | AH42: 0 | AI42: 0 | AJ42: 0 | AK42: 0 | AL42: 0 | AM42: 0
B43: 서울동부 | C43: 합계 | D43: 100 | E43: 2 | F43: 29 | G43: 1 | H43: 19 | I43: 0 | J43: 25 | K43: 1 | L43: 14 | M43: 0 | N43: 13 | O43: 0 | P43: 106 | Q43: 2 | R43: 32 | S43: 0 | T43: 34 | U43: 2 | V43: 25 | W43: 0 | X43: 9 | Y43: 0 | Z43: 6 | AA43: 0 | AB43: 91 | AC43: 0 | AD43: 28 | AE43: 0 | AF43: 21 | AG43: 0 | AH43: 21 | AI43: 0 | AJ43: 10 | AK43: 0 | AL43: 11 | AM43: 0
C44: 떨어짐(높이가 있는 곳에서 사람이 떨어짐) | D44: 18 | E44: 0 | F44: 4 | G44: 0 | H44: 4 | I44: 0 | J44: 4 | K44: 0 | L44: 2 | M44: 0 | N44: 4 | O44: 0 | P44: 23 | Q44: 1 | R44: 11 | S44: 0 | T44: 8 | U44: 1 | V44: 2 | W44: 0 | X44: 1 | Y44: 0 | Z44: 1 | AA44: 0 | AB44: 19 | AC44: 0 | AD44: 4 | AE44: 0 | AF44: 7 | AG44: 0 | AH44: 4 | AI44: 0 | AJ44: 1 | AK44: 0 | AL44: 3 | AM44: 0
C45: 넘어짐(사람이 미끄러지거나 넘어짐) | D45: 58 | E45: 2 | F45: 20 | G45: 1 | H45: 7 | I45: 0 | J45: 13 | K45: 1 | L45: 10 | M45: 0 | N45: 8 | O45: 0 | P45: 50 | Q45: 1 | R45: 12 | S45: 0 | T45: 16 | U45: 1 | V45: 15 | W45: 0 | X45: 5 | Y45: 0 | Z45: 2 | AA45: 0 | AB45: 40 | AC45: 0 | AD45: 17 | AE45: 0 | AF45: 8 | AG45: 0 | AH45: 6 | AI45: 0 | AJ45: 5 | AK45: 0 | AL45: 4 | AM45: 0
C46: 깔림·뒤집힘(물체의 쓰러짐이나 뒤집힘) | D46: 2 | E46: 0 | F46: 0 | G46: 0 | H46: 1 | I46: 0 | J46: 0 | K46: 0 | L46: 1 | M46: 0 | N46: 0 | O46: 0 | P46: 2 | Q46: 0 | R46: 1 | S46: 0 | T46: 0 | U46: 0 | V46: 0 | W46: 0 | X46: 1 | Y46: 0 | Z46: 0 | AA46: 0 | AB46: 1 | AC46: 0 | AD46: 0 | AE46: 0 | AF46: 0 | AG46: 0 | AH46: 1 | AI46: 0 | AJ46: 0 | AK46: 0 | AL46: 0 | AM46: 0
C47: 부딪힘(물체에 부딪힘) | D47: 1 | E47: 0 | F47: 0 | G47: 0 | H47: 0 | I47: 0 | J47: 0 | K47: 0 | L47: 1 | M47: 0 | N47: 0 | O47: 0 | P47: 4 | Q47: 0 | R47: 1 | S47: 0 | T47: 1 | U47: 0 | V47: 0 | W47: 0 | X47: 1 | Y47: 0 | Z47: 1 | AA47: 0 | AB47: 2 | AC47: 0 | AD47: 0 | AE47: 0 | AF47: 2 | AG47: 0 | AH47: 0 | AI47: 0 | AJ47: 0 | AK47: 0 | AL47: 0 | AM47: 0
C48: 물체에 맞음(날아오거나 떨어진 물체에 맞음) | D48: 2 | E48: 0 | F48: 0 | G48: 0 | H48: 1 | I48: 0 | J48: 1 | K48: 0 | L48: 0 | M48: 0 | N48: 0 | O48: 0 | P48: 3 | Q48: 0 | R48: 0 | S48: 0 | T48: 1 | U48: 0 | V48: 2 | W48: 0 | X48: 0 | Y48: 0 | Z48: 0 | AA48: 0 | AB48: 2 | AC48: 0 | AD48: 1 | AE48: 0 | AF48: 0 | AG48: 0 | AH48: 1 | AI48: 0 | AJ48: 0 | AK48: 0 | AL48: 0 | AM48: 0
C49: 끼임(기계설비에 끼이거나 감김) | D49: 2 | E49: 0 | F49: 1 | G49: 0 | H49: 0 | I49: 0 | J49: 1 | K49: 0 | L49: 0 | M49: 0 | N49: 0 | O49: 0 | P49: 6 | Q49: 0 | R49: 0 | S49: 0 | T49: 2 | U49: 0 | V49: 2 | W49: 0 | X49: 1 | Y49: 0 | Z49: 1 | AA49: 0 | AB49: 9 | AC49: 0 | AD49: 2 | AE49: 0 | AF49: 1 | AG49: 0 | AH49: 3 | AI49: 0 | AJ49: 2 | AK49: 0 | AL49: 1 | AM49: 0
C50: 절단·베임·찔림 | D50: 5 | E50: 0 | F50: 2 | G50: 0 | H50: 1 | I50: 0 | J50: 2 | K50: 0 | L50: 0 | M50: 0 | N50: 0 | O50: 0 | P50: 8 | Q50: 0 | R50: 3 | S50: 0 | T50: 2 | U50: 0 | V50: 2 | W50: 0 | X50: 0 | Y50: 0 | Z50: 1 | AA50: 0 | AB50: 7 | AC50: 0 | AD50: 1 | AE50: 0 | AF50: 1 | AG50: 0 | AH50: 4 | AI50: 0 | AJ50: 1 | AK50: 0 | AL50: 0 | AM50: 0
C51: 폭발·파열 | D51: 2 | E51: 0 | F51: 0 | G51: 0 | H51: 2 | I51: 0 | J51: 0 | K51: 0 | L51: 0 | M51: 0 | N51: 0 | O51: 0 | P51: 0 | Q51: 0 | R51: 0 | S51: 0 | T51: 0 | U51: 0 | V51: 0 | W51: 0 | X51: 0 | Y51: 0 | Z51: 0 | AA51: 0 | AB51: 2 | AC51: 0 | AD51: 1 | AE51: 0 | AF51: 0 | AG51: 0 | AH51: 1 | AI51: 0 | AJ51: 0 | AK51: 0 | AL51: 0 | AM51: 0
C52: 불균형 및 무리한 동작 | D52: 4 | E52: 0 | F52: 1 | G52: 0 | H52: 1 | I52: 0 | J52: 1 | K52: 0 | L52: 0 | M52: 0 | N52: 1 | O52: 0 | P52: 4 | Q52: 0 | R52: 2 | S52: 0 | T52: 2 | U52: 0 | V52: 0 | W52: 0 | X52: 0 | Y52: 0 | Z52: 0 | AA52: 0 | AB52: 7 | AC52: 0 | AD52: 2 | AE52: 0 | AF52: 2 | AG52: 0 | AH52: 1 | AI52: 0 | AJ52: 1 | AK52: 0 | AL52: 1 | AM52: 0
C53: 이상온도 접촉 | D53: 3 | E53: 0 | F53: 1 | G53: 0 | H53: 2 | I53: 0 | J53: 0 | K53: 0 | L53: 0 | M53: 0 | N53: 0 | O53: 0 | P53: 1 | Q53: 0 | R53: 0 | S53: 0 | T53: 1 | U53: 0 | V53: 0 | W53: 0 | X53: 0 | Y53: 0 | Z53: 0 | AA53: 0 | AB53: 1 | AC53: 0 | AD53: 0 | AE53: 0 | AF53: 0 | AG53: 0 | AH53: 0 | AI53: 0 | AJ53: 0 | AK53: 0 | AL53: 1 | AM53: 0
C54: 화학물질누출·접촉 | D54: 0 | E54: 0 | F54: 0 | G54: 0 | H54: 0 | I54: 0 | J54: 0 | K54: 0 | L54: 0 | M54: 0 | N54: 0 | O54: 0 | P54: 1 | Q54: 0 | R54: 0 | S54: 0 | T54: 0 | U54: 0 | V54: 1 | W54: 0 | X54: 0 | Y54: 0 | Z54: 0 | AA54: 0 | AB54: 0 | AC54: 0 | AD54: 0 | AE54: 0 | AF54: 0 | AG54: 0 | AH54: 0 | AI54: 0 | AJ54: 0 | AK54: 0 | AL54: 0 | AM54: 0
C55: 사업장외 교통사고 | D55: 2 | E55: 0 | F55: 0 | G55: 0 | H55: 0 | I55: 0 | J55: 2 | K55: 0 | L55: 0 | M55: 0 | N55: 0 | O55: 0 | P55: 3 | Q55: 0 | R55: 2 | S55: 0 | T55: 1 | U55: 0 | V55: 0 | W55: 0 | X55: 0 | Y55: 0 | Z55: 0 | AA55: 0 | AB55: 0 | AC55: 0 | AD55: 0 | AE55: 0 | AF55: 0 | AG55: 0 | AH55: 0 | AI55: 0 | AJ55: 0 | AK55: 0 | AL55: 0 | AM55: 0
C56: 체육행사 등의 사고 | D56: 1 | E56: 0 | F56: 0 | G56: 0 | H56: 0 | I56: 0 | J56: 1 | K56: 0 | L56: 0 | M56: 0 | N56: 0 | O56: 0 | P56: 0 | Q56: 0 | R56: 0 | S56: 0 | T56: 0 | U56: 0 | V56: 0 | W56: 0 | X56: 0 | Y56: 0 | Z56: 0 | AA56: 0 | AB56: 1 | AC56: 0 | AD56: 0 | AE56: 0 | AF56: 0 | AG56: 0 | AH56: 0 | AI56: 0 | AJ56: 0 | AK56: 0 | AL56: 1 | AM56: 0
C57: 폭력행위 | D57: 0 | E57: 0 | F57: 0 | G57: 0 | H57: 0 | I57: 0 | J57: 0 | K57: 0 | L57: 0 | M57: 0 | N57: 0 | O57: 0 | P57: 1 | Q57: 0 | R57: 0 | S57: 0 | T57: 0 | U57: 0 | V57: 1 | W57: 0 | X57: 0 | Y57: 0 | Z57: 0 | AA57: 0 | AB57: 0 | AC57: 0 | AD57: 0 | AE57: 0 | AF57: 0 | AG57: 0 | AH57: 0 | AI57: 0 | AJ57: 0 | AK57: 0 | AL57: 0 | AM57: 0
C58: 생물학적인자 | D58: 0 | E58: 0 | F58: 0 | G58: 0 | H58: 0 | I58: 0 | J58: 0 | K58: 0 | L58: 0 | M58: 0 | N58: 0 | O58: 0 | P58: 0 | Q58: 0 | R58: 0 | S58: 0 | T58: 0 | U58: 0 | V58: 0 | W58: 0 | X58: 0 | Y58: 0 | Z58: 0 | AA58: 0 | AB58: 0 | AC58: 0 | AD58: 0 | AE58: 0 | AF58: 0 | AG58: 0 | AH58: 0 | AI58: 0 | AJ58: 0 | AK58: 0 | AL58: 0 | AM58: 0
C59: 화학적인자 | D59: 0 | E59: 0 | F59: 0 | G59: 0 | H59: 0 | I59: 0 | J59: 0 | K59: 0 | L59: 0 | M59: 0 | N59: 0 | O59: 0 | P59: 0 | Q59: 0 | R59: 0 | S59: 0 | T59: 0 | U59: 0 | V59: 0 | W59: 0 | X59: 0 | Y59: 0 | Z59: 0 | AA59: 0 | AB59: 0 | AC59: 0 | AD59: 0 | AE59: 0 | AF59: 0 | AG59: 0 | AH59: 0 | AI59: 0 | AJ59: 0 | AK59: 0 | AL59: 0 | AM59: 0
C60: 뇌심혈관질환 | D60: 0 | E60: 0 | F60: 0 | G60: 0 | H60: 0 | I60: 0 | J60: 0 | K60: 0 | L60: 0 | M60: 0 | N60: 0 | O60: 0 | P60: 0 | Q60: 0 | R60: 0 | S60: 0 | T60: 0 | U60: 0 | V60: 0 | W60: 0 | X60: 0 | Y60: 0 | Z60: 0 | AA60: 0 | AB60: 0 | AC60: 0 | AD60: 0 | AE60: 0 | AF60: 0 | AG60: 0 | AH60: 0 | AI60: 0 | AJ60: 0 | AK60: 0 | AL60: 0 | AM60: 0
C61: 근골격계질환 | D61: 0 | E61: 0 | F61: 0 | G61: 0 | H61: 0 | I61: 0 | J61: 0 | K61: 0 | L61: 0 | M61: 0 | N61: 0 | O61: 0 | P61: 0 | Q61: 0 | R61: 0 | S61: 0 | T61: 0 | U61: 0 | V61: 0 | W61: 0 | X61: 0 | Y61: 0 | Z61: 0 | AA61: 0 | AB61: 0 | AC61: 0 | AD61: 0 | AE61: 0 | AF61: 0 | AG61: 0 | AH61: 0 | AI61: 0 | AJ61: 0 | AK61: 0 | AL61: 0 | AM61: 0
C62: 작업관련성질환 기타 | D62: 0 | E62: 0 | F62: 0 | G62: 0 | H62: 0 | I62: 0 | J62: 0 | K62: 0 | L62: 0 | M62: 0 | N62: 0 | O62: 0 | P62: 0 | Q62: 0 | R62: 0 | S62: 0 | T62: 0 | U62: 0 | V62: 0 | W62: 0 | X62: 0 | Y62: 0 | Z62: 0 | AA62: 0 | AB62: 0 | AC62: 0 | AD62: 0 | AE62: 0 | AF62: 0 | AG62: 0 | AH62: 0 | AI62: 0 | AJ62: 0 | AK62: 0 | AL62: 0 | AM62: 0
B63: 서울서부 | C63: 합계 | D63: 90 | E63: 0 | F63: 20 | G63: 0 | H63: 24 | I63: 0 | J63: 22 | K63: 0 | L63: 19 | M63: 0 | N63: 5 | O63: 0 | P63: 93 | Q63: 1 | R63: 36 | S63: 1 | T63: 16 | U63: 0 | V63: 21 | W63: 0 | X63: 8 | Y63: 0 | Z63: 12 | AA63: 0 | AB63: 74 | AC63: 2 | AD63: 27 | AE63: 1 | AF63: 22 | AG63: 1 | AH63: 18 | AI63: 0 | AJ63: 4 | AK63: 0 | AL63: 3 | AM63: 0
C64: 떨어짐(높이가 있는 곳에서 사람이 떨어짐) | D64: 8 | E64: 0 | F64: 1 | G64: 0 | H64: 1 | I64: 0 | J64: 3 | K64: 0 | L64: 3 | M64: 0 | N64: 0 | O64: 0 | P64: 22 | Q64: 1 | R64: 9 | S64: 1 | T64: 7 | U64: 0 | V64: 2 | W64: 0 | X64: 1 | Y64: 0 | Z64: 3 | AA64: 0 | AB64: 15 | AC64: 2 | AD64: 8 | AE64: 1 | AF64: 4 | AG64: 1 | AH64: 0 | AI64: 0 | AJ64: 1 | AK64: 0 | AL64: 2 | AM64: 0
C65: 넘어짐(사람이 미끄러지거나 넘어짐) | D65: 49 | E65: 0 | F65: 9 | G65: 0 | H65: 16 | I65: 0 | J65: 13 | K65: 0 | L65: 9 | M65: 0 | N65: 2 | O65: 0 | P65: 42 | Q65: 0 | R65: 17 | S65: 0 | T65: 5 | U65: 0 | V65: 8 | W65: 0 | X65: 6 | Y65: 0 | Z65: 6 | AA65: 0 | AB65: 34 | AC65: 0 | AD65: 13 | AE65: 0 | AF65: 10 | AG65: 0 | AH65: 9 | AI65: 0 | AJ65: 2 | AK65: 0 | AL65: 0 | AM65: 0
C66: 깔림·뒤집힘(물체의 쓰러짐이나 뒤집힘) | D66: 2 | E66: 0 | F66: 0 | G66: 0 | H66: 0 | I66: 0 | J66: 2 | K66: 0 | L66: 0 | M66: 0 | N66: 0 | O66: 0 | P66: 2 | Q66: 0 | R66: 0 | S66: 0 | T66: 1 | U66: 0 | V66: 1 | W66: 0 | X66: 0 | Y66: 0 | Z66: 0 | AA66: 0 | AB66: 0 | AC66: 0 | AD66: 0 | AE66: 0 | AF66: 0 | AG66: 0 | AH66: 0 | AI66: 0 | AJ66: 0 | AK66: 0 | AL66: 0 | AM66: 0
C67: 부딪힘(물체에 부딪힘) | D67: 4 | E67: 0 | F67: 0 | G67: 0 | H67: 0 | I67: 0 | J67: 0 | K67: 0 | L67: 3 | M67: 0 | N67: 1 | O67: 0 | P67: 4 | Q67: 0 | R67: 2 | S67: 0 | T67: 0 | U67: 0 | V67: 2 | W67: 0 | X67: 0 | Y67: 0 | Z67: 0 | AA67: 0 | AB67: 3 | AC67: 0 | AD67: 2 | AE67: 0 | AF67: 1 | AG67: 0 | AH67: 0 | AI67: 0 | AJ67: 0 | AK67: 0 | AL67: 0 | AM67: 0
C68: 물체에 맞음(날아오거나 떨어진 물체에 맞음) | D68: 4 | E68: 0 | F68: 3 | G68: 0 | H68: 1 | I68: 0 | J68: 0 | K68: 0 | L68: 0 | M68: 0 | N68: 0 | O68: 0 | P68: 4 | Q68: 0 | R68: 2 | S68: 0 | T68: 0 | U68: 0 | V68: 1 | W68: 0 | X68: 0 | Y68: 0 | Z68: 1 | AA68: 0 | AB68: 0 | AC68: 0 | AD68: 0 | AE68: 0 | AF68: 0 | AG68: 0 | AH68: 0 | AI68: 0 | AJ68: 0 | AK68: 0 | AL68: 0 | AM68: 0
C69: 무너짐(건축물이나 쌓여진 물체가 무너짐) | D69: =F69+H69+J69+L69+N69 -> 0 | E69: =G69+I69+K69+M69+O69 -> 0 | F69: 0 | G69: 0 | H69: 0 | I69: 0 | J69: 0 | K69: 0 | L69: 0 | M69: 0 | N69: 0 | O69: 0 | P69: =R69+T69+V69+X69+Z69 -> 0 | Q69: =S69+U69+W69+Y69+AA69 -> 0 | R69: 0 | S69: 0 | T69: 0 | U69: 0 | V69: 0 | W69: 0 | X69: 0 | Y69: 0 | Z69: 0 | AA69: 0 | AB69: =AD69+AF69+AH69+AJ69+AL69 -> 1 | AC69: =AE69+AG69+AI69+AK69+AM69 -> 0 | AD69: 0 | AE69: 0 | AF69: 0 | AG69: 0 | AH69: 1 | AI69: 0 | AJ69: 0 | AK69: 0 | AL69: 0 | AM69: 0
C70: 끼임(기계설비에 끼이거나 감김) | D70: 7 | E70: 0 | F70: 2 | G70: 0 | H70: 1 | I70: 0 | J70: 1 | K70: 0 | L70: 3 | M70: 0 | N70: 0 | O70: 0 | P70: 5 | Q70: 0 | R70: 1 | S70: 0 | T70: 1 | U70: 0 | V70: 1 | W70: 0 | X70: 1 | Y70: 0 | Z70: 1 | AA70: 0 | AB70: 3 | AC70: 0 | AD70: 0 | AE70: 0 | AF70: 0 | AG70: 0 | AH70: 3 | AI70: 0 | AJ70: 0 | AK70: 0 | AL70: 0 | AM70: 0
C71: 절단·베임·찔림 | D71: 5 | E71: 0 | F71: 2 | G71: 0 | H71: 0 | I71: 0 | J71: 1 | K71: 0 | L71: 0 | M71: 0 | N71: 2 | O71: 0 | P71: 4 | Q71: 0 | R71: 3 | S71: 0 | T71: 0 | U71: 0 | V71: 1 | W71: 0 | X71: 0 | Y71: 0 | Z71: 0 | AA71: 0 | AB71: 4 | AC71: 0 | AD71: 1 | AE71: 0 | AF71: 2 | AG71: 0 | AH71: 1 | AI71: 0 | AJ71: 0 | AK71: 0 | AL71: 0 | AM71: 0
C72: 감전 | D72: 1 | E72: 0 | F72: 1 | G72: 0 | H72: 0 | I72: 0 | J72: 0 | K72: 0 | L72: 0 | M72: 0 | N72: 0 | O72: 0 | P72: 0 | Q72: 0 | R72: 0 | S72: 0 | T72: 0 | U72: 0 | V72: 0 | W72: 0 | X72: 0 | Y72: 0 | Z72: 0 | AA72: 0 | AB72: 0 | AC72: 0 | AD72: 0 | AE72: 0 | AF72: 0 | AG72: 0 | AH72: 0 | AI72: 0 | AJ72: 0 | AK72: 0 | AL72: 0 | AM72: 0
C73: 화재 | D73: 1 | E73: 0 | F73: 0 | G73: 0 | H73: 1 | I73: 0 | J73: 0 | K73: 0 | L73: 0 | M73: 0 | N73: 0 | O73: 0 | P73: 0 | Q73: 0 | R73: 0 | S73: 0 | T73: 0 | U73: 0 | V73: 0 | W73: 0 | X73: 0 | Y73: 0 | Z73: 0 | AA73: 0 | AB73: 1 | AC73: 0 | AD73: 1 | AE73: 0 | AF73: 0 | AG73: 0 | AH73: 0 | AI73: 0 | AJ73: 0 | AK73: 0 | AL73: 0 | AM73: 0
C74: 불균형 및 무리한 동작 | D74: 6 | E74: 0 | F74: 2 | G74: 0 | H74: 4 | I74: 0 | J74: 0 | K74: 0 | L74: 0 | M74: 0 | N74: 0 | O74: 0 | P74: 8 | Q74: 0 | R74: 2 | S74: 0 | T74: 2 | U74: 0 | V74: 3 | W74: 0 | X74: 0 | Y74: 0 | Z74: 1 | AA74: 0 | AB74: 9 | AC74: 0 | AD74: 2 | AE74: 0 | AF74: 2 | AG74: 0 | AH74: 4 | AI74: 0 | AJ74: 0 | AK74: 0 | AL74: 1 | AM74: 0
C75: 이상온도 접촉 | D75: 0 | E75: 0 | F75: 0 | G75: 0 | H75: 0 | I75: 0 | J75: 0 | K75: 0 | L75: 0 | M75: 0 | N75: 0 | O75: 0 | P75: 1 | Q75: 0 | R75: 0 | S75: 0 | T75: 0 | U75: 0 | V75: 1 | W75: 0 | X75: 0 | Y75: 0 | Z75: 0 | AA75: 0 | AB75: 1 | AC75: 0 | AD75: 0 | AE75: 0 | AF75: 0 | AG75: 0 | AH75: 0 | AI75: 0 | AJ75: 1 | AK75: 0 | AL75: 0 | AM75: 0
C76: 화학물질누출·접촉 | D76: 2 | E76: 0 | F76: 0 | G76: 0 | H76: 0 | I76: 0 | J76: 1 | K76: 0 | L76: 1 | M76: 0 | N76: 0 | O76: 0 | P76: 0 | Q76: 0 | R76: 0 | S76: 0 | T76: 0 | U76: 0 | V76: 0 | W76: 0 | X76: 0 | Y76: 0 | Z76: 0 | AA76: 0 | AB76: 1 | AC76: 0 | AD76: 0 | AE76: 0 | AF76: 1 | AG76: 0 | AH76: 0 | AI76: 0 | AJ76: 0 | AK76: 0 | AL76: 0 | AM76: 0
C77: 사업장외 교통사고 | D77: 1 | E77: 0 | F77: 0 | G77: 0 | H77: 0 | I77: 0 | J77: 1 | K77: 0 | L77: 0 | M77: 0 | N77: 0 | O77: 0 | P77: 0 | Q77: 0 | R77: 0 | S77: 0 | T77: 0 | U77: 0 | V77: 0 | W77: 0 | X77: 0 | Y77: 0 | Z77: 0 | AA77: 0 | AB77: 1 | AC77: 0 | AD77: 0 | AE77: 0 | AF77: 1 | AG77: 0 | AH77: 0 | AI77: 0 | AJ77: 0 | AK77: 0 | AL77: 0 | AM77: 0
C78: 폭력행위 | D78: 0 | E78: 0 | F78: 0 | G78: 0 | H78: 0 | I78: 0 | J78: 0 | K78: 0 | L78: 0 | M78: 0 | N78: 0 | O78: 0 | P78: 1 | Q78: 0 | R78: 0 | S78: 0 | T78: 0 | U78: 0 | V78: 1 | W78: 0 | X78: 0 | Y78: 0 | Z78: 0 | AA78: 0 | AB78: 1 | AC78: 0 | AD78: 0 | AE78: 0 | AF78: 1 | AG78: 0 | AH78: 0 | AI78: 0 | AJ78: 0 | AK78: 0 | AL78: 0 | AM78: 0
C79: 생물학적인자 | D79: 0 | E79: 0 | F79: 0 | G79: 0 | H79: 0 | I79: 0 | J79: 0 | K79: 0 | L79: 0 | M79: 0 | N79: 0 | O79: 0 | P79: 0 | Q79: 0 | R79: 0 | S79: 0 | T79: 0 | U79: 0 | V79: 0 | W79: 0 | X79: 0 | Y79: 0 | Z79: 0 | AA79: 0 | AB79: 0 | AC79: 0 | AD79: 0 | AE79: 0 | AF79: 0 | AG79: 0 | AH79: 0 | AI79: 0 | AJ79: 0 | AK79: 0 | AL79: 0 | AM79: 0
C80: 뇌심혈관질환 | D80: 0 | E80: 0 | F80: 0 | G80: 0 | H80: 0 | I80: 0 | J80: 0 | K80: 0 | L80: 0 | M80: 0 | N80: 0 | O80: 0 | P80: 0 | Q80: 0 | R80: 0 | S80: 0 | T80: 0 | U80: 0 | V80: 0 | W80: 0 | X80: 0 | Y80: 0 | Z80: 0 | AA80: 0 | AB80: 0 | AC80: 0 | AD80: 0 | AE80: 0 | AF80: 0 | AG80: 0 | AH80: 0 | AI80: 0 | AJ80: 0 | AK80: 0 | AL80: 0 | AM80: 0
C81: 근골격계질환 | D81: 0 | E81: 0 | F81: 0 | G81: 0 | H81: 0 | I81: 0 | J81: 0 | K81: 0 | L81: 0 | M81: 0 | N81: 0 | O81: 0 | P81: 0 | Q81: 0 | R81: 0 | S81: 0 | T81: 0 | U81: 0 | V81: 0 | W81: 0 | X81: 0 | Y81: 0 | Z81: 0 | AA81: 0 | AB81: 0 | AC81: 0 | AD81: 0 | AE81: 0 | AF81: 0 | AG81: 0 | AH81: 0 | AI81: 0 | AJ81: 0 | AK81: 0 | AL81: 0 | AM81: 0
B82: 서울남부 | C82: 합계 | D82: 101 | E82: 0 | F82: 34 | G82: 0 | H82: 27 | I82: 0 | J82: 19 | K82: 0 | L82: 9 | M82: 0 | N82: 12 | O82: 0 | P82: 86 | Q82: 1 | R82: 24 | S82: 1 | T82: 24 | U82: 0 | V82: 11 | W82: 0 | X82: 11 | Y82: 0 | Z82: 16 | AA82: 0 | AB82: 109 | AC82: 1 | AD82: 39 | AE82: 0 | AF82: 14 | AG82: 1 | AH82: 27 | AI82: 0 | AJ82: 16 | AK82: 0 | AL82: 13 | AM82: 0
C83: 떨어짐(높이가 있는 곳에서 사람이 떨어짐) | D83: 15 | E83: 0 | F83: 6 | G83: 0 | H83: 2 | I83: 0 | J83: 5 | K83: 0 | L83: 1 | M83: 0 | N83: 1 | O83: 0 | P83: 10 | Q83: 0 | R83: 2 | S83: 0 | T83: 3 | U83: 0 | V83: 3 | W83: 0 | X83: 0 | Y83: 0 | Z83: 2 | AA83: 0 | AB83: 22 | AC83: 1 | AD83: 10 | AE83: 0 | AF83: 4 | AG83: 1 | AH83: 4 | AI83: 0 | AJ83: 4 | AK83: 0 | AL83: 0 | AM83: 0
C84: 넘어짐(사람이 미끄러지거나 넘어짐) | D84: 50 | E84: 0 | F84: 19 | G84: 0 | H84: 12 | I84: 0 | J84: 7 | K84: 0 | L84: 5 | M84: 0 | N84: 7 | O84: 0 | P84: 44 | Q84: 1 | R84: 10 | S84: 1 | T84: 13 | U84: 0 | V84: 5 | W84: 0 | X84: 9 | Y84: 0 | Z84: 7 | AA84: 0 | AB84: 51 | AC84: 0 | AD84: 16 | AE84: 0 | AF84: 4 | AG84: 0 | AH84: 14 | AI84: 0 | AJ84: 8 | AK84: 0 | AL84: 9 | AM84: 0
C85: 깔림·뒤집힘(물체의 쓰러짐이나 뒤집힘) | D85: 2 | E85: 0 | F85: 0 | G85: 0 | H85: 1 | I85: 0 | J85: 0 | K85: 0 | L85: 0 | M85: 0 | N85: 1 | O85: 0 | P85: 2 | Q85: 0 | R85: 2 | S85: 0 | T85: 0 | U85: 0 | V85: 0 | W85: 0 | X85: 0 | Y85: 0 | Z85: 0 | AA85: 0 | AB85: 0 | AC85: 0 | AD85: 0 | AE85: 0 | AF85: 0 | AG85: 0 | AH85: 0 | AI85: 0 | AJ85: 0 | AK85: 0 | AL85: 0 | AM85: 0
C86: 부딪힘(물체에 부딪힘) | D86: 7 | E86: 0 | F86: 2 | G86: 0 | H86: 3 | I86: 0 | J86: 2 | K86: 0 | L86: 0 | M86: 0 | N86: 0 | O86: 0 | P86: 5 | Q86: 0 | R86: 2 | S86: 0 | T86: 2 | U86: 0 | V86: 0 | W86: 0 | X86: 0 | Y86: 0 | Z86: 1 | AA86: 0 | AB86: 10 | AC86: 0 | AD86: 3 | AE86: 0 | AF86: 1 | AG86: 0 | AH86: 2 | AI86: 0 | AJ86: 1 | AK86: 0 | AL86: 3 | AM86: 0
C87: 물체에 맞음(날아오거나 떨어진 물체에 맞음) | D87: 2 | E87: 0 | F87: 0 | G87: 0 | H87: 1 | I87: 0 | J87: 1 | K87: 0 | L87: 0 | M87: 0 | N87: 0 | O87: 0 | P87: 5 | Q87: 0 | R87: 2 | S87: 0 | T87: 1 | U87: 0 | V87: 1 | W87: 0 | X87: 0 | Y87: 0 | Z87: 1 | AA87: 0 | AB87: 1 | AC87: 0 | AD87: 1 | AE87: 0 | AF87: 0 | AG87: 0 | AH87: 0 | AI87: 0 | AJ87: 0 | AK87: 0 | AL87: 0 | AM87: 0
C88: 무너짐(건축물이나 쌓여진 물체가 무너짐) | D88: 0 | E88: 0 | F88: 0 | G88: 0 | H88: 0 | I88: 0 | J88: 0 | K88: 0 | L88: 0 | M88: 0 | N88: 0 | O88: 0 | P88: 0 | Q88: 0 | R88: 0 | S88: 0 | T88: 0 | U88: 0 | V88: 0 | W88: 0 | X88: 0 | Y88: 0 | Z88: 0 | AA88: 0 | AB88: 1 | AC88: 0 | AD88: 1 | AE88: 0 | AF88: 0 | AG88: 0 | AH88: 0 | AI88: 0 | AJ88: 0 | AK88: 0 | AL88: 0 | AM88: 0
C89: 끼임(기계설비에 끼이거나 감김) | D89: 9 | E89: 0 | F89: 3 | G89: 0 | H89: 1 | I89: 0 | J89: 3 | K89: 0 | L89: 2 | M89: 0 | N89: 0 | O89: 0 | P89: 3 | Q89: 0 | R89: 1 | S89: 0 | T89: 0 | U89: 0 | V89: 0 | W89: 0 | X89: 0 | Y89: 0 | Z89: 2 | AA89: 0 | AB89: 3 | AC89: 0 | AD89: 1 | AE89: 0 | AF89: 1 | AG89: 0 | AH89: 0 | AI89: 0 | AJ89: 1 | AK89: 0 | AL89: 0 | AM89: 0
C90: 절단·베임·찔림 | D90: 7 | E90: 0 | F90: 2 | G90: 0 | H90: 2 | I90: 0 | J90: 1 | K90: 0 | L90: 1 | M90: 0 | N90: 1 | O90: 0 | P90: 9 | Q90: 0 | R90: 3 | S90: 0 | T90: 3 | U90: 0 | V90: 0 | W90: 0 | X90: 1 | Y90: 0 | Z90: 2 | AA90: 0 | AB90: 6 | AC90: 0 | AD90: 2 | AE90: 0 | AF90: 1 | AG90: 0 | AH90: 2 | AI90: 0 | AJ90: 1 | AK90: 0 | AL90: 0 | AM90: 0
C91: 화재 | D91: 0 | E91: 0 | F91: 0 | G91: 0 | H91: 0 | I91: 0 | J91: 0 | K91: 0 | L91: 0 | M91: 0 | N91: 0 | O91: 0 | P91: 0 | Q91: 0 | R91: 0 | S91: 0 | T91: 0 | U91: 0 | V91: 0 | W91: 0 | X91: 0 | Y91: 0 | Z91: 0 | AA91: 0 | AB91: 1 | AC91: 0 | AD91: 1 | AE91: 0 | AF91: 0 | AG91: 0 | AH91: 0 | AI91: 0 | AJ91: 0 | AK91: 0 | AL91: 0 | AM91: 0
C92: 불균형 및 무리한 동작 | D92: 8 | E92: 0 | F92: 2 | G92: 0 | H92: 5 | I92: 0 | J92: 0 | K92: 0 | L92: 0 | M92: 0 | N92: 1 | O92: 0 | P92: 5 | Q92: 0 | R92: 1 | S92: 0 | T92: 0 | U92: 0 | V92: 2 | W92: 0 | X92: 1 | Y92: 0 | Z92: 1 | AA92: 0 | AB92: 8 | AC92: 0 | AD92: 1 | AE92: 0 | AF92: 3 | AG92: 0 | AH92: 4 | AI92: 0 | AJ92: 0 | AK92: 0 | AL92: 0 | AM92: 0
C93: 이상온도 접촉 | D93: 0 | E93: 0 | F93: 0 | G93: 0 | H93: 0 | I93: 0 | J93: 0 | K93: 0 | L93: 0 | M93: 0 | N93: 0 | O93: 0 | P93: 1 | Q93: 0 | R93: 0 | S93: 0 | T93: 1 | U93: 0 | V93: 0 | W93: 0 | X93: 0 | Y93: 0 | Z93: 0 | AA93: 0 | AB93: 2 | AC93: 0 | AD93: 1 | AE93: 0 | AF93: 0 | AG93: 0 | AH93: 0 | AI93: 0 | AJ93: 1 | AK93: 0 | AL93: 0 | AM93: 0
C94: 사업장외 교통사고 | D94: 0 | E94: 0 | F94: 0 | G94: 0 | H94: 0 | I94: 0 | J94: 0 | K94: 0 | L94: 0 | M94: 0 | N94: 0 | O94: 0 | P94: 2 | Q94: 0 | R94: 1 | S94: 0 | T94: 1 | U94: 0 | V94: 0 | W94: 0 | X94: 0 | Y94: 0 | Z94: 0 | AA94: 0 | AB94: 0 | AC94: 0 | AD94: 0 | AE94: 0 | AF94: 0 | AG94: 0 | AH94: 0 | AI94: 0 | AJ94: 0 | AK94: 0 | AL94: 0 | AM94: 0
C95: 체육행사 등의 사고 | D95: 0 | E95: 0 | F95: 0 | G95: 0 | H95: 0 | I95: 0 | J95: 0 | K95: 0 | L95: 0 | M95: 0 | N95: 0 | O95: 0 | P95: 0 | Q95: 0 | R95: 0 | S95: 0 | T95: 0 | U95: 0 | V95: 0 | W95: 0 | X95: 0 | Y95: 0 | Z95: 0 | AA95: 0 | AB95: 1 | AC95: 0 | AD95: 0 | AE95: 0 | AF95: 0 | AG95: 0 | AH95: 1 | AI95: 0 | AJ95: 0 | AK95: 0 | AL95: 0 | AM95: 0
C96: 폭력행위 | D96: 1 | E96: 0 | F96: 0 | G96: 0 | H96: 0 | I96: 0 | J96: 0 | K96: 0 | L96: 0 | M96: 0 | N96: 1 | O96: 0 | P96: 0 | Q96: 0 | R96: 0 | S96: 0 | T96: 0 | U96: 0 | V96: 0 | W96: 0 | X96: 0 | Y96: 0 | Z96: 0 | AA96: 0 | AB96: 2 | AC96: 0 | AD96: 1 | AE96: 0 | AF96: 0 | AG96: 0 | AH96: 0 | AI96: 0 | AJ96: 0 | AK96: 0 | AL96: 1 | AM96: 0
C97: 동물상해 | D97: 0 | E97: 0 | F97: 0 | G97: 0 | H97: 0 | I97: 0 | J97: 0 | K97: 0 | L97: 0 | M97: 0 | N97: 0 | O97: 0 | P97: 0 | Q97: 0 | R97: 0 | S97: 0 | T97: 0 | U97: 0 | V97: 0 | W97: 0 | X97: 0 | Y97: 0 | Z97: 0 | AA97: 0 | AB97: 1 | AC97: 0 | AD97: 1 | AE97: 0 | AF97: 0 | AG97: 0 | AH97: 0 | AI97: 0 | AJ97: 0 | AK97: 0 | AL97: 0 | AM97: 0
C98: 뇌심혈관질환 | D98: 0 | E98: 0 | F98: 0 | G98: 0 | H98: 0 | I98: 0 | J98: 0 | K98: 0 | L98: 0 | M98: 0 | N98: 0 | O98: 0 | P98: 0 | Q98: 0 | R98: 0 | S98: 0 | T98: 0 | U98: 0 | V98: 0 | W98: 0 | X98: 0 | Y98: 0 | Z98: 0 | AA98: 0 | AB98: 0 | AC98: 0 | AD98: 0 | AE98: 0 | AF98: 0 | AG98: 0 | AH98: 0 | AI98: 0 | AJ98: 0 | AK98: 0 | AL98: 0 | AM98: 0
C99: 근골격계질환 | D99: 0 | E99: 0 | F99: 0 | G99: 0 | H99: 0 | I99: 0 | J99: 0 | K99: 0 | L99: 0 | M99: 0 | N99: 0 | O99: 0 | P99: 0 | Q99: 0 | R99: 0 | S99: 0 | T99: 0 | U99: 0 | V99: 0 | W99: 0 | X99: 0 | Y99: 0 | Z99: 0 | AA99: 0 | AB99: 0 | AC99: 0 | AD99: 0 | AE99: 0 | AF99: 0 | AG99: 0 | AH99: 0 | AI99: 0 | AJ99: 0 | AK99: 0 | AL99: 0 | AM99: 0
C100: 작업관련성질환 기타 | D100: 0 | E100: 0 | F100: 0 | G100: 0 | H100: 0 | I100: 0 | J100: 0 | K100: 0 | L100: 0 | M100: 0 | N100: 0 | O100: 0 | P100: 0 | Q100: 0 | R100: 0 | S100: 0 | T100: 0 | U100: 0 | V100: 0 | W100: 0 | X100: 0 | Y100: 0 | Z100: 0 | AA100: 0 | AB100: 0 | AC100: 0 | AD100: 0 | AE100: 0 | AF100: 0 | AG100: 0 | AH100: 0 | AI100: 0 | AJ100: 0 | AK100: 0 | AL100: 0 | AM100: 0
B101: 서울북부 | C101: 합계 | D101: =F101+H101+J101+L101+N101 -> 70 | E101: =G101+I101+K101+M101+O101 -> 0 | F101: 18 | G101: 0 | H101: 19 | I101: 0 | J101: 21 | K101: 0 | L101: 7 | M101: 0 | N101: 5 | O101: 0 | P101: =R101+T101+V101+X101+Z101 -> 100 | Q101: =S101+U101+W101+Y101+AA101 -> 1 | R101: 36 | S101: 0 | T101: 26 | U101: 1 | V101: 25 | W101: 0 | X101: 6 | Y101: 0 | Z101: 7 | AA101: 0 | AB101: =AD101+AF101+AH101+AJ101+AL101 -> 93 | AC101: =AE101+AG101+AI101+AK101+AM101 -> 0 | AD101: 39 | AE101: 0 | AF101: 22 | AG101: 0 | AH101: 20 | AI101: 0 | AJ101: 10 | AK101: 0 | AL101: 2 | AM101: 0
C102: 떨어짐(높이가 있는 곳에서 사람이 떨어짐) | D102: 9 | E102: 0 | F102: 3 | G102: 0 | H102: 2 | I102: 0 | J102: 2 | K102: 0 | L102: 0 | M102: 0 | N102: 2 | O102: 0 | P102: 24 | Q102: 1 | R102: 11 | S102: 0 | T102: 6 | U102: 1 | V102: 6 | W102: 0 | X102: 0 | Y102: 0 | Z102: 1 | AA102: 0 | AB102: 15 | AC102: 0 | AD102: 8 | AE102: 0 | AF102: 3 | AG102: 0 | AH102: 3 | AI102: 0 | AJ102: 1 | AK102: 0 | AL102: 0 | AM102: 0
C103: 넘어짐(사람이 미끄러지거나 넘어짐) | D103: 33 | E103: 0 | F103: 8 | G103: 0 | H103: 9 | I103: 0 | J103: 11 | K103: 0 | L103: 4 | M103: 0 | N103: 1 | O103: 0 | P103: 46 | Q103: 0 | R103: 11 | S103: 0 | T103: 12 | U103: 0 | V103: 15 | W103: 0 | X103: 4 | Y103: 0 | Z103: 4 | AA103: 0 | AB103: 45 | AC103: 0 | AD103: 18 | AE103: 0 | AF103: 10 | AG103: 0 | AH103: 8 | AI103: 0 | AJ103: 8 | AK103: 0 | AL103: 1 | AM103: 0
C104: 깔림·뒤집힘(물체의 쓰러짐이나 뒤집힘) | D104: 3 | E104: 0 | F104: 2 | G104: 0 | H104: 1 | I104: 0 | J104: 0 | K104: 0 | L104: 0 | M104: 0 | N104: 0 | O104: 0 | P104: 0 | Q104: 0 | R104: 0 | S104: 0 | T104: 0 | U104: 0 | V104: 0 | W104: 0 | X104: 0 | Y104: 0 | Z104: 0 | AA104: 0 | AB104: 1 | AC104: 0 | AD104: 0 | AE104: 0 | AF104: 0 | AG104: 0 | AH104: 1 | AI104: 0 | AJ104: 0 | AK104: 0 | AL104: 0 | AM104: 0
C105: 부딪힘(물체에 부딪힘) | D105: 7 | E105: 0 | F105: 0 | G105: 0 | H105: 3 | I105: 0 | J105: 2 | K105: 0 | L105: 1 | M105: 0 | N105: 1 | O105: 0 | P105: 5 | Q105: 0 | R105: 1 | S105: 0 | T105: 2 | U105: 0 | V105: 2 | W105: 0 | X105: 0 | Y105: 0 | Z105: 0 | AA105: 0 | AB105: 10 | AC105: 0 | AD105: 5 | AE105: 0 | AF105: 3 | AG105: 0 | AH105: 1 | AI105: 0 | AJ105: 1 | AK105: 0 | AL105: 0 | AM105: 0
C106: 물체에 맞음(날아오거나 떨어진 물체에 맞음) | D106: 2 | E106: 0 | F106: 1 | G106: 0 | H106: 0 | I106: 0 | J106: 1 | K106: 0 | L106: 0 | M106: 0 | N106: 0 | O106: 0 | P106: 2 | Q106: 0 | R106: 1 | S106: 0 | T106: 1 | U106: 0 | V106: 0 | W106: 0 | X106: 0 | Y106: 0 | Z106: 0 | AA106: 0 | AB106: 4 | AC106: 0 | AD106: 2 | AE106: 0 | AF106: 1 | AG106: 0 | AH106: 1 | AI106: 0 | AJ106: 0 | AK106: 0 | AL106: 0 | AM106: 0
C107: 무너짐(건축물이나 쌓여진 물체가 무너짐) | D107: 1 | E107: 0 | F107: 1 | G107: 0 | H107: 0 | I107: 0 | J107: 0 | K107: 0 | L107: 0 | M107: 0 | N107: 0 | O107: 0 | P107: 0 | Q107: 0 | R107: 0 | S107: 0 | T107: 0 | U107: 0 | V107: 0 | W107: 0 | X107: 0 | Y107: 0 | Z107: 0 | AA107: 0 | AB107: 0 | AC107: 0 | AD107: 0 | AE107: 0 | AF107: 0 | AG107: 0 | AH107: 0 | AI107: 0 | AJ107: 0 | AK107: 0 | AL107: 0 | AM107: 0
C108: 끼임(기계설비에 끼이거나 감김) | D108: 2 | E108: 0 | F108: 0 | G108: 0 | H108: 0 | I108: 0 | J108: 2 | K108: 0 | L108: 0 | M108: 0 | N108: 0 | O108: 0 | P108: 2 | Q108: 0 | R108: 0 | S108: 0 | T108: 2 | U108: 0 | V108: 0 | W108: 0 | X108: 0 | Y108: 0 | Z108: 0 | AA108: 0 | AB108: 2 | AC108: 0 | AD108: 2 | AE108: 0 | AF108: 0 | AG108: 0 | AH108: 0 | AI108: 0 | AJ108: 0 | AK108: 0 | AL108: 0 | AM108: 0
C109: 절단·베임·찔림 | D109: 4 | E109: 0 | F109: 0 | G109: 0 | H109: 1 | I109: 0 | J109: 0 | K109: 0 | L109: 2 | M109: 0 | N109: 1 | O109: 0 | P109: 11 | Q109: 0 | R109: 8 | S109: 0 | T109: 1 | U109: 0 | V109: 1 | W109: 0 | X109: 1 | Y109: 0 | Z109: 0 | AA109: 0 | AB109: 7 | AC109: 0 | AD109: 4 | AE109: 0 | AF109: 2 | AG109: 0 | AH109: 0 | AI109: 0 | AJ109: 0 | AK109: 0 | AL109: 1 | AM109: 0
C110: 불균형 및 무리한 동작 | D110: 4 | E110: 0 | F110: 1 | G110: 0 | H110: 1 | I110: 0 | J110: 2 | K110: 0 | L110: 0 | M110: 0 | N110: 0 | O110: 0 | P110: 2 | Q110: 0 | R110: 2 | S110: 0 | T110: 0 | U110: 0 | V110: 0 | W110: 0 | X110: 0 | Y110: 0 | Z110: 0 | AA110: 0 | AB110: 6 | AC110: 0 | AD110: 0 | AE110: 0 | AF110: 2 | AG110: 0 | AH110: 4 | AI110: 0 | AJ110: 0 | AK110: 0 | AL110: 0 | AM110: 0
C111: 이상온도 접촉 | D111: 1 | E111: 0 | F111: 0 | G111: 0 | H111: 1 | I111: 0 | J111: 0 | K111: 0 | L111: 0 | M111: 0 | N111: 0 | O111: 0 | P111: 0 | Q111: 0 | R111: 0 | S111: 0 | T111: 0 | U111: 0 | V111: 0 | W111: 0 | X111: 0 | Y111: 0 | Z111: 0 | AA111: 0 | AB111: 2 | AC111: 0 | AD111: 0 | AE111: 0 | AF111: 1 | AG111: 0 | AH111: 1 | AI111: 0 | AJ111: 0 | AK111: 0 | AL111: 0 | AM111: 0
C112: 사업장외 교통사고 | D112: 1 | E112: 0 | F112: 0 | G112: 0 | H112: 0 | I112: 0 | J112: 1 | K112: 0 | L112: 0 | M112: 0 | N112: 0 | O112: 0 | P112: 3 | Q112: 0 | R112: 1 | S112: 0 | T112: 1 | U112: 0 | V112: 0 | W112: 0 | X112: 0 | Y112: 0 | Z112: 1 | AA112: 0 | AB112: 0 | AC112: 0 | AD112: 0 | AE112: 0 | AF112: 0 | AG112: 0 | AH112: 0 | AI112: 0 | AJ112: 0 | AK112: 0 | AL112: 0 | AM112: 0
C113: 체육행사 등의 사고 | D113: 0 | E113: 0 | F113: 0 | G113: 0 | H113: 0 | I113: 0 | J113: 0 | K113: 0 | L113: 0 | M113: 0 | N113: 0 | O113: 0 | P113: 1 | Q113: 0 | R113: 0 | S113: 0 | T113: 1 | U113: 0 | V113: 0 | W113: 0 | X113: 0 | Y113: 0 | Z113: 0 | AA113: 0 | AB113: 0 | AC113: 0 | AD113: 0 | AE113: 0 | AF113: 0 | AG113: 0 | AH113: 0 | AI113: 0 | AJ113: 0 | AK113: 0 | AL113: 0 | AM113: 0
C114: 폭력행위 | D114: 3 | E114: 0 | F114: 2 | G114: 0 | H114: 1 | I114: 0 | J114: 0 | K114: 0 | L114: 0 | M114: 0 | N114: 0 | O114: 0 | P114: 3 | Q114: 0 | R114: 1 | S114: 0 | T114: 0 | U114: 0 | V114: 1 | W114: 0 | X114: 1 | Y114: 0 | Z114: 0 | AA114: 0 | AB114: 1 | AC114: 0 | AD114: 0 | AE114: 0 | AF114: 0 | AG114: 0 | AH114: 1 | AI114: 0 | AJ114: 0 | AK114: 0 | AL114: 0 | AM114: 0
C115: 동물상해 | D115: 0 | E115: 0 | F115: 0 | G115: 0 | H115: 0 | I115: 0 | J115: 0 | K115: 0 | L115: 0 | M115: 0 | N115: 0 | O115: 0 | P115: 1 | Q115: 0 | R115: 0 | S115: 0 | T115: 0 | U115: 0 | V115: 0 | W115: 0 | X115: 0 | Y115: 0 | Z115: 1 | AA115: 0 | AB115: 0 | AC115: 0 | AD115: 0 | AE115: 0 | AF115: 0 | AG115: 0 | AH115: 0 | AI115: 0 | AJ115: 0 | AK115: 0 | AL115: 0 | AM115: 0
C116: 생물학적인자 | D116: 0 | E116: 0 | F116: 0 | G116: 0 | H116: 0 | I116: 0 | J116: 0 | K116: 0 | L116: 0 | M116: 0 | N116: 0 | O116: 0 | P116: 0 | Q116: 0 | R116: 0 | S116: 0 | T116: 0 | U116: 0 | V116: 0 | W116: 0 | X116: 0 | Y116: 0 | Z116: 0 | AA116: 0 | AB116: 0 | AC116: 0 | AD116: 0 | AE116: 0 | AF116: 0 | AG116: 0 | AH116: 0 | AI116: 0 | AJ116: 0 | AK116: 0 | AL116: 0 | AM116: 0
C117: 뇌심혈관질환 | D117: 0 | E117: 0 | F117: 0 | G117: 0 | H117: 0 | I117: 0 | J117: 0 | K117: 0 | L117: 0 | M117: 0 | N117: 0 | O117: 0 | P117: 0 | Q117: 0 | R117: 0 | S117: 0 | T117: 0 | U117: 0 | V117: 0 | W117: 0 | X117: 0 | Y117: 0 | Z117: 0 | AA117: 0 | AB117: 0 | AC117: 0 | AD117: 0 | AE117: 0 | AF117: 0 | AG117: 0 | AH117: 0 | AI117: 0 | AJ117: 0 | AK117: 0 | AL117: 0 | AM117: 0
C118: 근골격계질환 | D118: 0 | E118: 0 | F118: 0 | G118: 0 | H118: 0 | I118: 0 | J118: 0 | K118: 0 | L118: 0 | M118: 0 | N118: 0 | O118: 0 | P118: 0 | Q118: 0 | R118: 0 | S118: 0 | T118: 0 | U118: 0 | V118: 0 | W118: 0 | X118: 0 | Y118: 0 | Z118: 0 | AA118: 0 | AB118: 0 | AC118: 0 | AD118: 0 | AE118: 0 | AF118: 0 | AG118: 0 | AH118: 0 | AI118: 0 | AJ118: 0 | AK118: 0 | AL118: 0 | AM118: 0
C119: 작업관련성질환 기타 | D119: 0 | E119: 0 | F119: 0 | G119: 0 | H119: 0 | I119: 0 | J119: 0 | K119: 0 | L119: 0 | M119: 0 | N119: 0 | O119: 0 | P119: 0 | Q119: 0 | R119: 0 | S119: 0 | T119: 0 | U119: 0 | V119: 0 | W119: 0 | X119: 0 | Y119: 0 | Z119: 0 | AA119: 0 | AB119: 0 | AC119: 0 | AD119: 0 | AE119: 0 | AF119: 0 | AG119: 0 | AH119: 0 | AI119: 0 | AJ119: 0 | AK119: 0 | AL119: 0 | AM119: 0
B120: 서울관악 | C120: 합계 | D120: 79 | E120: 1 | F120: 21 | G120: 0 | H120: 30 | I120: 1 | J120: 18 | K120: 0 | L120: 6 | M120: 0 | N120: 4 | O120: 0 | P120: 95 | Q120: 0 | R120: 41 | S120: 0 | T120: 22 | U120: 0 | V120: 20 | W120: 0 | X120: 10 | Y120: 0 | Z120: 2 | AA120: 0 | AB120: 80 | AC120: 1 | AD120: 21 | AE120: 0 | AF120: 21 | AG120: 1 | AH120: 25 | AI120: 0 | AJ120: 11 | AK120: 0 | AL120: 2 | AM120: 0
C121: 떨어짐(높이가 있는 곳에서 사람이 떨어짐) | D121: 19 | E121: 1 | F121: 5 | G121: 0 | H121: 11 | I121: 1 | J121: 2 | K121: 0 | L121: 1 | M121: 0 | N121: 0 | O121: 0 | P121: 16 | Q121: 0 | R121: 5 | S121: 0 | T121: 3 | U121: 0 | V121: 3 | W121: 0 | X121: 3 | Y121: 0 | Z121: 2 | AA121: 0 | AB121: 14 | AC121: 1 | AD121: 6 | AE121: 0 | AF121: 4 | AG121: 1 | AH121: 1 | AI121: 0 | AJ121: 3 | AK121: 0 | AL121: 0 | AM121: 0
C122: 넘어짐(사람이 미끄러지거나 넘어짐) | D122: 38 | E122: 0 | F122: 10 | G122: 0 | H122: 12 | I122: 0 | J122: 11 | K122: 0 | L122: 3 | M122: 0 | N122: 2 | O122: 0 | P122: 45 | Q122: 0 | R122: 27 | S122: 0 | T122: 7 | U122: 0 | V122: 9 | W122: 0 | X122: 2 | Y122: 0 | Z122: 0 | AA122: 0 | AB122: 38 | AC122: 0 | AD122: 14 | AE122: 0 | AF122: 10 | AG122: 0 | AH122: 9 | AI122: 0 | AJ122: 4 | AK122: 0 | AL122: 1 | AM122: 0
C123: 깔림·뒤집힘(물체의 쓰러짐이나 뒤집힘) | D123: 0 | E123: 0 | F123: 0 | G123: 0 | H123: 0 | I123: 0 | J123: 0 | K123: 0 | L123: 0 | M123: 0 | N123: 0 | O123: 0 | P123: 1 | Q123: 0 | R123: 0 | S123: 0 | T123: 0 | U123: 0 | V123: 1 | W123: 0 | X123: 0 | Y123: 0 | Z123: 0 | AA123: 0 | AB123: 2 | AC123: 0 | AD123: 0 | AE123: 0 | AF123: 1 | AG123: 0 | AH123: 0 | AI123: 0 | AJ123: 0 | AK123: 0 | AL123: 1 | AM123: 0
C124: 부딪힘(물체에 부딪힘) | D124: 4 | E124: 0 | F124: 0 | G124: 0 | H124: 0 | I124: 0 | J124: 2 | K124: 0 | L124: 1 | M124: 0 | N124: 1 | O124: 0 | P124: 9 | Q124: 0 | R124: 4 | S124: 0 | T124: 2 | U124: 0 | V124: 2 | W124: 0 | X124: 1 | Y124: 0 | Z124: 0 | AA124: 0 | AB124: 6 | AC124: 0 | AD124: 0 | AE124: 0 | AF124: 2 | AG124: 0 | AH124: 3 | AI124: 0 | AJ124: 1 | AK124: 0 | AL124: 0 | AM124: 0
C125: 물체에 맞음(날아오거나 떨어진 물체에 맞음) | D125: 1 | E125: 0 | F125: 0 | G125: 0 | H125: 1 | I125: 0 | J125: 0 | K125: 0 | L125: 0 | M125: 0 | N125: 0 | O125: 0 | P125: 2 | Q125: 0 | R125: 0 | S125: 0 | T125: 0 | U125: 0 | V125: 2 | W125: 0 | X125: 0 | Y125: 0 | Z125: 0 | AA125: 0 | AB125: 1 | AC125: 0 | AD125: 0 | AE125: 0 | AF125: 0 | AG125: 0 | AH125: 1 | AI125: 0 | AJ125: 0 | AK125: 0 | AL125: 0 | AM125: 0
C126: 끼임(기계설비에 끼이거나 감김) | D126: 2 | E126: 0 | F126: 1 | G126: 0 | H126: 1 | I126: 0 | J126: 0 | K126: 0 | L126: 0 | M126: 0 | N126: 0 | O126: 0 | P126: 8 | Q126: 0 | R126: 1 | S126: 0 | T126: 5 | U126: 0 | V126: 1 | W126: 0 | X126: 1 | Y126: 0 | Z126: 0 | AA126: 0 | AB126: 3 | AC126: 0 | AD126: 0 | AE126: 0 | AF126: 1 | AG126: 0 | AH126: 1 | AI126: 0 | AJ126: 1 | AK126: 0 | AL126: 0 | AM126: 0
C127: 절단·베임·찔림 | D127: 6 | E127: 0 | F127: 3 | G127: 0 | H127: 1 | I127: 0 | J127: 2 | K127: 0 | L127: 0 | M127: 0 | N127: 0 | O127: 0 | P127: 3 | Q127: 0 | R127: 2 | S127: 0 | T127: 0 | U127: 0 | V127: 1 | W127: 0 | X127: 0 | Y127: 0 | Z127: 0 | AA127: 0 | AB127: 1 | AC127: 0 | AD127: 0 | AE127: 0 | AF127: 0 | AG127: 0 | AH127: 1 | AI127: 0 | AJ127: 0 | AK127: 0 | AL127: 0 | AM127: 0
C128: 감전 | D128: 1 | E128: 0 | F128: 0 | G128: 0 | H128: 0 | I128: 0 | J128: 0 | K128: 0 | L128: 0 | M128: 0 | N128: 1 | O128: 0 | P128: 1 | Q128: 0 | R128: 0 | S128: 0 | T128: 1 | U128: 0 | V128: 0 | W128: 0 | X128: 0 | Y128: 0 | Z128: 0 | AA128: 0 | AB128: 1 | AC128: 0 | AD128: 0 | AE128: 0 | AF128: 0 | AG128: 0 | AH128: 1 | AI128: 0 | AJ128: 0 | AK128: 0 | AL128: 0 | AM128: 0
C129: 화재 | D129: 0 | E129: 0 | F129: 0 | G129: 0 | H129: 0 | I129: 0 | J129: 0 | K129: 0 | L129: 0 | M129: 0 | N129: 0 | O129: 0 | P129: 1 | Q129: 0 | R129: 0 | S129: 0 | T129: 1 | U129: 0 | V129: 0 | W129: 0 | X129: 0 | Y129: 0 | Z129: 0 | AA129: 0 | AB129: 0 | AC129: 0 | AD129: 0 | AE129: 0 | AF129: 0 | AG129: 0 | AH129: 0 | AI129: 0 | AJ129: 0 | AK129: 0 | AL129: 0 | AM129: 0
C130: 불균형 및 무리한 동작 | D130: 4 | E130: 0 | F130: 1 | G130: 0 | H130: 2 | I130: 0 | J130: 1 | K130: 0 | L130: 0 | M130: 0 | N130: 0 | O130: 0 | P130: 7 | Q130: 0 | R130: 2 | S130: 0 | T130: 2 | U130: 0 | V130: 1 | W130: 0 | X130: 2 | Y130: 0 | Z130: 0 | AA130: 0 | AB130: 9 | AC130: 0 | AD130: 0 | AE130: 0 | AF130: 1 | AG130: 0 | AH130: 6 | AI130: 0 | AJ130: 2 | AK130: 0 | AL130: 0 | AM130: 0
C131: 이상온도 접촉 | D131: 1 | E131: 0 | F131: 0 | G131: 0 | H131: 0 | I131: 0 | J131: 0 | K131: 0 | L131: 1 | M131: 0 | N131: 0 | O131: 0 | P131: 2 | Q131: 0 | R131: 0 | S131: 0 | T131: 1 | U131: 0 | V131: 0 | W131: 0 | X131: 1 | Y131: 0 | Z131: 0 | AA131: 0 | AB131: 1 | AC131: 0 | AD131: 0 | AE131: 0 | AF131: 1 | AG131: 0 | AH131: 0 | AI131: 0 | AJ131: 0 | AK131: 0 | AL131: 0 | AM131: 0
C132: 산소결핍 | D132: 0 | E132: 0 | F132: 0 | G132: 0 | H132: 0 | I132: 0 | J132: 0 | K132: 0 | L132: 0 | M132: 0 | N132: 0 | O132: 0 | P132: 0 | Q132: 0 | R132: 0 | S132: 0 | T132: 0 | U132: 0 | V132: 0 | W132: 0 | X132: 0 | Y132: 0 | Z132: 0 | AA132: 0 | AB132: 1 | AC132: 0 | AD132: 0 | AE132: 0 | AF132: 0 | AG132: 0 | AH132: 1 | AI132: 0 | AJ132: 0 | AK132: 0 | AL132: 0 | AM132: 0
C133: 사업장외 교통사고 | D133: =F133+H133+J133+L133+N133 -> 1 | E133: =G133+I133+K133+M133+O133 -> 0 | F133: 1 | G133: 0 | H133: 0 | I133: 0 | J133: 0 | K133: 0 | L133: 0 | M133: 0 | N133: 0 | O133: 0 | P133: =R133+T133+V133+X133+Z133 -> 0 | Q133: =S133+U133+W133+Y133+AA133 -> 0 | R133: 0 | S133: 0 | T133: 0 | U133: 0 | V133: 0 | W133: 0 | X133: 0 | Y133: 0 | Z133: 0 | AA133: 0 | AB133: =AD133+AF133+AH133+AJ133+AL133 -> 1 | AC133: =AE133+AG133+AI133+AK133+AM133 -> 0 | AD133: 0 | AE133: 0 | AF133: 0 | AG133: 0 | AH133: 1 | AI133: 0 | AJ133: 0 | AK133: 0 | AL133: 0 | AM133: 0
C134: 폭력행위 | D134: 2 | E134: 0 | F134: 0 | G134: 0 | H134: 2 | I134: 0 | J134: 0 | K134: 0 | L134: 0 | M134: 0 | N134: 0 | O134: 0 | P134: 0 | Q134: 0 | R134: 0 | S134: 0 | T134: 0 | U134: 0 | V134: 0 | W134: 0 | X134: 0 | Y134: 0 | Z134: 0 | AA134: 0 | AB134: 2 | AC134: 0 | AD134: 1 | AE134: 0 | AF134: 1 | AG134: 0 | AH134: 0 | AI134: 0 | AJ134: 0 | AK134: 0 | AL134: 0 | AM134: 0
C135: 화학적인자 | D135: 0 | E135: 0 | F135: 0 | G135: 0 | H135: 0 | I135: 0 | J135: 0 | K135: 0 | L135: 0 | M135: 0 | N135: 0 | O135: 0 | P135: 0 | Q135: 0 | R135: 0 | S135: 0 | T135: 0 | U135: 0 | V135: 0 | W135: 0 | X135: 0 | Y135: 0 | Z135: 0 | AA135: 0 | AB135: 0 | AC135: 0 | AD135: 0 | AE135: 0 | AF135: 0 | AG135: 0 | AH135: 0 | AI135: 0 | AJ135: 0 | AK135: 0 | AL135: 0 | AM135: 0
C136: 뇌심혈관질환 | D136: 0 | E136: 0 | F136: 0 | G136: 0 | H136: 0 | I136: 0 | J136: 0 | K136: 0 | L136: 0 | M136: 0 | N136: 0 | O136: 0 | P136: 0 | Q136: 0 | R136: 0 | S136: 0 | T136: 0 | U136: 0 | V136: 0 | W136: 0 | X136: 0 | Y136: 0 | Z136: 0 | AA136: 0 | AB136: 0 | AC136: 0 | AD136: 0 | AE136: 0 | AF136: 0 | AG136: 0 | AH136: 0 | AI136: 0 | AJ136: 0 | AK136: 0 | AL136: 0 | AM136: 0
C137: 근골격계질환 | D137: 0 | E137: 0 | F137: 0 | G137: 0 | H137: 0 | I137: 0 | J137: 0 | K137: 0 | L137: 0 | M137: 0 | N137: 0 | O137: 0 | P137: 0 | Q137: 0 | R137: 0 | S137: 0 | T137: 0 | U137: 0 | V137: 0 | W137: 0 | X137: 0 | Y137: 0 | Z137: 0 | AA137: 0 | AB137: 0 | AC137: 0 | AD137: 0 | AE137: 0 | AF137: 0 | AG137: 0 | AH137: 0 | AI137: 0 | AJ137: 0 | AK137: 0 | AL137: 0 | AM137: 0
B138: 강 원 | C138: 합계 | D138: 21 | E138: 0 | F138: 7 | G138: 0 | H138: 9 | I138: 0 | J138: 3 | K138: 0 | L138: 1 | M138: 0 | N138: 1 | O138: 0 | P138: 17 | Q138: 1 | R138: 3 | S138: 0 | T138: 4 | U138: 0 | V138: 5 | W138: 0 | X138: 4 | Y138: 1 | Z138: 1 | AA138: 0 | AB138: 16 | AC138: 0 | AD138: 3 | AE138: 0 | AF138: 6 | AG138: 0 | AH138: 3 | AI138: 0 | AJ138: 3 | AK138: 0 | AL138: 1 | AM138: 0
C139: 떨어짐(높이가 있는 곳에서 사람이 떨어짐) | D139: 3 | E139: 0 | F139: 1 | G139: 0 | H139: 2 | I139: 0 | J139: 0 | K139: 0 | L139: 0 | M139: 0 | N139: 0 | O139: 0 | P139: 2 | Q139: 0 | R139: 1 | S139: 0 | T139: 0 | U139: 0 | V139: 1 | W139: 0 | X139: 0 | Y139: 0 | Z139: 0 | AA139: 0 | AB139: 3 | AC139: 0 | AD139: 0 | AE139: 0 | AF139: 1 | AG139: 0 | AH139: 1 | AI139: 0 | AJ139: 1 | AK139: 0 | AL139: 0 | AM139: 0
C140: 넘어짐(사람이 미끄러지거나 넘어짐) | D140: 9 | E140: 0 | F140: 2 | G140: 0 | H140: 5 | I140: 0 | J140: 1 | K140: 0 | L140: 1 | M140: 0 | N140: 0 | O140: 0 | P140: 9 | Q140: 0 | R140: 2 | S140: 0 | T140: 2 | U140: 0 | V140: 3 | W140: 0 | X140: 2 | Y140: 0 | Z140: 0 | AA140: 0 | AB140: 10 | AC140: 0 | AD140: 2 | AE140: 0 | AF140: 4 | AG140: 0 | AH140: 1 | AI140: 0 | AJ140: 2 | AK140: 0 | AL140: 1 | AM140: 0
C141: 깔림·뒤집힘(물체의 쓰러짐이나 뒤집힘) | D141: 1 | E141: 0 | F141: 1 | G141: 0 | H141: 0 | I141: 0 | J141: 0 | K141: 0 | L141: 0 | M141: 0 | N141: 0 | O141: 0 | P141: 0 | Q141: 0 | R141: 0 | S141: 0 | T141: 0 | U141: 0 | V141: 0 | W141: 0 | X141: 0 | Y141: 0 | Z141: 0 | AA141: 0 | AB141: 0 | AC141: 0 | AD141: 0 | AE141: 0 | AF141: 0 | AG141: 0 | AH141: 0 | AI141: 0 | AJ141: 0 | AK141: 0 | AL141: 0 | AM141: 0
C142: 부딪힘(물체에 부딪힘) | D142: 0 | E142: 0 | F142: 0 | G142: 0 | H142: 0 | I142: 0 | J142: 0 | K142: 0 | L142: 0 | M142: 0 | N142: 0 | O142: 0 | P142: 3 | Q142: 1 | R142: 0 | S142: 0 | T142: 1 | U142: 0 | V142: 0 | W142: 0 | X142: 2 | Y142: 1 | Z142: 0 | AA142: 0 | AB142: 1 | AC142: 0 | AD142: 0 | AE142: 0 | AF142: 0 | AG142: 0 | AH142: 1 | AI142: 0 | AJ142: 0 | AK142: 0 | AL142: 0 | AM142: 0
C143: 물체에 맞음(날아오거나 떨어진 물체에 맞음) | D143: 1 | E143: 0 | F143: 0 | G143: 0 | H143: 1 | I143: 0 | J143: 0 | K143: 0 | L143: 0 | M143: 0 | N143: 0 | O143: 0 | P143: 1 | Q143: 0 | R143: 0 | S143: 0 | T143: 1 | U143: 0 | V143: 0 | W143: 0 | X143: 0 | Y143: 0 | Z143: 0 | AA143: 0 | AB143: 0 | AC143: 0 | AD143: 0 | AE143: 0 | AF143: 0 | AG143: 0 | AH143: 0 | AI143: 0 | AJ143: 0 | AK143: 0 | AL143: 0 | AM143: 0
C144: 끼임(기계설비에 끼이거나 감김) | D144: 2 | E144: 0 | F144: 0 | G144: 0 | H144: 0 | I144: 0 | J144: 1 | K144: 0 | L144: 0 | M144: 0 | N144: 1 | O144: 0 | P144: 0 | Q144: 0 | R144: 0 | S144: 0 | T144: 0 | U144: 0 | V144: 0 | W144: 0 | X144: 0 | Y144: 0 | Z144: 0 | AA144: 0 | AB144: 1 | AC144: 0 | AD144: 1 | AE144: 0 | AF144: 0 | AG144: 0 | AH144: 0 | AI144: 0 | AJ144: 0 | AK144: 0 | AL144: 0 | AM144: 0
C145: 절단·베임·찔림 | D145: 3 | E145: 0 | F145: 1 | G145: 0 | H145: 1 | I145: 0 | J145: 1 | K145: 0 | L145: 0 | M145: 0 | N145: 0 | O145: 0 | P145: 0 | Q145: 0 | R145: 0 | S145: 0 | T145: 0 | U145: 0 | V145: 0 | W145: 0 | X145: 0 | Y145: 0 | Z145: 0 | AA145: 0 | AB145: 0 | AC145: 0 | AD145: 0 | AE145: 0 | AF145: 0 | AG145: 0 | AH145: 0 | AI145: 0 | AJ145: 0 | AK145: 0 | AL145: 0 | AM145: 0
C146: 화재 | D146: 0 | E146: 0 | F146: 0 | G146: 0 | H146: 0 | I146: 0 | J146: 0 | K146: 0 | L146: 0 | M146: 0 | N146: 0 | O146: 0 | P146: 0 | Q146: 0 | R146: 0 | S146: 0 | T146: 0 | U146: 0 | V146: 0 | W146: 0 | X146: 0 | Y146: 0 | Z146: 0 | AA146: 0 | AB146: 1 | AC146: 0 | AD146: 0 | AE146: 0 | AF146: 1 | AG146: 0 | AH146: 0 | AI146: 0 | AJ146: 0 | AK146: 0 | AL146: 0 | AM146: 0
C147: 불균형 및 무리한 동작 | D147: 2 | E147: 0 | F147: 2 | G147: 0 | H147: 0 | I147: 0 | J147: 0 | K147: 0 | L147: 0 | M147: 0 | N147: 0 | O147: 0 | P147: 0 | Q147: 0 | R147: 0 | S147: 0 | T147: 0 | U147: 0 | V147: 0 | W147: 0 | X147: 0 | Y147: 0 | Z147: 0 | AA147: 0 | AB147: 0 | AC147: 0 | AD147: 0 | AE147: 0 | AF147: 0 | AG147: 0 | AH147: 0 | AI147: 0 | AJ147: 0 | AK147: 0 | AL147: 0 | AM147: 0
C148: 화학물질누출·접촉 | D148: 0 | E148: 0 | F148: 0 | G148: 0 | H148: 0 | I148: 0 | J148: 0 | K148: 0 | L148: 0 | M148: 0 | N148: 0 | O148: 0 | P148: 1 | Q148: 0 | R148: 0 | S148: 0 | T148: 0 | U148: 0 | V148: 1 | W148: 0 | X148: 0 | Y148: 0 | Z148: 0 | AA148: 0 | AB148: 0 | AC148: 0 | AD148: 0 | AE148: 0 | AF148: 0 | AG148: 0 | AH148: 0 | AI148: 0 | AJ148: 0 | AK148: 0 | AL148: 0 | AM148: 0
C149: 폭력행위 | D149: 0 | E149: 0 | F149: 0 | G149: 0 | H149: 0 | I149: 0 | J149: 0 | K149: 0 | L149: 0 | M149: 0 | N149: 0 | O149: 0 | P149: 1 | Q149: 0 | R149: 0 | S149: 0 | T149: 0 | U149: 0 | V149: 0 | W149: 0 | X149: 0 | Y149: 0 | Z149: 1 | AA149: 0 | AB149: 0 | AC149: 0 | AD149: 0 | AE149: 0 | AF149: 0 | AG149: 0 | AH149: 0 | AI149: 0 | AJ149: 0 | AK149: 0 | AL149: 0 | AM149: 0
C150: 생물학적인자 | D150: 0 | E150: 0 | F150: 0 | G150: 0 | H150: 0 | I150: 0 | J150: 0 | K150: 0 | L150: 0 | M150: 0 | N150: 0 | O150: 0 | P150: 0 | Q150: 0 | R150: 0 | S150: 0 | T150: 0 | U150: 0 | V150: 0 | W150: 0 | X150: 0 | Y150: 0 | Z150: 0 | AA150: 0 | AB150: 0 | AC150: 0 | AD150: 0 | AE150: 0 | AF150: 0 | AG150: 0 | AH150: 0 | AI150: 0 | AJ150: 0 | AK150: 0 | AL150: 0 | AM150: 0
C151: 뇌심혈관질환 | D151: 0 | E151: 0 | F151: 0 | G151: 0 | H151: 0 | I151: 0 | J151: 0 | K151: 0 | L151: 0 | M151: 0 | N151: 0 | O151: 0 | P151: 0 | Q151: 0 | R151: 0 | S151: 0 | T151: 0 | U151: 0 | V151: 0 | W151: 0 | X151: 0 | Y151: 0 | Z151: 0 | AA151: 0 | AB151: 0 | AC151: 0 | AD151: 0 | AE151: 0 | AF151: 0 | AG151: 0 | AH151: 0 | AI151: 0 | AJ151: 0 | AK151: 0 | AL151: 0 | AM151: 0
C152: 근골격계질환 | D152: 0 | E152: 0 | F152: 0 | G152: 0 | H152: 0 | I152: 0 | J152: 0 | K152: 0 | L152: 0 | M152: 0 | N152: 0 | O152: 0 | P152: 0 | Q152: 0 | R152: 0 | S152: 0 | T152: 0 | U152: 0 | V152: 0 | W152: 0 | X152: 0 | Y152: 0 | Z152: 0 | AA152: 0 | AB152: 0 | AC152: 0 | AD152: 0 | AE152: 0 | AF152: 0 | AG152: 0 | AH152: 0 | AI152: 0 | AJ152: 0 | AK152: 0 | AL152: 0 | AM152: 0
C153: 작업관련성질환 기타 | D153: 0 | E153: 0 | F153: 0 | G153: 0 | H153: 0 | I153: 0 | J153: 0 | K153: 0 | L153: 0 | M153: 0 | N153: 0 | O153: 0 | P153: 0 | Q153: 0 | R153: 0 | S153: 0 | T153: 0 | U153: 0 | V153: 0 | W153: 0 | X153: 0 | Y153: 0 | Z153: 0 | AA153: 0 | AB153: 0 | AC153: 0 | AD153: 0 | AE153: 0 | AF153: 0 | AG153: 0 | AH153: 0 | AI153: 0 | AJ153: 0 | AK153: 0 | AL153: 0 | AM153: 0
B154: 태 백 | C154: 합계 | D154: 2 | E154: 0 | F154: 0 | G154: 0 | H154: 2 | I154: 0 | J154: 0 | K154: 0 | L154: 0 | M154: 0 | N154: 0 | O154: 0 | P154: 0 | Q154: 0 | R154: 0 | S154: 0 | T154: 0 | U154: 0 | V154: 0 | W154: 0 | X154: 0 | Y154: 0 | Z154: 0 | AA154: 0 | AB154: 6 | AC154: 0 | AD154: 1 | AE154: 0 | AF154: 2 | AG154: 0 | AH154: 3 | AI154: 0 | AJ154: 0 | AK154: 0 | AL154: 0 | AM154: 0
C155: 떨어짐(높이가 있는 곳에서 사람이 떨어짐) | D155: 1 | E155: 0 | F155: 0 | G155: 0 | H155: 1 | I155: 0 | J155: 0 | K155: 0 | L155: 0 | M155: 0 | N155: 0 | O155: 0 | P155: 0 | Q155: 0 | R155: 0 | S155: 0 | T155: 0 | U155: 0 | V155: 0 | W155: 0 | X155: 0 | Y155: 0 | Z155: 0 | AA155: 0 | AB155: 0 | AC155: 0 | AD155: 0 | AE155: 0 | AF155: 0 | AG155: 0 | AH155: 0 | AI155: 0 | AJ155: 0 | AK155: 0 | AL155: 0 | AM155: 0
C156: 넘어짐(사람이 미끄러지거나 넘어짐) | D156: 0 | E156: 0 | F156: 0 | G156: 0 | H156: 0 | I156: 0 | J156: 0 | K156: 0 | L156: 0 | M156: 0 | N156: 0 | O156: 0 | P156: 0 | Q156: 0 | R156: 0 | S156: 0 | T156: 0 | U156: 0 | V156: 0 | W156: 0 | X156: 0 | Y156: 0 | Z156: 0 | AA156: 0 | AB156: 1 | AC156: 0 | AD156: 0 | AE156: 0 | AF156: 1 | AG156: 0 | AH156: 0 | AI156: 0 | AJ156: 0 | AK156: 0 | AL156: 0 | AM156: 0
C157: 부딪힘(물체에 부딪힘) | D157: 1 | E157: 0 | F157: 0 | G157: 0 | H157: 1 | I157: 0 | J157: 0 | K157: 0 | L157: 0 | M157: 0 | N157: 0 | O157: 0 | P157: 0 | Q157: 0 | R157: 0 | S157: 0 | T157: 0 | U157: 0 | V157: 0 | W157: 0 | X157: 0 | Y157: 0 | Z157: 0 | AA157: 0 | AB157: 1 | AC157: 0 | AD157: 0 | AE157: 0 | AF157: 0 | AG157: 0 | AH157: 1 | AI157: 0 | AJ157: 0 | AK157: 0 | AL157: 0 | AM157: 0
C158: 물체에 맞음(날아오거나 떨어진 물체에 맞음) | D158: 0 | E158: 0 | F158: 0 | G158: 0 | H158: 0 | I158: 0 | J158: 0 | K158: 0 | L158: 0 | M158: 0 | N158: 0 | O158: 0 | P158: 0 | Q158: 0 | R158: 0 | S158: 0 | T158: 0 | U158: 0 | V158: 0 | W158: 0 | X158: 0 | Y158: 0 | Z158: 0 | AA158: 0 | AB158: 2 | AC158: 0 | AD158: 0 | AE158: 0 | AF158: 0 | AG158: 0 | AH158: 2 | AI158: 0 | AJ158: 0 | AK158: 0 | AL158: 0 | AM158: 0
C159: 끼임(기계설비에 끼이거나 감김) | D159: 0 | E159: 0 | F159: 0 | G159: 0 | H159: 0 | I159: 0 | J159: 0 | K159: 0 | L159: 0 | M159: 0 | N159: 0 | O159: 0 | P159: 0 | Q159: 0 | R159: 0 | S159: 0 | T159: 0 | U159: 0 | V159: 0 | W159: 0 | X159: 0 | Y159: 0 | Z159: 0 | AA159: 0 | AB159: 1 | AC159: 0 | AD159: 0 | AE159: 0 | AF159: 1 | AG159: 0 | AH159: 0 | AI159: 0 | AJ159: 0 | AK159: 0 | AL159: 0 | AM159: 0
C160: 불균형 및 무리한 동작 | D160: 0 | E160: 0 | F160: 0 | G160: 0 | H160: 0 | I160: 0 | J160: 0 | K160: 0 | L160: 0 | M160: 0 | N160: 0 | O160: 0 | P160: 0 | Q160: 0 | R160: 0 | S160: 0 | T160: 0 | U160: 0 | V160: 0 | W160: 0 | X160: 0 | Y160: 0 | Z160: 0 | AA160: 0 | AB160: 1 | AC160: 0 | AD160: 1 | AE160: 0 | AF160: 0 | AG160: 0 | AH160: 0 | AI160: 0 | AJ160: 0 | AK160: 0 | AL160: 0 | AM160: 0
C161: 물리적인자 | D161: 0 | E161: 0 | F161: 0 | G161: 0 | H161: 0 | I161: 0 | J161: 0 | K161: 0 | L161: 0 | M161: 0 | N161: 0 | O161: 0 | P161: 0 | Q161: 0 | R161: 0 | S161: 0 | T161: 0 | U161: 0 | V161: 0 | W161: 0 | X161: 0 | Y161: 0 | Z161: 0 | AA161: 0 | AB161: 0 | AC161: 0 | AD161: 0 | AE161: 0 | AF161: 0 | AG161: 0 | AH161: 0 | AI161: 0 | AJ161: 0 | AK161: 0 | AL161: 0 | AM161: 0
C162: 화학적인자 | D162: 0 | E162: 0 | F162: 0 | G162: 0 | H162: 0 | I162: 0 | J162: 0 | K162: 0 | L162: 0 | M162: 0 | N162: 0 | O162: 0 | P162: 0 | Q162: 0 | R162: 0 | S162: 0 | T162: 0 | U162: 0 | V162: 0 | W162: 0 | X162: 0 | Y162: 0 | Z162: 0 | AA162: 0 | AB162: 0 | AC162: 0 | AD162: 0 | AE162: 0 | AF162: 0 | AG162: 0 | AH162: 0 | AI162: 0 | AJ162: 0 | AK162: 0 | AL162: 0 | AM162: 0
C163: 근골격계질환 | D163: 0 | E163: 0 | F163: 0 | G163: 0 | H163: 0 | I163: 0 | J163: 0 | K163: 0 | L163: 0 | M163: 0 | N163: 0 | O163: 0 | P163: 0 | Q163: 0 | R163: 0 | S163: 0 | T163: 0 | U163: 0 | V163: 0 | W163: 0 | X163: 0 | Y163: 0 | Z163: 0 | AA163: 0 | AB163: 0 | AC163: 0 | AD163: 0 | AE163: 0 | AF163: 0 | AG163: 0 | AH163: 0 | AI163: 0 | AJ163: 0 | AK163: 0 | AL163: 0 | AM163: 0
B164: 강 릉 | C164: 합계 | D164: 30 | E164: 0 | F164: 10 | G164: 0 | H164: 10 | I164: 0 | J164: 6 | K164: 0 | L164: 1 | M164: 0 | N164: 3 | O164: 0 | P164: 25 | Q164: 0 | R164: 6 | S164: 0 | T164: 8 | U164: 0 | V164: 4 | W164: 0 | X164: 3 | Y164: 0 | Z164: 4 | AA164: 0 | AB164: 35 | AC164: 0 | AD164: 7 | AE164: 0 | AF164: 11 | AG164: 0 | AH164: 11 | AI164: 0 | AJ164: 2 | AK164: 0 | AL164: 4 | AM164: 0
C165: 떨어짐(높이가 있는 곳에서 사람이 떨어짐) | D165: =F165+H165+J165+L165+N165 -> 7 | E165: =G165+I165+K165+M165+O165 -> 0 | F165: 2 | G165: 0 | H165: 3 | I165: 0 | J165: 1 | K165: 0 | L165: 0 | M165: 0 | N165: 1 | O165: 0 | P165: =R165+T165+V165+X165+Z165 -> 3 | Q165: =S165+U165+W165+Y165+AA165 -> 0 | R165: 2 | S165: 0 | T165: 1 | U165: 0 | V165: 0 | W165: 0 | X165: 0 | Y165: 0 | Z165: 0 | AA165: 0 | AB165: =AD165+AF165+AH165+AJ165+AL165 -> 7 | AC165: =AE165+AG165+AI165+AK165+AM165 -> 0 | AD165: 2 | AE165: 0 | AF165: 2 | AG165: 0 | AH165: 2 | AI165: 0 | AJ165: 0 | AK165: 0 | AL165: 1 | AM165: 0
C166: 넘어짐(사람이 미끄러지거나 넘어짐) | D166: 15 | E166: 0 | F166: 6 | G166: 0 | H166: 6 | I166: 0 | J166: 2 | K166: 0 | L166: 0 | M166: 0 | N166: 1 | O166: 0 | P166: 10 | Q166: 0 | R166: 2 | S166: 0 | T166: 4 | U166: 0 | V166: 1 | W166: 0 | X166: 2 | Y166: 0 | Z166: 1 | AA166: 0 | AB166: 12 | AC166: 0 | AD166: 3 | AE166: 0 | AF166: 4 | AG166: 0 | AH166: 3 | AI166: 0 | AJ166: 2 | AK166: 0 | AL166: 0 | AM166: 0
C167: 부딪힘(물체에 부딪힘) | D167: 2 | E167: 0 | F167: 0 | G167: 0 | H167: 1 | I167: 0 | J167: 1 | K167: 0 | L167: 0 | M167: 0 | N167: 0 | O167: 0 | P167: 2 | Q167: 0 | R167: 1 | S167: 0 | T167: 0 | U167: 0 | V167: 0 | W167: 0 | X167: 1 | Y167: 0 | Z167: 0 | AA167: 0 | AB167: 0 | AC167: 0 | AD167: 0 | AE167: 0 | AF167: 0 | AG167: 0 | AH167: 0 | AI167: 0 | AJ167: 0 | AK167: 0 | AL167: 0 | AM167: 0
C168: 물체에 맞음(날아오거나 떨어진 물체에 맞음) | D168: 1 | E168: 0 | F168: 0 | G168: 0 | H168: 0 | I168: 0 | J168: 0 | K168: 0 | L168: 1 | M168: 0 | N168: 0 | O168: 0 | P168: 1 | Q168: 0 | R168: 0 | S168: 0 | T168: 0 | U168: 0 | V168: 1 | W168: 0 | X168: 0 | Y168: 0 | Z168: 0 | AA168: 0 | AB168: 2 | AC168: 0 | AD168: 0 | AE168: 0 | AF168: 2 | AG168: 0 | AH168: 0 | AI168: 0 | AJ168: 0 | AK168: 0 | AL168: 0 | AM168: 0
C169: 끼임(기계설비에 끼이거나 감김) | D169: 1 | E169: 0 | F169: 0 | G169: 0 | H169: 0 | I169: 0 | J169: 0 | K169: 0 | L169: 0 | M169: 0 | N169: 1 | O169: 0 | P169: 2 | Q169: 0 | R169: 0 | S169: 0 | T169: 0 | U169: 0 | V169: 0 | W169: 0 | X169: 0 | Y169: 0 | Z169: 2 | AA169: 0 | AB169: 3 | AC169: 0 | AD169: 0 | AE169: 0 | AF169: 1 | AG169: 0 | AH169: 1 | AI169: 0 | AJ169: 0 | AK169: 0 | AL169: 1 | AM169: 0
C170: 절단·베임·찔림 | D170: 1 | E170: 0 | F170: 0 | G170: 0 | H170: 0 | I170: 0 | J170: 1 | K170: 0 | L170: 0 | M170: 0 | N170: 0 | O170: 0 | P170: 4 | Q170: 0 | R170: 1 | S170: 0 | T170: 0 | U170: 0 | V170: 2 | W170: 0 | X170: 0 | Y170: 0 | Z170: 1 | AA170: 0 | AB170: 3 | AC170: 0 | AD170: 1 | AE170: 0 | AF170: 0 | AG170: 0 | AH170: 1 | AI170: 0 | AJ170: 0 | AK170: 0 | AL170: 1 | AM170: 0
C171: 불균형 및 무리한 동작 | D171: 2 | E171: 0 | F171: 2 | G171: 0 | H171: 0 | I171: 0 | J171: 0 | K171: 0 | L171: 0 | M171: 0 | N171: 0 | O171: 0 | P171: 2 | Q171: 0 | R171: 0 | S171: 0 | T171: 2 | U171: 0 | V171: 0 | W171: 0 | X171: 0 | Y171: 0 | Z171: 0 | AA171: 0 | AB171: 6 | AC171: 0 | AD171: 1 | AE171: 0 | AF171: 2 | AG171: 0 | AH171: 2 | AI171: 0 | AJ171: 0 | AK171: 0 | AL171: 1 | AM171: 0
C172: 화학물질누출·접촉 | D172: 0 | E172: 0 | F172: 0 | G172: 0 | H172: 0 | I172: 0 | J172: 0 | K172: 0 | L172: 0 | M172: 0 | N172: 0 | O172: 0 | P172: 0 | Q172: 0 | R172: 0 | S172: 0 | T172: 0 | U172: 0 | V172: 0 | W172: 0 | X172: 0 | Y172: 0 | Z172: 0 | AA172: 0 | AB172: 1 | AC172: 0 | AD172: 0 | AE172: 0 | AF172: 0 | AG172: 0 | AH172: 1 | AI172: 0 | AJ172: 0 | AK172: 0 | AL172: 0 | AM172: 0
C173: 사업장외 교통사고 | D173: 0 | E173: 0 | F173: 0 | G173: 0 | H173: 0 | I173: 0 | J173: 0 | K173: 0 | L173: 0 | M173: 0 | N173: 0 | O173: 0 | P173: 1 | Q173: 0 | R173: 0 | S173: 0 | T173: 1 | U173: 0 | V173: 0 | W173: 0 | X173: 0 | Y173: 0 | Z173: 0 | AA173: 0 | AB173: 1 | AC173: 0 | AD173: 0 | AE173: 0 | AF173: 0 | AG173: 0 | AH173: 1 | AI173: 0 | AJ173: 0 | AK173: 0 | AL173: 0 | AM173: 0
C174: 폭력행위 | D174: 1 | E174: 0 | F174: 0 | G174: 0 | H174: 0 | I174: 0 | J174: 1 | K174: 0 | L174: 0 | M174: 0 | N174: 0 | O174: 0 | P174: 0 | Q174: 0 | R174: 0 | S174: 0 | T174: 0 | U174: 0 | V174: 0 | W174: 0 | X174: 0 | Y174: 0 | Z174: 0 | AA174: 0 | AB174: 0 | AC174: 0 | AD174: 0 | AE174: 0 | AF174: 0 | AG174: 0 | AH174: 0 | AI174: 0 | AJ174: 0 | AK174: 0 | AL174: 0 | AM174: 0
C175: 물리적인자 | D175: 0 | E175: 0 | F175: 0 | G175: 0 | H175: 0 | I175: 0 | J175: 0 | K175: 0 | L175: 0 | M175: 0 | N175: 0 | O175: 0 | P175: 0 | Q175: 0 | R175: 0 | S175: 0 | T175: 0 | U175: 0 | V175: 0 | W175: 0 | X175: 0 | Y175: 0 | Z175: 0 | AA175: 0 | AB175: 0 | AC175: 0 | AD175: 0 | AE175: 0 | AF175: 0 | AG175: 0 | AH175: 0 | AI175: 0 | AJ175: 0 | AK175: 0 | AL175: 0 | AM175: 0
C176: 뇌심혈관질환 | D176: 0 | E176: 0 | F176: 0 | G176: 0 | H176: 0 | I176: 0 | J176: 0 | K176: 0 | L176: 0 | M176: 0 | N176: 0 | O176: 0 | P176: 0 | Q176: 0 | R176: 0 | S176: 0 | T176: 0 | U176: 0 | V176: 0 | W176: 0 | X176: 0 | Y176: 0 | Z176: 0 | AA176: 0 | AB176: 0 | AC176: 0 | AD176: 0 | AE176: 0 | AF176: 0 | AG176: 0 | AH176: 0 | AI176: 0 | AJ176: 0 | AK176: 0 | AL176: 0 | AM176: 0
C177: 근골격계질환 | D177: 0 | E177: 0 | F177: 0 | G177: 0 | H177: 0 | I177: 0 | J177: 0 | K177: 0 | L177: 0 | M177: 0 | N177: 0 | O177: 0 | P177: 0 | Q177: 0 | R177: 0 | S177: 0 | T177: 0 | U177: 0 | V177: 0 | W177: 0 | X177: 0 | Y177: 0 | Z177: 0 | AA177: 0 | AB177: 0 | AC177: 0 | AD177: 0 | AE177: 0 | AF177: 0 | AG177: 0 | AH177: 0 | AI177: 0 | AJ177: 0 | AK177: 0 | AL177: 0 | AM177: 0
B178: 원 주 | C178: 합계 | D178: 24 | E178: 0 | F178: 9 | G178: 0 | H178: 5 | I178: 0 | J178: 6 | K178: 0 | L178: 3 | M178: 0 | N178: 1 | O178: 0 | P178: 28 | Q178: 0 | R178: 10 | S178: 0 | T178: 10 | U178: 0 | V178: 7 | W178: 0 | X178: 1 | Y178: 0 | Z178: 0 | AA178: 0 | AB178: 31 | AC178: 0 | AD178: 9 | AE178: 0 | AF178: 15 | AG178: 0 | AH178: 6 | AI178: 0 | AJ178: 0 | AK178: 0 | AL178: 1 | AM178: 0
C179: 떨어짐(높이가 있는 곳에서 사람이 떨어짐) | D179: 3 | E179: 0 | F179: 2 | G179: 0 | H179: 1 | I179: 0 | J179: 0 | K179: 0 | L179: 0 | M179: 0 | N179: 0 | O179: 0 | P179: 7 | Q179: 0 | R179: 2 | S179: 0 | T179: 4 | U179: 0 | V179: 0 | W179: 0 | X179: 1 | Y179: 0 | Z179: 0 | AA179: 0 | AB179: 7 | AC179: 0 | AD179: 4 | AE179: 0 | AF179: 2 | AG179: 0 | AH179: 1 | AI179: 0 | AJ179: 0 | AK179: 0 | AL179: 0 | AM179: 0
C180: 넘어짐(사람이 미끄러지거나 넘어짐) | D180: 14 | E180: 0 | F180: 7 | G180: 0 | H180: 1 | I180: 0 | J180: 3 | K180: 0 | L180: 2 | M180: 0 | N180: 1 | O180: 0 | P180: 12 | Q180: 0 | R180: 3 | S180: 0 | T180: 4 | U180: 0 | V180: 5 | W180: 0 | X180: 0 | Y180: 0 | Z180: 0 | AA180: 0 | AB180: 14 | AC180: 0 | AD180: 4 | AE180: 0 | AF180: 6 | AG180: 0 | AH180: 3 | AI180: 0 | AJ180: 0 | AK180: 0 | AL180: 1 | AM180: 0
C181: 깔림·뒤집힘(물체의 쓰러짐이나 뒤집힘) | D181: 1 | E181: 0 | F181: 0 | G181: 0 | H181: 0 | I181: 0 | J181: 0 | K181: 0 | L181: 1 | M181: 0 | N181: 0 | O181: 0 | P181: 1 | Q181: 0 | R181: 0 | S181: 0 | T181: 1 | U181: 0 | V181: 0 | W181: 0 | X181: 0 | Y181: 0 | Z181: 0 | AA181: 0 | AB181: 0 | AC181: 0 | AD181: 0 | AE181: 0 | AF181: 0 | AG181: 0 | AH181: 0 | AI181: 0 | AJ181: 0 | AK181: 0 | AL181: 0 | AM181: 0
C182: 부딪힘(물체에 부딪힘) | D182: 2 | E182: 0 | F182: 0 | G182: 0 | H182: 1 | I182: 0 | J182: 1 | K182: 0 | L182: 0 | M182: 0 | N182: 0 | O182: 0 | P182: 0 | Q182: 0 | R182: 0 | S182: 0 | T182: 0 | U182: 0 | V182: 0 | W182: 0 | X182: 0 | Y182: 0 | Z182: 0 | AA182: 0 | AB182: 4 | AC182: 0 | AD182: 0 | AE182: 0 | AF182: 2 | AG182: 0 | AH182: 2 | AI182: 0 | AJ182: 0 | AK182: 0 | AL182: 0 | AM182: 0
C183: 물체에 맞음(날아오거나 떨어진 물체에 맞음) | D183: 1 | E183: 0 | F183: 0 | G183: 0 | H183: 0 | I183: 0 | J183: 1 | K183: 0 | L183: 0 | M183: 0 | N183: 0 | O183: 0 | P183: 0 | Q183: 0 | R183: 0 | S183: 0 | T183: 0 | U183: 0 | V183: 0 | W183: 0 | X183: 0 | Y183: 0 | Z183: 0 | AA183: 0 | AB183: 1 | AC183: 0 | AD183: 0 | AE183: 0 | AF183: 1 | AG183: 0 | AH183: 0 | AI183: 0 | AJ183: 0 | AK183: 0 | AL183: 0 | AM183: 0
C184: 끼임(기계설비에 끼이거나 감김) | D184: 0 | E184: 0 | F184: 0 | G184: 0 | H184: 0 | I184: 0 | J184: 0 | K184: 0 | L184: 0 | M184: 0 | N184: 0 | O184: 0 | P184: 1 | Q184: 0 | R184: 0 | S184: 0 | T184: 0 | U184: 0 | V184: 1 | W184: 0 | X184: 0 | Y184: 0 | Z184: 0 | AA184: 0 | AB184: 2 | AC184: 0 | AD184: 1 | AE184: 0 | AF184: 1 | AG184: 0 | AH184: 0 | AI184: 0 | AJ184: 0 | AK184: 0 | AL184: 0 | AM184: 0
C185: 절단·베임·찔림 | D185: 2 | E185: 0 | F185: 0 | G185: 0 | H185: 1 | I185: 0 | J185: 1 | K185: 0 | L185: 0 | M185: 0 | N185: 0 | O185: 0 | P185: 2 | Q185: 0 | R185: 1 | S185: 0 | T185: 1 | U185: 0 | V185: 0 | W185: 0 | X185: 0 | Y185: 0 | Z185: 0 | AA185: 0 | AB185: 3 | AC185: 0 | AD185: 0 | AE185: 0 | AF185: 3 | AG185: 0 | AH185: 0 | AI185: 0 | AJ185: 0 | AK185: 0 | AL185: 0 | AM185: 0
C186: 폭발·파열 | D186: 0 | E186: 0 | F186: 0 | G186: 0 | H186: 0 | I186: 0 | J186: 0 | K186: 0 | L186: 0 | M186: 0 | N186: 0 | O186: 0 | P186: 1 | Q186: 0 | R186: 1 | S186: 0 | T186: 0 | U186: 0 | V186: 0 | W186: 0 | X186: 0 | Y186: 0 | Z186: 0 | AA186: 0 | AB186: 0 | AC186: 0 | AD186: 0 | AE186: 0 | AF186: 0 | AG186: 0 | AH186: 0 | AI186: 0 | AJ186: 0 | AK186: 0 | AL186: 0 | AM186: 0
C187: 사업장외 교통사고 | D187: 1 | E187: 0 | F187: 0 | G187: 0 | H187: 1 | I187: 0 | J187: 0 | K187: 0 | L187: 0 | M187: 0 | N187: 0 | O187: 0 | P187: 2 | Q187: 0 | R187: 2 | S187: 0 | T187: 0 | U187: 0 | V187: 0 | W187: 0 | X187: 0 | Y187: 0 | Z187: 0 | AA187: 0 | AB187: 0 | AC187: 0 | AD187: 0 | AE187: 0 | AF187: 0 | AG187: 0 | AH187: 0 | AI187: 0 | AJ187: 0 | AK187: 0 | AL187: 0 | AM187: 0
C188: 폭력행위 | D188: 0 | E188: 0 | F188: 0 | G188: 0 | H188: 0 | I188: 0 | J188: 0 | K188: 0 | L188: 0 | M188: 0 | N188: 0 | O188: 0 | P188: 2 | Q188: 0 | R188: 1 | S188: 0 | T188: 0 | U188: 0 | V188: 1 | W188: 0 | X188: 0 | Y188: 0 | Z188: 0 | AA188: 0 | AB188: 0 | AC188: 0 | AD188: 0 | AE188: 0 | AF188: 0 | AG188: 0 | AH188: 0 | AI188: 0 | AJ188: 0 | AK188: 0 | AL188: 0 | AM188: 0
C189: 뇌심혈관질환 | D189: 0 | E189: 0 | F189: 0 | G189: 0 | H189: 0 | I189: 0 | J189: 0 | K189: 0 | L189: 0 | M189: 0 | N189: 0 | O189: 0 | P189: 0 | Q189: 0 | R189: 0 | S189: 0 | T189: 0 | U189: 0 | V189: 0 | W189: 0 | X189: 0 | Y189: 0 | Z189: 0 | AA189: 0 | AB189: 0 | AC189: 0 | AD189: 0 | AE189: 0 | AF189: 0 | AG189: 0 | AH189: 0 | AI189: 0 | AJ189: 0 | AK189: 0 | AL189: 0 | AM189: 0
C190: 근골격계질환 | D190: 0 | E190: 0 | F190: 0 | G190: 0 | H190: 0 | I190: 0 | J190: 0 | K190: 0 | L190: 0 | M190: 0 | N190: 0 | O190: 0 | P190: 0 | Q190: 0 | R190: 0 | S190: 0 | T190: 0 | U190: 0 | V190: 0 | W190: 0 | X190: 0 | Y190: 0 | Z190: 0 | AA190: 0 | AB190: 0 | AC190: 0 | AD190: 0 | AE190: 0 | AF190: 0 | AG190: 0 | AH190: 0 | AI190: 0 | AJ190: 0 | AK190: 0 | AL190: 0 | AM190: 0
B191: 영 월 | C191: 합계 | D191: 9 | E191: 0 | F191: 2 | G191: 0 | H191: 4 | I191: 0 | J191: 1 | K191: 0 | L191: 2 | M191: 0 | N191: 0 | O191: 0 | P191: 5 | Q191: 0 | R191: 2 | S191: 0 | T191: 0 | U191: 0 | V191: 1 | W191: 0 | X191: 2 | Y191: 0 | Z191: 0 | AA191: 0 | AB191: 5 | AC191: 0 | AD191: 1 | AE191: 0 | AF191: 1 | AG191: 0 | AH191: 2 | AI191: 0 | AJ191: 1 | AK191: 0 | AL191: 0 | AM191: 0
C192: 떨어짐(높이가 있는 곳에서 사람이 떨어짐) | D192: 1 | E192: 0 | F192: 0 | G192: 0 | H192: 1 | I192: 0 | J192: 0 | K192: 0 | L192: 0 | M192: 0 | N192: 0 | O192: 0 | P192: 0 | Q192: 0 | R192: 0 | S192: 0 | T192: 0 | U192: 0 | V192: 0 | W192: 0 | X192: 0 | Y192: 0 | Z192: 0 | AA192: 0 | AB192: 0 | AC192: 0 | AD192: 0 | AE192: 0 | AF192: 0 | AG192: 0 | AH192: 0 | AI192: 0 | AJ192: 0 | AK192: 0 | AL192: 0 | AM192: 0
C193: 넘어짐(사람이 미끄러지거나 넘어짐) | D193: 4 | E193: 0 | F193: 1 | G193: 0 | H193: 2 | I193: 0 | J193: 0 | K193: 0 | L193: 1 | M193: 0 | N193: 0 | O193: 0 | P193: 3 | Q193: 0 | R193: 1 | S193: 0 | T193: 0 | U193: 0 | V193: 1 | W193: 0 | X193: 1 | Y193: 0 | Z193: 0 | AA193: 0 | AB193: 4 | AC193: 0 | AD193: 1 | AE193: 0 | AF193: 1 | AG193: 0 | AH193: 2 | AI193: 0 | AJ193: 0 | AK193: 0 | AL193: 0 | AM193: 0
C194: 깔림·뒤집힘(물체의 쓰러짐이나 뒤집힘) | D194: 0 | E194: 0 | F194: 0 | G194: 0 | H194: 0 | I194: 0 | J194: 0 | K194: 0 | L194: 0 | M194: 0 | N194: 0 | O194: 0 | P194: 1 | Q194: 0 | R194: 0 | S194: 0 | T194: 0 | U194: 0 | V194: 0 | W194: 0 | X194: 1 | Y194: 0 | Z194: 0 | AA194: 0 | AB194: 0 | AC194: 0 | AD194: 0 | AE194: 0 | AF194: 0 | AG194: 0 | AH194: 0 | AI194: 0 | AJ194: 0 | AK194: 0 | AL194: 0 | AM194: 0
C195: 부딪힘(물체에 부딪힘) | D195: 1 | E195: 0 | F195: 0 | G195: 0 | H195: 1 | I195: 0 | J195: 0 | K195: 0 | L195: 0 | M195: 0 | N195: 0 | O195: 0 | P195: 0 | Q195: 0 | R195: 0 | S195: 0 | T195: 0 | U195: 0 | V195: 0 | W195: 0 | X195: 0 | Y195: 0 | Z195: 0 | AA195: 0 | AB195: 1 | AC195: 0 | AD195: 0 | AE195: 0 | AF195: 0 | AG195: 0 | AH195: 0 | AI195: 0 | AJ195: 1 | AK195: 0 | AL195: 0 | AM195: 0
C196: 끼임(기계설비에 끼이거나 감김) | D196: 1 | E196: 0 | F196: 0 | G196: 0 | H196: 0 | I196: 0 | J196: 1 | K196: 0 | L196: 0 | M196: 0 | N196: 0 | O196: 0 | P196: 1 | Q196: 0 | R196: 1 | S196: 0 | T196: 0 | U196: 0 | V196: 0 | W196: 0 | X196: 0 | Y196: 0 | Z196: 0 | AA196: 0 | AB196: 0 | AC196: 0 | AD196: 0 | AE196: 0 | AF196: 0 | AG196: 0 | AH196: 0 | AI196: 0 | AJ196: 0 | AK196: 0 | AL196: 0 | AM196: 0
C197: 불균형 및 무리한 동작 | D197: 1 | E197: 0 | F197: 0 | G197: 0 | H197: 0 | I197: 0 | J197: 0 | K197: 0 | L197: 1 | M197: 0 | N197: 0 | O197: 0 | P197: 0 | Q197: 0 | R197: 0 | S197: 0 | T197: 0 | U197: 0 | V197: 0 | W197: 0 | X197: 0 | Y197: 0 | Z197: 0 | AA197: 0 | AB197: 0 | AC197: 0 | AD197: 0 | AE197: 0 | AF197: 0 | AG197: 0 | AH197: 0 | AI197: 0 | AJ197: 0 | AK197: 0 | AL197: 0 | AM197: 0
C198: 이상온도 접촉 | D198: 1 | E198: 0 | F198: 1 | G198: 0 | H198: 0 | I198: 0 | J198: 0 | K198: 0 | L198: 0 | M198: 0 | N198: 0 | O198: 0 | P198: 0 | Q198: 0 | R198: 0 | S198: 0 | T198: 0 | U198: 0 | V198: 0 | W198: 0 | X198: 0 | Y198: 0 | Z198: 0 | AA198: 0 | AB198: 0 | AC198: 0 | AD198: 0 | AE198: 0 | AF198: 0 | AG198: 0 | AH198: 0 | AI198: 0 | AJ198: 0 | AK198: 0 | AL198: 0 | AM198: 0
C199: 근골격계질환 | D199: 0 | E199: 0 | F199: 0 | G199: 0 | H199: 0 | I199: 0 | J199: 0 | K199: 0 | L199: 0 | M199: 0 | N199: 0 | O199: 0 | P199: 0 | Q199: 0 | R199: 0 | S199: 0 | T199: 0 | U199: 0 | V199: 0 | W199: 0 | X199: 0 | Y199: 0 | Z199: 0 | AA199: 0 | AB199: 0 | AC199: 0 | AD199: 0 | AE199: 0 | AF199: 0 | AG199: 0 | AH199: 0 | AI199: 0 | AJ199: 0 | AK199: 0 | AL199: 0 | AM199: 0

Sheet 부산
A1: 업종(소) | B1: 고용지청 | C1: 기준년월 | D1: 2021년 12월 | P1: 2022년 12월 | AB1: 2023년 11월
C2: 규모(소) | D2: 규모별 합계 | F2: 5인 미만 | H2: 5인 ~ 9인 | J2: 10인 ~ 19인 | L2: 20인 ~ 29인 | N2: 30인 ~ 49인 | P2: 규모별 합계 | R2: 5인 미만 | T2: 5인 ~ 9인 | V2: 10인 ~ 19인 | X2: 20인 ~ 29인 | Z2: 30인 ~ 49인 | AB2: 규모별 합계 | AD2: 5인 미만 | AF2: 5인 ~ 9인 | AH2: 10인 ~ 19인 | AJ2: 20인 ~ 29인 | AL2: 30인 ~ 49인
C3: 발생형태(중) | D3: 사고재해자수 합계 | E3: 사고사망자수 합계 | F3: 사고재해자수 | G3: 사고사망자수 | H3: 사고재해자수 | I3: 사고사망자수 | J3: 사고재해자수 | K3: 사고사망자수 | L3: 사고재해자수 | M3: 사고사망자수 | N3: 사고재해자수 | O3: 사고사망자수 | P3: 사고재해자수 합계 | Q3: 사고사망자수 합계 | R3: 사고재해자수 | S3: 사고사망자수 | T3: 사고재해자수 | U3: 사고사망자수 | V3: 사고재해자수 | W3: 사고사망자수 | X3: 사고재해자수 | Y3: 사고사망자수 | Z3: 사고재해자수 | AA3: 사고사망자수 | AB3: 사고재해자수 합계 | AC3: 사고사망자수 합계 | AD3: 사고재해자수 | AE3: 사고사망자수 | AF3: 사고재해자수 | AG3: 사고사망자수 | AH3: 사고재해자수 | AI3: 사고사망자수 | AJ3: 사고재해자수 | AK3: 사고사망자수 | AL3: 사고재해자수 | AM3: 사고사망자수
A4: 건물등의종합관리사업 | B4: 합계 | D4: =D5+D24+D46+D61+D79+D99+D114+D127 -> 435 | E4: =E5+E24+E46+E61+E79+E99+E114+E127 -> 3 | F4: 118 | G4: 1 | H4: 125 | I4: 0 | J4: 113 | K4: 2 | L4: 45 | M4: 0 | N4: 34 | O4: 0 | P4: 504 | Q4: 6 | R4: 119 | S4: 2 | T4: 175 | U4: 3 | V4: 127 | W4: 1 | X4: 50 | Y4: 0 | Z4: 33 | AA4: 0 | AB4: 463 | AC4: 1 | AD4: 128 | AE4: 0 | AF4: 158 | AG4: 1 | AH4: 101 | AI4: 0 | AJ4: 43 | AK4: 0 | AL4: 33 | AM4: 0
B5: 부 산 청 | C5: 합계 | D5: =F5+H5+J5+L5+N5 -> 98 | E5: 1 | F5: 28 | G5: 1 | H5: 31 | I5: 0 | J5: 21 | K5: 0 | L5: 12 | M5: 0 | N5: 6 | O5: 0 | P5: =R5+T5+V5+X5+Z5 -> 107 | Q5: 1 | R5: 27 | S5: 0 | T5: 39 | U5: 1 | V5: 23 | W5: 0 | X5: 9 | Y5: 0 | Z5: 9 | AA5: 0 | AB5: =AD5+AF5+AH5+AJ5+AL5 -> 102 | AC5: 0 | AD5: 33 | AE5: 0 | AF5: 31 | AG5: 0 | AH5: 18 | AI5: 0 | AJ5: 10 | AK5: 0 | AL5: 10 | AM5: 0
C6: 떨어짐(높이가 있는 곳에서 사람이 떨어짐) | D6: 15 | E6: 0 | F6: 7 | G6: 0 | H6: 6 | I6: 0 | J6: 1 | K6: 0 | L6: 0 | M6: 0 | N6: 1 | O6: 0 | P6: 15 | Q6: 1 | R6: 6 | S6: 0 | T6: 6 | U6: 1 | V6: 2 | W6: 0 | X6: 1 | Y6: 0 | Z6: 0 | AA6: 0 | AB6: 18 | AC6: 0 | AD6: 4 | AE6: 0 | AF6: 8 | AG6: 0 | AH6: 2 | AI6: 0 | AJ6: 3 | AK6: 0 | AL6: 1 | AM6: 0
C7: 넘어짐(사람이 미끄러지거나 넘어짐) | D7: 44 | E7: 0 | F7: 13 | G7: 0 | H7: 14 | I7: 0 | J7: 8 | K7: 0 | L7: 6 | M7: 0 | N7: 3 | O7: 0 | P7: 56 | Q7: 0 | R7: 16 | S7: 0 | T7: 20 | U7: 0 | V7: 9 | W7: 0 | X7: 5 | Y7: 0 | Z7: 6 | AA7: 0 | AB7: 47 | AC7: 0 | AD7: 16 | AE7: 0 | AF7: 13 | AG7: 0 | AH7: 7 | AI7: 0 | AJ7: 3 | AK7: 0 | AL7: 8 | AM7: 0
C8: 깔림·뒤집힘(물체의 쓰러짐이나 뒤집힘) | D8: 4 | E8: 0 | F8: 0 | G8: 0 | H8: 1 | I8: 0 | J8: 2 | K8: 0 | L8: 1 | M8: 0 | N8: 0 | O8: 0 | P8: 1 | Q8: 0 | R8: 0 | S8: 0 | T8: 0 | U8: 0 | V8: 0 | W8: 0 | X8: 1 | Y8: 0 | Z8: 0 | AA8: 0 | AB8: 1 | AC8: 0 | AD8: 0 | AE8: 0 | AF8: 1 | AG8: 0 | AH8: 0 | AI8: 0 | AJ8: 0 | AK8: 0 | AL8: 0 | AM8: 0
C9: 부딪힘(물체에 부딪힘) | D9: 9 | E9: 1 | F9: 3 | G9: 1 | H9: 1 | I9: 0 | J9: 3 | K9: 0 | L9: 2 | M9: 0 | N9: 0 | O9: 0 | P9: 7 | Q9: 0 | R9: 0 | S9: 0 | T9: 0 | U9: 0 | V9: 4 | W9: 0 | X9: 1 | Y9: 0 | Z9: 2 | AA9: 0 | AB9: 14 | AC9: 0 | AD9: 6 | AE9: 0 | AF9: 2 | AG9: 0 | AH9: 5 | AI9: 0 | AJ9: 1 | AK9: 0 | AL9: 0 | AM9: 0
C10: 물체에 맞음(날아오거나 떨어진 물체에 맞음) | D10: 6 | E10: 0 | F10: 1 | G10: 0 | H10: 2 | I10: 0 | J10: 3 | K10: 0 | L10: 0 | M10: 0 | N10: 0 | O10: 0 | P10: 0 | Q10: 0 | R10: 0 | S10: 0 | T10: 0 | U10: 0 | V10: 0 | W10: 0 | X10: 0 | Y10: 0 | Z10: 0 | AA10: 0 | AB10: 5 | AC10: 0 | AD10: 1 | AE10: 0 | AF10: 1 | AG10: 0 | AH10: 1 | AI10: 0 | AJ10: 1 | AK10: 0 | AL10: 1 | AM10: 0
C11: 끼임(기계설비에 끼이거나 감김) | D11: 3 | E11: 0 | F11: 0 | G11: 0 | H11: 2 | I11: 0 | J11: 1 | K11: 0 | L11: 0 | M11: 0 | N11: 0 | O11: 0 | P11: 5 | Q11: 0 | R11: 1 | S11: 0 | T11: 3 | U11: 0 | V11: 1 | W11: 0 | X11: 0 | Y11: 0 | Z11: 0 | AA11: 0 | AB11: 2 | AC11: 0 | AD11: 1 | AE11: 0 | AF11: 1 | AG11: 0 | AH11: 0 | AI11: 0 | AJ11: 0 | AK11: 0 | AL11: 0 | AM11: 0
C12: 절단·베임·찔림 | D12: 7 | E12: 0 | F12: 2 | G12: 0 | H12: 2 | I12: 0 | J12: 1 | K12: 0 | L12: 1 | M12: 0 | N12: 1 | O12: 0 | P12: 4 | Q12: 0 | R12: 0 | S12: 0 | T12: 0 | U12: 0 | V12: 3 | W12: 0 | X12: 0 | Y12: 0 | Z12: 1 | AA12: 0 | AB12: 6 | AC12: 0 | AD12: 3 | AE12: 0 | AF12: 3 | AG12: 0 | AH12: 0 | AI12: 0 | AJ12: 0 | AK12: 0 | AL12: 0 | AM12: 0
C13: 감전 | D13: 1 | E13: 0 | F13: 0 | G13: 0 | H13: 0 | I13: 0 | J13: 1 | K13: 0 | L13: 0 | M13: 0 | N13: 0 | O13: 0 | P13: 0 | Q13: 0 | R13: 0 | S13: 0 | T13: 0 | U13: 0 | V13: 0 | W13: 0 | X13: 0 | Y13: 0 | Z13: 0 | AA13: 0 | AB13: 0 | AC13: 0 | AD13: 0 | AE13: 0 | AF13: 0 | AG13: 0 | AH13: 0 | AI13: 0 | AJ13: 0 | AK13: 0 | AL13: 0 | AM13: 0
C14: 화재 | D14: 0 | E14: 0 | F14: 0 | G14: 0 | H14: 0 | I14: 0 | J14: 0 | K14: 0 | L14: 0 | M14: 0 | N14: 0 | O14: 0 | P14: 1 | Q14: 0 | R14: 1 | S14: 0 | T14: 0 | U14: 0 | V14: 0 | W14: 0 | X14: 0 | Y14: 0 | Z14: 0 | AA14: 0 | AB14: 0 | AC14: 0 | AD14: 0 | AE14: 0 | AF14: 0 | AG14: 0 | AH14: 0 | AI14: 0 | AJ14: 0 | AK14: 0 | AL14: 0 | AM14: 0
C15: 불균형 및 무리한 동작 | D15: 6 | E15: 0 | F15: 0 | G15: 0 | H15: 3 | I15: 0 | J15: 0 | K15: 0 | L15: 2 | M15: 0 | N15: 1 | O15: 0 | P15: 14 | Q15: 0 | R15: 3 | S15: 0 | T15: 7 | U15: 0 | V15: 3 | W15: 0 | X15: 1 | Y15: 0 | Z15: 0 | AA15: 0 | AB15: 6 | AC15: 0 | AD15: 1 | AE15: 0 | AF15: 0 | AG15: 0 | AH15: 3 | AI15: 0 | AJ15: 2 | AK15: 0 | AL15: 0 | AM15: 0
C16: 이상온도 접촉 | D16: 1 | E16: 0 | F16: 0 | G16: 0 | H16: 0 | I16: 0 | J16: 1 | K16: 0 | L16: 0 | M16: 0 | N16: 0 | O16: 0 | P16: 2 | Q16: 0 | R16: 0 | S16: 0 | T16: 1 | U16: 0 | V16: 1 | W16: 0 | X16: 0 | Y16: 0 | Z16: 0 | AA16: 0 | AB16: 0 | AC16: 0 | AD16: 0 | AE16: 0 | AF16: 0 | AG16: 0 | AH16: 0 | AI16: 0 | AJ16: 0 | AK16: 0 | AL16: 0 | AM16: 0
C17: 체육행사 등의 사고 | D17: 0 | E17: 0 | F17: 0 | G17: 0 | H17: 0 | I17: 0 | J17: 0 | K17: 0 | L17: 0 | M17: 0 | N17: 0 | O17: 0 | P17: 0 | Q17: 0 | R17: 0 | S17: 0 | T17: 0 | U17: 0 | V17: 0 | W17: 0 | X17: 0 | Y17: 0 | Z17: 0 | AA17: 0 | AB17: 1 | AC17: 0 | AD17: 0 | AE17: 0 | AF17: 1 | AG17: 0 | AH17: 0 | AI17: 0 | AJ17: 0 | AK17: 0 | AL17: 0 | AM17: 0
C18: 폭력행위 | D18: 2 | E18: 0 | F18: 2 | G18: 0 | H18: 0 | I18: 0 | J18: 0 | K18: 0 | L18: 0 | M18: 0 | N18: 0 | O18: 0 | P18: 1 | Q18: 0 | R18: 0 | S18: 0 | T18: 1 | U18: 0 | V18: 0 | W18: 0 | X18: 0 | Y18: 0 | Z18: 0 | AA18: 0 | AB18: 2 | AC18: 0 | AD18: 1 | AE18: 0 | AF18: 1 | AG18: 0 | AH18: 0 | AI18: 0 | AJ18: 0 | AK18: 0 | AL18: 0 | AM18: 0
C19: 동물상해 | D19: 0 | E19: 0 | F19: 0 | G19: 0 | H19: 0 | I19: 0 | J19: 0 | K19: 0 | L19: 0 | M19: 0 | N19: 0 | O19: 0 | P19: 1 | Q19: 0 | R19: 0 | S19: 0 | T19: 1 | U19: 0 | V19: 0 | W19: 0 | X19: 0 | Y19: 0 | Z19: 0 | AA19: 0 | AB19: 0 | AC19: 0 | AD19: 0 | AE19: 0 | AF19: 0 | AG19: 0 | AH19: 0 | AI19: 0 | AJ19: 0 | AK19: 0 | AL19: 0 | AM19: 0
C20: 물리적인자 | D20: 0 | E20: 0 | F20: 0 | G20: 0 | H20: 0 | I20: 0 | J20: 0 | K20: 0 | L20: 0 | M20: 0 | N20: 0 | O20: 0 | P20: 0 | Q20: 0 | R20: 0 | S20: 0 | T20: 0 | U20: 0 | V20: 0 | W20: 0 | X20: 0 | Y20: 0 | Z20: 0 | AA20: 0 | AB20: 0 | AC20: 0 | AD20: 0 | AE20: 0 | AF20: 0 | AG20: 0 | AH20: 0 | AI20: 0 | AJ20: 0 | AK20: 0 | AL20: 0 | AM20: 0
C21: 화학적인자 | D21: 0 | E21: 0 | F21: 0 | G21: 0 | H21: 0 | I21: 0 | J21: 0 | K21: 0 | L21: 0 | M21: 0 | N21: 0 | O21: 0 | P21: 0 | Q21: 0 | R21: 0 | S21: 0 | T21: 0 | U21: 0 | V21: 0 | W21: 0 | X21: 0 | Y21: 0 | Z21: 0 | AA21: 0 | AB21: 0 | AC21: 0 | AD21: 0 | AE21: 0 | AF21: 0 | AG21: 0 | AH21: 0 | AI21: 0 | AJ21: 0 | AK21: 0 | AL21: 0 | AM21: 0
C22: 뇌심혈관질환 | D22: 0 | E22: 0 | F22: 0 | G22: 0 | H22: 0 | I22: 0 | J22: 0 | K22: 0 | L22: 0 | M22: 0 | N22: 0 | O22: 0 | P22: 0 | Q22: 0 | R22: 0 | S22: 0 | T22: 0 | U22: 0 | V22: 0 | W22: 0 | X22: 0 | Y22: 0 | Z22: 0 | AA22: 0 | AB22: 0 | AC22: 0 | AD22: 0 | AE22: 0 | AF22: 0 | AG22: 0 | AH22: 0 | AI22: 0 | AJ22: 0 | AK22: 0 | AL22: 0 | AM22: 0
C23: 근골격계질환 | D23: 0 | E23: 0 | F23: 0 | G23: 0 | H23: 0 | I23: 0 | J23: 0 | K23: 0 | L23: 0 | M23: 0 | N23: 0 | O23: 0 | P23: 0 | Q23: 0 | R23: 0 | S23: 0 | T23: 0 | U23: 0 | V23: 0 | W23: 0 | X23: 0 | Y23: 0 | Z23: 0 | AA23: 0 | AB23: 0 | AC23: 0 | AD23: 0 | AE23: 0 | AF23: 0 | AG23: 0 | AH23: 0 | AI23: 0 | AJ23: 0 | AK23: 0 | AL23: 0 | AM23: 0
B24: 부산동부 | C24: 합계 | D24: 72 | E24: 0 | F24: 22 | G24: 0 | H24: 15 | I24: 0 | J24: 24 | K24: 0 | L24: 4 | M24: 0 | N24: 7 | O24: 0 | P24: 92 | Q24: 0 | R24: 16 | S24: 0 | T24: 33 | U24: 0 | V24: 31 | W24: 0 | X24: 7 | Y24: 0 | Z24: 5 | AA24: 0 | AB24: 104 | AC24: 0 | AD24: 19 | AE24: 0 | AF24: 41 | AG24: 0 | AH24: 24 | AI24: 0 | AJ24: 7 | AK24: 0 | AL24: 13 | AM24: 0
C25: 떨어짐(높이가 있는 곳에서 사람이 떨어짐) | D25: 6 | E25: 0 | F25: 1 | G25: 0 | H25: 1 | I25: 0 | J25: 2 | K25: 0 | L25: 0 | M25: 0 | N25: 2 | O25: 0 | P25: 11 | Q25: 0 | R25: 4 | S25: 0 | T25: 4 | U25: 0 | V25: 2 | W25: 0 | X25: 0 | Y25: 0 | Z25: 1 | AA25: 0 | AB25: 15 | AC25: 0 | AD25: 2 | AE25: 0 | AF25: 8 | AG25: 0 | AH25: 4 | AI25: 0 | AJ25: 0 | AK25: 0 | AL25: 1 | AM25: 0
C26: 넘어짐(사람이 미끄러지거나 넘어짐) | D26: 33 | E26: 0 | F26: 16 | G26: 0 | H26: 7 | I26: 0 | J26: 8 | K26: 0 | L26: 1 | M26: 0 | N26: 1 | O26: 0 | P26: 47 | Q26: 0 | R26: 8 | S26: 0 | T26: 14 | U26: 0 | V26: 18 | W26: 0 | X26: 5 | Y26: 0 | Z26: 2 | AA26: 0 | AB26: 51 | AC26: 0 | AD26: 9 | AE26: 0 | AF26: 21 | AG26: 0 | AH26: 11 | AI26: 0 | AJ26: 3 | AK26: 0 | AL26: 7 | AM26: 0
C27: 깔림·뒤집힘(물체의 쓰러짐이나 뒤집힘) | D27: 2 | E27: 0 | F27: 1 | G27: 0 | H27: 1 | I27: 0 | J27: 0 | K27: 0 | L27: 0 | M27: 0 | N27: 0 | O27: 0 | P27: 1 | Q27: 0 | R27: 0 | S27: 0 | T27: 0 | U27: 0 | V27: 1 | W27: 0 | X27: 0 | Y27: 0 | Z27: 0 | AA27: 0 | AB27: 2 | AC27: 0 | AD27: 0 | AE27: 0 | AF27: 2 | AG27: 0 | AH27: 0 | AI27: 0 | AJ27: 0 | AK27: 0 | AL27: 0 | AM27: 0
C28: 부딪힘(물체에 부딪힘) | D28: 3 | E28: 0 | F28: 0 | G28: 0 | H28: 0 | I28: 0 | J28: 2 | K28: 0 | L28: 1 | M28: 0 | N28: 0 | O28: 0 | P28: 8 | Q28: 0 | R28: 1 | S28: 0 | T28: 4 | U28: 0 | V28: 1 | W28: 0 | X28: 1 | Y28: 0 | Z28: 1 | AA28: 0 | AB28: 8 | AC28: 0 | AD28: 0 | AE28: 0 | AF28: 3 | AG28: 0 | AH28: 3 | AI28: 0 | AJ28: 1 | AK28: 0 | AL28: 1 | AM28: 0
C29: 물체에 맞음(날아오거나 떨어진 물체에 맞음) | D29: 4 | E29: 0 | F29: 0 | G29: 0 | H29: 0 | I29: 0 | J29: 1 | K29: 0 | L29: 0 | M29: 0 | N29: 3 | O29: 0 | P29: 3 | Q29: 0 | R29: 1 | S29: 0 | T29: 0 | U29: 0 | V29: 2 | W29: 0 | X29: 0 | Y29: 0 | Z29: 0 | AA29: 0 | AB29: 2 | AC29: 0 | AD29: 0 | AE29: 0 | AF29: 0 | AG29: 0 | AH29: 1 | AI29: 0 | AJ29: 0 | AK29: 0 | AL29: 1 | AM29: 0
C30: 끼임(기계설비에 끼이거나 감김) | D30: 4 | E30: 0 | F30: 0 | G30: 0 | H30: 1 | I30: 0 | J30: 3 | K30: 0 | L30: 0 | M30: 0 | N30: 0 | O30: 0 | P30: 3 | Q30: 0 | R30: 0 | S30: 0 | T30: 1 | U30: 0 | V30: 1 | W30: 0 | X30: 0 | Y30: 0 | Z30: 1 | AA30: 0 | AB30: 0 | AC30: 0 | AD30: 0 | AE30: 0 | AF30: 0 | AG30: 0 | AH30: 0 | AI30: 0 | AJ30: 0 | AK30: 0 | AL30: 0 | AM30: 0
C31: 절단·베임·찔림 | D31: 6 | E31: 0 | F31: 2 | G31: 0 | H31: 2 | I31: 0 | J31: 1 | K31: 0 | L31: 1 | M31: 0 | N31: 0 | O31: 0 | P31: 5 | Q31: 0 | R31: 2 | S31: 0 | T31: 2 | U31: 0 | V31: 1 | W31: 0 | X31: 0 | Y31: 0 | Z31: 0 | AA31: 0 | AB31: 13 | AC31: 0 | AD31: 3 | AE31: 0 | AF31: 3 | AG31: 0 | AH31: 3 | AI31: 0 | AJ31: 3 | AK31: 0 | AL31: 1 | AM31: 0
C32: 감전 | D32: 0 | E32: 0 | F32: 0 | G32: 0 | H32: 0 | I32: 0 | J32: 0 | K32: 0 | L32: 0 | M32: 0 | N32: 0 | O32: 0 | P32: 0 | Q32: 0 | R32: 0 | S32: 0 | T32: 0 | U32: 0 | V32: 0 | W32: 0 | X32: 0 | Y32: 0 | Z32: 0 | AA32: 0 | AB32: 1 | AC32: 0 | AD32: 1 | AE32: 0 | AF32: 0 | AG32: 0 | AH32: 0 | AI32: 0 | AJ32: 0 | AK32: 0 | AL32: 0 | AM32: 0
C33: 폭발·파열 | D33: 1 | E33: 0 | F33: 0 | G33: 0 | H33: 1 | I33: 0 | J33: 0 | K33: 0 | L33: 0 | M33: 0 | N33: 0 | O33: 0 | P33: 0 | Q33: 0 | R33: 0 | S33: 0 | T33: 0 | U33: 0 | V33: 0 | W33: 0 | X33: 0 | Y33: 0 | Z33: 0 | AA33: 0 | AB33: 0 | AC33: 0 | AD33: 0 | AE33: 0 | AF33: 0 | AG33: 0 | AH33: 0 | AI33: 0 | AJ33: 0 | AK33: 0 | AL33: 0 | AM33: 0
C34: 화재 | D34: 1 | E34: 0 | F34: 1 | G34: 0 | H34: 0 | I34: 0 | J34: 0 | K34: 0 | L34: 0 | M34: 0 | N34: 0 | O34: 0 | P34: 0 | Q34: 0 | R34: 0 | S34: 0 | T34: 0 | U34: 0 | V34: 0 | W34: 0 | X34: 0 | Y34: 0 | Z34: 0 | AA34: 0 | AB34: 0 | AC34: 0 | AD34: 0 | AE34: 0 | AF34: 0 | AG34: 0 | AH34: 0 | AI34: 0 | AJ34: 0 | AK34: 0 | AL34: 0 | AM34: 0
C35: 불균형 및 무리한 동작 | D35: 4 | E35: 0 | F35: 0 | G35: 0 | H35: 1 | I35: 0 | J35: 2 | K35: 0 | L35: 1 | M35: 0 | N35: 0 | O35: 0 | P35: 10 | Q35: 0 | R35: 0 | S35: 0 | T35: 5 | U35: 0 | V35: 4 | W35: 0 | X35: 1 | Y35: 0 | Z35: 0 | AA35: 0 | AB35: 9 | AC35: 0 | AD35: 4 | AE35: 0 | AF35: 3 | AG35: 0 | AH35: 1 | AI35: 0 | AJ35: 0 | AK35: 0 | AL35: 1 | AM35: 0
C36: 이상온도 접촉 | D36: 2 | E36: 0 | F36: 0 | G36: 0 | H36: 0 | I36: 0 | J36: 1 | K36: 0 | L36: 0 | M36: 0 | N36: 1 | O36: 0 | P36: 0 | Q36: 0 | R36: 0 | S36: 0 | T36: 0 | U36: 0 | V36: 0 | W36: 0 | X36: 0 | Y36: 0 | Z36: 0 | AA36: 0 | AB36: 2 | AC36: 0 | AD36: 0 | AE36: 0 | AF36: 1 | AG36: 0 | AH36: 0 | AI36: 0 | AJ36: 0 | AK36: 0 | AL36: 1 | AM36: 0
C37: 화학물질누출·접촉 | D37: 0 | E37: 0 | F37: 0 | G37: 0 | H37: 0 | I37: 0 | J37: 0 | K37: 0 | L37: 0 | M37: 0 | N37: 0 | O37: 0 | P37: 1 | Q37: 0 | R37: 0 | S37: 0 | T37: 1 | U37: 0 | V37: 0 | W37: 0 | X37: 0 | Y37: 0 | Z37: 0 | AA37: 0 | AB37: 0 | AC37: 0 | AD37: 0 | AE37: 0 | AF37: 0 | AG37: 0 | AH37: 0 | AI37: 0 | AJ37: 0 | AK37: 0 | AL37: 0 | AM37: 0
C38: 사업장외 교통사고 | D38: 2 | E38: 0 | F38: 0 | G38: 0 | H38: 0 | I38: 0 | J38: 2 | K38: 0 | L38: 0 | M38: 0 | N38: 0 | O38: 0 | P38: 1 | Q38: 0 | R38: 0 | S38: 0 | T38: 0 | U38: 0 | V38: 1 | W38: 0 | X38: 0 | Y38: 0 | Z38: 0 | AA38: 0 | AB38: 0 | AC38: 0 | AD38: 0 | AE38: 0 | AF38: 0 | AG38: 0 | AH38: 0 | AI38: 0 | AJ38: 0 | AK38: 0 | AL38: 0 | AM38: 0
C39: 체육행사 등의 사고 | D39: 0 | E39: 0 | F39: 0 | G39: 0 | H39: 0 | I39: 0 | J39: 0 | K39: 0 | L39: 0 | M39: 0 | N39: 0 | O39: 0 | P39: 1 | Q39: 0 | R39: 0 | S39: 0 | T39: 1 | U39: 0 | V39: 0 | W39: 0 | X39: 0 | Y39: 0 | Z39: 0 | AA39: 0 | AB39: 0 | AC39: 0 | AD39: 0 | AE39: 0 | AF39: 0 | AG39: 0 | AH39: 0 | AI39: 0 | AJ39: 0 | AK39: 0 | AL39: 0 | AM39: 0
C40: 폭력행위 | D40: 4 | E40: 0 | F40: 1 | G40: 0 | H40: 1 | I40: 0 | J40: 2 | K40: 0 | L40: 0 | M40: 0 | N40: 0 | O40: 0 | P40: 1 | Q40: 0 | R40: 0 | S40: 0 | T40: 1 | U40: 0 | V40: 0 | W40: 0 | X40: 0 | Y40: 0 | Z40: 0 | AA40: 0 | AB40: 1 | AC40: 0 | AD40: 0 | AE40: 0 | AF40: 0 | AG40: 0 | AH40: 1 | AI40: 0 | AJ40: 0 | AK40: 0 | AL40: 0 | AM40: 0
C41: 생물학적인자 | D41: 0 | E41: 0 | F41: 0 | G41: 0 | H41: 0 | I41: 0 | J41: 0 | K41: 0 | L41: 0 | M41: 0 | N41: 0 | O41: 0 | P41: 0 | Q41: 0 | R41: 0 | S41: 0 | T41: 0 | U41: 0 | V41: 0 | W41: 0 | X41: 0 | Y41: 0 | Z41: 0 | AA41: 0 | AB41: 0 | AC41: 0 | AD41: 0 | AE41: 0 | AF41: 0 | AG41: 0 | AH41: 0 | AI41: 0 | AJ41: 0 | AK41: 0 | AL41: 0 | AM41: 0
C42: 직업병기타 | D42: 0 | E42: 0 | F42: 0 | G42: 0 | H42: 0 | I42: 0 | J42: 0 | K42: 0 | L42: 0 | M42: 0 | N42: 0 | O42: 0 | P42: 0 | Q42: 0 | R42: 0 | S42: 0 | T42: 0 | U42: 0 | V42: 0 | W42: 0 | X42: 0 | Y42: 0 | Z42: 0 | AA42: 0 | AB42: 0 | AC42: 0 | AD42: 0 | AE42: 0 | AF42: 0 | AG42: 0 | AH42: 0 | AI42: 0 | AJ42: 0 | AK42: 0 | AL42: 0 | AM42: 0
C43: 뇌심혈관질환 | D43: 0 | E43: 0 | F43: 0 | G43: 0 | H43: 0 | I43: 0 | J43: 0 | K43: 0 | L43: 0 | M43: 0 | N43: 0 | O43: 0 | P43: 0 | Q43: 0 | R43: 0 | S43: 0 | T43: 0 | U43: 0 | V43: 0 | W43: 0 | X43: 0 | Y43: 0 | Z43: 0 | AA43: 0 | AB43: 0 | AC43: 0 | AD43: 0 | AE43: 0 | AF43: 0 | AG43: 0 | AH43: 0 | AI43: 0 | AJ43: 0 | AK43: 0 | AL43: 0 | AM43: 0
C44: 근골격계질환 | D44: 0 | E44: 0 | F44: 0 | G44: 0 | H44: 0 | I44: 0 | J44: 0 | K44: 0 | L44: 0 | M44: 0 | N44: 0 | O44: 0 | P44: 0 | Q44: 0 | R44: 0 | S44: 0 | T44: 0 | U44: 0 | V44: 0 | W44: 0 | X44: 0 | Y44: 0 | Z44: 0 | AA44: 0 | AB44: 0 | AC44: 0 | AD44: 0 | AE44: 0 | AF44: 0 | AG44: 0 | AH44: 0 | AI44: 0 | AJ44: 0 | AK44: 0 | AL44: 0 | AM44: 0
C45: 작업관련성질환 기타 | D45: =F45+H45+J45+L45+N45 -> 0 | E45: 0 | F45: 0 | G45: 0 | H45: 0 | I45: 0 | J45: 0 | K45: 0 | L45: 0 | M45: 0 | N45: 0 | O45: 0 | P45: =R45+T45+V45+X45+Z45 -> 0 | Q45: 0 | R45: 0 | S45: 0 | T45: 0 | U45: 0 | V45: 0 | W45: 0 | X45: 0 | Y45: 0 | Z45: 0 | AA45: 0 | AB45: =AD45+AF45+AH45+AJ45+AL45 -> 0 | AC45: 0 | AD45: 0 | AE45: 0 | AF45: 0 | AG45: 0 | AH45: 0 | AI45: 0 | AJ45: 0 | AK45: 0 | AL45: 0 | AM45: 0
B46: 부산북부 | C46: 합계 | D46: 35 | E46: 0 | F46: 10 | G46: 0 | H46: 8 | I46: 0 | J46: 8 | K46: 0 | L46: 3 | M46: 0 | N46: 6 | O46: 0 | P46: 43 | Q46: 0 | R46: 10 | S46: 0 | T46: 20 | U46: 0 | V46: 8 | W46: 0 | X46: 3 | Y46: 0 | Z46: 2 | AA46: 0 | AB46: 43 | AC46: 1 | AD46: 9 | AE46: 0 | AF46: 19 | AG46: 1 | AH46: 8 | AI46: 0 | AJ46: 5 | AK46: 0 | AL46: 2 | AM46: 0
C47: 떨어짐(높이가 있는 곳에서 사람이 떨어짐) | D47: 6 | E47: 0 | F47: 2 | G47: 0 | H47: 1 | I47: 0 | J47: 1 | K47: 0 | L47: 0 | M47: 0 | N47: 2 | O47: 0 | P47: 5 | Q47: 0 | R47: 2 | S47: 0 | T47: 3 | U47: 0 | V47: 0 | W47: 0 | X47: 0 | Y47: 0 | Z47: 0 | AA47: 0 | AB47: 14 | AC47: 1 | AD47: 2 | AE47: 0 | AF47: 10 | AG47: 1 | AH47: 1 | AI47: 0 | AJ47: 1 | AK47: 0 | AL47: 0 | AM47: 0
C48: 넘어짐(사람이 미끄러지거나 넘어짐) | D48: 20 | E48: 0 | F48: 6 | G48: 0 | H48: 6 | I48: 0 | J48: 4 | K48: 0 | L48: 1 | M48: 0 | N48: 3 | O48: 0 | P48: 17 | Q48: 0 | R48: 3 | S48: 0 | T48: 6 | U48: 0 | V48: 6 | W48: 0 | X48: 1 | Y48: 0 | Z48: 1 | AA48: 0 | AB48: 12 | AC48: 0 | AD48: 5 | AE48: 0 | AF48: 2 | AG48: 0 | AH48: 3 | AI48: 0 | AJ48: 1 | AK48: 0 | AL48: 1 | AM48: 0
C49: 깔림·뒤집힘(물체의 쓰러짐이나 뒤집힘) | D49: 0 | E49: 0 | F49: 0 | G49: 0 | H49: 0 | I49: 0 | J49: 0 | K49: 0 | L49: 0 | M49: 0 | N49: 0 | O49: 0 | P49: 2 | Q49: 0 | R49: 1 | S49: 0 | T49: 1 | U49: 0 | V49: 0 | W49: 0 | X49: 0 | Y49: 0 | Z49: 0 | AA49: 0 | AB49: 2 | AC49: 0 | AD49: 0 | AE49: 0 | AF49: 1 | AG49: 0 | AH49: 1 | AI49: 0 | AJ49: 0 | AK49: 0 | AL49: 0 | AM49: 0
C50: 부딪힘(물체에 부딪힘) | D50: 4 | E50: 0 | F50: 1 | G50: 0 | H50: 0 | I50: 0 | J50: 1 | K50: 0 | L50: 1 | M50: 0 | N50: 1 | O50: 0 | P50: 5 | Q50: 0 | R50: 0 | S50: 0 | T50: 4 | U50: 0 | V50: 0 | W50: 0 | X50: 0 | Y50: 0 | Z50: 1 | AA50: 0 | AB50: 3 | AC50: 0 | AD50: 0 | AE50: 0 | AF50: 2 | AG50: 0 | AH50: 0 | AI50: 0 | AJ50: 1 | AK50: 0 | AL50: 0 | AM50: 0
C51: 물체에 맞음(날아오거나 떨어진 물체에 맞음) | D51: 0 | E51: 0 | F51: 0 | G51: 0 | H51: 0 | I51: 0 | J51: 0 | K51: 0 | L51: 0 | M51: 0 | N51: 0 | O51: 0 | P51: 3 | Q51: 0 | R51: 1 | S51: 0 | T51: 0 | U51: 0 | V51: 0 | W51: 0 | X51: 2 | Y51: 0 | Z51: 0 | AA51: 0 | AB51: 4 | AC51: 0 | AD51: 0 | AE51: 0 | AF51: 1 | AG51: 0 | AH51: 2 | AI51: 0 | AJ51: 1 | AK51: 0 | AL51: 0 | AM51: 0
C52: 끼임(기계설비에 끼이거나 감김) | D52: 2 | E52: 0 | F52: 1 | G52: 0 | H52: 0 | I52: 0 | J52: 0 | K52: 0 | L52: 1 | M52: 0 | N52: 0 | O52: 0 | P52: 1 | Q52: 0 | R52: 0 | S52: 0 | T52: 1 | U52: 0 | V52: 0 | W52: 0 | X52: 0 | Y52: 0 | Z52: 0 | AA52: 0 | AB52: 0 | AC52: 0 | AD52: 0 | AE52: 0 | AF52: 0 | AG52: 0 | AH52: 0 | AI52: 0 | AJ52: 0 | AK52: 0 | AL52: 0 | AM52: 0
C53: 절단·베임·찔림 | D53: 1 | E53: 0 | F53: 0 | G53: 0 | H53: 1 | I53: 0 | J53: 0 | K53: 0 | L53: 0 | M53: 0 | N53: 0 | O53: 0 | P53: 5 | Q53: 0 | R53: 1 | S53: 0 | T53: 2 | U53: 0 | V53: 2 | W53: 0 | X53: 0 | Y53: 0 | Z53: 0 | AA53: 0 | AB53: 2 | AC53: 0 | AD53: 2 | AE53: 0 | AF53: 0 | AG53: 0 | AH53: 0 | AI53: 0 | AJ53: 0 | AK53: 0 | AL53: 0 | AM53: 0
C54: 감전 | D54: 1 | E54: 0 | F54: 0 | G54: 0 | H54: 0 | I54: 0 | J54: 1 | K54: 0 | L54: 0 | M54: 0 | N54: 0 | O54: 0 | P54: 0 | Q54: 0 | R54: 0 | S54: 0 | T54: 0 | U54: 0 | V54: 0 | W54: 0 | X54: 0 | Y54: 0 | Z54: 0 | AA54: 0 | AB54: 0 | AC54: 0 | AD54: 0 | AE54: 0 | AF54: 0 | AG54: 0 | AH54: 0 | AI54: 0 | AJ54: 0 | AK54: 0 | AL54: 0 | AM54: 0
C55: 불균형 및 무리한 동작 | D55: 1 | E55: 0 | F55: 0 | G55: 0 | H55: 0 | I55: 0 | J55: 1 | K55: 0 | L55: 0 | M55: 0 | N55: 0 | O55: 0 | P55: 5 | Q55: 0 | R55: 2 | S55: 0 | T55: 3 | U55: 0 | V55: 0 | W55: 0 | X55: 0 | Y55: 0 | Z55: 0 | AA55: 0 | AB55: 4 | AC55: 0 | AD55: 0 | AE55: 0 | AF55: 2 | AG55: 0 | AH55: 1 | AI55: 0 | AJ55: 0 | AK55: 0 | AL55: 1 | AM55: 0
C56: 이상온도 접촉 | D56: 0 | E56: 0 | F56: 0 | G56: 0 | H56: 0 | I56: 0 | J56: 0 | K56: 0 | L56: 0 | M56: 0 | N56: 0 | O56: 0 | P56: 0 | Q56: 0 | R56: 0 | S56: 0 | T56: 0 | U56: 0 | V56: 0 | W56: 0 | X56: 0 | Y56: 0 | Z56: 0 | AA56: 0 | AB56: 1 | AC56: 0 | AD56: 0 | AE56: 0 | AF56: 0 | AG56: 0 | AH56: 0 | AI56: 0 | AJ56: 1 | AK56: 0 | AL56: 0 | AM56: 0
C57: 화학물질누출·접촉 | D57: 0 | E57: 0 | F57: 0 | G57: 0 | H57: 0 | I57: 0 | J57: 0 | K57: 0 | L57: 0 | M57: 0 | N57: 0 | O57: 0 | P57: 0 | Q57: 0 | R57: 0 | S57: 0 | T57: 0 | U57: 0 | V57: 0 | W57: 0 | X57: 0 | Y57: 0 | Z57: 0 | AA57: 0 | AB57: 1 | AC57: 0 | AD57: 0 | AE57: 0 | AF57: 1 | AG57: 0 | AH57: 0 | AI57: 0 | AJ57: 0 | AK57: 0 | AL57: 0 | AM57: 0
C58: 생물학적인자 | D58: 0 | E58: 0 | F58: 0 | G58: 0 | H58: 0 | I58: 0 | J58: 0 | K58: 0 | L58: 0 | M58: 0 | N58: 0 | O58: 0 | P58: 0 | Q58: 0 | R58: 0 | S58: 0 | T58: 0 | U58: 0 | V58: 0 | W58: 0 | X58: 0 | Y58: 0 | Z58: 0 | AA58: 0 | AB58: 0 | AC58: 0 | AD58: 0 | AE58: 0 | AF58: 0 | AG58: 0 | AH58: 0 | AI58: 0 | AJ58: 0 | AK58: 0 | AL58: 0 | AM58: 0
C59: 뇌심혈관질환 | D59: 0 | E59: 0 | F59: 0 | G59: 0 | H59: 0 | I59: 0 | J59: 0 | K59: 0 | L59: 0 | M59: 0 | N59: 0 | O59: 0 | P59: 0 | Q59: 0 | R59: 0 | S59: 0 | T59: 0 | U59: 0 | V59: 0 | W59: 0 | X59: 0 | Y59: 0 | Z59: 0 | AA59: 0 | AB59: 0 | AC59: 0 | AD59: 0 | AE59: 0 | AF59: 0 | AG59: 0 | AH59: 0 | AI59: 0 | AJ59: 0 | AK59: 0 | AL59: 0 | AM59: 0
C60: 근골격계질환 | D60: 0 | E60: 0 | F60: 0 | G60: 0 | H60: 0 | I60: 0 | J60: 0 | K60: 0 | L60: 0 | M60: 0 | N60: 0 | O60: 0 | P60: 0 | Q60: 0 | R60: 0 | S60: 0 | T60: 0 | U60: 0 | V60: 0 | W60: 0 | X60: 0 | Y60: 0 | Z60: 0 | AA60: 0 | AB60: 0 | AC60: 0 | AD60: 0 | AE60: 0 | AF60: 0 | AG60: 0 | AH60: 0 | AI60: 0 | AJ60: 0 | AK60: 0 | AL60: 0 | AM60: 0
B61: 창 원 | C61: 합계 | D61: 81 | E61: 1 | F61: 21 | G61: 0 | H61: 23 | I61: 0 | J61: 25 | K61: 1 | L61: 7 | M61: 0 | N61: 5 | O61: 0 | P61: 86 | Q61: 5 | R61: 20 | S61: 2 | T61: 26 | U61: 2 | V61: 17 | W61: 1 | X61: 12 | Y61: 0 | Z61: 11 | AA61: 0 | AB61: 55 | AC61: 0 | AD61: 17 | AE61: 0 | AF61: 11 | AG61: 0 | AH61: 17 | AI61: 0 | AJ61: 7 | AK61: 0 | AL61: 3 | AM61: 0
C62: 떨어짐(높이가 있는 곳에서 사람이 떨어짐) | D62: 10 | E62: 0 | F62: 4 | G62: 0 | H62: 3 | I62: 0 | J62: 3 | K62: 0 | L62: 0 | M62: 0 | N62: 0 | O62: 0 | P62: 11 | Q62: 0 | R62: 2 | S62: 0 | T62: 6 | U62: 0 | V62: 1 | W62: 0 | X62: 1 | Y62: 0 | Z62: 1 | AA62: 0 | AB62: 11 | AC62: 0 | AD62: 5 | AE62: 0 | AF62: 3 | AG62: 0 | AH62: 1 | AI62: 0 | AJ62: 1 | AK62: 0 | AL62: 1 | AM62: 0
C63: 넘어짐(사람이 미끄러지거나 넘어짐) | D63: 44 | E63: 0 | F63: 9 | G63: 0 | H63: 11 | I63: 0 | J63: 16 | K63: 0 | L63: 5 | M63: 0 | N63: 3 | O63: 0 | P63: 34 | Q63: 2 | R63: 6 | S63: 0 | T63: 5 | U63: 1 | V63: 7 | W63: 1 | X63: 10 | Y63: 0 | Z63: 6 | AA63: 0 | AB63: 28 | AC63: 0 | AD63: 5 | AE63: 0 | AF63: 5 | AG63: 0 | AH63: 12 | AI63: 0 | AJ63: 4 | AK63: 0 | AL63: 2 | AM63: 0
C64: 깔림·뒤집힘(물체의 쓰러짐이나 뒤집힘) | D64: 0 | E64: 0 | F64: 0 | G64: 0 | H64: 0 | I64: 0 | J64: 0 | K64: 0 | L64: 0 | M64: 0 | N64: 0 | O64: 0 | P64: 2 | Q64: 0 | R64: 1 | S64: 0 | T64: 1 | U64: 0 | V64: 0 | W64: 0 | X64: 0 | Y64: 0 | Z64: 0 | AA64: 0 | AB64: 0 | AC64: 0 | AD64: 0 | AE64: 0 | AF64: 0 | AG64: 0 | AH64: 0 | AI64: 0 | AJ64: 0 | AK64: 0 | AL64: 0 | AM64: 0
C65: 부딪힘(물체에 부딪힘) | D65: 8 | E65: 1 | F65: 1 | G65: 0 | H65: 2 | I65: 0 | J65: 4 | K65: 1 | L65: 0 | M65: 0 | N65: 1 | O65: 0 | P65: 12 | Q65: 3 | R65: 5 | S65: 2 | T65: 4 | U65: 1 | V65: 2 | W65: 0 | X65: 0 | Y65: 0 | Z65: 1 | AA65: 0 | AB65: 2 | AC65: 0 | AD65: 1 | AE65: 0 | AF65: 0 | AG65: 0 | AH65: 1 | AI65: 0 | AJ65: 0 | AK65: 0 | AL65: 0 | AM65: 0
C66: 물체에 맞음(날아오거나 떨어진 물체에 맞음) | D66: 0 | E66: 0 | F66: 0 | G66: 0 | H66: 0 | I66: 0 | J66: 0 | K66: 0 | L66: 0 | M66: 0 | N66: 0 | O66: 0 | P66: 3 | Q66: 0 | R66: 0 | S66: 0 | T66: 1 | U66: 0 | V66: 2 | W66: 0 | X66: 0 | Y66: 0 | Z66: 0 | AA66: 0 | AB66: 2 | AC66: 0 | AD66: 2 | AE66: 0 | AF66: 0 | AG66: 0 | AH66: 0 | AI66: 0 | AJ66: 0 | AK66: 0 | AL66: 0 | AM66: 0
C67: 끼임(기계설비에 끼이거나 감김) | D67: 4 | E67: 0 | F67: 3 | G67: 0 | H67: 0 | I67: 0 | J67: 1 | K67: 0 | L67: 0 | M67: 0 | N67: 0 | O67: 0 | P67: 5 | Q67: 0 | R67: 0 | S67: 0 | T67: 2 | U67: 0 | V67: 2 | W67: 0 | X67: 0 | Y67: 0 | Z67: 1 | AA67: 0 | AB67: 0 | AC67: 0 | AD67: 0 | AE67: 0 | AF67: 0 | AG67: 0 | AH67: 0 | AI67: 0 | AJ67: 0 | AK67: 0 | AL67: 0 | AM67: 0
C68: 절단·베임·찔림 | D68: 6 | E68: 0 | F68: 2 | G68: 0 | H68: 3 | I68: 0 | J68: 0 | K68: 0 | L68: 1 | M68: 0 | N68: 0 | O68: 0 | P68: 11 | Q68: 0 | R68: 5 | S68: 0 | T68: 4 | U68: 0 | V68: 2 | W68: 0 | X68: 0 | Y68: 0 | Z68: 0 | AA68: 0 | AB68: 7 | AC68: 0 | AD68: 3 | AE68: 0 | AF68: 0 | AG68: 0 | AH68: 2 | AI68: 0 | AJ68: 2 | AK68: 0 | AL68: 0 | AM68: 0
C69: 불균형 및 무리한 동작 | D69: 4 | E69: 0 | F69: 0 | G69: 0 | H69: 2 | I69: 0 | J69: 1 | K69: 0 | L69: 0 | M69: 0 | N69: 1 | O69: 0 | P69: 5 | Q69: 0 | R69: 1 | S69: 0 | T69: 2 | U69: 0 | V69: 0 | W69: 0 | X69: 1 | Y69: 0 | Z69: 1 | AA69: 0 | AB69: 4 | AC69: 0 | AD69: 0 | AE69: 0 | AF69: 3 | AG69: 0 | AH69: 1 | AI69: 0 | AJ69: 0 | AK69: 0 | AL69: 0 | AM69: 0
C70: 이상온도 접촉 | D70: 2 | E70: 0 | F70: 2 | G70: 0 | H70: 0 | I70: 0 | J70: 0 | K70: 0 | L70: 0 | M70: 0 | N70: 0 | O70: 0 | P70: 0 | Q70: 0 | R70: 0 | S70: 0 | T70: 0 | U70: 0 | V70: 0 | W70: 0 | X70: 0 | Y70: 0 | Z70: 0 | AA70: 0 | AB70: 0 | AC70: 0 | AD70: 0 | AE70: 0 | AF70: 0 | AG70: 0 | AH70: 0 | AI70: 0 | AJ70: 0 | AK70: 0 | AL70: 0 | AM70: 0
C71: 화학물질누출·접촉 | D71: 2 | E71: 0 | F71: 0 | G71: 0 | H71: 2 | I71: 0 | J71: 0 | K71: 0 | L71: 0 | M71: 0 | N71: 0 | O71: 0 | P71: 0 | Q71: 0 | R71: 0 | S71: 0 | T71: 0 | U71: 0 | V71: 0 | W71: 0 | X71: 0 | Y71: 0 | Z71: 0 | AA71: 0 | AB71: 0 | AC71: 0 | AD71: 0 | AE71: 0 | AF71: 0 | AG71: 0 | AH71: 0 | AI71: 0 | AJ71: 0 | AK71: 0 | AL71: 0 | AM71: 0
C72: 사업장외 교통사고 | D72: 1 | E72: 0 | F72: 0 | G72: 0 | H72: 0 | I72: 0 | J72: 0 | K72: 0 | L72: 1 | M72: 0 | N72: 0 | O72: 0 | P72: 1 | Q72: 0 | R72: 0 | S72: 0 | T72: 0 | U72: 0 | V72: 0 | W72: 0 | X72: 0 | Y72: 0 | Z72: 1 | AA72: 0 | AB72: 1 | AC72: 0 | AD72: 1 | AE72: 0 | AF72: 0 | AG72: 0 | AH72: 0 | AI72: 0 | AJ72: 0 | AK72: 0 | AL72: 0 | AM72: 0
C73: 폭력행위 | D73: 0 | E73: 0 | F73: 0 | G73: 0 | H73: 0 | I73: 0 | J73: 0 | K73: 0 | L73: 0 | M73: 0 | N73: 0 | O73: 0 | P73: 1 | Q73: 0 | R73: 0 | S73: 0 | T73: 1 | U73: 0 | V73: 0 | W73: 0 | X73: 0 | Y73: 0 | Z73: 0 | AA73: 0 | AB73: 0 | AC73: 0 | AD73: 0 | AE73: 0 | AF73: 0 | AG73: 0 | AH73: 0 | AI73: 0 | AJ73: 0 | AK73: 0 | AL73: 0 | AM73: 0
C74: 동물상해 | D74: 0 | E74: 0 | F74: 0 | G74: 0 | H74: 0 | I74: 0 | J74: 0 | K74: 0 | L74: 0 | M74: 0 | N74: 0 | O74: 0 | P74: 1 | Q74: 0 | R74: 0 | S74: 0 | T74: 0 | U74: 0 | V74: 1 | W74: 0 | X74: 0 | Y74: 0 | Z74: 0 | AA74: 0 | AB74: 0 | AC74: 0 | AD74: 0 | AE74: 0 | AF74: 0 | AG74: 0 | AH74: 0 | AI74: 0 | AJ74: 0 | AK74: 0 | AL74: 0 | AM74: 0
C75: 물리적인자 | D75: 0 | E75: 0 | F75: 0 | G75: 0 | H75: 0 | I75: 0 | J75: 0 | K75: 0 | L75: 0 | M75: 0 | N75: 0 | O75: 0 | P75: 0 | Q75: 0 | R75: 0 | S75: 0 | T75: 0 | U75: 0 | V75: 0 | W75: 0 | X75: 0 | Y75: 0 | Z75: 0 | AA75: 0 | AB75: 0 | AC75: 0 | AD75: 0 | AE75: 0 | AF75: 0 | AG75: 0 | AH75: 0 | AI75: 0 | AJ75: 0 | AK75: 0 | AL75: 0 | AM75: 0
C76: 뇌심혈관질환 | D76: 0 | E76: 0 | F76: 0 | G76: 0 | H76: 0 | I76: 0 | J76: 0 | K76: 0 | L76: 0 | M76: 0 | N76: 0 | O76: 0 | P76: 0 | Q76: 0 | R76: 0 | S76: 0 | T76: 0 | U76: 0 | V76: 0 | W76: 0 | X76: 0 | Y76: 0 | Z76: 0 | AA76: 0 | AB76: 0 | AC76: 0 | AD76: 0 | AE76: 0 | AF76: 0 | AG76: 0 | AH76: 0 | AI76: 0 | AJ76: 0 | AK76: 0 | AL76: 0 | AM76: 0
C77: 근골격계질환 | D77: 0 | E77: 0 | F77: 0 | G77: 0 | H77: 0 | I77: 0 | J77: 0 | K77: 0 | L77: 0 | M77: 0 | N77: 0 | O77: 0 | P77: 0 | Q77: 0 | R77: 0 | S77: 0 | T77: 0 | U77: 0 | V77: 0 | W77: 0 | X77: 0 | Y77: 0 | Z77: 0 | AA77: 0 | AB77: 0 | AC77: 0 | AD77: 0 | AE77: 0 | AF77: 0 | AG77: 0 | AH77: 0 | AI77: 0 | AJ77: 0 | AK77: 0 | AL77: 0 | AM77: 0
C78: 작업관련성질환 기타 | D78: 0 | E78: 0 | F78: 0 | G78: 0 | H78: 0 | I78: 0 | J78: 0 | K78: 0 | L78: 0 | M78: 0 | N78: 0 | O78: 0 | P78: 0 | Q78: 0 | R78: 0 | S78: 0 | T78: 0 | U78: 0 | V78: 0 | W78: 0 | X78: 0 | Y78: 0 | Z78: 0 | AA78: 0 | AB78: 0 | AC78: 0 | AD78: 0 | AE78: 0 | AF78: 0 | AG78: 0 | AH78: 0 | AI78: 0 | AJ78: 0 | AK78: 0 | AL78: 0 | AM78: 0
B79: 울 산 | C79: 합계 | D79: 50 | E79: 0 | F79: 12 | G79: 0 | H79: 20 | I79: 0 | J79: 8 | K79: 0 | L79: 5 | M79: 0 | N79: 5 | O79: 0 | P79: 87 | Q79: 0 | R79: 23 | S79: 0 | T79: 31 | U79: 0 | V79: 19 | W79: 0 | X79: 9 | Y79: 0 | Z79: 5 | AA79: 0 | AB79: 65 | AC79: 0 | AD79: 26 | AE79: 0 | AF79: 19 | AG79: 0 | AH79: 15 | AI79: 0 | AJ79: 3 | AK79: 0 | AL79: 2 | AM79: 0
C80: 떨어짐(높이가 있는 곳에서 사람이 떨어짐) | D80: 9 | E80: 0 | F80: 2 | G80: 0 | H80: 4 | I80: 0 | J80: 1 | K80: 0 | L80: 1 | M80: 0 | N80: 1 | O80: 0 | P80: 9 | Q80: 0 | R80: 3 | S80: 0 | T80: 4 | U80: 0 | V80: 2 | W80: 0 | X80: 0 | Y80: 0 | Z80: 0 | AA80: 0 | AB80: 9 | AC80: 0 | AD80: 6 | AE80: 0 | AF80: 2 | AG80: 0 | AH80: 1 | AI80: 0 | AJ80: 0 | AK80: 0 | AL80: 0 | AM80: 0
C81: 넘어짐(사람이 미끄러지거나 넘어짐) | D81: 23 | E81: 0 | F81: 7 | G81: 0 | H81: 6 | I81: 0 | J81: 6 | K81: 0 | L81: 1 | M81: 0 | N81: 3 | O81: 0 | P81: 49 | Q81: 0 | R81: 14 | S81: 0 | T81: 14 | U81: 0 | V81: 12 | W81: 0 | X81: 7 | Y81: 0 | Z81: 2 | AA81: 0 | AB81: 38 | AC81: 0 | AD81: 13 | AE81: 0 | AF81: 11 | AG81: 0 | AH81: 10 | AI81: 0 | AJ81: 2 | AK81: 0 | AL81: 2 | AM81: 0
C82: 깔림·뒤집힘(물체의 쓰러짐이나 뒤집힘) | D82: 0 | E82: 0 | F82: 0 | G82: 0 | H82: 0 | I82: 0 | J82: 0 | K82: 0 | L82: 0 | M82: 0 | N82: 0 | O82: 0 | P82: 0 | Q82: 0 | R82: 0 | S82: 0 | T82: 0 | U82: 0 | V82: 0 | W82: 0 | X82: 0 | Y82: 0 | Z82: 0 | AA82: 0 | AB82: 1 | AC82: 0 | AD82: 0 | AE82: 0 | AF82: 1 | AG82: 0 | AH82: 0 | AI82: 0 | AJ82: 0 | AK82: 0 | AL82: 0 | AM82: 0
C83: 부딪힘(물체에 부딪힘) | D83: 6 | E83: 0 | F83: 0 | G83: 0 | H83: 2 | I83: 0 | J83: 0 | K83: 0 | L83: 3 | M83: 0 | N83: 1 | O83: 0 | P83: 7 | Q83: 0 | R83: 2 | S83: 0 | T83: 3 | U83: 0 | V83: 0 | W83: 0 | X83: 1 | Y83: 0 | Z83: 1 | AA83: 0 | AB83: 4 | AC83: 0 | AD83: 1 | AE83: 0 | AF83: 2 | AG83: 0 | AH83: 1 | AI83: 0 | AJ83: 0 | AK83: 0 | AL83: 0 | AM83: 0
C84: 물체에 맞음(날아오거나 떨어진 물체에 맞음) | D84: 2 | E84: 0 | F84: 1 | G84: 0 | H84: 1 | I84: 0 | J84: 0 | K84: 0 | L84: 0 | M84: 0 | N84: 0 | O84: 0 | P84: 4 | Q84: 0 | R84: 0 | S84: 0 | T84: 3 | U84: 0 | V84: 0 | W84: 0 | X84: 0 | Y84: 0 | Z84: 1 | AA84: 0 | AB84: 2 | AC84: 0 | AD84: 1 | AE84: 0 | AF84: 0 | AG84: 0 | AH84: 1 | AI84: 0 | AJ84: 0 | AK84: 0 | AL84: 0 | AM84: 0
C85: 끼임(기계설비에 끼이거나 감김) | D85: 1 | E85: 0 | F85: 0 | G85: 0 | H85: 1 | I85: 0 | J85: 0 | K85: 0 | L85: 0 | M85: 0 | N85: 0 | O85: 0 | P85: 7 | Q85: 0 | R85: 1 | S85: 0 | T85: 3 | U85: 0 | V85: 1 | W85: 0 | X85: 1 | Y85: 0 | Z85: 1 | AA85: 0 | AB85: 0 | AC85: 0 | AD85: 0 | AE85: 0 | AF85: 0 | AG85: 0 | AH85: 0 | AI85: 0 | AJ85: 0 | AK85: 0 | AL85: 0 | AM85: 0
C86: 절단·베임·찔림 | D86: 3 | E86: 0 | F86: 0 | G86: 0 | H86: 2 | I86: 0 | J86: 1 | K86: 0 | L86: 0 | M86: 0 | N86: 0 | O86: 0 | P86: 1 | Q86: 0 | R86: 0 | S86: 0 | T86: 1 | U86: 0 | V86: 0 | W86: 0 | X86: 0 | Y86: 0 | Z86: 0 | AA86: 0 | AB86: 2 | AC86: 0 | AD86: 1 | AE86: 0 | AF86: 0 | AG86: 0 | AH86: 1 | AI86: 0 | AJ86: 0 | AK86: 0 | AL86: 0 | AM86: 0
C87: 폭발·파열 | D87: 0 | E87: 0 | F87: 0 | G87: 0 | H87: 0 | I87: 0 | J87: 0 | K87: 0 | L87: 0 | M87: 0 | N87: 0 | O87: 0 | P87: 2 | Q87: 0 | R87: 2 | S87: 0 | T87: 0 | U87: 0 | V87: 0 | W87: 0 | X87: 0 | Y87: 0 | Z87: 0 | AA87: 0 | AB87: 0 | AC87: 0 | AD87: 0 | AE87: 0 | AF87: 0 | AG87: 0 | AH87: 0 | AI87: 0 | AJ87: 0 | AK87: 0 | AL87: 0 | AM87: 0
C88: 불균형 및 무리한 동작 | D88: 3 | E88: 0 | F88: 0 | G88: 0 | H88: 3 | I88: 0 | J88: 0 | K88: 0 | L88: 0 | M88: 0 | N88: 0 | O88: 0 | P88: 5 | Q88: 0 | R88: 1 | S88: 0 | T88: 3 | U88: 0 | V88: 1 | W88: 0 | X88: 0 | Y88: 0 | Z88: 0 | AA88: 0 | AB88: 5 | AC88: 0 | AD88: 1 | AE88: 0 | AF88: 2 | AG88: 0 | AH88: 1 | AI88: 0 | AJ88: 1 | AK88: 0 | AL88: 0 | AM88: 0
C89: 이상온도 접촉 | D89: 1 | E89: 0 | F89: 1 | G89: 0 | H89: 0 | I89: 0 | J89: 0 | K89: 0 | L89: 0 | M89: 0 | N89: 0 | O89: 0 | P89: 2 | Q89: 0 | R89: 0 | S89: 0 | T89: 0 | U89: 0 | V89: 2 | W89: 0 | X89: 0 | Y89: 0 | Z89: 0 | AA89: 0 | AB89: 1 | AC89: 0 | AD89: 0 | AE89: 0 | AF89: 1 | AG89: 0 | AH89: 0 | AI89: 0 | AJ89: 0 | AK89: 0 | AL89: 0 | AM89: 0
C90: 화학물질누출·접촉 | D90: 0 | E90: 0 | F90: 0 | G90: 0 | H90: 0 | I90: 0 | J90: 0 | K90: 0 | L90: 0 | M90: 0 | N90: 0 | O90: 0 | P90: 1 | Q90: 0 | R90: 0 | S90: 0 | T90: 0 | U90: 0 | V90: 1 | W90: 0 | X90: 0 | Y90: 0 | Z90: 0 | AA90: 0 | AB90: 0 | AC90: 0 | AD90: 0 | AE90: 0 | AF90: 0 | AG90: 0 | AH90: 0 | AI90: 0 | AJ90: 0 | AK90: 0 | AL90: 0 | AM90: 0
C91: 사업장외 교통사고 | D91: 1 | E91: 0 | F91: 0 | G91: 0 | H91: 1 | I91: 0 | J91: 0 | K91: 0 | L91: 0 | M91: 0 | N91: 0 | O91: 0 | P91: 0 | Q91: 0 | R91: 0 | S91: 0 | T91: 0 | U91: 0 | V91: 0 | W91: 0 | X91: 0 | Y91: 0 | Z91: 0 | AA91: 0 | AB91: 0 | AC91: 0 | AD91: 0 | AE91: 0 | AF91: 0 | AG91: 0 | AH91: 0 | AI91: 0 | AJ91: 0 | AK91: 0 | AL91: 0 | AM91: 0
C92: 폭력행위 | D92: 0 | E92: 0 | F92: 0 | G92: 0 | H92: 0 | I92: 0 | J92: 0 | K92: 0 | L92: 0 | M92: 0 | N92: 0 | O92: 0 | P92: 0 | Q92: 0 | R92: 0 | S92: 0 | T92: 0 | U92: 0 | V92: 0 | W92: 0 | X92: 0 | Y92: 0 | Z92: 0 | AA92: 0 | AB92: 2 | AC92: 0 | AD92: 2 | AE92: 0 | AF92: 0 | AG92: 0 | AH92: 0 | AI92: 0 | AJ92: 0 | AK92: 0 | AL92: 0 | AM92: 0
C93: 동물상해 | D93: 1 | E93: 0 | F93: 1 | G93: 0 | H93: 0 | I93: 0 | J93: 0 | K93: 0 | L93: 0 | M93: 0 | N93: 0 | O93: 0 | P93: 0 | Q93: 0 | R93: 0 | S93: 0 | T93: 0 | U93: 0 | V93: 0 | W93: 0 | X93: 0 | Y93: 0 | Z93: 0 | AA93: 0 | AB93: 1 | AC93: 0 | AD93: 1 | AE93: 0 | AF93: 0 | AG93: 0 | AH93: 0 | AI93: 0 | AJ93: 0 | AK93: 0 | AL93: 0 | AM93: 0
C94: 물리적인자 | D94: 0 | E94: 0 | F94: 0 | G94: 0 | H94: 0 | I94: 0 | J94: 0 | K94: 0 | L94: 0 | M94: 0 | N94: 0 | O94: 0 | P94: 0 | Q94: 0 | R94: 0 | S94: 0 | T94: 0 | U94: 0 | V94: 0 | W94: 0 | X94: 0 | Y94: 0 | Z94: 0 | AA94: 0 | AB94: 0 | AC94: 0 | AD94: 0 | AE94: 0 | AF94: 0 | AG94: 0 | AH94: 0 | AI94: 0 | AJ94: 0 | AK94: 0 | AL94: 0 | AM94: 0
C95: 생물학적인자 | D95: 0 | E95: 0 | F95: 0 | G95: 0 | H95: 0 | I95: 0 | J95: 0 | K95: 0 | L95: 0 | M95: 0 | N95: 0 | O95: 0 | P95: 0 | Q95: 0 | R95: 0 | S95: 0 | T95: 0 | U95: 0 | V95: 0 | W95: 0 | X95: 0 | Y95: 0 | Z95: 0 | AA95: 0 | AB95: 0 | AC95: 0 | AD95: 0 | AE95: 0 | AF95: 0 | AG95: 0 | AH95: 0 | AI95: 0 | AJ95: 0 | AK95: 0 | AL95: 0 | AM95: 0
C96: 직업병기타 | D96: 0 | E96: 0 | F96: 0 | G96: 0 | H96: 0 | I96: 0 | J96: 0 | K96: 0 | L96: 0 | M96: 0 | N96: 0 | O96: 0 | P96: 0 | Q96: 0 | R96: 0 | S96: 0 | T96: 0 | U96: 0 | V96: 0 | W96: 0 | X96: 0 | Y96: 0 | Z96: 0 | AA96: 0 | AB96: 0 | AC96: 0 | AD96: 0 | AE96: 0 | AF96: 0 | AG96: 0 | AH96: 0 | AI96: 0 | AJ96: 0 | AK96: 0 | AL96: 0 | AM96: 0
C97: 뇌심혈관질환 | D97: 0 | E97: 0 | F97: 0 | G97: 0 | H97: 0 | I97: 0 | J97: 0 | K97: 0 | L97: 0 | M97: 0 | N97: 0 | O97: 0 | P97: 0 | Q97: 0 | R97: 0 | S97: 0 | T97: 0 | U97: 0 | V97: 0 | W97: 0 | X97: 0 | Y97: 0 | Z97: 0 | AA97: 0 | AB97: 0 | AC97: 0 | AD97: 0 | AE97: 0 | AF97: 0 | AG97: 0 | AH97: 0 | AI97: 0 | AJ97: 0 | AK97: 0 | AL97: 0 | AM97: 0
C98: 근골격계질환 | D98: 0 | E98: 0 | F98: 0 | G98: 0 | H98: 0 | I98: 0 | J98: 0 | K98: 0 | L98: 0 | M98: 0 | N98: 0 | O98: 0 | P98: 0 | Q98: 0 | R98: 0 | S98: 0 | T98: 0 | U98: 0 | V98: 0 | W98: 0 | X98: 0 | Y98: 0 | Z98: 0 | AA98: 0 | AB98: 0 | AC98: 0 | AD98: 0 | AE98: 0 | AF98: 0 | AG98: 0 | AH98: 0 | AI98: 0 | AJ98: 0 | AK98: 0 | AL98: 0 | AM98: 0
B99: 양 산 | C99: 합계 | D99: 63 | E99: 0 | F99: 13 | G99: 0 | H99: 20 | I99: 0 | J99: 18 | K99: 0 | L99: 9 | M99: 0 | N99: 3 | O99: 0 | P99: 55 | Q99: 0 | R99: 10 | S99: 0 | T99: 20 | U99: 0 | V99: 20 | W99: 0 | X99: 5 | Y99: 0 | Z99: 0 | AA99: 0 | AB99: 58 | AC99: 0 | AD99: 11 | AE99: 0 | AF99: 26 | AG99: 0 | AH99: 11 | AI99: 0 | AJ99: 7 | AK99: 0 | AL99: 3 | AM99: 0
C100: 떨어짐(높이가 있는 곳에서 사람이 떨어짐) | D100: 12 | E100: 0 | F100: 3 | G100: 0 | H100: 6 | I100: 0 | J100: 1 | K100: 0 | L100: 1 | M100: 0 | N100: 1 | O100: 0 | P100: 9 | Q100: 0 | R100: 3 | S100: 0 | T100: 5 | U100: 0 | V100: 1 | W100: 0 | X100: 0 | Y100: 0 | Z100: 0 | AA100: 0 | AB100: 9 | AC100: 0 | AD100: 2 | AE100: 0 | AF100: 3 | AG100: 0 | AH100: 0 | AI100: 0 | AJ100: 2 | AK100: 0 | AL100: 2 | AM100: 0
C101: 넘어짐(사람이 미끄러지거나 넘어짐) | D101: 25 | E101: 0 | F101: 6 | G101: 0 | H101: 5 | I101: 0 | J101: 9 | K101: 0 | L101: 3 | M101: 0 | N101: 2 | O101: 0 | P101: 28 | Q101: 0 | R101: 2 | S101: 0 | T101: 8 | U101: 0 | V101: 15 | W101: 0 | X101: 3 | Y101: 0 | Z101: 0 | AA101: 0 | AB101: 35 | AC101: 0 | AD101: 7 | AE101: 0 | AF101: 15 | AG101: 0 | AH101: 10 | AI101: 0 | AJ101: 2 | AK101: 0 | AL101: 1 | AM101: 0
C102: 깔림·뒤집힘(물체의 쓰러짐이나 뒤집힘) | D102: 1 | E102: 0 | F102: 1 | G102: 0 | H102: 0 | I102: 0 | J102: 0 | K102: 0 | L102: 0 | M102: 0 | N102: 0 | O102: 0 | P102: 1 | Q102: 0 | R102: 0 | S102: 0 | T102: 0 | U102: 0 | V102: 1 | W102: 0 | X102: 0 | Y102: 0 | Z102: 0 | AA102: 0 | AB102: 0 | AC102: 0 | AD102: 0 | AE102: 0 | AF102: 0 | AG102: 0 | AH102: 0 | AI102: 0 | AJ102: 0 | AK102: 0 | AL102: 0 | AM102: 0
C103: 부딪힘(물체에 부딪힘) | D103: 4 | E103: 0 | F103: 0 | G103: 0 | H103: 1 | I103: 0 | J103: 1 | K103: 0 | L103: 2 | M103: 0 | N103: 0 | O103: 0 | P103: 2 | Q103: 0 | R103: 0 | S103: 0 | T103: 1 | U103: 0 | V103: 1 | W103: 0 | X103: 0 | Y103: 0 | Z103: 0 | AA103: 0 | AB103: 4 | AC103: 0 | AD103: 1 | AE103: 0 | AF103: 1 | AG103: 0 | AH103: 1 | AI103: 0 | AJ103: 1 | AK103: 0 | AL103: 0 | AM103: 0
C104: 물체에 맞음(날아오거나 떨어진 물체에 맞음) | D104: 5 | E104: 0 | F104: 2 | G104: 0 | H104: 1 | I104: 0 | J104: 2 | K104: 0 | L104: 0 | M104: 0 | N104: 0 | O104: 0 | P104: 3 | Q104: 0 | R104: 1 | S104: 0 | T104: 1 | U104: 0 | V104: 0 | W104: 0 | X104: 1 | Y104: 0 | Z104: 0 | AA104: 0 | AB104: 3 | AC104: 0 | AD104: 0 | AE104: 0 | AF104: 3 | AG104: 0 | AH104: 0 | AI104: 0 | AJ104: 0 | AK104: 0 | AL104: 0 | AM104: 0
C105: 끼임(기계설비에 끼이거나 감김) | D105: 2 | E105: 0 | F105: 1 | G105: 0 | H105: 0 | I105: 0 | J105: 0 | K105: 0 | L105: 1 | M105: 0 | N105: 0 | O105: 0 | P105: 1 | Q105: 0 | R105: 0 | S105: 0 | T105: 0 | U105: 0 | V105: 0 | W105: 0 | X105: 1 | Y105: 0 | Z105: 0 | AA105: 0 | AB105: 1 | AC105: 0 | AD105: 0 | AE105: 0 | AF105: 0 | AG105: 0 | AH105: 0 | AI105: 0 | AJ105: 1 | AK105: 0 | AL105: 0 | AM105: 0
C106: 절단·베임·찔림 | D106: 7 | E106: 0 | F106: 0 | G106: 0 | H106: 5 | I106: 0 | J106: 2 | K106: 0 | L106: 0 | M106: 0 | N106: 0 | O106: 0 | P106: 5 | Q106: 0 | R106: 0 | S106: 0 | T106: 4 | U106: 0 | V106: 1 | W106: 0 | X106: 0 | Y106: 0 | Z106: 0 | AA106: 0 | AB106: 3 | AC106: 0 | AD106: 0 | AE106: 0 | AF106: 3 | AG106: 0 | AH106: 0 | AI106: 0 | AJ106: 0 | AK106: 0 | AL106: 0 | AM106: 0
C107: 불균형 및 무리한 동작 | D107: 6 | E107: 0 | F107: 0 | G107: 0 | H107: 2 | I107: 0 | J107: 2 | K107: 0 | L107: 2 | M107: 0 | N107: 0 | O107: 0 | P107: 4 | Q107: 0 | R107: 3 | S107: 0 | T107: 0 | U107: 0 | V107: 1 | W107: 0 | X107: 0 | Y107: 0 | Z107: 0 | AA107: 0 | AB107: 2 | AC107: 0 | AD107: 1 | AE107: 0 | AF107: 1 | AG107: 0 | AH107: 0 | AI107: 0 | AJ107: 0 | AK107: 0 | AL107: 0 | AM107: 0
C108: 이상온도 접촉 | D108: 0 | E108: 0 | F108: 0 | G108: 0 | H108: 0 | I108: 0 | J108: 0 | K108: 0 | L108: 0 | M108: 0 | N108: 0 | O108: 0 | P108: 1 | Q108: 0 | R108: 0 | S108: 0 | T108: 1 | U108: 0 | V108: 0 | W108: 0 | X108: 0 | Y108: 0 | Z108: 0 | AA108: 0 | AB108: 0 | AC108: 0 | AD108: 0 | AE108: 0 | AF108: 0 | AG108: 0 | AH108: 0 | AI108: 0 | AJ108: 0 | AK108: 0 | AL108: 0 | AM108: 0
C109: 사업장외 교통사고 | D109: =F109+H109+J109+L109+N109 -> 1 | E109: 0 | F109: 0 | G109: 0 | H109: 0 | I109: 0 | J109: 1 | K109: 0 | L109: 0 | M109: 0 | N109: 0 | O109: 0 | P109: =R109+T109+V109+X109+Z109 -> 1 | Q109: 0 | R109: 1 | S109: 0 | T109: 0 | U109: 0 | V109: 0 | W109: 0 | X109: 0 | Y109: 0 | Z109: 0 | AA109: 0 | AB109: =AD109+AF109+AH109+AJ109+AL109 -> 0 | AC109: 0 | AD109: 0 | AE109: 0 | AF109: 0 | AG109: 0 | AH109: 0 | AI109: 0 | AJ109: 0 | AK109: 0 | AL109: 0 | AM109: 0
C110: 기타 | D110: 0 | E110: 0 | F110: 0 | G110: 0 | H110: 0 | I110: 0 | J110: 0 | K110: 0 | L110: 0 | M110: 0 | N110: 0 | O110: 0 | P110: 0 | Q110: 0 | R110: 0 | S110: 0 | T110: 0 | U110: 0 | V110: 0 | W110: 0 | X110: 0 | Y110: 0 | Z110: 0 | AA110: 0 | AB110: 1 | AC110: 0 | AD110: 0 | AE110: 0 | AF110: 0 | AG110: 0 | AH110: 0 | AI110: 0 | AJ110: 1 | AK110: 0 | AL110: 0 | AM110: 0
C111: 생물학적인자 | D111: 0 | E111: 0 | F111: 0 | G111: 0 | H111: 0 | I111: 0 | J111: 0 | K111: 0 | L111: 0 | M111: 0 | N111: 0 | O111: 0 | P111: 0 | Q111: 0 | R111: 0 | S111: 0 | T111: 0 | U111: 0 | V111: 0 | W111: 0 | X111: 0 | Y111: 0 | Z111: 0 | AA111: 0 | AB111: 0 | AC111: 0 | AD111: 0 | AE111: 0 | AF111: 0 | AG111: 0 | AH111: 0 | AI111: 0 | AJ111: 0 | AK111: 0 | AL111: 0 | AM111: 0
C112: 뇌심혈관질환 | D112: 0 | E112: 0 | F112: 0 | G112: 0 | H112: 0 | I112: 0 | J112: 0 | K112: 0 | L112: 0 | M112: 0 | N112: 0 | O112: 0 | P112: 0 | Q112: 0 | R112: 0 | S112: 0 | T112: 0 | U112: 0 | V112: 0 | W112: 0 | X112: 0 | Y112: 0 | Z112: 0 | AA112: 0 | AB112: 0 | AC112: 0 | AD112: 0 | AE112: 0 | AF112: 0 | AG112: 0 | AH112: 0 | AI112: 0 | AJ112: 0 | AK112: 0 | AL112: 0 | AM112: 0
C113: 근골격계질환 | D113: 0 | E113: 0 | F113: 0 | G113: 0 | H113: 0 | I113: 0 | J113: 0 | K113: 0 | L113: 0 | M113: 0 | N113: 0 | O113: 0 | P113: 0 | Q113: 0 | R113: 0 | S113: 0 | T113: 0 | U113: 0 | V113: 0 | W113: 0 | X113: 0 | Y113: 0 | Z113: 0 | AA113: 0 | AB113: 0 | AC113: 0 | AD113: 0 | AE113: 0 | AF113: 0 | AG113: 0 | AH113: 0 | AI113: 0 | AJ113: 0 | AK113: 0 | AL113: 0 | AM113: 0
B114: 진 주 | C114: 합계 | D114: 18 | E114: 1 | F114: 3 | G114: 0 | H114: 7 | I114: 0 | J114: 5 | K114: 1 | L114: 2 | M114: 0 | N114: 1 | O114: 0 | P114: 15 | Q114: 0 | R114: 6 | S114: 0 | T114: 3 | U114: 0 | V114: 5 | W114: 0 | X114: 1 | Y114: 0 | Z114: 0 | AA114: 0 | AB114: 20 | AC114: 0 | AD114: 6 | AE114: 0 | AF114: 6 | AG114: 0 | AH114: 6 | AI114: 0 | AJ114: 2 | AK114: 0 | AL114: 0 | AM114: 0
C115: 떨어짐(높이가 있는 곳에서 사람이 떨어짐) | D115: 2 | E115: 1 | F115: 1 | G115: 0 | H115: 0 | I115: 0 | J115: 1 | K115: 1 | L115: 0 | M115: 0 | N115: 0 | O115: 0 | P115: 5 | Q115: 0 | R115: 2 | S115: 0 | T115: 1 | U115: 0 | V115: 2 | W115: 0 | X115: 0 | Y115: 0 | Z115: 0 | AA115: 0 | AB115: 4 | AC115: 0 | AD115: 1 | AE115: 0 | AF115: 3 | AG115: 0 | AH115: 0 | AI115: 0 | AJ115: 0 | AK115: 0 | AL115: 0 | AM115: 0
C116: 넘어짐(사람이 미끄러지거나 넘어짐) | D116: 11 | E116: 0 | F116: 2 | G116: 0 | H116: 6 | I116: 0 | J116: 1 | K116: 0 | L116: 1 | M116: 0 | N116: 1 | O116: 0 | P116: 4 | Q116: 0 | R116: 3 | S116: 0 | T116: 0 | U116: 0 | V116: 0 | W116: 0 | X116: 1 | Y116: 0 | Z116: 0 | AA116: 0 | AB116: 6 | AC116: 0 | AD116: 3 | AE116: 0 | AF116: 0 | AG116: 0 | AH116: 2 | AI116: 0 | AJ116: 1 | AK116: 0 | AL116: 0 | AM116: 0
C117: 부딪힘(물체에 부딪힘) | D117: 1 | E117: 0 | F117: 0 | G117: 0 | H117: 0 | I117: 0 | J117: 1 | K117: 0 | L117: 0 | M117: 0 | N117: 0 | O117: 0 | P117: 1 | Q117: 0 | R117: 1 | S117: 0 | T117: 0 | U117: 0 | V117: 0 | W117: 0 | X117: 0 | Y117: 0 | Z117: 0 | AA117: 0 | AB117: 1 | AC117: 0 | AD117: 0 | AE117: 0 | AF117: 0 | AG117: 0 | AH117: 1 | AI117: 0 | AJ117: 0 | AK117: 0 | AL117: 0 | AM117: 0
C118: 물체에 맞음(날아오거나 떨어진 물체에 맞음) | D118: 0 | E118: 0 | F118: 0 | G118: 0 | H118: 0 | I118: 0 | J118: 0 | K118: 0 | L118: 0 | M118: 0 | N118: 0 | O118: 0 | P118: 1 | Q118: 0 | R118: 0 | S118: 0 | T118: 0 | U118: 0 | V118: 1 | W118: 0 | X118: 0 | Y118: 0 | Z118: 0 | AA118: 0 | AB118: 1 | AC118: 0 | AD118: 0 | AE118: 0 | AF118: 0 | AG118: 0 | AH118: 1 | AI118: 0 | AJ118: 0 | AK118: 0 | AL118: 0 | AM118: 0
C119: 끼임(기계설비에 끼이거나 감김) | D119: 0 | E119: 0 | F119: 0 | G119: 0 | H119: 0 | I119: 0 | J119: 0 | K119: 0 | L119: 0 | M119: 0 | N119: 0 | O119: 0 | P119: 0 | Q119: 0 | R119: 0 | S119: 0 | T119: 0 | U119: 0 | V119: 0 | W119: 0 | X119: 0 | Y119: 0 | Z119: 0 | AA119: 0 | AB119: 1 | AC119: 0 | AD119: 0 | AE119: 0 | AF119: 0 | AG119: 0 | AH119: 1 | AI119: 0 | AJ119: 0 | AK119: 0 | AL119: 0 | AM119: 0
C120: 절단·베임·찔림 | D120: 1 | E120: 0 | F120: 0 | G120: 0 | H120: 0 | I120: 0 | J120: 0 | K120: 0 | L120: 1 | M120: 0 | N120: 0 | O120: 0 | P120: 1 | Q120: 0 | R120: 0 | S120: 0 | T120: 0 | U120: 0 | V120: 1 | W120: 0 | X120: 0 | Y120: 0 | Z120: 0 | AA120: 0 | AB120: 5 | AC120: 0 | AD120: 2 | AE120: 0 | AF120: 1 | AG120: 0 | AH120: 1 | AI120: 0 | AJ120: 1 | AK120: 0 | AL120: 0 | AM120: 0
C121: 불균형 및 무리한 동작 | D121: 1 | E121: 0 | F121: 0 | G121: 0 | H121: 0 | I121: 0 | J121: 1 | K121: 0 | L121: 0 | M121: 0 | N121: 0 | O121: 0 | P121: 2 | Q121: 0 | R121: 0 | S121: 0 | T121: 1 | U121: 0 | V121: 1 | W121: 0 | X121: 0 | Y121: 0 | Z121: 0 | AA121: 0 | AB121: 1 | AC121: 0 | AD121: 0 | AE121: 0 | AF121: 1 | AG121: 0 | AH121: 0 | AI121: 0 | AJ121: 0 | AK121: 0 | AL121: 0 | AM121: 0
C122: 이상온도 접촉 | D122: 1 | E122: 0 | F122: 0 | G122: 0 | H122: 0 | I122: 0 | J122: 1 | K122: 0 | L122: 0 | M122: 0 | N122: 0 | O122: 0 | P122: 1 | Q122: 0 | R122: 0 | S122: 0 | T122: 1 | U122: 0 | V122: 0 | W122: 0 | X122: 0 | Y122: 0 | Z122: 0 | AA122: 0 | AB122: 1 | AC122: 0 | AD122: 0 | AE122: 0 | AF122: 1 | AG122: 0 | AH122: 0 | AI122: 0 | AJ122: 0 | AK122: 0 | AL122: 0 | AM122: 0
C123: 폭력행위 | D123: 1 | E123: 0 | F123: 0 | G123: 0 | H123: 1 | I123: 0 | J123: 0 | K123: 0 | L123: 0 | M123: 0 | N123: 0 | O123: 0 | P123: 0 | Q123: 0 | R123: 0 | S123: 0 | T123: 0 | U123: 0 | V123: 0 | W123: 0 | X123: 0 | Y123: 0 | Z123: 0 | AA123: 0 | AB123: 0 | AC123: 0 | AD123: 0 | AE123: 0 | AF123: 0 | AG123: 0 | AH123: 0 | AI123: 0 | AJ123: 0 | AK123: 0 | AL123: 0 | AM123: 0
C124: 생물학적인자 | D124: 0 | E124: 0 | F124: 0 | G124: 0 | H124: 0 | I124: 0 | J124: 0 | K124: 0 | L124: 0 | M124: 0 | N124: 0 | O124: 0 | P124: 0 | Q124: 0 | R124: 0 | S124: 0 | T124: 0 | U124: 0 | V124: 0 | W124: 0 | X124: 0 | Y124: 0 | Z124: 0 | AA124: 0 | AB124: 0 | AC124: 0 | AD124: 0 | AE124: 0 | AF124: 0 | AG124: 0 | AH124: 0 | AI124: 0 | AJ124: 0 | AK124: 0 | AL124: 0 | AM124: 0
C125: 뇌심혈관질환 | D125: 0 | E125: 0 | F125: 0 | G125: 0 | H125: 0 | I125: 0 | J125: 0 | K125: 0 | L125: 0 | M125: 0 | N125: 0 | O125: 0 | P125: 0 | Q125: 0 | R125: 0 | S125: 0 | T125: 0 | U125: 0 | V125: 0 | W125: 0 | X125: 0 | Y125: 0 | Z125: 0 | AA125: 0 | AB125: 0 | AC125: 0 | AD125: 0 | AE125: 0 | AF125: 0 | AG125: 0 | AH125: 0 | AI125: 0 | AJ125: 0 | AK125: 0 | AL125: 0 | AM125: 0
C126: 근골격계질환 | D126: 0 | E126: 0 | F126: 0 | G126: 0 | H126: 0 | I126: 0 | J126: 0 | K126: 0 | L126: 0 | M126: 0 | N126: 0 | O126: 0 | P126: 0 | Q126: 0 | R126: 0 | S126: 0 | T126: 0 | U126: 0 | V126: 0 | W126: 0 | X126: 0 | Y126: 0 | Z126: 0 | AA126: 0 | AB126: 0 | AC126: 0 | AD126: 0 | AE126: 0 | AF126: 0 | AG126: 0 | AH126: 0 | AI126: 0 | AJ126: 0 | AK126: 0 | AL126: 0 | AM126: 0
B127: 통 영 | C127: 합계 | D127: 18 | E127: 0 | F127: 9 | G127: 0 | H127: 1 | I127: 0 | J127: 4 | K127: 0 | L127: 3 | M127: 0 | N127: 1 | O127: 0 | P127: 19 | Q127: 0 | R127: 7 | S127: 0 | T127: 3 | U127: 0 | V127: 4 | W127: 0 | X127: 4 | Y127: 0 | Z127: 1 | AA127: 0 | AB127: 16 | AC127: 0 | AD127: 7 | AE127: 0 | AF127: 5 | AG127: 0 | AH127: 2 | AI127: 0 | AJ127: 2 | AK127: 0 | AL127: 0 | AM127: 0
C128: 떨어짐(높이가 있는 곳에서 사람이 떨어짐) | D128: 1 | E128: 0 | F128: 1 | G128: 0 | H128: 0 | I128: 0 | J128: 0 | K128: 0 | L128: 0 | M128: 0 | N128: 0 | O128: 0 | P128: 1 | Q128: 0 | R128: 0 | S128: 0 | T128: 1 | U128: 0 | V128: 0 | W128: 0 | X128: 0 | Y128: 0 | Z128: 0 | AA128: 0 | AB128: 2 | AC128: 0 | AD128: 2 | AE128: 0 | AF128: 0 | AG128: 0 | AH128: 0 | AI128: 0 | AJ128: 0 | AK128: 0 | AL128: 0 | AM128: 0
C129: 넘어짐(사람이 미끄러지거나 넘어짐) | D129: 9 | E129: 0 | F129: 3 | G129: 0 | H129: 1 | I129: 0 | J129: 3 | K129: 0 | L129: 2 | M129: 0 | N129: 0 | O129: 0 | P129: 9 | Q129: 0 | R129: 3 | S129: 0 | T129: 1 | U129: 0 | V129: 1 | W129: 0 | X129: 3 | Y129: 0 | Z129: 1 | AA129: 0 | AB129: 7 | AC129: 0 | AD129: 3 | AE129: 0 | AF129: 1 | AG129: 0 | AH129: 2 | AI129: 0 | AJ129: 1 | AK129: 0 | AL129: 0 | AM129: 0
C130: 깔림·뒤집힘(물체의 쓰러짐이나 뒤집힘) | D130: 1 | E130: 0 | F130: 1 | G130: 0 | H130: 0 | I130: 0 | J130: 0 | K130: 0 | L130: 0 | M130: 0 | N130: 0 | O130: 0 | P130: 1 | Q130: 0 | R130: 1 | S130: 0 | T130: 0 | U130: 0 | V130: 0 | W130: 0 | X130: 0 | Y130: 0 | Z130: 0 | AA130: 0 | AB130: 0 | AC130: 0 | AD130: 0 | AE130: 0 | AF130: 0 | AG130: 0 | AH130: 0 | AI130: 0 | AJ130: 0 | AK130: 0 | AL130: 0 | AM130: 0
C131: 부딪힘(물체에 부딪힘) | D131: 0 | E131: 0 | F131: 0 | G131: 0 | H131: 0 | I131: 0 | J131: 0 | K131: 0 | L131: 0 | M131: 0 | N131: 0 | O131: 0 | P131: 1 | Q131: 0 | R131: 0 | S131: 0 | T131: 0 | U131: 0 | V131: 1 | W131: 0 | X131: 0 | Y131: 0 | Z131: 0 | AA131: 0 | AB131: 1 | AC131: 0 | AD131: 0 | AE131: 0 | AF131: 0 | AG131: 0 | AH131: 0 | AI131: 0 | AJ131: 1 | AK131: 0 | AL131: 0 | AM131: 0
C132: 물체에 맞음(날아오거나 떨어진 물체에 맞음) | D132: 2 | E132: 0 | F132: 1 | G132: 0 | H132: 0 | I132: 0 | J132: 0 | K132: 0 | L132: 0 | M132: 0 | N132: 1 | O132: 0 | P132: 0 | Q132: 0 | R132: 0 | S132: 0 | T132: 0 | U132: 0 | V132: 0 | W132: 0 | X132: 0 | Y132: 0 | Z132: 0 | AA132: 0 | AB132: 1 | AC132: 0 | AD132: 0 | AE132: 0 | AF132: 1 | AG132: 0 | AH132: 0 | AI132: 0 | AJ132: 0 | AK132: 0 | AL132: 0 | AM132: 0
C133: 끼임(기계설비에 끼이거나 감김) | D133: 0 | E133: 0 | F133: 0 | G133: 0 | H133: 0 | I133: 0 | J133: 0 | K133: 0 | L133: 0 | M133: 0 | N133: 0 | O133: 0 | P133: 2 | Q133: 0 | R133: 1 | S133: 0 | T133: 0 | U133: 0 | V133: 0 | W133: 0 | X133: 1 | Y133: 0 | Z133: 0 | AA133: 0 | AB133: 1 | AC133: 0 | AD133: 0 | AE133: 0 | AF133: 1 | AG133: 0 | AH133: 0 | AI133: 0 | AJ133: 0 | AK133: 0 | AL133: 0 | AM133: 0
C134: 절단·베임·찔림 | D134: 2 | E134: 0 | F134: 2 | G134: 0 | H134: 0 | I134: 0 | J134: 0 | K134: 0 | L134: 0 | M134: 0 | N134: 0 | O134: 0 | P134: 1 | Q134: 0 | R134: 1 | S134: 0 | T134: 0 | U134: 0 | V134: 0 | W134: 0 | X134: 0 | Y134: 0 | Z134: 0 | AA134: 0 | AB134: 2 | AC134: 0 | AD134: 1 | AE134: 0 | AF134: 1 | AG134: 0 | AH134: 0 | AI134: 0 | AJ134: 0 | AK134: 0 | AL134: 0 | AM134: 0
C135: 불균형 및 무리한 동작 | D135: 3 | E135: 0 | F135: 1 | G135: 0 | H135: 0 | I135: 0 | J135: 1 | K135: 0 | L135: 1 | M135: 0 | N135: 0 | O135: 0 | P135: 1 | Q135: 0 | R135: 0 | S135: 0 | T135: 0 | U135: 0 | V135: 1 | W135: 0 | X135: 0 | Y135: 0 | Z135: 0 | AA135: 0 | AB135: 1 | AC135: 0 | AD135: 1 | AE135: 0 | AF135: 0 | AG135: 0 | AH135: 0 | AI135: 0 | AJ135: 0 | AK135: 0 | AL135: 0 | AM135: 0
C136: 사업장외 교통사고 | D136: 0 | E136: 0 | F136: 0 | G136: 0 | H136: 0 | I136: 0 | J136: 0 | K136: 0 | L136: 0 | M136: 0 | N136: 0 | O136: 0 | P136: 2 | Q136: 0 | R136: 1 | S136: 0 | T136: 1 | U136: 0 | V136: 0 | W136: 0 | X136: 0 | Y136: 0 | Z136: 0 | AA136: 0 | AB136: 1 | AC136: 0 | AD136: 0 | AE136: 0 | AF136: 1 | AG136: 0 | AH136: 0 | AI136: 0 | AJ136: 0 | AK136: 0 | AL136: 0 | AM136: 0
C137: 폭력행위 | D137: 0 | E137: 0 | F137: 0 | G137: 0 | H137: 0 | I137: 0 | J137: 0 | K137: 0 | L137: 0 | M137: 0 | N137: 0 | O137: 0 | P137: 1 | Q137: 0 | R137: 0 | S137: 0 | T137: 0 | U137: 0 | V137: 1 | W137: 0 | X137: 0 | Y137: 0 | Z137: 0 | AA137: 0 | AB137: 0 | AC137: 0 | AD137: 0 | AE137: 0 | AF137: 0 | AG137: 0 | AH137: 0 | AI137: 0 | AJ137: 0 | AK137: 0 | AL137: 0 | AM137: 0
C138: 생물학적인자 | D138: 0 | E138: 0 | F138: 0 | G138: 0 | H138: 0 | I138: 0 | J138: 0 | K138: 0 | L138: 0 | M138: 0 | N138: 0 | O138: 0 | P138: 0 | Q138: 0 | R138: 0 | S138: 0 | T138: 0 | U138: 0 | V138: 0 | W138: 0 | X138: 0 | Y138: 0 | Z138: 0 | AA138: 0 | AB138: 0 | AC138: 0 | AD138: 0 | AE138: 0 | AF138: 0 | AG138: 0 | AH138: 0 | AI138: 0 | AJ138: 0 | AK138: 0 | AL138: 0 | AM138: 0
C139: 뇌심혈관질환 | D139: 0 | E139: 0 | F139: 0 | G139: 0 | H139: 0 | I139: 0 | J139: 0 | K139: 0 | L139: 0 | M139: 0 | N139: 0 | O139: 0 | P139: 0 | Q139: 0 | R139: 0 | S139: 0 | T139: 0 | U139: 0 | V139: 0 | W139: 0 | X139: 0 | Y139: 0 | Z139: 0 | AA139: 0 | AB139: 0 | AC139: 0 | AD139: 0 | AE139: 0 | AF139: 0 | AG139: 0 | AH139: 0 | AI139: 0 | AJ139: 0 | AK139: 0 | AL139: 0 | AM139: 0
C140: 근골격계질환 | D140: 0 | E140: 0 | F140: 0 | G140: 0 | H140: 0 | I140: 0 | J140: 0 | K140: 0 | L140: 0 | M140: 0 | N140: 0 | O140: 0 | P140: 0 | Q140: 0 | R140: 0 | S140: 0 | T140: 0 | U140: 0 | V140: 0 | W140: 0 | X140: 0 | Y140: 0 | Z140: 0 | AA140: 0 | AB140: 0 | AC140: 0 | AD140: 0 | AE140: 0 | AF140: 0 | AG140: 0 | AH140: 0 | AI140: 0 | AJ140: 0 | AK140: 0 | AL140: 0 | AM140: 0

Sheet 대구
A1: 업종(소) | B1: 고용지청 | C1: 기준년월 | D1: 2021년 12월 | P1: 2022년 12월 | AB1: 2023년 11월
C2: 규모(소) | D2: 규모별 합계 | F2: 5인 미만 | H2: 5인 ~ 9인 | J2: 10인 ~ 19인 | L2: 20인 ~ 29인 | N2: 30인 ~ 49인 | P2: 규모별 합계 | R2: 5인 미만 | T2: 5인 ~ 9인 | V2: 10인 ~ 19인 | X2: 20인 ~ 29인 | Z2: 30인 ~ 49인 | AB2: 규모별 합계 | AD2: 5인 미만 | AF2: 5인 ~ 9인 | AH2: 10인 ~ 19인 | AJ2: 20인 ~ 29인 | AL2: 30인 ~ 49인
C3: 발생형태(중) | D3: 사고재해자수 합계 | E3: 사고사망자수 합계 | F3: 사고재해자수 | G3: 사고사망자수 | H3: 사고재해자수 | I3: 사고사망자수 | J3: 사고재해자수 | K3: 사고사망자수 | L3: 사고재해자수 | M3: 사고사망자수 | N3: 사고재해자수 | O3: 사고사망자수 | P3: 사고재해자수 합계 | Q3: 사고사망자수 합계 | R3: 사고재해자수 | S3: 사고사망자수 | T3: 사고재해자수 | U3: 사고사망자수 | V3: 사고재해자수 | W3: 사고사망자수 | X3: 사고재해자수 | Y3: 사고사망자수 | Z3: 사고재해자수 | AA3: 사고사망자수 | AB3: 사고재해자수 합계 | AC3: 사고사망자수 합계 | AD3: 사고재해자수 | AE3: 사고사망자수 | AF3: 사고재해자수 | AG3: 사고사망자수 | AH3: 사고재해자수 | AI3: 사고사망자수 | AJ3: 사고재해자수 | AK3: 사고사망자수 | AL3: 사고재해자수 | AM3: 사고사망자수
A4: 건물등의종합관리사업 | B4: 합계 | D4: =D5+D25+D42+D56+D69+D78 -> 225 | E4: =E5+E25+E42+E56+E69+E78 -> 3 | F4: 44 | G4: 1 | H4: 62 | I4: 0 | J4: 68 | K4: 2 | L4: 34 | M4: 0 | N4: 17 | O4: 0 | P4: 229 | Q4: 2 | R4: 47 | S4: 2 | T4: 70 | U4: 0 | V4: 71 | W4: 0 | X4: 27 | Y4: 0 | Z4: 14 | AA4: 0 | AB4: 262 | AC4: 0 | AD4: 81 | AE4: 0 | AF4: 54 | AG4: 0 | AH4: 76 | AI4: 0 | AJ4: 32 | AK4: 0 | AL4: 19 | AM4: 0
B5: 대 구 청 | C5: 합계 | D5: =F5+H5+J5+L5+N5 -> 98 | E5: =G5+I5+K5+M5+O5 -> 0 | F5: 14 | G5: 0 | H5: 31 | I5: 0 | J5: 28 | K5: 0 | L5: 20 | M5: 0 | N5: 5 | O5: 0 | P5: =R5+T5+V5+X5+Z5 -> 104 | Q5: =S5+U5+W5+Y5+AA5 -> 1 | R5: 24 | S5: 1 | T5: 35 | U5: 0 | V5: 28 | W5: 0 | X5: 13 | Y5: 0 | Z5: 4 | AA5: 0 | AB5: =AD5+AF5+AH5+AJ5+AL5 -> 112 | AC5: =AE5+AG5+AI5+AK5+AM5 -> 0 | AD5: 26 | AE5: 0 | AF5: 30 | AG5: 0 | AH5: 33 | AI5: 0 | AJ5: 16 | AK5: 0 | AL5: 7 | AM5: 0
C6: 떨어짐(높이가 있는 곳에서 사람이 떨어짐) | D6: 24 | E6: 0 | F6: 5 | G6: 0 | H6: 7 | I6: 0 | J6: 5 | K6: 0 | L6: 4 | M6: 0 | N6: 3 | O6: 0 | P6: 14 | Q6: 0 | R6: 4 | S6: 0 | T6: 3 | U6: 0 | V6: 4 | W6: 0 | X6: 2 | Y6: 0 | Z6: 1 | AA6: 0 | AB6: 14 | AC6: 0 | AD6: 4 | AE6: 0 | AF6: 2 | AG6: 0 | AH6: 6 | AI6: 0 | AJ6: 1 | AK6: 0 | AL6: 1 | AM6: 0
C7: 넘어짐(사람이 미끄러지거나 넘어짐) | D7: 47 | E7: 0 | F7: 4 | G7: 0 | H7: 16 | I7: 0 | J7: 15 | K7: 0 | L7: 10 | M7: 0 | N7: 2 | O7: 0 | P7: 46 | Q7: 1 | R7: 10 | S7: 1 | T7: 14 | U7: 0 | V7: 11 | W7: 0 | X7: 8 | Y7: 0 | Z7: 3 | AA7: 0 | AB7: 58 | AC7: 0 | AD7: 16 | AE7: 0 | AF7: 16 | AG7: 0 | AH7: 16 | AI7: 0 | AJ7: 8 | AK7: 0 | AL7: 2 | AM7: 0
C8: 깔림·뒤집힘(물체의 쓰러짐이나 뒤집힘) | D8: 1 | E8: 0 | F8: 0 | G8: 0 | H8: 1 | I8: 0 | J8: 0 | K8: 0 | L8: 0 | M8: 0 | N8: 0 | O8: 0 | P8: 3 | Q8: 0 | R8: 1 | S8: 0 | T8: 0 | U8: 0 | V8: 2 | W8: 0 | X8: 0 | Y8: 0 | Z8: 0 | AA8: 0 | AB8: 2 | AC8: 0 | AD8: 1 | AE8: 0 | AF8: 0 | AG8: 0 | AH8: 0 | AI8: 0 | AJ8: 1 | AK8: 0 | AL8: 0 | AM8: 0
C9: 부딪힘(물체에 부딪힘) | D9: 4 | E9: 0 | F9: 0 | G9: 0 | H9: 2 | I9: 0 | J9: 2 | K9: 0 | L9: 0 | M9: 0 | N9: 0 | O9: 0 | P9: 9 | Q9: 0 | R9: 2 | S9: 0 | T9: 5 | U9: 0 | V9: 2 | W9: 0 | X9: 0 | Y9: 0 | Z9: 0 | AA9: 0 | AB9: 7 | AC9: 0 | AD9: 0 | AE9: 0 | AF9: 2 | AG9: 0 | AH9: 4 | AI9: 0 | AJ9: 1 | AK9: 0 | AL9: 0 | AM9: 0
C10: 물체에 맞음(날아오거나 떨어진 물체에 맞음) | D10: 3 | E10: 0 | F10: 1 | G10: 0 | H10: 0 | I10: 0 | J10: 1 | K10: 0 | L10: 1 | M10: 0 | N10: 0 | O10: 0 | P10: 3 | Q10: 0 | R10: 0 | S10: 0 | T10: 2 | U10: 0 | V10: 1 | W10: 0 | X10: 0 | Y10: 0 | Z10: 0 | AA10: 0 | AB10: 2 | AC10: 0 | AD10: 0 | AE10: 0 | AF10: 0 | AG10: 0 | AH10: 0 | AI10: 0 | AJ10: 0 | AK10: 0 | AL10: 2 | AM10: 0
C11: 끼임(기계설비에 끼이거나 감김) | D11: 1 | E11: 0 | F11: 1 | G11: 0 | H11: 0 | I11: 0 | J11: 0 | K11: 0 | L11: 0 | M11: 0 | N11: 0 | O11: 0 | P11: 5 | Q11: 0 | R11: 2 | S11: 0 | T11: 3 | U11: 0 | V11: 0 | W11: 0 | X11: 0 | Y11: 0 | Z11: 0 | AA11: 0 | AB11: 4 | AC11: 0 | AD11: 0 | AE11: 0 | AF11: 1 | AG11: 0 | AH11: 2 | AI11: 0 | AJ11: 1 | AK11: 0 | AL11: 0 | AM11: 0
C12: 절단·베임·찔림 | D12: 9 | E12: 0 | F12: 2 | G12: 0 | H12: 2 | I12: 0 | J12: 2 | K12: 0 | L12: 3 | M12: 0 | N12: 0 | O12: 0 | P12: 7 | Q12: 0 | R12: 2 | S12: 0 | T12: 2 | U12: 0 | V12: 3 | W12: 0 | X12: 0 | Y12: 0 | Z12: 0 | AA12: 0 | AB12: 8 | AC12: 0 | AD12: 3 | AE12: 0 | AF12: 3 | AG12: 0 | AH12: 2 | AI12: 0 | AJ12: 0 | AK12: 0 | AL12: 0 | AM12: 0
C13: 감전 | D13: 1 | E13: 0 | F13: 0 | G13: 0 | H13: 0 | I13: 0 | J13: 0 | K13: 0 | L13: 1 | M13: 0 | N13: 0 | O13: 0 | P13: 3 | Q13: 0 | R13: 1 | S13: 0 | T13: 0 | U13: 0 | V13: 0 | W13: 0 | X13: 2 | Y13: 0 | Z13: 0 | AA13: 0 | AB13: 0 | AC13: 0 | AD13: 0 | AE13: 0 | AF13: 0 | AG13: 0 | AH13: 0 | AI13: 0 | AJ13: 0 | AK13: 0 | AL13: 0 | AM13: 0
C14: 화재 | D14: 0 | E14: 0 | F14: 0 | G14: 0 | H14: 0 | I14: 0 | J14: 0 | K14: 0 | L14: 0 | M14: 0 | N14: 0 | O14: 0 | P14: 0 | Q14: 0 | R14: 0 | S14: 0 | T14: 0 | U14: 0 | V14: 0 | W14: 0 | X14: 0 | Y14: 0 | Z14: 0 | AA14: 0 | AB14: 1 | AC14: 0 | AD14: 0 | AE14: 0 | AF14: 0 | AG14: 0 | AH14: 1 | AI14: 0 | AJ14: 0 | AK14: 0 | AL14: 0 | AM14: 0
C15: 불균형 및 무리한 동작 | D15: 5 | E15: 0 | F15: 1 | G15: 0 | H15: 1 | I15: 0 | J15: 2 | K15: 0 | L15: 1 | M15: 0 | N15: 0 | O15: 0 | P15: 11 | Q15: 0 | R15: 2 | S15: 0 | T15: 6 | U15: 0 | V15: 3 | W15: 0 | X15: 0 | Y15: 0 | Z15: 0 | AA15: 0 | AB15: 10 | AC15: 0 | AD15: 0 | AE15: 0 | AF15: 6 | AG15: 0 | AH15: 2 | AI15: 0 | AJ15: 2 | AK15: 0 | AL15: 0 | AM15: 0
C16: 이상온도 접촉 | D16: 0 | E16: 0 | F16: 0 | G16: 0 | H16: 0 | I16: 0 | J16: 0 | K16: 0 | L16: 0 | M16: 0 | N16: 0 | O16: 0 | P16: 0 | Q16: 0 | R16: 0 | S16: 0 | T16: 0 | U16: 0 | V16: 0 | W16: 0 | X16: 0 | Y16: 0 | Z16: 0 | AA16: 0 | AB16: 2 | AC16: 0 | AD16: 0 | AE16: 0 | AF16: 0 | AG16: 0 | AH16: 0 | AI16: 0 | AJ16: 0 | AK16: 0 | AL16: 2 | AM16: 0
C17: 화학물질누출·접촉 | D17: 0 | E17: 0 | F17: 0 | G17: 0 | H17: 0 | I17: 0 | J17: 0 | K17: 0 | L17: 0 | M17: 0 | N17: 0 | O17: 0 | P17: 1 | Q17: 0 | R17: 0 | S17: 0 | T17: 0 | U17: 0 | V17: 1 | W17: 0 | X17: 0 | Y17: 0 | Z17: 0 | AA17: 0 | AB17: 1 | AC17: 0 | AD17: 1 | AE17: 0 | AF17: 0 | AG17: 0 | AH17: 0 | AI17: 0 | AJ17: 0 | AK17: 0 | AL17: 0 | AM17: 0
C18: 사업장외 교통사고 | D18: 1 | E18: 0 | F18: 0 | G18: 0 | H18: 1 | I18: 0 | J18: 0 | K18: 0 | L18: 0 | M18: 0 | N18: 0 | O18: 0 | P18: 2 | Q18: 0 | R18: 0 | S18: 0 | T18: 0 | U18: 0 | V18: 1 | W18: 0 | X18: 1 | Y18: 0 | Z18: 0 | AA18: 0 | AB18: 2 | AC18: 0 | AD18: 0 | AE18: 0 | AF18: 0 | AG18: 0 | AH18: 0 | AI18: 0 | AJ18: 2 | AK18: 0 | AL18: 0 | AM18: 0
C19: 폭력행위 | D19: 1 | E19: 0 | F19: 0 | G19: 0 | H19: 0 | I19: 0 | J19: 1 | K19: 0 | L19: 0 | M19: 0 | N19: 0 | O19: 0 | P19: 0 | Q19: 0 | R19: 0 | S19: 0 | T19: 0 | U19: 0 | V19: 0 | W19: 0 | X19: 0 | Y19: 0 | Z19: 0 | AA19: 0 | AB19: 1 | AC19: 0 | AD19: 1 | AE19: 0 | AF19: 0 | AG19: 0 | AH19: 0 | AI19: 0 | AJ19: 0 | AK19: 0 | AL19: 0 | AM19: 0
C20: 동물상해 | D20: 1 | E20: 0 | F20: 0 | G20: 0 | H20: 1 | I20: 0 | J20: 0 | K20: 0 | L20: 0 | M20: 0 | N20: 0 | O20: 0 | P20: 0 | Q20: 0 | R20: 0 | S20: 0 | T20: 0 | U20: 0 | V20: 0 | W20: 0 | X20: 0 | Y20: 0 | Z20: 0 | AA20: 0 | AB20: 0 | AC20: 0 | AD20: 0 | AE20: 0 | AF20: 0 | AG20: 0 | AH20: 0 | AI20: 0 | AJ20: 0 | AK20: 0 | AL20: 0 | AM20: 0
C21: 생물학적인자 | D21: 0 | E21: 0 | F21: 0 | G21: 0 | H21: 0 | I21: 0 | J21: 0 | K21: 0 | L21: 0 | M21: 0 | N21: 0 | O21: 0 | P21: 0 | Q21: 0 | R21: 0 | S21: 0 | T21: 0 | U21: 0 | V21: 0 | W21: 0 | X21: 0 | Y21: 0 | Z21: 0 | AA21: 0 | AB21: 0 | AC21: 0 | AD21: 0 | AE21: 0 | AF21: 0 | AG21: 0 | AH21: 0 | AI21: 0 | AJ21: 0 | AK21: 0 | AL21: 0 | AM21: 0
C22: 뇌심혈관질환 | D22: 0 | E22: 0 | F22: 0 | G22: 0 | H22: 0 | I22: 0 | J22: 0 | K22: 0 | L22: 0 | M22: 0 | N22: 0 | O22: 0 | P22: 0 | Q22: 0 | R22: 0 | S22: 0 | T22: 0 | U22: 0 | V22: 0 | W22: 0 | X22: 0 | Y22: 0 | Z22: 0 | AA22: 0 | AB22: 0 | AC22: 0 | AD22: 0 | AE22: 0 | AF22: 0 | AG22: 0 | AH22: 0 | AI22: 0 | AJ22: 0 | AK22: 0 | AL22: 0 | AM22: 0
C23: 근골격계질환 | D23: 0 | E23: 0 | F23: 0 | G23: 0 | H23: 0 | I23: 0 | J23: 0 | K23: 0 | L23: 0 | M23: 0 | N23: 0 | O23: 0 | P23: 0 | Q23: 0 | R23: 0 | S23: 0 | T23: 0 | U23: 0 | V23: 0 | W23: 0 | X23: 0 | Y23: 0 | Z23: 0 | AA23: 0 | AB23: 0 | AC23: 0 | AD23: 0 | AE23: 0 | AF23: 0 | AG23: 0 | AH23: 0 | AI23: 0 | AJ23: 0 | AK23: 0 | AL23: 0 | AM23: 0
C24: 작업관련성질환 기타 | D24: 0 | E24: 0 | F24: 0 | G24: 0 | H24: 0 | I24: 0 | J24: 0 | K24: 0 | L24: 0 | M24: 0 | N24: 0 | O24: 0 | P24: 0 | Q24: 0 | R24: 0 | S24: 0 | T24: 0 | U24: 0 | V24: 0 | W24: 0 | X24: 0 | Y24: 0 | Z24: 0 | AA24: 0 | AB24: 0 | AC24: 0 | AD24: 0 | AE24: 0 | AF24: 0 | AG24: 0 | AH24: 0 | AI24: 0 | AJ24: 0 | AK24: 0 | AL24: 0 | AM24: 0
B25: 대구서부 | C25: 합계 | D25: 63 | E25: 1 | F25: 13 | G25: 0 | H25: 15 | I25: 0 | J25: 17 | K25: 1 | L25: 12 | M25: 0 | N25: 6 | O25: 0 | P25: 57 | Q25: 0 | R25: 9 | S25: 0 | T25: 16 | U25: 0 | V25: 17 | W25: 0 | X25: 8 | Y25: 0 | Z25: 7 | AA25: 0 | AB25: 72 | AC25: 0 | AD25: 23 | AE25: 0 | AF25: 13 | AG25: 0 | AH25: 22 | AI25: 0 | AJ25: 10 | AK25: 0 | AL25: 4 | AM25: 0
C26: 떨어짐(높이가 있는 곳에서 사람이 떨어짐) | D26: 6 | E26: 1 | F26: 1 | G26: 0 | H26: 2 | I26: 0 | J26: 2 | K26: 1 | L26: 0 | M26: 0 | N26: 1 | O26: 0 | P26: 9 | Q26: 0 | R26: 3 | S26: 0 | T26: 2 | U26: 0 | V26: 2 | W26: 0 | X26: 1 | Y26: 0 | Z26: 1 | AA26: 0 | AB26: 8 | AC26: 0 | AD26: 4 | AE26: 0 | AF26: 1 | AG26: 0 | AH26: 1 | AI26: 0 | AJ26: 1 | AK26: 0 | AL26: 1 | AM26: 0
C27: 넘어짐(사람이 미끄러지거나 넘어짐) | D27: 36 | E27: 0 | F27: 10 | G27: 0 | H27: 10 | I27: 0 | J27: 10 | K27: 0 | L27: 2 | M27: 0 | N27: 4 | O27: 0 | P27: 31 | Q27: 0 | R27: 4 | S27: 0 | T27: 11 | U27: 0 | V27: 10 | W27: 0 | X27: 1 | Y27: 0 | Z27: 5 | AA27: 0 | AB27: 36 | AC27: 0 | AD27: 12 | AE27: 0 | AF27: 6 | AG27: 0 | AH27: 12 | AI27: 0 | AJ27: 5 | AK27: 0 | AL27: 1 | AM27: 0
C28: 깔림·뒤집힘(물체의 쓰러짐이나 뒤집힘) | D28: 1 | E28: 0 | F28: 1 | G28: 0 | H28: 0 | I28: 0 | J28: 0 | K28: 0 | L28: 0 | M28: 0 | N28: 0 | O28: 0 | P28: 0 | Q28: 0 | R28: 0 | S28: 0 | T28: 0 | U28: 0 | V28: 0 | W28: 0 | X28: 0 | Y28: 0 | Z28: 0 | AA28: 0 | AB28: 4 | AC28: 0 | AD28: 0 | AE28: 0 | AF28: 1 | AG28: 0 | AH28: 2 | AI28: 0 | AJ28: 1 | AK28: 0 | AL28: 0 | AM28: 0
C29: 부딪힘(물체에 부딪힘) | D29: 5 | E29: 0 | F29: 0 | G29: 0 | H29: 0 | I29: 0 | J29: 2 | K29: 0 | L29: 3 | M29: 0 | N29: 0 | O29: 0 | P29: 3 | Q29: 0 | R29: 0 | S29: 0 | T29: 0 | U29: 0 | V29: 1 | W29: 0 | X29: 2 | Y29: 0 | Z29: 0 | AA29: 0 | AB29: 4 | AC29: 0 | AD29: 1 | AE29: 0 | AF29: 0 | AG29: 0 | AH29: 1 | AI29: 0 | AJ29: 0 | AK29: 0 | AL29: 2 | AM29: 0
C30: 물체에 맞음(날아오거나 떨어진 물체에 맞음) | D30: 2 | E30: 0 | F30: 1 | G30: 0 | H30: 1 | I30: 0 | J30: 0 | K30: 0 | L30: 0 | M30: 0 | N30: 0 | O30: 0 | P30: 0 | Q30: 0 | R30: 0 | S30: 0 | T30: 0 | U30: 0 | V30: 0 | W30: 0 | X30: 0 | Y30: 0 | Z30: 0 | AA30: 0 | AB30: 2 | AC30: 0 | AD30: 0 | AE30: 0 | AF30: 1 | AG30: 0 | AH30: 1 | AI30: 0 | AJ30: 0 | AK30: 0 | AL30: 0 | AM30: 0
C31: 끼임(기계설비에 끼이거나 감김) | D31: 0 | E31: 0 | F31: 0 | G31: 0 | H31: 0 | I31: 0 | J31: 0 | K31: 0 | L31: 0 | M31: 0 | N31: 0 | O31: 0 | P31: 1 | Q31: 0 | R31: 0 | S31: 0 | T31: 0 | U31: 0 | V31: 1 | W31: 0 | X31: 0 | Y31: 0 | Z31: 0 | AA31: 0 | AB31: 3 | AC31: 0 | AD31: 1 | AE31: 0 | AF31: 0 | AG31: 0 | AH31: 1 | AI31: 0 | AJ31: 1 | AK31: 0 | AL31: 0 | AM31: 0
C32: 절단·베임·찔림 | D32: 2 | E32: 0 | F32: 0 | G32: 0 | H32: 0 | I32: 0 | J32: 1 | K32: 0 | L32: 0 | M32: 0 | N32: 1 | O32: 0 | P32: 4 | Q32: 0 | R32: 1 | S32: 0 | T32: 1 | U32: 0 | V32: 1 | W32: 0 | X32: 1 | Y32: 0 | Z32: 0 | AA32: 0 | AB32: 8 | AC32: 0 | AD32: 3 | AE32: 0 | AF32: 3 | AG32: 0 | AH32: 2 | AI32: 0 | AJ32: 0 | AK32: 0 | AL32: 0 | AM32: 0
C33: 화재 | D33: 2 | E33: 0 | F33: 0 | G33: 0 | H33: 1 | I33: 0 | J33: 1 | K33: 0 | L33: 0 | M33: 0 | N33: 0 | O33: 0 | P33: 0 | Q33: 0 | R33: 0 | S33: 0 | T33: 0 | U33: 0 | V33: 0 | W33: 0 | X33: 0 | Y33: 0 | Z33: 0 | AA33: 0 | AB33: 1 | AC33: 0 | AD33: 1 | AE33: 0 | AF33: 0 | AG33: 0 | AH33: 0 | AI33: 0 | AJ33: 0 | AK33: 0 | AL33: 0 | AM33: 0
C34: 불균형 및 무리한 동작 | D34: 2 | E34: 0 | F34: 0 | G34: 0 | H34: 0 | I34: 0 | J34: 0 | K34: 0 | L34: 2 | M34: 0 | N34: 0 | O34: 0 | P34: 4 | Q34: 0 | R34: 1 | S34: 0 | T34: 1 | U34: 0 | V34: 0 | W34: 0 | X34: 2 | Y34: 0 | Z34: 0 | AA34: 0 | AB34: 5 | AC34: 0 | AD34: 1 | AE34: 0 | AF34: 1 | AG34: 0 | AH34: 1 | AI34: 0 | AJ34: 2 | AK34: 0 | AL34: 0 | AM34: 0
C35: 이상온도 접촉 | D35: 1 | E35: 0 | F35: 0 | G35: 0 | H35: 0 | I35: 0 | J35: 1 | K35: 0 | L35: 0 | M35: 0 | N35: 0 | O35: 0 | P35: 3 | Q35: 0 | R35: 0 | S35: 0 | T35: 0 | U35: 0 | V35: 1 | W35: 0 | X35: 1 | Y35: 0 | Z35: 1 | AA35: 0 | AB35: 0 | AC35: 0 | AD35: 0 | AE35: 0 | AF35: 0 | AG35: 0 | AH35: 0 | AI35: 0 | AJ35: 0 | AK35: 0 | AL35: 0 | AM35: 0
C36: 화학물질누출·접촉 | D36: 5 | E36: 0 | F36: 0 | G36: 0 | H36: 0 | I36: 0 | J36: 0 | K36: 0 | L36: 5 | M36: 0 | N36: 0 | O36: 0 | P36: 1 | Q36: 0 | R36: 0 | S36: 0 | T36: 0 | U36: 0 | V36: 1 | W36: 0 | X36: 0 | Y36: 0 | Z36: 0 | AA36: 0 | AB36: 0 | AC36: 0 | AD36: 0 | AE36: 0 | AF36: 0 | AG36: 0 | AH36: 0 | AI36: 0 | AJ36: 0 | AK36: 0 | AL36: 0 | AM36: 0
C37: 사업장외 교통사고 | D37: =F37+H37+J37+L37+N37 -> 0 | E37: =G37+I37+K37+M37+O37 -> 0 | F37: 0 | G37: 0 | H37: 0 | I37: 0 | J37: 0 | K37: 0 | L37: 0 | M37: 0 | N37: 0 | O37: 0 | P37: =R37+T37+V37+X37+Z37 -> 0 | Q37: =S37+U37+W37+Y37+AA37 -> 0 | R37: 0 | S37: 0 | T37: 0 | U37: 0 | V37: 0 | W37: 0 | X37: 0 | Y37: 0 | Z37: 0 | AA37: 0 | AB37: =AD37+AF37+AH37+AJ37+AL37 -> 1 | AC37: =AE37+AG37+AI37+AK37+AM37 -> 0 | AD37: 0 | AE37: 0 | AF37: 0 | AG37: 0 | AH37: 1 | AI37: 0 | AJ37: 0 | AK37: 0 | AL37: 0 | AM37: 0
C38: 동물상해 | D38: 0 | E38: 0 | F38: 0 | G38: 0 | H38: 0 | I38: 0 | J38: 0 | K38: 0 | L38: 0 | M38: 0 | N38: 0 | O38: 0 | P38: 1 | Q38: 0 | R38: 0 | S38: 0 | T38: 1 | U38: 0 | V38: 0 | W38: 0 | X38: 0 | Y38: 0 | Z38: 0 | AA38: 0 | AB38: 0 | AC38: 0 | AD38: 0 | AE38: 0 | AF38: 0 | AG38: 0 | AH38: 0 | AI38: 0 | AJ38: 0 | AK38: 0 | AL38: 0 | AM38: 0
C39: 뇌심혈관질환 | D39: 0 | E39: 0 | F39: 0 | G39: 0 | H39: 0 | I39: 0 | J39: 0 | K39: 0 | L39: 0 | M39: 0 | N39: 0 | O39: 0 | P39: 0 | Q39: 0 | R39: 0 | S39: 0 | T39: 0 | U39: 0 | V39: 0 | W39: 0 | X39: 0 | Y39: 0 | Z39: 0 | AA39: 0 | AB39: 0 | AC39: 0 | AD39: 0 | AE39: 0 | AF39: 0 | AG39: 0 | AH39: 0 | AI39: 0 | AJ39: 0 | AK39: 0 | AL39: 0 | AM39: 0
C40: 근골격계질환 | D40: 0 | E40: 0 | F40: 0 | G40: 0 | H40: 0 | I40: 0 | J40: 0 | K40: 0 | L40: 0 | M40: 0 | N40: 0 | O40: 0 | P40: 0 | Q40: 0 | R40: 0 | S40: 0 | T40: 0 | U40: 0 | V40: 0 | W40: 0 | X40: 0 | Y40: 0 | Z40: 0 | AA40: 0 | AB40: 0 | AC40: 0 | AD40: 0 | AE40: 0 | AF40: 0 | AG40: 0 | AH40: 0 | AI40: 0 | AJ40: 0 | AK40: 0 | AL40: 0 | AM40: 0
C41: 분류불능 | D41: 1 | E41: 0 | F41: 0 | G41: 0 | H41: 1 | I41: 0 | J41: 0 | K41: 0 | L41: 0 | M41: 0 | N41: 0 | O41: 0 | P41: 0 | Q41: 0 | R41: 0 | S41: 0 | T41: 0 | U41: 0 | V41: 0 | W41: 0 | X41: 0 | Y41: 0 | Z41: 0 | AA41: 0 | AB41: 0 | AC41: 0 | AD41: 0 | AE41: 0 | AF41: 0 | AG41: 0 | AH41: 0 | AI41: 0 | AJ41: 0 | AK41: 0 | AL41: 0 | AM41: 0
B42: 포 항 | C42: 합계 | D42: 26 | E42: 0 | F42: 6 | G42: 0 | H42: 5 | I42: 0 | J42: 8 | K42: 0 | L42: 2 | M42: 0 | N42: 5 | O42: 0 | P42: 29 | Q42: 0 | R42: 8 | S42: 0 | T42: 6 | U42: 0 | V42: 9 | W42: 0 | X42: 4 | Y42: 0 | Z42: 2 | AA42: 0 | AB42: 33 | AC42: 0 | AD42: 18 | AE42: 0 | AF42: 7 | AG42: 0 | AH42: 3 | AI42: 0 | AJ42: 2 | AK42: 0 | AL42: 3 | AM42: 0
C43: 떨어짐(높이가 있는 곳에서 사람이 떨어짐) | D43: 5 | E43: 0 | F43: 3 | G43: 0 | H43: 0 | I43: 0 | J43: 2 | K43: 0 | L43: 0 | M43: 0 | N43: 0 | O43: 0 | P43: 5 | Q43: 0 | R43: 3 | S43: 0 | T43: 1 | U43: 0 | V43: 1 | W43: 0 | X43: 0 | Y43: 0 | Z43: 0 | AA43: 0 | AB43: 2 | AC43: 0 | AD43: 1 | AE43: 0 | AF43: 0 | AG43: 0 | AH43: 1 | AI43: 0 | AJ43: 0 | AK43: 0 | AL43: 0 | AM43: 0
C44: 넘어짐(사람이 미끄러지거나 넘어짐) | D44: 9 | E44: 0 | F44: 1 | G44: 0 | H44: 3 | I44: 0 | J44: 1 | K44: 0 | L44: 0 | M44: 0 | N44: 4 | O44: 0 | P44: 17 | Q44: 0 | R44: 3 | S44: 0 | T44: 5 | U44: 0 | V44: 4 | W44: 0 | X44: 3 | Y44: 0 | Z44: 2 | AA44: 0 | AB44: 21 | AC44: 0 | AD44: 11 | AE44: 0 | AF44: 5 | AG44: 0 | AH44: 1 | AI44: 0 | AJ44: 2 | AK44: 0 | AL44: 2 | AM44: 0
C45: 깔림·뒤집힘(물체의 쓰러짐이나 뒤집힘) | D45: 1 | E45: 0 | F45: 1 | G45: 0 | H45: 0 | I45: 0 | J45: 0 | K45: 0 | L45: 0 | M45: 0 | N45: 0 | O45: 0 | P45: 1 | Q45: 0 | R45: 0 | S45: 0 | T45: 0 | U45: 0 | V45: 1 | W45: 0 | X45: 0 | Y45: 0 | Z45: 0 | AA45: 0 | AB45: 2 | AC45: 0 | AD45: 0 | AE45: 0 | AF45: 2 | AG45: 0 | AH45: 0 | AI45: 0 | AJ45: 0 | AK45: 0 | AL45: 0 | AM45: 0
C46: 부딪힘(물체에 부딪힘) | D46: 0 | E46: 0 | F46: 0 | G46: 0 | H46: 0 | I46: 0 | J46: 0 | K46: 0 | L46: 0 | M46: 0 | N46: 0 | O46: 0 | P46: 1 | Q46: 0 | R46: 0 | S46: 0 | T46: 0 | U46: 0 | V46: 0 | W46: 0 | X46: 1 | Y46: 0 | Z46: 0 | AA46: 0 | AB46: 3 | AC46: 0 | AD46: 2 | AE46: 0 | AF46: 0 | AG46: 0 | AH46: 0 | AI46: 0 | AJ46: 0 | AK46: 0 | AL46: 1 | AM46: 0
C47: 물체에 맞음(날아오거나 떨어진 물체에 맞음) | D47: 2 | E47: 0 | F47: 0 | G47: 0 | H47: 0 | I47: 0 | J47: 2 | K47: 0 | L47: 0 | M47: 0 | N47: 0 | O47: 0 | P47: 1 | Q47: 0 | R47: 0 | S47: 0 | T47: 0 | U47: 0 | V47: 1 | W47: 0 | X47: 0 | Y47: 0 | Z47: 0 | AA47: 0 | AB47: 0 | AC47: 0 | AD47: 0 | AE47: 0 | AF47: 0 | AG47: 0 | AH47: 0 | AI47: 0 | AJ47: 0 | AK47: 0 | AL47: 0 | AM47: 0
C48: 끼임(기계설비에 끼이거나 감김) | D48: 2 | E48: 0 | F48: 0 | G48: 0 | H48: 0 | I48: 0 | J48: 1 | K48: 0 | L48: 0 | M48: 0 | N48: 1 | O48: 0 | P48: 0 | Q48: 0 | R48: 0 | S48: 0 | T48: 0 | U48: 0 | V48: 0 | W48: 0 | X48: 0 | Y48: 0 | Z48: 0 | AA48: 0 | AB48: 1 | AC48: 0 | AD48: 1 | AE48: 0 | AF48: 0 | AG48: 0 | AH48: 0 | AI48: 0 | AJ48: 0 | AK48: 0 | AL48: 0 | AM48: 0
C49: 절단·베임·찔림 | D49: 3 | E49: 0 | F49: 1 | G49: 0 | H49: 2 | I49: 0 | J49: 0 | K49: 0 | L49: 0 | M49: 0 | N49: 0 | O49: 0 | P49: 2 | Q49: 0 | R49: 1 | S49: 0 | T49: 0 | U49: 0 | V49: 1 | W49: 0 | X49: 0 | Y49: 0 | Z49: 0 | AA49: 0 | AB49: 1 | AC49: 0 | AD49: 1 | AE49: 0 | AF49: 0 | AG49: 0 | AH49: 0 | AI49: 0 | AJ49: 0 | AK49: 0 | AL49: 0 | AM49: 0
C50: 불균형 및 무리한 동작 | D50: 3 | E50: 0 | F50: 0 | G50: 0 | H50: 0 | I50: 0 | J50: 1 | K50: 0 | L50: 2 | M50: 0 | N50: 0 | O50: 0 | P50: 1 | Q50: 0 | R50: 1 | S50: 0 | T50: 0 | U50: 0 | V50: 0 | W50: 0 | X50: 0 | Y50: 0 | Z50: 0 | AA50: 0 | AB50: 1 | AC50: 0 | AD50: 1 | AE50: 0 | AF50: 0 | AG50: 0 | AH50: 0 | AI50: 0 | AJ50: 0 | AK50: 0 | AL50: 0 | AM50: 0
C51: 폭력행위 | D51: 0 | E51: 0 | F51: 0 | G51: 0 | H51: 0 | I51: 0 | J51: 0 | K51: 0 | L51: 0 | M51: 0 | N51: 0 | O51: 0 | P51: 0 | Q51: 0 | R51: 0 | S51: 0 | T51: 0 | U51: 0 | V51: 0 | W51: 0 | X51: 0 | Y51: 0 | Z51: 0 | AA51: 0 | AB51: 1 | AC51: 0 | AD51: 1 | AE51: 0 | AF51: 0 | AG51: 0 | AH51: 0 | AI51: 0 | AJ51: 0 | AK51: 0 | AL51: 0 | AM51: 0
C52: 동물상해 | D52: 1 | E52: 0 | F52: 0 | G52: 0 | H52: 0 | I52: 0 | J52: 1 | K52: 0 | L52: 0 | M52: 0 | N52: 0 | O52: 0 | P52: 1 | Q52: 0 | R52: 0 | S52: 0 | T52: 0 | U52: 0 | V52: 1 | W52: 0 | X52: 0 | Y52: 0 | Z52: 0 | AA52: 0 | AB52: 1 | AC52: 0 | AD52: 0 | AE52: 0 | AF52: 0 | AG52: 0 | AH52: 1 | AI52: 0 | AJ52: 0 | AK52: 0 | AL52: 0 | AM52: 0
C53: 물리적인자 | D53: 0 | E53: 0 | F53: 0 | G53: 0 | H53: 0 | I53: 0 | J53: 0 | K53: 0 | L53: 0 | M53: 0 | N53: 0 | O53: 0 | P53: 0 | Q53: 0 | R53: 0 | S53: 0 | T53: 0 | U53: 0 | V53: 0 | W53: 0 | X53: 0 | Y53: 0 | Z53: 0 | AA53: 0 | AB53: 0 | AC53: 0 | AD53: 0 | AE53: 0 | AF53: 0 | AG53: 0 | AH53: 0 | AI53: 0 | AJ53: 0 | AK53: 0 | AL53: 0 | AM53: 0
C54: 뇌심혈관질환 | D54: 0 | E54: 0 | F54: 0 | G54: 0 | H54: 0 | I54: 0 | J54: 0 | K54: 0 | L54: 0 | M54: 0 | N54: 0 | O54: 0 | P54: 0 | Q54: 0 | R54: 0 | S54: 0 | T54: 0 | U54: 0 | V54: 0 | W54: 0 | X54: 0 | Y54: 0 | Z54: 0 | AA54: 0 | AB54: 0 | AC54: 0 | AD54: 0 | AE54: 0 | AF54: 0 | AG54: 0 | AH54: 0 | AI54: 0 | AJ54: 0 | AK54: 0 | AL54: 0 | AM54: 0
C55: 근골격계질환 | D55: 0 | E55: 0 | F55: 0 | G55: 0 | H55: 0 | I55: 0 | J55: 0 | K55: 0 | L55: 0 | M55: 0 | N55: 0 | O55: 0 | P55: 0 | Q55: 0 | R55: 0 | S55: 0 | T55: 0 | U55: 0 | V55: 0 | W55: 0 | X55: 0 | Y55: 0 | Z55: 0 | AA55: 0 | AB55: 0 | AC55: 0 | AD55: 0 | AE55: 0 | AF55: 0 | AG55: 0 | AH55: 0 | AI55: 0 | AJ55: 0 | AK55: 0 | AL55: 0 | AM55: 0
B56: 구 미 | C56: 합계 | D56: 18 | E56: 1 | F56: 4 | G56: 0 | H56: 5 | I56: 0 | J56: 8 | K56: 1 | L56: 0 | M56: 0 | N56: 1 | O56: 0 | P56: 26 | Q56: 0 | R56: 3 | S56: 0 | T56: 10 | U56: 0 | V56: 11 | W56: 0 | X56: 2 | Y56: 0 | Z56: 0 | AA56: 0 | AB56: 27 | AC56: 0 | AD56: 7 | AE56: 0 | AF56: 3 | AG56: 0 | AH56: 12 | AI56: 0 | AJ56: 3 | AK56: 0 | AL56: 2 | AM56: 0
C57: 떨어짐(높이가 있는 곳에서 사람이 떨어짐) | D57: 5 | E57: 0 | F57: 0 | G57: 0 | H57: 2 | I57: 0 | J57: 2 | K57: 0 | L57: 0 | M57: 0 | N57: 1 | O57: 0 | P57: 5 | Q57: 0 | R57: 0 | S57: 0 | T57: 4 | U57: 0 | V57: 1 | W57: 0 | X57: 0 | Y57: 0 | Z57: 0 | AA57: 0 | AB57: 3 | AC57: 0 | AD57: 1 | AE57: 0 | AF57: 0 | AG57: 0 | AH57: 2 | AI57: 0 | AJ57: 0 | AK57: 0 | AL57: 0 | AM57: 0
C58: 넘어짐(사람이 미끄러지거나 넘어짐) | D58: 9 | E58: 0 | F58: 3 | G58: 0 | H58: 1 | I58: 0 | J58: 5 | K58: 0 | L58: 0 | M58: 0 | N58: 0 | O58: 0 | P58: 13 | Q58: 0 | R58: 1 | S58: 0 | T58: 3 | U58: 0 | V58: 7 | W58: 0 | X58: 2 | Y58: 0 | Z58: 0 | AA58: 0 | AB58: 11 | AC58: 0 | AD58: 0 | AE58: 0 | AF58: 2 | AG58: 0 | AH58: 7 | AI58: 0 | AJ58: 1 | AK58: 0 | AL58: 1 | AM58: 0
C59: 깔림·뒤집힘(물체의 쓰러짐이나 뒤집힘) | D59: 0 | E59: 0 | F59: 0 | G59: 0 | H59: 0 | I59: 0 | J59: 0 | K59: 0 | L59: 0 | M59: 0 | N59: 0 | O59: 0 | P59: 0 | Q59: 0 | R59: 0 | S59: 0 | T59: 0 | U59: 0 | V59: 0 | W59: 0 | X59: 0 | Y59: 0 | Z59: 0 | AA59: 0 | AB59: 1 | AC59: 0 | AD59: 0 | AE59: 0 | AF59: 1 | AG59: 0 | AH59: 0 | AI59: 0 | AJ59: 0 | AK59: 0 | AL59: 0 | AM59: 0
C60: 부딪힘(물체에 부딪힘) | D60: 1 | E60: 0 | F60: 0 | G60: 0 | H60: 1 | I60: 0 | J60: 0 | K60: 0 | L60: 0 | M60: 0 | N60: 0 | O60: 0 | P60: 1 | Q60: 0 | R60: 1 | S60: 0 | T60: 0 | U60: 0 | V60: 0 | W60: 0 | X60: 0 | Y60: 0 | Z60: 0 | AA60: 0 | AB60: 4 | AC60: 0 | AD60: 1 | AE60: 0 | AF60: 0 | AG60: 0 | AH60: 1 | AI60: 0 | AJ60: 2 | AK60: 0 | AL60: 0 | AM60: 0
C61: 물체에 맞음(날아오거나 떨어진 물체에 맞음) | D61: 0 | E61: 0 | F61: 0 | G61: 0 | H61: 0 | I61: 0 | J61: 0 | K61: 0 | L61: 0 | M61: 0 | N61: 0 | O61: 0 | P61: 0 | Q61: 0 | R61: 0 | S61: 0 | T61: 0 | U61: 0 | V61: 0 | W61: 0 | X61: 0 | Y61: 0 | Z61: 0 | AA61: 0 | AB61: 1 | AC61: 0 | AD61: 1 | AE61: 0 | AF61: 0 | AG61: 0 | AH61: 0 | AI61: 0 | AJ61: 0 | AK61: 0 | AL61: 0 | AM61: 0
C62: 끼임(기계설비에 끼이거나 감김) | D62: 1 | E62: 1 | F62: 0 | G62: 0 | H62: 0 | I62: 0 | J62: 1 | K62: 1 | L62: 0 | M62: 0 | N62: 0 | O62: 0 | P62: 2 | Q62: 0 | R62: 1 | S62: 0 | T62: 1 | U62: 0 | V62: 0 | W62: 0 | X62: 0 | Y62: 0 | Z62: 0 | AA62: 0 | AB62: 1 | AC62: 0 | AD62: 1 | AE62: 0 | AF62: 0 | AG62: 0 | AH62: 0 | AI62: 0 | AJ62: 0 | AK62: 0 | AL62: 0 | AM62: 0
C63: 절단·베임·찔림 | D63: 1 | E63: 0 | F63: 0 | G63: 0 | H63: 1 | I63: 0 | J63: 0 | K63: 0 | L63: 0 | M63: 0 | N63: 0 | O63: 0 | P63: 2 | Q63: 0 | R63: 0 | S63: 0 | T63: 1 | U63: 0 | V63: 1 | W63: 0 | X63: 0 | Y63: 0 | Z63: 0 | AA63: 0 | AB63: 2 | AC63: 0 | AD63: 1 | AE63: 0 | AF63: 0 | AG63: 0 | AH63: 1 | AI63: 0 | AJ63: 0 | AK63: 0 | AL63: 0 | AM63: 0
C64: 불균형 및 무리한 동작 | D64: 0 | E64: 0 | F64: 0 | G64: 0 | H64: 0 | I64: 0 | J64: 0 | K64: 0 | L64: 0 | M64: 0 | N64: 0 | O64: 0 | P64: 2 | Q64: 0 | R64: 0 | S64: 0 | T64: 1 | U64: 0 | V64: 1 | W64: 0 | X64: 0 | Y64: 0 | Z64: 0 | AA64: 0 | AB64: 3 | AC64: 0 | AD64: 1 | AE64: 0 | AF64: 0 | AG64: 0 | AH64: 1 | AI64: 0 | AJ64: 0 | AK64: 0 | AL64: 1 | AM64: 0
C65: 화학물질누출·접촉 | D65: 0 | E65: 0 | F65: 0 | G65: 0 | H65: 0 | I65: 0 | J65: 0 | K65: 0 | L65: 0 | M65: 0 | N65: 0 | O65: 0 | P65: 0 | Q65: 0 | R65: 0 | S65: 0 | T65: 0 | U65: 0 | V65: 0 | W65: 0 | X65: 0 | Y65: 0 | Z65: 0 | AA65: 0 | AB65: 1 | AC65: 0 | AD65: 1 | AE65: 0 | AF65: 0 | AG65: 0 | AH65: 0 | AI65: 0 | AJ65: 0 | AK65: 0 | AL65: 0 | AM65: 0
C66: 사업장외 교통사고 | D66: 1 | E66: 0 | F66: 1 | G66: 0 | H66: 0 | I66: 0 | J66: 0 | K66: 0 | L66: 0 | M66: 0 | N66: 0 | O66: 0 | P66: 1 | Q66: 0 | R66: 0 | S66: 0 | T66: 0 | U66: 0 | V66: 1 | W66: 0 | X66: 0 | Y66: 0 | Z66: 0 | AA66: 0 | AB66: 0 | AC66: 0 | AD66: 0 | AE66: 0 | AF66: 0 | AG66: 0 | AH66: 0 | AI66: 0 | AJ66: 0 | AK66: 0 | AL66: 0 | AM66: 0
C67: 뇌심혈관질환 | D67: 0 | E67: 0 | F67: 0 | G67: 0 | H67: 0 | I67: 0 | J67: 0 | K67: 0 | L67: 0 | M67: 0 | N67: 0 | O67: 0 | P67: 0 | Q67: 0 | R67: 0 | S67: 0 | T67: 0 | U67: 0 | V67: 0 | W67: 0 | X67: 0 | Y67: 0 | Z67: 0 | AA67: 0 | AB67: 0 | AC67: 0 | AD67: 0 | AE67: 0 | AF67: 0 | AG67: 0 | AH67: 0 | AI67: 0 | AJ67: 0 | AK67: 0 | AL67: 0 | AM67: 0
C68: 근골격계질환 | D68: 0 | E68: 0 | F68: 0 | G68: 0 | H68: 0 | I68: 0 | J68: 0 | K68: 0 | L68: 0 | M68: 0 | N68: 0 | O68: 0 | P68: 0 | Q68: 0 | R68: 0 | S68: 0 | T68: 0 | U68: 0 | V68: 0 | W68: 0 | X68: 0 | Y68: 0 | Z68: 0 | AA68: 0 | AB68: 0 | AC68: 0 | AD68: 0 | AE68: 0 | AF68: 0 | AG68: 0 | AH68: 0 | AI68: 0 | AJ68: 0 | AK68: 0 | AL68: 0 | AM68: 0
B69: 영 주 | C69: 합계 | D69: =F69+H69+J69+L69+N69 -> 9 | E69: =G69+I69+K69+M69+O69 -> 1 | F69: 3 | G69: 1 | H69: 1 | I69: 0 | J69: 5 | K69: 0 | L69: 0 | M69: 0 | N69: 0 | O69: 0 | P69: =R69+T69+V69+X69+Z69 -> 7 | Q69: =S69+U69+W69+Y69+AA69 -> 1 | R69: 1 | S69: 1 | T69: 2 | U69: 0 | V69: 4 | W69: 0 | X69: 0 | Y69: 0 | Z69: 0 | AA69: 0 | AB69: =AD69+AF69+AH69+AJ69+AL69 -> 9 | AC69: =AE69+AG69+AI69+AK69+AM69 -> 0 | AD69: 4 | AE69: 0 | AF69: 0 | AG69: 0 | AH69: 4 | AI69: 0 | AJ69: 0 | AK69: 0 | AL69: 1 | AM69: 0
C70: 떨어짐(높이가 있는 곳에서 사람이 떨어짐) | D70: 1 | E70: 1 | F70: 1 | G70: 1 | H70: 0 | I70: 0 | J70: 0 | K70: 0 | L70: 0 | M70: 0 | N70: 0 | O70: 0 | P70: 1 | Q70: 1 | R70: 1 | S70: 1 | T70: 0 | U70: 0 | V70: 0 | W70: 0 | X70: 0 | Y70: 0 | Z70: 0 | AA70: 0 | AB70: 0 | AC70: 0 | AD70: 0 | AE70: 0 | AF70: 0 | AG70: 0 | AH70: 0 | AI70: 0 | AJ70: 0 | AK70: 0 | AL70: 0 | AM70: 0
C71: 넘어짐(사람이 미끄러지거나 넘어짐) | D71: 6 | E71: 0 | F71: 1 | G71: 0 | H71: 1 | I71: 0 | J71: 4 | K71: 0 | L71: 0 | M71: 0 | N71: 0 | O71: 0 | P71: 4 | Q71: 0 | R71: 0 | S71: 0 | T71: 0 | U71: 0 | V71: 4 | W71: 0 | X71: 0 | Y71: 0 | Z71: 0 | AA71: 0 | AB71: 5 | AC71: 0 | AD71: 2 | AE71: 0 | AF71: 0 | AG71: 0 | AH71: 3 | AI71: 0 | AJ71: 0 | AK71: 0 | AL71: 0 | AM71: 0
C72: 물체에 맞음(날아오거나 떨어진 물체에 맞음) | D72: 1 | E72: 0 | F72: 1 | G72: 0 | H72: 0 | I72: 0 | J72: 0 | K72: 0 | L72: 0 | M72: 0 | N72: 0 | O72: 0 | P72: 1 | Q72: 0 | R72: 0 | S72: 0 | T72: 1 | U72: 0 | V72: 0 | W72: 0 | X72: 0 | Y72: 0 | Z72: 0 | AA72: 0 | AB72: 1 | AC72: 0 | AD72: 1 | AE72: 0 | AF72: 0 | AG72: 0 | AH72: 0 | AI72: 0 | AJ72: 0 | AK72: 0 | AL72: 0 | AM72: 0
C73: 무너짐(건축물이나 쌓여진 물체가 무너짐) | D73: 1 | E73: 0 | F73: 0 | G73: 0 | H73: 0 | I73: 0 | J73: 1 | K73: 0 | L73: 0 | M73: 0 | N73: 0 | O73: 0 | P73: 0 | Q73: 0 | R73: 0 | S73: 0 | T73: 0 | U73: 0 | V73: 0 | W73: 0 | X73: 0 | Y73: 0 | Z73: 0 | AA73: 0 | AB73: 0 | AC73: 0 | AD73: 0 | AE73: 0 | AF73: 0 | AG73: 0 | AH73: 0 | AI73: 0 | AJ73: 0 | AK73: 0 | AL73: 0 | AM73: 0
C74: 절단·베임·찔림 | D74: 0 | E74: 0 | F74: 0 | G74: 0 | H74: 0 | I74: 0 | J74: 0 | K74: 0 | L74: 0 | M74: 0 | N74: 0 | O74: 0 | P74: 1 | Q74: 0 | R74: 0 | S74: 0 | T74: 1 | U74: 0 | V74: 0 | W74: 0 | X74: 0 | Y74: 0 | Z74: 0 | AA74: 0 | AB74: 1 | AC74: 0 | AD74: 1 | AE74: 0 | AF74: 0 | AG74: 0 | AH74: 0 | AI74: 0 | AJ74: 0 | AK74: 0 | AL74: 0 | AM74: 0
C75: 불균형 및 무리한 동작 | D75: 0 | E75: 0 | F75: 0 | G75: 0 | H75: 0 | I75: 0 | J75: 0 | K75: 0 | L75: 0 | M75: 0 | N75: 0 | O75: 0 | P75: 0 | Q75: 0 | R75: 0 | S75: 0 | T75: 0 | U75: 0 | V75: 0 | W75: 0 | X75: 0 | Y75: 0 | Z75: 0 | AA75: 0 | AB75: 2 | AC75: 0 | AD75: 0 | AE75: 0 | AF75: 0 | AG75: 0 | AH75: 1 | AI75: 0 | AJ75: 0 | AK75: 0 | AL75: 1 | AM75: 0
C76: 뇌심혈관질환 | D76: 0 | E76: 0 | F76: 0 | G76: 0 | H76: 0 | I76: 0 | J76: 0 | K76: 0 | L76: 0 | M76: 0 | N76: 0 | O76: 0 | P76: 0 | Q76: 0 | R76: 0 | S76: 0 | T76: 0 | U76: 0 | V76: 0 | W76: 0 | X76: 0 | Y76: 0 | Z76: 0 | AA76: 0 | AB76: 0 | AC76: 0 | AD76: 0 | AE76: 0 | AF76: 0 | AG76: 0 | AH76: 0 | AI76: 0 | AJ76: 0 | AK76: 0 | AL76: 0 | AM76: 0
C77: 근골격계질환 | D77: 0 | E77: 0 | F77: 0 | G77: 0 | H77: 0 | I77: 0 | J77: 0 | K77: 0 | L77: 0 | M77: 0 | N77: 0 | O77: 0 | P77: 0 | Q77: 0 | R77: 0 | S77: 0 | T77: 0 | U77: 0 | V77: 0 | W77: 0 | X77: 0 | Y77: 0 | Z77: 0 | AA77: 0 | AB77: 0 | AC77: 0 | AD77: 0 | AE77: 0 | AF77: 0 | AG77: 0 | AH77: 0 | AI77: 0 | AJ77: 0 | AK77: 0 | AL77: 0 | AM77: 0
B78: 안 동 | C78: 합계 | D78: 11 | E78: 0 | F78: 4 | G78: 0 | H78: 5 | I78: 0 | J78: 2 | K78: 0 | L78: 0 | M78: 0 | N78: 0 | O78: 0 | P78: 6 | Q78: 0 | R78: 2 | S78: 0 | T78: 1 | U78: 0 | V78: 2 | W78: 0 | X78: 0 | Y78: 0 | Z78: 1 | AA78: 0 | AB78: 9 | AC78: 0 | AD78: 3 | AE78: 0 | AF78: 1 | AG78: 0 | AH78: 2 | AI78: 0 | AJ78: 1 | AK78: 0 | AL78: 2 | AM78: 0
C79: 떨어짐(높이가 있는 곳에서 사람이 떨어짐) | D79: 2 | E79: 0 | F79: 1 | G79: 0 | H79: 1 | I79: 0 | J79: 0 | K79: 0 | L79: 0 | M79: 0 | N79: 0 | O79: 0 | P79: 1 | Q79: 0 | R79: 0 | S79: 0 | T79: 1 | U79: 0 | V79: 0 | W79: 0 | X79: 0 | Y79: 0 | Z79: 0 | AA79: 0 | AB79: 2 | AC79: 0 | AD79: 0 | AE79: 0 | AF79: 1 | AG79: 0 | AH79: 1 | AI79: 0 | AJ79: 0 | AK79: 0 | AL79: 0 | AM79: 0
C80: 넘어짐(사람이 미끄러지거나 넘어짐) | D80: 7 | E80: 0 | F80: 2 | G80: 0 | H80: 3 | I80: 0 | J80: 2 | K80: 0 | L80: 0 | M80: 0 | N80: 0 | O80: 0 | P80: 5 | Q80: 0 | R80: 2 | S80: 0 | T80: 0 | U80: 0 | V80: 2 | W80: 0 | X80: 0 | Y80: 0 | Z80: 1 | AA80: 0 | AB80: 6 | AC80: 0 | AD80: 3 | AE80: 0 | AF80: 0 | AG80: 0 | AH80: 1 | AI80: 0 | AJ80: 1 | AK80: 0 | AL80: 1 | AM80: 0
C81: 물체에 맞음(날아오거나 떨어진 물체에 맞음) | D81: 1 | E81: 0 | F81: 1 | G81: 0 | H81: 0 | I81: 0 | J81: 0 | K81: 0 | L81: 0 | M81: 0 | N81: 0 | O81: 0 | P81: 0 | Q81: 0 | R81: 0 | S81: 0 | T81: 0 | U81: 0 | V81: 0 | W81: 0 | X81: 0 | Y81: 0 | Z81: 0 | AA81: 0 | AB81: 0 | AC81: 0 | AD81: 0 | AE81: 0 | AF81: 0 | AG81: 0 | AH81: 0 | AI81: 0 | AJ81: 0 | AK81: 0 | AL81: 0 | AM81: 0
C82: 절단·베임·찔림 | D82: 1 | E82: 0 | F82: 0 | G82: 0 | H82: 1 | I82: 0 | J82: 0 | K82: 0 | L82: 0 | M82: 0 | N82: 0 | O82: 0 | P82: 0 | Q82: 0 | R82: 0 | S82: 0 | T82: 0 | U82: 0 | V82: 0 | W82: 0 | X82: 0 | Y82: 0 | Z82: 0 | AA82: 0 | AB82: 0 | AC82: 0 | AD82: 0 | AE82: 0 | AF82: 0 | AG82: 0 | AH82: 0 | AI82: 0 | AJ82: 0 | AK82: 0 | AL82: 0 | AM82: 0
C83: 불균형 및 무리한 동작 | D83: 0 | E83: 0 | F83: 0 | G83: 0 | H83: 0 | I83: 0 | J83: 0 | K83: 0 | L83: 0 | M83: 0 | N83: 0 | O83: 0 | P83: 0 | Q83: 0 | R83: 0 | S83: 0 | T83: 0 | U83: 0 | V83: 0 | W83: 0 | X83: 0 | Y83: 0 | Z83: 0 | AA83: 0 | AB83: 1 | AC83: 0 | AD83: 0 | AE83: 0 | AF83: 0 | AG83: 0 | AH83: 0 | AI83: 0 | AJ83: 0 | AK83: 0 | AL83: 1 | AM83: 0
C84: 뇌심혈관질환 | D84: 0 | E84: 0 | F84: 0 | G84: 0 | H84: 0 | I84: 0 | J84: 0 | K84: 0 | L84: 0 | M84: 0 | N84: 0 | O84: 0 | P84: 0 | Q84: 0 | R84: 0 | S84: 0 | T84: 0 | U84: 0 | V84: 0 | W84: 0 | X84: 0 | Y84: 0 | Z84: 0 | AA84: 0 | AB84: 0 | AC84: 0 | AD84: 0 | AE84: 0 | AF84: 0 | AG84: 0 | AH84: 0 | AI84: 0 | AJ84: 0 | AK84: 0 | AL84: 0 | AM84: 0

Sheet 인천
A1: 업종(소) | B1: 고용지청 | C1: 기준년월 | D1: 2021년 12월 | P1: 2022년 12월 | AB1: 2023년 11월
C2: 규모(소) | D2: 규모별 합계 | F2: 5인 미만 | H2: 5인 ~ 9인 | J2: 10인 ~ 19인 | L2: 20인 ~ 29인 | N2: 30인 ~ 49인 | P2: 규모별 합계 | R2: 5인 미만 | T2: 5인 ~ 9인 | V2: 10인 ~ 19인 | X2: 20인 ~ 29인 | Z2: 30인 ~ 49인 | AB2: 규모별 합계 | AD2: 5인 미만 | AF2: 5인 ~ 9인 | AH2: 10인 ~ 19인 | AJ2: 20인 ~ 29인 | AL2: 30인 ~ 49인
C3: 발생형태(중) | D3: 사고재해자수 합계 | E3: 사고사망자수 합계 | F3: 사고재해자수 | G3: 사고사망자수 | H3: 사고재해자수 | I3: 사고사망자수 | J3: 사고재해자수 | K3: 사고사망자수 | L3: 사고재해자수 | M3: 사고사망자수 | N3: 사고재해자수 | O3: 사고사망자수 | P3: 사고재해자수 합계 | Q3: 사고사망자수 합계 | R3: 사고재해자수 | S3: 사고사망자수 | T3: 사고재해자수 | U3: 사고사망자수 | V3: 사고재해자수 | W3: 사고사망자수 | X3: 사고재해자수 | Y3: 사고사망자수 | Z3: 사고재해자수 | AA3: 사고사망자수 | AB3: 사고재해자수 합계 | AC3: 사고사망자수 합계 | AD3: 사고재해자수 | AE3: 사고사망자수 | AF3: 사고재해자수 | AG3: 사고사망자수 | AH3: 사고재해자수 | AI3: 사고사망자수 | AJ3: 사고재해자수 | AK3: 사고사망자수 | AL3: 사고재해자수 | AM3: 사고사망자수
A4: 건물등의종합관리사업 | B4: 합계 | D4: =D5+D26+D43+D63+D84 -> 415 | E4: =E5+E26+E43+E63+E84 -> 3 | F4: 143 | G4: 0 | H4: 122 | I4: 0 | J4: 98 | K4: 2 | L4: 30 | M4: 0 | N4: 22 | O4: 1 | P4: 409 | Q4: 5 | R4: 120 | S4: 4 | T4: 151 | U4: 1 | V4: 73 | W4: 0 | X4: 34 | Y4: 0 | Z4: 31 | AA4: 0 | AB4: 378 | AC4: 4 | AD4: 119 | AE4: 3 | AF4: 113 | AG4: 0 | AH4: 87 | AI4: 0 | AJ4: 28 | AK4: 1 | AL4: 31 | AM4: 0
B5: 중 부 청 | C5: 합계 | D5: =F5+H5+J5+L5+N5 -> 95 | E5: =G5+I5+K5+M5+O5 -> 1 | F5: 31 | G5: 0 | H5: 26 | I5: 0 | J5: 23 | K5: 0 | L5: 8 | M5: 0 | N5: 7 | O5: 1 | P5: =R5+T5+V5+X5+Z5 -> 102 | Q5: =S5+U5+W5+Y5+AA5 -> 1 | R5: 37 | S5: 1 | T5: 30 | U5: 0 | V5: 17 | W5: 0 | X5: 9 | Y5: 0 | Z5: 9 | AA5: 0 | AB5: =AD5+AF5+AH5+AJ5+AL5 -> 79 | AC5: =AE5+AG5+AI5+AK5+AM5 -> 1 | AD5: 21 | AE5: 0 | AF5: 20 | AG5: 0 | AH5: 19 | AI5: 0 | AJ5: 8 | AK5: 1 | AL5: 11 | AM5: 0
C6: 떨어짐(높이가 있는 곳에서 사람이 떨어짐) | D6: 15 | E6: 1 | F6: 3 | G6: 0 | H6: 7 | I6: 0 | J6: 2 | K6: 0 | L6: 2 | M6: 0 | N6: 1 | O6: 1 | P6: 18 | Q6: 0 | R6: 9 | S6: 0 | T6: 6 | U6: 0 | V6: 2 | W6: 0 | X6: 1 | Y6: 0 | Z6: 0 | AA6: 0 | AB6: 14 | AC6: 0 | AD6: 9 | AE6: 0 | AF6: 1 | AG6: 0 | AH6: 3 | AI6: 0 | AJ6: 1 | AK6: 0 | AL6: 0 | AM6: 0
C7: 넘어짐(사람이 미끄러지거나 넘어짐) | D7: 44 | E7: 0 | F7: 16 | G7: 0 | H7: 12 | I7: 0 | J7: 11 | K7: 0 | L7: 3 | M7: 0 | N7: 2 | O7: 0 | P7: 54 | Q7: 1 | R7: 18 | S7: 1 | T7: 13 | U7: 0 | V7: 10 | W7: 0 | X7: 5 | Y7: 0 | Z7: 8 | AA7: 0 | AB7: 35 | AC7: 1 | AD7: 8 | AE7: 0 | AF7: 6 | AG7: 0 | AH7: 9 | AI7: 0 | AJ7: 5 | AK7: 1 | AL7: 7 | AM7: 0
C8: 깔림·뒤집힘(물체의 쓰러짐이나 뒤집힘) | D8: 2 | E8: 0 | F8: 1 | G8: 0 | H8: 0 | I8: 0 | J8: 1 | K8: 0 | L8: 0 | M8: 0 | N8: 0 | O8: 0 | P8: 2 | Q8: 0 | R8: 0 | S8: 0 | T8: 2 | U8: 0 | V8: 0 | W8: 0 | X8: 0 | Y8: 0 | Z8: 0 | AA8: 0 | AB8: 5 | AC8: 0 | AD8: 1 | AE8: 0 | AF8: 3 | AG8: 0 | AH8: 1 | AI8: 0 | AJ8: 0 | AK8: 0 | AL8: 0 | AM8: 0
C9: 부딪힘(물체에 부딪힘) | D9: 6 | E9: 0 | F9: 2 | G9: 0 | H9: 0 | I9: 0 | J9: 2 | K9: 0 | L9: 2 | M9: 0 | N9: 0 | O9: 0 | P9: 4 | Q9: 0 | R9: 0 | S9: 0 | T9: 1 | U9: 0 | V9: 1 | W9: 0 | X9: 2 | Y9: 0 | Z9: 0 | AA9: 0 | AB9: 7 | AC9: 0 | AD9: 2 | AE9: 0 | AF9: 3 | AG9: 0 | AH9: 2 | AI9: 0 | AJ9: 0 | AK9: 0 | AL9: 0 | AM9: 0
C10: 물체에 맞음(날아오거나 떨어진 물체에 맞음) | D10: 2 | E10: 0 | F10: 1 | G10: 0 | H10: 1 | I10: 0 | J10: 0 | K10: 0 | L10: 0 | M10: 0 | N10: 0 | O10: 0 | P10: 6 | Q10: 0 | R10: 4 | S10: 0 | T10: 2 | U10: 0 | V10: 0 | W10: 0 | X10: 0 | Y10: 0 | Z10: 0 | AA10: 0 | AB10: 3 | AC10: 0 | AD10: 1 | AE10: 0 | AF10: 1 | AG10: 0 | AH10: 0 | AI10: 0 | AJ10: 0 | AK10: 0 | AL10: 1 | AM10: 0
C11: 끼임(기계설비에 끼이거나 감김) | D11: 9 | E11: 0 | F11: 3 | G11: 0 | H11: 0 | I11: 0 | J11: 2 | K11: 0 | L11: 1 | M11: 0 | N11: 3 | O11: 0 | P11: 6 | Q11: 0 | R11: 3 | S11: 0 | T11: 1 | U11: 0 | V11: 0 | W11: 0 | X11: 1 | Y11: 0 | Z11: 1 | AA11: 0 | AB11: 2 | AC11: 0 | AD11: 0 | AE11: 0 | AF11: 2 | AG11: 0 | AH11: 0 | AI11: 0 | AJ11: 0 | AK11: 0 | AL11: 0 | AM11: 0
C12: 절단·베임·찔림 | D12: 6 | E12: 0 | F12: 2 | G12: 0 | H12: 3 | I12: 0 | J12: 0 | K12: 0 | L12: 0 | M12: 0 | N12: 1 | O12: 0 | P12: 4 | Q12: 0 | R12: 2 | S12: 0 | T12: 2 | U12: 0 | V12: 0 | W12: 0 | X12: 0 | Y12: 0 | Z12: 0 | AA12: 0 | AB12: 5 | AC12: 0 | AD12: 0 | AE12: 0 | AF12: 2 | AG12: 0 | AH12: 2 | AI12: 0 | AJ12: 0 | AK12: 0 | AL12: 1 | AM12: 0
C13: 감전 | D13: 1 | E13: 0 | F13: 0 | G13: 0 | H13: 1 | I13: 0 | J13: 0 | K13: 0 | L13: 0 | M13: 0 | N13: 0 | O13: 0 | P13: 0 | Q13: 0 | R13: 0 | S13: 0 | T13: 0 | U13: 0 | V13: 0 | W13: 0 | X13: 0 | Y13: 0 | Z13: 0 | AA13: 0 | AB13: 0 | AC13: 0 | AD13: 0 | AE13: 0 | AF13: 0 | AG13: 0 | AH13: 0 | AI13: 0 | AJ13: 0 | AK13: 0 | AL13: 0 | AM13: 0
C14: 불균형 및 무리한 동작 | D14: 4 | E14: 0 | F14: 1 | G14: 0 | H14: 0 | I14: 0 | J14: 3 | K14: 0 | L14: 0 | M14: 0 | N14: 0 | O14: 0 | P14: 5 | Q14: 0 | R14: 1 | S14: 0 | T14: 1 | U14: 0 | V14: 3 | W14: 0 | X14: 0 | Y14: 0 | Z14: 0 | AA14: 0 | AB14: 5 | AC14: 0 | AD14: 0 | AE14: 0 | AF14: 1 | AG14: 0 | AH14: 2 | AI14: 0 | AJ14: 0 | AK14: 0 | AL14: 2 | AM14: 0
C15: 이상온도 접촉 | D15: 2 | E15: 0 | F15: 1 | G15: 0 | H15: 0 | I15: 0 | J15: 1 | K15: 0 | L15: 0 | M15: 0 | N15: 0 | O15: 0 | P15: 1 | Q15: 0 | R15: 0 | S15: 0 | T15: 0 | U15: 0 | V15: 1 | W15: 0 | X15: 0 | Y15: 0 | Z15: 0 | AA15: 0 | AB15: 0 | AC15: 0 | AD15: 0 | AE15: 0 | AF15: 0 | AG15: 0 | AH15: 0 | AI15: 0 | AJ15: 0 | AK15: 0 | AL15: 0 | AM15: 0
C16: 화학물질누출·접촉 | D16: 1 | E16: 0 | F16: 1 | G16: 0 | H16: 0 | I16: 0 | J16: 0 | K16: 0 | L16: 0 | M16: 0 | N16: 0 | O16: 0 | P16: 0 | Q16: 0 | R16: 0 | S16: 0 | T16: 0 | U16: 0 | V16: 0 | W16: 0 | X16: 0 | Y16: 0 | Z16: 0 | AA16: 0 | AB16: 0 | AC16: 0 | AD16: 0 | AE16: 0 | AF16: 0 | AG16: 0 | AH16: 0 | AI16: 0 | AJ16: 0 | AK16: 0 | AL16: 0 | AM16: 0
C17: 사업장외 교통사고 | D17: 1 | E17: 0 | F17: 0 | G17: 0 | H17: 1 | I17: 0 | J17: 0 | K17: 0 | L17: 0 | M17: 0 | N17: 0 | O17: 0 | P17: 1 | Q17: 0 | R17: 0 | S17: 0 | T17: 1 | U17: 0 | V17: 0 | W17: 0 | X17: 0 | Y17: 0 | Z17: 0 | AA17: 0 | AB17: 0 | AC17: 0 | AD17: 0 | AE17: 0 | AF17: 0 | AG17: 0 | AH17: 0 | AI17: 0 | AJ17: 0 | AK17: 0 | AL17: 0 | AM17: 0
C18: 체육행사 등의 사고 | D18: 0 | E18: 0 | F18: 0 | G18: 0 | H18: 0 | I18: 0 | J18: 0 | K18: 0 | L18: 0 | M18: 0 | N18: 0 | O18: 0 | P18: 0 | Q18: 0 | R18: 0 | S18: 0 | T18: 0 | U18: 0 | V18: 0 | W18: 0 | X18: 0 | Y18: 0 | Z18: 0 | AA18: 0 | AB18: 2 | AC18: 0 | AD18: 0 | AE18: 0 | AF18: 1 | AG18: 0 | AH18: 0 | AI18: 0 | AJ18: 1 | AK18: 0 | AL18: 0 | AM18: 0
C19: 폭력행위 | D19: 1 | E19: 0 | F19: 0 | G19: 0 | H19: 0 | I19: 0 | J19: 1 | K19: 0 | L19: 0 | M19: 0 | N19: 0 | O19: 0 | P19: 1 | Q19: 0 | R19: 0 | S19: 0 | T19: 1 | U19: 0 | V19: 0 | W19: 0 | X19: 0 | Y19: 0 | Z19: 0 | AA19: 0 | AB19: 1 | AC19: 0 | AD19: 0 | AE19: 0 | AF19: 0 | AG19: 0 | AH19: 0 | AI19: 0 | AJ19: 1 | AK19: 0 | AL19: 0 | AM19: 0
C20: 동물상해 | D20: 1 | E20: 0 | F20: 0 | G20: 0 | H20: 1 | I20: 0 | J20: 0 | K20: 0 | L20: 0 | M20: 0 | N20: 0 | O20: 0 | P20: 0 | Q20: 0 | R20: 0 | S20: 0 | T20: 0 | U20: 0 | V20: 0 | W20: 0 | X20: 0 | Y20: 0 | Z20: 0 | AA20: 0 | AB20: 0 | AC20: 0 | AD20: 0 | AE20: 0 | AF20: 0 | AG20: 0 | AH20: 0 | AI20: 0 | AJ20: 0 | AK20: 0 | AL20: 0 | AM20: 0
C21: 물리적인자 | D21: 0 | E21: 0 | F21: 0 | G21: 0 | H21: 0 | I21: 0 | J21: 0 | K21: 0 | L21: 0 | M21: 0 | N21: 0 | O21: 0 | P21: 0 | Q21: 0 | R21: 0 | S21: 0 | T21: 0 | U21: 0 | V21: 0 | W21: 0 | X21: 0 | Y21: 0 | Z21: 0 | AA21: 0 | AB21: 0 | AC21: 0 | AD21: 0 | AE21: 0 | AF21: 0 | AG21: 0 | AH21: 0 | AI21: 0 | AJ21: 0 | AK21: 0 | AL21: 0 | AM21: 0
C22: 생물학적인자 | D22: 0 | E22: 0 | F22: 0 | G22: 0 | H22: 0 | I22: 0 | J22: 0 | K22: 0 | L22: 0 | M22: 0 | N22: 0 | O22: 0 | P22: 0 | Q22: 0 | R22: 0 | S22: 0 | T22: 0 | U22: 0 | V22: 0 | W22: 0 | X22: 0 | Y22: 0 | Z22: 0 | AA22: 0 | AB22: 0 | AC22: 0 | AD22: 0 | AE22: 0 | AF22: 0 | AG22: 0 | AH22: 0 | AI22: 0 | AJ22: 0 | AK22: 0 | AL22: 0 | AM22: 0
C23: 뇌심혈관질환 | D23: 0 | E23: 0 | F23: 0 | G23: 0 | H23: 0 | I23: 0 | J23: 0 | K23: 0 | L23: 0 | M23: 0 | N23: 0 | O23: 0 | P23: 0 | Q23: 0 | R23: 0 | S23: 0 | T23: 0 | U23: 0 | V23: 0 | W23: 0 | X23: 0 | Y23: 0 | Z23: 0 | AA23: 0 | AB23: 0 | AC23: 0 | AD23: 0 | AE23: 0 | AF23: 0 | AG23: 0 | AH23: 0 | AI23: 0 | AJ23: 0 | AK23: 0 | AL23: 0 | AM23: 0
C24: 근골격계질환 | D24: 0 | E24: 0 | F24: 0 | G24: 0 | H24: 0 | I24: 0 | J24: 0 | K24: 0 | L24: 0 | M24: 0 | N24: 0 | O24: 0 | P24: 0 | Q24: 0 | R24: 0 | S24: 0 | T24: 0 | U24: 0 | V24: 0 | W24: 0 | X24: 0 | Y24: 0 | Z24: 0 | AA24: 0 | AB24: 0 | AC24: 0 | AD24: 0 | AE24: 0 | AF24: 0 | AG24: 0 | AH24: 0 | AI24: 0 | AJ24: 0 | AK24: 0 | AL24: 0 | AM24: 0
C25: 작업관련성질환 기타 | D25: 0 | E25: 0 | F25: 0 | G25: 0 | H25: 0 | I25: 0 | J25: 0 | K25: 0 | L25: 0 | M25: 0 | N25: 0 | O25: 0 | P25: 0 | Q25: 0 | R25: 0 | S25: 0 | T25: 0 | U25: 0 | V25: 0 | W25: 0 | X25: 0 | Y25: 0 | Z25: 0 | AA25: 0 | AB25: 0 | AC25: 0 | AD25: 0 | AE25: 0 | AF25: 0 | AG25: 0 | AH25: 0 | AI25: 0 | AJ25: 0 | AK25: 0 | AL25: 0 | AM25: 0
B26: 인천북부 | C26: 합계 | D26: 78 | E26: 0 | F26: 36 | G26: 0 | H26: 16 | I26: 0 | J26: 18 | K26: 0 | L26: 3 | M26: 0 | N26: 5 | O26: 0 | P26: 72 | Q26: 1 | R26: 25 | S26: 1 | T26: 24 | U26: 0 | V26: 14 | W26: 0 | X26: 5 | Y26: 0 | Z26: 4 | AA26: 0 | AB26: 51 | AC26: 1 | AD26: 21 | AE26: 1 | AF26: 10 | AG26: 0 | AH26: 12 | AI26: 0 | AJ26: 3 | AK26: 0 | AL26: 5 | AM26: 0
C27: 떨어짐(높이가 있는 곳에서 사람이 떨어짐) | D27: 10 | E27: 0 | F27: 4 | G27: 0 | H27: 4 | I27: 0 | J27: 1 | K27: 0 | L27: 1 | M27: 0 | N27: 0 | O27: 0 | P27: 17 | Q27: 1 | R27: 7 | S27: 1 | T27: 6 | U27: 0 | V27: 2 | W27: 0 | X27: 2 | Y27: 0 | Z27: 0 | AA27: 0 | AB27: 9 | AC27: 0 | AD27: 5 | AE27: 0 | AF27: 2 | AG27: 0 | AH27: 1 | AI27: 0 | AJ27: 0 | AK27: 0 | AL27: 1 | AM27: 0
C28: 넘어짐(사람이 미끄러지거나 넘어짐) | D28: 47 | E28: 0 | F28: 23 | G28: 0 | H28: 7 | I28: 0 | J28: 11 | K28: 0 | L28: 1 | M28: 0 | N28: 5 | O28: 0 | P28: 33 | Q28: 0 | R28: 12 | S28: 0 | T28: 12 | U28: 0 | V28: 5 | W28: 0 | X28: 2 | Y28: 0 | Z28: 2 | AA28: 0 | AB28: 27 | AC28: 0 | AD28: 11 | AE28: 0 | AF28: 6 | AG28: 0 | AH28: 7 | AI28: 0 | AJ28: 3 | AK28: 0 | AL28: 0 | AM28: 0
C29: 깔림·뒤집힘(물체의 쓰러짐이나 뒤집힘) | D29: 0 | E29: 0 | F29: 0 | G29: 0 | H29: 0 | I29: 0 | J29: 0 | K29: 0 | L29: 0 | M29: 0 | N29: 0 | O29: 0 | P29: 2 | Q29: 0 | R29: 1 | S29: 0 | T29: 0 | U29: 0 | V29: 0 | W29: 0 | X29: 0 | Y29: 0 | Z29: 1 | AA29: 0 | AB29: 3 | AC29: 0 | AD29: 1 | AE29: 0 | AF29: 1 | AG29: 0 | AH29: 0 | AI29: 0 | AJ29: 0 | AK29: 0 | AL29: 1 | AM29: 0
C30: 부딪힘(물체에 부딪힘) | D30: 3 | E30: 0 | F30: 2 | G30: 0 | H30: 1 | I30: 0 | J30: 0 | K30: 0 | L30: 0 | M30: 0 | N30: 0 | O30: 0 | P30: 3 | Q30: 0 | R30: 1 | S30: 0 | T30: 1 | U30: 0 | V30: 1 | W30: 0 | X30: 0 | Y30: 0 | Z30: 0 | AA30: 0 | AB30: 1 | AC30: 0 | AD30: 0 | AE30: 0 | AF30: 0 | AG30: 0 | AH30: 0 | AI30: 0 | AJ30: 0 | AK30: 0 | AL30: 1 | AM30: 0
C31: 물체에 맞음(날아오거나 떨어진 물체에 맞음) | D31: 2 | E31: 0 | F31: 1 | G31: 0 | H31: 0 | I31: 0 | J31: 1 | K31: 0 | L31: 0 | M31: 0 | N31: 0 | O31: 0 | P31: 2 | Q31: 0 | R31: 1 | S31: 0 | T31: 0 | U31: 0 | V31: 0 | W31: 0 | X31: 1 | Y31: 0 | Z31: 0 | AA31: 0 | AB31: 3 | AC31: 0 | AD31: 1 | AE31: 0 | AF31: 0 | AG31: 0 | AH31: 1 | AI31: 0 | AJ31: 0 | AK31: 0 | AL31: 1 | AM31: 0
C32: 끼임(기계설비에 끼이거나 감김) | D32: 3 | E32: 0 | F32: 1 | G32: 0 | H32: 0 | I32: 0 | J32: 1 | K32: 0 | L32: 1 | M32: 0 | N32: 0 | O32: 0 | P32: 2 | Q32: 0 | R32: 0 | S32: 0 | T32: 0 | U32: 0 | V32: 1 | W32: 0 | X32: 0 | Y32: 0 | Z32: 1 | AA32: 0 | AB32: 1 | AC32: 0 | AD32: 0 | AE32: 0 | AF32: 0 | AG32: 0 | AH32: 1 | AI32: 0 | AJ32: 0 | AK32: 0 | AL32: 0 | AM32: 0
C33: 절단·베임·찔림 | D33: 7 | E33: 0 | F33: 3 | G33: 0 | H33: 3 | I33: 0 | J33: 1 | K33: 0 | L33: 0 | M33: 0 | N33: 0 | O33: 0 | P33: 4 | Q33: 0 | R33: 1 | S33: 0 | T33: 2 | U33: 0 | V33: 1 | W33: 0 | X33: 0 | Y33: 0 | Z33: 0 | AA33: 0 | AB33: 1 | AC33: 0 | AD33: 0 | AE33: 0 | AF33: 1 | AG33: 0 | AH33: 0 | AI33: 0 | AJ33: 0 | AK33: 0 | AL33: 0 | AM33: 0
C34: 폭발·파열 | D34: 0 | E34: 0 | F34: 0 | G34: 0 | H34: 0 | I34: 0 | J34: 0 | K34: 0 | L34: 0 | M34: 0 | N34: 0 | O34: 0 | P34: 3 | Q34: 0 | R34: 0 | S34: 0 | T34: 2 | U34: 0 | V34: 1 | W34: 0 | X34: 0 | Y34: 0 | Z34: 0 | AA34: 0 | AB34: 0 | AC34: 0 | AD34: 0 | AE34: 0 | AF34: 0 | AG34: 0 | AH34: 0 | AI34: 0 | AJ34: 0 | AK34: 0 | AL34: 0 | AM34: 0
C35: 불균형 및 무리한 동작 | D35: 5 | E35: 0 | F35: 1 | G35: 0 | H35: 1 | I35: 0 | J35: 3 | K35: 0 | L35: 0 | M35: 0 | N35: 0 | O35: 0 | P35: 4 | Q35: 0 | R35: 1 | S35: 0 | T35: 1 | U35: 0 | V35: 2 | W35: 0 | X35: 0 | Y35: 0 | Z35: 0 | AA35: 0 | AB35: 4 | AC35: 0 | AD35: 1 | AE35: 0 | AF35: 0 | AG35: 0 | AH35: 2 | AI35: 0 | AJ35: 0 | AK35: 0 | AL35: 1 | AM35: 0
C36: 이상온도 접촉 | D36: 0 | E36: 0 | F36: 0 | G36: 0 | H36: 0 | I36: 0 | J36: 0 | K36: 0 | L36: 0 | M36: 0 | N36: 0 | O36: 0 | P36: 2 | Q36: 0 | R36: 1 | S36: 0 | T36: 0 | U36: 0 | V36: 1 | W36: 0 | X36: 0 | Y36: 0 | Z36: 0 | AA36: 0 | AB36: 1 | AC36: 0 | AD36: 1 | AE36: 0 | AF36: 0 | AG36: 0 | AH36: 0 | AI36: 0 | AJ36: 0 | AK36: 0 | AL36: 0 | AM36: 0
C37: 빠짐·익사 | D37: =F37+H37+J37+L37+N37 -> 0 | E37: =G37+I37+K37+M37+O37 -> 0 | F37: 0 | G37: 0 | H37: 0 | I37: 0 | J37: 0 | K37: 0 | L37: 0 | M37: 0 | N37: 0 | O37: 0 | P37: =R37+T37+V37+X37+Z37 -> 0 | Q37: =S37+U37+W37+Y37+AA37 -> 0 | R37: 0 | S37: 0 | T37: 0 | U37: 0 | V37: 0 | W37: 0 | X37: 0 | Y37: 0 | Z37: 0 | AA37: 0 | AB37: =AD37+AF37+AH37+AJ37+AL37 -> 1 | AC37: =AE37+AG37+AI37+AK37+AM37 -> 1 | AD37: 1 | AE37: 1 | AF37: 0 | AG37: 0 | AH37: 0 | AI37: 0 | AJ37: 0 | AK37: 0 | AL37: 0 | AM37: 0
C38: 사업장외 교통사고 | D38: 1 | E38: 0 | F38: 1 | G38: 0 | H38: 0 | I38: 0 | J38: 0 | K38: 0 | L38: 0 | M38: 0 | N38: 0 | O38: 0 | P38: 0 | Q38: 0 | R38: 0 | S38: 0 | T38: 0 | U38: 0 | V38: 0 | W38: 0 | X38: 0 | Y38: 0 | Z38: 0 | AA38: 0 | AB38: 0 | AC38: 0 | AD38: 0 | AE38: 0 | AF38: 0 | AG38: 0 | AH38: 0 | AI38: 0 | AJ38: 0 | AK38: 0 | AL38: 0 | AM38: 0
C39: 생물학적인자 | D39: 0 | E39: 0 | F39: 0 | G39: 0 | H39: 0 | I39: 0 | J39: 0 | K39: 0 | L39: 0 | M39: 0 | N39: 0 | O39: 0 | P39: 0 | Q39: 0 | R39: 0 | S39: 0 | T39: 0 | U39: 0 | V39: 0 | W39: 0 | X39: 0 | Y39: 0 | Z39: 0 | AA39: 0 | AB39: 0 | AC39: 0 | AD39: 0 | AE39: 0 | AF39: 0 | AG39: 0 | AH39: 0 | AI39: 0 | AJ39: 0 | AK39: 0 | AL39: 0 | AM39: 0
C40: 뇌심혈관질환 | D40: 0 | E40: 0 | F40: 0 | G40: 0 | H40: 0 | I40: 0 | J40: 0 | K40: 0 | L40: 0 | M40: 0 | N40: 0 | O40: 0 | P40: 0 | Q40: 0 | R40: 0 | S40: 0 | T40: 0 | U40: 0 | V40: 0 | W40: 0 | X40: 0 | Y40: 0 | Z40: 0 | AA40: 0 | AB40: 0 | AC40: 0 | AD40: 0 | AE40: 0 | AF40: 0 | AG40: 0 | AH40: 0 | AI40: 0 | AJ40: 0 | AK40: 0 | AL40: 0 | AM40: 0
C41: 근골격계질환 | D41: 0 | E41: 0 | F41: 0 | G41: 0 | H41: 0 | I41: 0 | J41: 0 | K41: 0 | L41: 0 | M41: 0 | N41: 0 | O41: 0 | P41: 0 | Q41: 0 | R41: 0 | S41: 0 | T41: 0 | U41: 0 | V41: 0 | W41: 0 | X41: 0 | Y41: 0 | Z41: 0 | AA41: 0 | AB41: 0 | AC41: 0 | AD41: 0 | AE41: 0 | AF41: 0 | AG41: 0 | AH41: 0 | AI41: 0 | AJ41: 0 | AK41: 0 | AL41: 0 | AM41: 0
C42: 작업관련성질환 기타 | D42: 0 | E42: 0 | F42: 0 | G42: 0 | H42: 0 | I42: 0 | J42: 0 | K42: 0 | L42: 0 | M42: 0 | N42: 0 | O42: 0 | P42: 0 | Q42: 0 | R42: 0 | S42: 0 | T42: 0 | U42: 0 | V42: 0 | W42: 0 | X42: 0 | Y42: 0 | Z42: 0 | AA42: 0 | AB42: 0 | AC42: 0 | AD42: 0 | AE42: 0 | AF42: 0 | AG42: 0 | AH42: 0 | AI42: 0 | AJ42: 0 | AK42: 0 | AL42: 0 | AM42: 0
B43: 부 천 | C43: 합계 | D43: 71 | E43: 0 | F43: 18 | G43: 0 | H43: 21 | I43: 0 | J43: 19 | K43: 0 | L43: 10 | M43: 0 | N43: 3 | O43: 0 | P43: 54 | Q43: 0 | R43: 12 | S43: 0 | T43: 22 | U43: 0 | V43: 11 | W43: 0 | X43: 5 | Y43: 0 | Z43: 4 | AA43: 0 | AB43: 51 | AC43: 0 | AD43: 17 | AE43: 0 | AF43: 16 | AG43: 0 | AH43: 12 | AI43: 0 | AJ43: 4 | AK43: 0 | AL43: 2 | AM43: 0
C44: 떨어짐(높이가 있는 곳에서 사람이 떨어짐) | D44: 9 | E44: 0 | F44: 2 | G44: 0 | H44: 2 | I44: 0 | J44: 5 | K44: 0 | L44: 0 | M44: 0 | N44: 0 | O44: 0 | P44: 8 | Q44: 0 | R44: 3 | S44: 0 | T44: 3 | U44: 0 | V44: 2 | W44: 0 | X44: 0 | Y44: 0 | Z44: 0 | AA44: 0 | AB44: 6 | AC44: 0 | AD44: 1 | AE44: 0 | AF44: 4 | AG44: 0 | AH44: 1 | AI44: 0 | AJ44: 0 | AK44: 0 | AL44: 0 | AM44: 0
C45: 넘어짐(사람이 미끄러지거나 넘어짐) | D45: 38 | E45: 0 | F45: 10 | G45: 0 | H45: 14 | I45: 0 | J45: 7 | K45: 0 | L45: 5 | M45: 0 | N45: 2 | O45: 0 | P45: 27 | Q45: 0 | R45: 5 | S45: 0 | T45: 10 | U45: 0 | V45: 6 | W45: 0 | X45: 3 | Y45: 0 | Z45: 3 | AA45: 0 | AB45: 26 | AC45: 0 | AD45: 11 | AE45: 0 | AF45: 6 | AG45: 0 | AH45: 6 | AI45: 0 | AJ45: 2 | AK45: 0 | AL45: 1 | AM45: 0
C46: 깔림·뒤집힘(물체의 쓰러짐이나 뒤집힘) | D46: 4 | E46: 0 | F46: 1 | G46: 0 | H46: 2 | I46: 0 | J46: 1 | K46: 0 | L46: 0 | M46: 0 | N46: 0 | O46: 0 | P46: 1 | Q46: 0 | R46: 0 | S46: 0 | T46: 0 | U46: 0 | V46: 1 | W46: 0 | X46: 0 | Y46: 0 | Z46: 0 | AA46: 0 | AB46: 3 | AC46: 0 | AD46: 0 | AE46: 0 | AF46: 0 | AG46: 0 | AH46: 1 | AI46: 0 | AJ46: 1 | AK46: 0 | AL46: 1 | AM46: 0
C47: 부딪힘(물체에 부딪힘) | D47: 2 | E47: 0 | F47: 0 | G47: 0 | H47: 1 | I47: 0 | J47: 0 | K47: 0 | L47: 1 | M47: 0 | N47: 0 | O47: 0 | P47: 2 | Q47: 0 | R47: 1 | S47: 0 | T47: 1 | U47: 0 | V47: 0 | W47: 0 | X47: 0 | Y47: 0 | Z47: 0 | AA47: 0 | AB47: 7 | AC47: 0 | AD47: 2 | AE47: 0 | AF47: 2 | AG47: 0 | AH47: 2 | AI47: 0 | AJ47: 1 | AK47: 0 | AL47: 0 | AM47: 0
C48: 물체에 맞음(날아오거나 떨어진 물체에 맞음) | D48: 4 | E48: 0 | F48: 1 | G48: 0 | H48: 0 | I48: 0 | J48: 2 | K48: 0 | L48: 1 | M48: 0 | N48: 0 | O48: 0 | P48: 0 | Q48: 0 | R48: 0 | S48: 0 | T48: 0 | U48: 0 | V48: 0 | W48: 0 | X48: 0 | Y48: 0 | Z48: 0 | AA48: 0 | AB48: 0 | AC48: 0 | AD48: 0 | AE48: 0 | AF48: 0 | AG48: 0 | AH48: 0 | AI48: 0 | AJ48: 0 | AK48: 0 | AL48: 0 | AM48: 0
C49: 무너짐(건축물이나 쌓여진 물체가 무너짐) | D49: 0 | E49: 0 | F49: 0 | G49: 0 | H49: 0 | I49: 0 | J49: 0 | K49: 0 | L49: 0 | M49: 0 | N49: 0 | O49: 0 | P49: 0 | Q49: 0 | R49: 0 | S49: 0 | T49: 0 | U49: 0 | V49: 0 | W49: 0 | X49: 0 | Y49: 0 | Z49: 0 | AA49: 0 | AB49: 1 | AC49: 0 | AD49: 1 | AE49: 0 | AF49: 0 | AG49: 0 | AH49: 0 | AI49: 0 | AJ49: 0 | AK49: 0 | AL49: 0 | AM49: 0
C50: 끼임(기계설비에 끼이거나 감김) | D50: 4 | E50: 0 | F50: 2 | G50: 0 | H50: 0 | I50: 0 | J50: 1 | K50: 0 | L50: 0 | M50: 0 | N50: 1 | O50: 0 | P50: 2 | Q50: 0 | R50: 1 | S50: 0 | T50: 1 | U50: 0 | V50: 0 | W50: 0 | X50: 0 | Y50: 0 | Z50: 0 | AA50: 0 | AB50: 1 | AC50: 0 | AD50: 1 | AE50: 0 | AF50: 0 | AG50: 0 | AH50: 0 | AI50: 0 | AJ50: 0 | AK50: 0 | AL50: 0 | AM50: 0
C51: 절단·베임·찔림 | D51: 1 | E51: 0 | F51: 0 | G51: 0 | H51: 0 | I51: 0 | J51: 0 | K51: 0 | L51: 1 | M51: 0 | N51: 0 | O51: 0 | P51: 3 | Q51: 0 | R51: 1 | S51: 0 | T51: 1 | U51: 0 | V51: 1 | W51: 0 | X51: 0 | Y51: 0 | Z51: 0 | AA51: 0 | AB51: 4 | AC51: 0 | AD51: 1 | AE51: 0 | AF51: 2 | AG51: 0 | AH51: 1 | AI51: 0 | AJ51: 0 | AK51: 0 | AL51: 0 | AM51: 0
C52: 감전 | D52: 0 | E52: 0 | F52: 0 | G52: 0 | H52: 0 | I52: 0 | J52: 0 | K52: 0 | L52: 0 | M52: 0 | N52: 0 | O52: 0 | P52: 0 | Q52: 0 | R52: 0 | S52: 0 | T52: 0 | U52: 0 | V52: 0 | W52: 0 | X52: 0 | Y52: 0 | Z52: 0 | AA52: 0 | AB52: 1 | AC52: 0 | AD52: 0 | AE52: 0 | AF52: 1 | AG52: 0 | AH52: 0 | AI52: 0 | AJ52: 0 | AK52: 0 | AL52: 0 | AM52: 0
C53: 불균형 및 무리한 동작 | D53: 6 | E53: 0 | F53: 2 | G53: 0 | H53: 2 | I53: 0 | J53: 1 | K53: 0 | L53: 1 | M53: 0 | N53: 0 | O53: 0 | P53: 4 | Q53: 0 | R53: 0 | S53: 0 | T53: 3 | U53: 0 | V53: 0 | W53: 0 | X53: 1 | Y53: 0 | Z53: 0 | AA53: 0 | AB53: 1 | AC53: 0 | AD53: 0 | AE53: 0 | AF53: 0 | AG53: 0 | AH53: 1 | AI53: 0 | AJ53: 0 | AK53: 0 | AL53: 0 | AM53: 0
C54: 이상온도 접촉 | D54: 1 | E54: 0 | F54: 0 | G54: 0 | H54: 0 | I54: 0 | J54: 1 | K54: 0 | L54: 0 | M54: 0 | N54: 0 | O54: 0 | P54: 2 | Q54: 0 | R54: 0 | S54: 0 | T54: 1 | U54: 0 | V54: 0 | W54: 0 | X54: 1 | Y54: 0 | Z54: 0 | AA54: 0 | AB54: 0 | AC54: 0 | AD54: 0 | AE54: 0 | AF54: 0 | AG54: 0 | AH54: 0 | AI54: 0 | AJ54: 0 | AK54: 0 | AL54: 0 | AM54: 0
C55: 화학물질누출·접촉 | D55: 0 | E55: 0 | F55: 0 | G55: 0 | H55: 0 | I55: 0 | J55: 0 | K55: 0 | L55: 0 | M55: 0 | N55: 0 | O55: 0 | P55: 1 | Q55: 0 | R55: 1 | S55: 0 | T55: 0 | U55: 0 | V55: 0 | W55: 0 | X55: 0 | Y55: 0 | Z55: 0 | AA55: 0 | AB55: 0 | AC55: 0 | AD55: 0 | AE55: 0 | AF55: 0 | AG55: 0 | AH55: 0 | AI55: 0 | AJ55: 0 | AK55: 0 | AL55: 0 | AM55: 0
C56: 사업장외 교통사고 | D56: 1 | E56: 0 | F56: 0 | G56: 0 | H56: 0 | I56: 0 | J56: 1 | K56: 0 | L56: 0 | M56: 0 | N56: 0 | O56: 0 | P56: 1 | Q56: 0 | R56: 0 | S56: 0 | T56: 0 | U56: 0 | V56: 1 | W56: 0 | X56: 0 | Y56: 0 | Z56: 0 | AA56: 0 | AB56: 0 | AC56: 0 | AD56: 0 | AE56: 0 | AF56: 0 | AG56: 0 | AH56: 0 | AI56: 0 | AJ56: 0 | AK56: 0 | AL56: 0 | AM56: 0
C57: 체육행사 등의 사고 | D57: 1 | E57: 0 | F57: 0 | G57: 0 | H57: 0 | I57: 0 | J57: 0 | K57: 0 | L57: 1 | M57: 0 | N57: 0 | O57: 0 | P57: 2 | Q57: 0 | R57: 0 | S57: 0 | T57: 1 | U57: 0 | V57: 0 | W57: 0 | X57: 0 | Y57: 0 | Z57: 1 | AA57: 0 | AB57: 0 | AC57: 0 | AD57: 0 | AE57: 0 | AF57: 0 | AG57: 0 | AH57: 0 | AI57: 0 | AJ57: 0 | AK57: 0 | AL57: 0 | AM57: 0
C58: 폭력행위 | D58: 0 | E58: 0 | F58: 0 | G58: 0 | H58: 0 | I58: 0 | J58: 0 | K58: 0 | L58: 0 | M58: 0 | N58: 0 | O58: 0 | P58: 1 | Q58: 0 | R58: 0 | S58: 0 | T58: 1 | U58: 0 | V58: 0 | W58: 0 | X58: 0 | Y58: 0 | Z58: 0 | AA58: 0 | AB58: 1 | AC58: 0 | AD58: 0 | AE58: 0 | AF58: 1 | AG58: 0 | AH58: 0 | AI58: 0 | AJ58: 0 | AK58: 0 | AL58: 0 | AM58: 0
C59: 화학적인자 | D59: 0 | E59: 0 | F59: 0 | G59: 0 | H59: 0 | I59: 0 | J59: 0 | K59: 0 | L59: 0 | M59: 0 | N59: 0 | O59: 0 | P59: 0 | Q59: 0 | R59: 0 | S59: 0 | T59: 0 | U59: 0 | V59: 0 | W59: 0 | X59: 0 | Y59: 0 | Z59: 0 | AA59: 0 | AB59: 0 | AC59: 0 | AD59: 0 | AE59: 0 | AF59: 0 | AG59: 0 | AH59: 0 | AI59: 0 | AJ59: 0 | AK59: 0 | AL59: 0 | AM59: 0
C60: 뇌심혈관질환 | D60: 0 | E60: 0 | F60: 0 | G60: 0 | H60: 0 | I60: 0 | J60: 0 | K60: 0 | L60: 0 | M60: 0 | N60: 0 | O60: 0 | P60: 0 | Q60: 0 | R60: 0 | S60: 0 | T60: 0 | U60: 0 | V60: 0 | W60: 0 | X60: 0 | Y60: 0 | Z60: 0 | AA60: 0 | AB60: 0 | AC60: 0 | AD60: 0 | AE60: 0 | AF60: 0 | AG60: 0 | AH60: 0 | AI60: 0 | AJ60: 0 | AK60: 0 | AL60: 0 | AM60: 0
C61: 근골격계질환 | D61: 0 | E61: 0 | F61: 0 | G61: 0 | H61: 0 | I61: 0 | J61: 0 | K61: 0 | L61: 0 | M61: 0 | N61: 0 | O61: 0 | P61: 0 | Q61: 0 | R61: 0 | S61: 0 | T61: 0 | U61: 0 | V61: 0 | W61: 0 | X61: 0 | Y61: 0 | Z61: 0 | AA61: 0 | AB61: 0 | AC61: 0 | AD61: 0 | AE61: 0 | AF61: 0 | AG61: 0 | AH61: 0 | AI61: 0 | AJ61: 0 | AK61: 0 | AL61: 0 | AM61: 0
C62: 작업관련성질환 기타 | D62: 0 | E62: 0 | F62: 0 | G62: 0 | H62: 0 | I62: 0 | J62: 0 | K62: 0 | L62: 0 | M62: 0 | N62: 0 | O62: 0 | P62: 0 | Q62: 0 | R62: 0 | S62: 0 | T62: 0 | U62: 0 | V62: 0 | W62: 0 | X62: 0 | Y62: 0 | Z62: 0 | AA62: 0 | AB62: 0 | AC62: 0 | AD62: 0 | AE62: 0 | AF62: 0 | AG62: 0 | AH62: 0 | AI62: 0 | AJ62: 0 | AK62: 0 | AL62: 0 | AM62: 0
B63: 고 양 | C63: 합계 | D63: 85 | E63: 1 | F63: 22 | G63: 0 | H63: 33 | I63: 0 | J63: 20 | K63: 1 | L63: 6 | M63: 0 | N63: 4 | O63: 0 | P63: 76 | Q63: 2 | R63: 18 | S63: 2 | T63: 33 | U63: 0 | V63: 10 | W63: 0 | X63: 9 | Y63: 0 | Z63: 6 | AA63: 0 | AB63: 80 | AC63: 1 | AD63: 20 | AE63: 1 | AF63: 23 | AG63: 0 | AH63: 21 | AI63: 0 | AJ63: 7 | AK63: 0 | AL63: 9 | AM63: 0
C64: 떨어짐(높이가 있는 곳에서 사람이 떨어짐) | D64: 13 | E64: 1 | F64: 6 | G64: 0 | H64: 2 | I64: 0 | J64: 4 | K64: 1 | L64: 1 | M64: 0 | N64: 0 | O64: 0 | P64: 16 | Q64: 2 | R64: 3 | S64: 2 | T64: 5 | U64: 0 | V64: 5 | W64: 0 | X64: 1 | Y64: 0 | Z64: 2 | AA64: 0 | AB64: 14 | AC64: 1 | AD64: 7 | AE64: 1 | AF64: 2 | AG64: 0 | AH64: 5 | AI64: 0 | AJ64: 0 | AK64: 0 | AL64: 0 | AM64: 0
C65: 넘어짐(사람이 미끄러지거나 넘어짐) | D65: 36 | E65: 0 | F65: 9 | G65: 0 | H65: 16 | I65: 0 | J65: 8 | K65: 0 | L65: 2 | M65: 0 | N65: 1 | O65: 0 | P65: 35 | Q65: 0 | R65: 12 | S65: 0 | T65: 15 | U65: 0 | V65: 2 | W65: 0 | X65: 5 | Y65: 0 | Z65: 1 | AA65: 0 | AB65: 38 | AC65: 0 | AD65: 8 | AE65: 0 | AF65: 13 | AG65: 0 | AH65: 8 | AI65: 0 | AJ65: 3 | AK65: 0 | AL65: 6 | AM65: 0
C66: 깔림·뒤집힘(물체의 쓰러짐이나 뒤집힘) | D66: 1 | E66: 0 | F66: 0 | G66: 0 | H66: 0 | I66: 0 | J66: 1 | K66: 0 | L66: 0 | M66: 0 | N66: 0 | O66: 0 | P66: 1 | Q66: 0 | R66: 0 | S66: 0 | T66: 1 | U66: 0 | V66: 0 | W66: 0 | X66: 0 | Y66: 0 | Z66: 0 | AA66: 0 | AB66: 3 | AC66: 0 | AD66: 2 | AE66: 0 | AF66: 0 | AG66: 0 | AH66: 1 | AI66: 0 | AJ66: 0 | AK66: 0 | AL66: 0 | AM66: 0
C67: 부딪힘(물체에 부딪힘) | D67: 6 | E67: 0 | F67: 1 | G67: 0 | H67: 2 | I67: 0 | J67: 2 | K67: 0 | L67: 1 | M67: 0 | N67: 0 | O67: 0 | P67: 4 | Q67: 0 | R67: 0 | S67: 0 | T67: 3 | U67: 0 | V67: 1 | W67: 0 | X67: 0 | Y67: 0 | Z67: 0 | AA67: 0 | AB67: 6 | AC67: 0 | AD67: 1 | AE67: 0 | AF67: 1 | AG67: 0 | AH67: 1 | AI67: 0 | AJ67: 1 | AK67: 0 | AL67: 2 | AM67: 0
C68: 물체에 맞음(날아오거나 떨어진 물체에 맞음) | D68: 6 | E68: 0 | F68: 2 | G68: 0 | H68: 2 | I68: 0 | J68: 1 | K68: 0 | L68: 0 | M68: 0 | N68: 1 | O68: 0 | P68: 2 | Q68: 0 | R68: 0 | S68: 0 | T68: 0 | U68: 0 | V68: 0 | W68: 0 | X68: 1 | Y68: 0 | Z68: 1 | AA68: 0 | AB68: 2 | AC68: 0 | AD68: 0 | AE68: 0 | AF68: 1 | AG68: 0 | AH68: 1 | AI68: 0 | AJ68: 0 | AK68: 0 | AL68: 0 | AM68: 0
C69: 무너짐(건축물이나 쌓여진 물체가 무너짐) | D69: =F69+H69+J69+L69+N69 -> 1 | E69: =G69+I69+K69+M69+O69 -> 0 | F69: 0 | G69: 0 | H69: 1 | I69: 0 | J69: 0 | K69: 0 | L69: 0 | M69: 0 | N69: 0 | O69: 0 | P69: =R69+T69+V69+X69+Z69 -> 0 | Q69: =S69+U69+W69+Y69+AA69 -> 0 | R69: 0 | S69: 0 | T69: 0 | U69: 0 | V69: 0 | W69: 0 | X69: 0 | Y69: 0 | Z69: 0 | AA69: 0 | AB69: =AD69+AF69+AH69+AJ69+AL69 -> 0 | AC69: =AE69+AG69+AI69+AK69+AM69 -> 0 | AD69: 0 | AE69: 0 | AF69: 0 | AG69: 0 | AH69: 0 | AI69: 0 | AJ69: 0 | AK69: 0 | AL69: 0 | AM69: 0
C70: 끼임(기계설비에 끼이거나 감김) | D70: 3 | E70: 0 | F70: 0 | G70: 0 | H70: 2 | I70: 0 | J70: 1 | K70: 0 | L70: 0 | M70: 0 | N70: 0 | O70: 0 | P70: 3 | Q70: 0 | R70: 1 | S70: 0 | T70: 2 | U70: 0 | V70: 0 | W70: 0 | X70: 0 | Y70: 0 | Z70: 0 | AA70: 0 | AB70: 3 | AC70: 0 | AD70: 0 | AE70: 0 | AF70: 1 | AG70: 0 | AH70: 1 | AI70: 0 | AJ70: 0 | AK70: 0 | AL70: 1 | AM70: 0
C71: 절단·베임·찔림 | D71: 7 | E71: 0 | F71: 2 | G71: 0 | H71: 3 | I71: 0 | J71: 1 | K71: 0 | L71: 1 | M71: 0 | N71: 0 | O71: 0 | P71: 6 | Q71: 0 | R71: 2 | S71: 0 | T71: 2 | U71: 0 | V71: 0 | W71: 0 | X71: 0 | Y71: 0 | Z71: 2 | AA71: 0 | AB71: 5 | AC71: 0 | AD71: 1 | AE71: 0 | AF71: 2 | AG71: 0 | AH71: 1 | AI71: 0 | AJ71: 1 | AK71: 0 | AL71: 0 | AM71: 0
C72: 감전 | D72: 3 | E72: 0 | F72: 0 | G72: 0 | H72: 3 | I72: 0 | J72: 0 | K72: 0 | L72: 0 | M72: 0 | N72: 0 | O72: 0 | P72: 0 | Q72: 0 | R72: 0 | S72: 0 | T72: 0 | U72: 0 | V72: 0 | W72: 0 | X72: 0 | Y72: 0 | Z72: 0 | AA72: 0 | AB72: 1 | AC72: 0 | AD72: 0 | AE72: 0 | AF72: 0 | AG72: 0 | AH72: 1 | AI72: 0 | AJ72: 0 | AK72: 0 | AL72: 0 | AM72: 0
C73: 불균형 및 무리한 동작 | D73: 6 | E73: 0 | F73: 2 | G73: 0 | H73: 1 | I73: 0 | J73: 2 | K73: 0 | L73: 0 | M73: 0 | N73: 1 | O73: 0 | P73: 7 | Q73: 0 | R73: 0 | S73: 0 | T73: 3 | U73: 0 | V73: 2 | W73: 0 | X73: 2 | Y73: 0 | Z73: 0 | AA73: 0 | AB73: 6 | AC73: 0 | AD73: 1 | AE73: 0 | AF73: 2 | AG73: 0 | AH73: 1 | AI73: 0 | AJ73: 2 | AK73: 0 | AL73: 0 | AM73: 0
C74: 이상온도 접촉 | D74: 1 | E74: 0 | F74: 0 | G74: 0 | H74: 0 | I74: 0 | J74: 0 | K74: 0 | L74: 0 | M74: 0 | N74: 1 | O74: 0 | P74: 1 | Q74: 0 | R74: 0 | S74: 0 | T74: 1 | U74: 0 | V74: 0 | W74: 0 | X74: 0 | Y74: 0 | Z74: 0 | AA74: 0 | AB74: 0 | AC74: 0 | AD74: 0 | AE74: 0 | AF74: 0 | AG74: 0 | AH74: 0 | AI74: 0 | AJ74: 0 | AK74: 0 | AL74: 0 | AM74: 0
C75: 화학물질누출·접촉 | D75: 1 | E75: 0 | F75: 0 | G75: 0 | H75: 1 | I75: 0 | J75: 0 | K75: 0 | L75: 0 | M75: 0 | N75: 0 | O75: 0 | P75: 0 | Q75: 0 | R75: 0 | S75: 0 | T75: 0 | U75: 0 | V75: 0 | W75: 0 | X75: 0 | Y75: 0 | Z75: 0 | AA75: 0 | AB75: 0 | AC75: 0 | AD75: 0 | AE75: 0 | AF75: 0 | AG75: 0 | AH75: 0 | AI75: 0 | AJ75: 0 | AK75: 0 | AL75: 0 | AM75: 0
C76: 사업장외 교통사고 | D76: 1 | E76: 0 | F76: 0 | G76: 0 | H76: 0 | I76: 0 | J76: 0 | K76: 0 | L76: 1 | M76: 0 | N76: 0 | O76: 0 | P76: 0 | Q76: 0 | R76: 0 | S76: 0 | T76: 0 | U76: 0 | V76: 0 | W76: 0 | X76: 0 | Y76: 0 | Z76: 0 | AA76: 0 | AB76: 1 | AC76: 0 | AD76: 0 | AE76: 0 | AF76: 0 | AG76: 0 | AH76: 1 | AI76: 0 | AJ76: 0 | AK76: 0 | AL76: 0 | AM76: 0
C77: 체육행사 등의 사고 | D77: 0 | E77: 0 | F77: 0 | G77: 0 | H77: 0 | I77: 0 | J77: 0 | K77: 0 | L77: 0 | M77: 0 | N77: 0 | O77: 0 | P77: 0 | Q77: 0 | R77: 0 | S77: 0 | T77: 0 | U77: 0 | V77: 0 | W77: 0 | X77: 0 | Y77: 0 | Z77: 0 | AA77: 0 | AB77: 1 | AC77: 0 | AD77: 0 | AE77: 0 | AF77: 1 | AG77: 0 | AH77: 0 | AI77: 0 | AJ77: 0 | AK77: 0 | AL77: 0 | AM77: 0
C78: 폭력행위 | D78: 0 | E78: 0 | F78: 0 | G78: 0 | H78: 0 | I78: 0 | J78: 0 | K78: 0 | L78: 0 | M78: 0 | N78: 0 | O78: 0 | P78: 1 | Q78: 0 | R78: 0 | S78: 0 | T78: 1 | U78: 0 | V78: 0 | W78: 0 | X78: 0 | Y78: 0 | Z78: 0 | AA78: 0 | AB78: 0 | AC78: 0 | AD78: 0 | AE78: 0 | AF78: 0 | AG78: 0 | AH78: 0 | AI78: 0 | AJ78: 0 | AK78: 0 | AL78: 0 | AM78: 0
C79: 화학적인자 | D79: 0 | E79: 0 | F79: 0 | G79: 0 | H79: 0 | I79: 0 | J79: 0 | K79: 0 | L79: 0 | M79: 0 | N79: 0 | O79: 0 | P79: 0 | Q79: 0 | R79: 0 | S79: 0 | T79: 0 | U79: 0 | V79: 0 | W79: 0 | X79: 0 | Y79: 0 | Z79: 0 | AA79: 0 | AB79: 0 | AC79: 0 | AD79: 0 | AE79: 0 | AF79: 0 | AG79: 0 | AH79: 0 | AI79: 0 | AJ79: 0 | AK79: 0 | AL79: 0 | AM79: 0
C80: 생물학적인자 | D80: 0 | E80: 0 | F80: 0 | G80: 0 | H80: 0 | I80: 0 | J80: 0 | K80: 0 | L80: 0 | M80: 0 | N80: 0 | O80: 0 | P80: 0 | Q80: 0 | R80: 0 | S80: 0 | T80: 0 | U80: 0 | V80: 0 | W80: 0 | X80: 0 | Y80: 0 | Z80: 0 | AA80: 0 | AB80: 0 | AC80: 0 | AD80: 0 | AE80: 0 | AF80: 0 | AG80: 0 | AH80: 0 | AI80: 0 | AJ80: 0 | AK80: 0 | AL80: 0 | AM80: 0
C81: 뇌심혈관질환 | D81: 0 | E81: 0 | F81: 0 | G81: 0 | H81: 0 | I81: 0 | J81: 0 | K81: 0 | L81: 0 | M81: 0 | N81: 0 | O81: 0 | P81: 0 | Q81: 0 | R81: 0 | S81: 0 | T81: 0 | U81: 0 | V81: 0 | W81: 0 | X81: 0 | Y81: 0 | Z81: 0 | AA81: 0 | AB81: 0 | AC81: 0 | AD81: 0 | AE81: 0 | AF81: 0 | AG81: 0 | AH81: 0 | AI81: 0 | AJ81: 0 | AK81: 0 | AL81: 0 | AM81: 0
C82: 근골격계질환 | D82: 0 | E82: 0 | F82: 0 | G82: 0 | H82: 0 | I82: 0 | J82: 0 | K82: 0 | L82: 0 | M82: 0 | N82: 0 | O82: 0 | P82: 0 | Q82: 0 | R82: 0 | S82: 0 | T82: 0 | U82: 0 | V82: 0 | W82: 0 | X82: 0 | Y82: 0 | Z82: 0 | AA82: 0 | AB82: 0 | AC82: 0 | AD82: 0 | AE82: 0 | AF82: 0 | AG82: 0 | AH82: 0 | AI82: 0 | AJ82: 0 | AK82: 0 | AL82: 0 | AM82: 0
C83: 작업관련성질환 기타 | D83: 0 | E83: 0 | F83: 0 | G83: 0 | H83: 0 | I83: 0 | J83: 0 | K83: 0 | L83: 0 | M83: 0 | N83: 0 | O83: 0 | P83: 0 | Q83: 0 | R83: 0 | S83: 0 | T83: 0 | U83: 0 | V83: 0 | W83: 0 | X83: 0 | Y83: 0 | Z83: 0 | AA83: 0 | AB83: 0 | AC83: 0 | AD83: 0 | AE83: 0 | AF83: 0 | AG83: 0 | AH83: 0 | AI83: 0 | AJ83: 0 | AK83: 0 | AL83: 0 | AM83: 0
B84: 의 정 부 | C84: 합계 | D84: 86 | E84: 1 | F84: 36 | G84: 0 | H84: 26 | I84: 0 | J84: 18 | K84: 1 | L84: 3 | M84: 0 | N84: 3 | O84: 0 | P84: 105 | Q84: 1 | R84: 28 | S84: 0 | T84: 42 | U84: 1 | V84: 21 | W84: 0 | X84: 6 | Y84: 0 | Z84: 8 | AA84: 0 | AB84: 117 | AC84: 1 | AD84: 40 | AE84: 1 | AF84: 44 | AG84: 0 | AH84: 23 | AI84: 0 | AJ84: 6 | AK84: 0 | AL84: 4 | AM84: 0
C85: 떨어짐(높이가 있는 곳에서 사람이 떨어짐) | D85: 14 | E85: 0 | F85: 8 | G85: 0 | H85: 4 | I85: 0 | J85: 1 | K85: 0 | L85: 1 | M85: 0 | N85: 0 | O85: 0 | P85: 15 | Q85: 1 | R85: 3 | S85: 0 | T85: 9 | U85: 1 | V85: 2 | W85: 0 | X85: 0 | Y85: 0 | Z85: 1 | AA85: 0 | AB85: 19 | AC85: 0 | AD85: 8 | AE85: 0 | AF85: 6 | AG85: 0 | AH85: 3 | AI85: 0 | AJ85: 1 | AK85: 0 | AL85: 1 | AM85: 0
C86: 넘어짐(사람이 미끄러지거나 넘어짐) | D86: 51 | E86: 0 | F86: 21 | G86: 0 | H86: 16 | I86: 0 | J86: 10 | K86: 0 | L86: 1 | M86: 0 | N86: 3 | O86: 0 | P86: 53 | Q86: 0 | R86: 17 | S86: 0 | T86: 17 | U86: 0 | V86: 13 | W86: 0 | X86: 4 | Y86: 0 | Z86: 2 | AA86: 0 | AB86: 68 | AC86: 1 | AD86: 22 | AE86: 1 | AF86: 28 | AG86: 0 | AH86: 11 | AI86: 0 | AJ86: 4 | AK86: 0 | AL86: 3 | AM86: 0
C87: 깔림·뒤집힘(물체의 쓰러짐이나 뒤집힘) | D87: 0 | E87: 0 | F87: 0 | G87: 0 | H87: 0 | I87: 0 | J87: 0 | K87: 0 | L87: 0 | M87: 0 | N87: 0 | O87: 0 | P87: 3 | Q87: 0 | R87: 0 | S87: 0 | T87: 1 | U87: 0 | V87: 1 | W87: 0 | X87: 0 | Y87: 0 | Z87: 1 | AA87: 0 | AB87: 3 | AC87: 0 | AD87: 1 | AE87: 0 | AF87: 1 | AG87: 0 | AH87: 1 | AI87: 0 | AJ87: 0 | AK87: 0 | AL87: 0 | AM87: 0
C88: 부딪힘(물체에 부딪힘) | D88: 4 | E88: 1 | F88: 1 | G88: 0 | H88: 2 | I88: 0 | J88: 1 | K88: 1 | L88: 0 | M88: 0 | N88: 0 | O88: 0 | P88: 5 | Q88: 0 | R88: 0 | S88: 0 | T88: 2 | U88: 0 | V88: 0 | W88: 0 | X88: 1 | Y88: 0 | Z88: 2 | AA88: 0 | AB88: 5 | AC88: 0 | AD88: 2 | AE88: 0 | AF88: 0 | AG88: 0 | AH88: 3 | AI88: 0 | AJ88: 0 | AK88: 0 | AL88: 0 | AM88: 0
C89: 물체에 맞음(날아오거나 떨어진 물체에 맞음) | D89: 3 | E89: 0 | F89: 1 | G89: 0 | H89: 2 | I89: 0 | J89: 0 | K89: 0 | L89: 0 | M89: 0 | N89: 0 | O89: 0 | P89: 3 | Q89: 0 | R89: 0 | S89: 0 | T89: 2 | U89: 0 | V89: 1 | W89: 0 | X89: 0 | Y89: 0 | Z89: 0 | AA89: 0 | AB89: 3 | AC89: 0 | AD89: 1 | AE89: 0 | AF89: 2 | AG89: 0 | AH89: 0 | AI89: 0 | AJ89: 0 | AK89: 0 | AL89: 0 | AM89: 0
C90: 무너짐(건축물이나 쌓여진 물체가 무너짐) | D90: 1 | E90: 0 | F90: 1 | G90: 0 | H90: 0 | I90: 0 | J90: 0 | K90: 0 | L90: 0 | M90: 0 | N90: 0 | O90: 0 | P90: 0 | Q90: 0 | R90: 0 | S90: 0 | T90: 0 | U90: 0 | V90: 0 | W90: 0 | X90: 0 | Y90: 0 | Z90: 0 | AA90: 0 | AB90: 0 | AC90: 0 | AD90: 0 | AE90: 0 | AF90: 0 | AG90: 0 | AH90: 0 | AI90: 0 | AJ90: 0 | AK90: 0 | AL90: 0 | AM90: 0
C91: 끼임(기계설비에 끼이거나 감김) | D91: 2 | E91: 0 | F91: 0 | G91: 0 | H91: 1 | I91: 0 | J91: 1 | K91: 0 | L91: 0 | M91: 0 | N91: 0 | O91: 0 | P91: 2 | Q91: 0 | R91: 1 | S91: 0 | T91: 0 | U91: 0 | V91: 0 | W91: 0 | X91: 0 | Y91: 0 | Z91: 1 | AA91: 0 | AB91: 4 | AC91: 0 | AD91: 1 | AE91: 0 | AF91: 2 | AG91: 0 | AH91: 1 | AI91: 0 | AJ91: 0 | AK91: 0 | AL91: 0 | AM91: 0
C92: 절단·베임·찔림 | D92: 7 | E92: 0 | F92: 1 | G92: 0 | H92: 1 | I92: 0 | J92: 4 | K92: 0 | L92: 1 | M92: 0 | N92: 0 | O92: 0 | P92: 11 | Q92: 0 | R92: 3 | S92: 0 | T92: 5 | U92: 0 | V92: 2 | W92: 0 | X92: 0 | Y92: 0 | Z92: 1 | AA92: 0 | AB92: 5 | AC92: 0 | AD92: 0 | AE92: 0 | AF92: 3 | AG92: 0 | AH92: 2 | AI92: 0 | AJ92: 0 | AK92: 0 | AL92: 0 | AM92: 0
C93: 감전 | D93: 0 | E93: 0 | F93: 0 | G93: 0 | H93: 0 | I93: 0 | J93: 0 | K93: 0 | L93: 0 | M93: 0 | N93: 0 | O93: 0 | P93: 1 | Q93: 0 | R93: 0 | S93: 0 | T93: 1 | U93: 0 | V93: 0 | W93: 0 | X93: 0 | Y93: 0 | Z93: 0 | AA93: 0 | AB93: 0 | AC93: 0 | AD93: 0 | AE93: 0 | AF93: 0 | AG93: 0 | AH93: 0 | AI93: 0 | AJ93: 0 | AK93: 0 | AL93: 0 | AM93: 0
C94: 불균형 및 무리한 동작 | D94: 3 | E94: 0 | F94: 2 | G94: 0 | H94: 0 | I94: 0 | J94: 1 | K94: 0 | L94: 0 | M94: 0 | N94: 0 | O94: 0 | P94: 7 | Q94: 0 | R94: 3 | S94: 0 | T94: 3 | U94: 0 | V94: 1 | W94: 0 | X94: 0 | Y94: 0 | Z94: 0 | AA94: 0 | AB94: 9 | AC94: 0 | AD94: 5 | AE94: 0 | AF94: 1 | AG94: 0 | AH94: 2 | AI94: 0 | AJ94: 1 | AK94: 0 | AL94: 0 | AM94: 0
C95: 이상온도 접촉 | D95: 0 | E95: 0 | F95: 0 | G95: 0 | H95: 0 | I95: 0 | J95: 0 | K95: 0 | L95: 0 | M95: 0 | N95: 0 | O95: 0 | P95: 1 | Q95: 0 | R95: 0 | S95: 0 | T95: 1 | U95: 0 | V95: 0 | W95: 0 | X95: 0 | Y95: 0 | Z95: 0 | AA95: 0 | AB95: 1 | AC95: 0 | AD95: 0 | AE95: 0 | AF95: 1 | AG95: 0 | AH95: 0 | AI95: 0 | AJ95: 0 | AK95: 0 | AL95: 0 | AM95: 0
C96: 사업장외 교통사고 | D96: 0 | E96: 0 | F96: 0 | G96: 0 | H96: 0 | I96: 0 | J96: 0 | K96: 0 | L96: 0 | M96: 0 | N96: 0 | O96: 0 | P96: 1 | Q96: 0 | R96: 0 | S96: 0 | T96: 0 | U96: 0 | V96: 0 | W96: 0 | X96: 1 | Y96: 0 | Z96: 0 | AA96: 0 | AB96: 0 | AC96: 0 | AD96: 0 | AE96: 0 | AF96: 0 | AG96: 0 | AH96: 0 | AI96: 0 | AJ96: 0 | AK96: 0 | AL96: 0 | AM96: 0
C97: 폭력행위 | D97: 1 | E97: 0 | F97: 1 | G97: 0 | H97: 0 | I97: 0 | J97: 0 | K97: 0 | L97: 0 | M97: 0 | N97: 0 | O97: 0 | P97: 2 | Q97: 0 | R97: 1 | S97: 0 | T97: 1 | U97: 0 | V97: 0 | W97: 0 | X97: 0 | Y97: 0 | Z97: 0 | AA97: 0 | AB97: 0 | AC97: 0 | AD97: 0 | AE97: 0 | AF97: 0 | AG97: 0 | AH97: 0 | AI97: 0 | AJ97: 0 | AK97: 0 | AL97: 0 | AM97: 0
C98: 동물상해 | D98: 0 | E98: 0 | F98: 0 | G98: 0 | H98: 0 | I98: 0 | J98: 0 | K98: 0 | L98: 0 | M98: 0 | N98: 0 | O98: 0 | P98: 1 | Q98: 0 | R98: 0 | S98: 0 | T98: 0 | U98: 0 | V98: 1 | W98: 0 | X98: 0 | Y98: 0 | Z98: 0 | AA98: 0 | AB98: 0 | AC98: 0 | AD98: 0 | AE98: 0 | AF98: 0 | AG98: 0 | AH98: 0 | AI98: 0 | AJ98: 0 | AK98: 0 | AL98: 0 | AM98: 0
C99: 물리적인자 | D99: 0 | E99: 0 | F99: 0 | G99: 0 | H99: 0 | I99: 0 | J99: 0 | K99: 0 | L99: 0 | M99: 0 | N99: 0 | O99: 0 | P99: 0 | Q99: 0 | R99: 0 | S99: 0 | T99: 0 | U99: 0 | V99: 0 | W99: 0 | X99: 0 | Y99: 0 | Z99: 0 | AA99: 0 | AB99: 0 | AC99: 0 | AD99: 0 | AE99: 0 | AF99: 0 | AG99: 0 | AH99: 0 | AI99: 0 | AJ99: 0 | AK99: 0 | AL99: 0 | AM99: 0
C100: 화학적인자 | D100: 0 | E100: 0 | F100: 0 | G100: 0 | H100: 0 | I100: 0 | J100: 0 | K100: 0 | L100: 0 | M100: 0 | N100: 0 | O100: 0 | P100: 0 | Q100: 0 | R100: 0 | S100: 0 | T100: 0 | U100: 0 | V100: 0 | W100: 0 | X100: 0 | Y100: 0 | Z100: 0 | AA100: 0 | AB100: 0 | AC100: 0 | AD100: 0 | AE100: 0 | AF100: 0 | AG100: 0 | AH100: 0 | AI100: 0 | AJ100: 0 | AK100: 0 | AL100: 0 | AM100: 0
C101: 뇌심혈관질환 | D101: 0 | E101: 0 | F101: 0 | G101: 0 | H101: 0 | I101: 0 | J101: 0 | K101: 0 | L101: 0 | M101: 0 | N101: 0 | O101: 0 | P101: 0 | Q101: 0 | R101: 0 | S101: 0 | T101: 0 | U101: 0 | V101: 0 | W101: 0 | X101: 0 | Y101: 0 | Z101: 0 | AA101: 0 | AB101: 0 | AC101: 0 | AD101: 0 | AE101: 0 | AF101: 0 | AG101: 0 | AH101: 0 | AI101: 0 | AJ101: 0 | AK101: 0 | AL101: 0 | AM101: 0
C102: 근골격계질환 | D102: 0 | E102: 0 | F102: 0 | G102: 0 | H102: 0 | I102: 0 | J102: 0 | K102: 0 | L102: 0 | M102: 0 | N102: 0 | O102: 0 | P102: 0 | Q102: 0 | R102: 0 | S102: 0 | T102: 0 | U102: 0 | V102: 0 | W102: 0 | X102: 0 | Y102: 0 | Z102: 0 | AA102: 0 | AB102: 0 | AC102: 0 | AD102: 0 | AE102: 0 | AF102: 0 | AG102: 0 | AH102: 0 | AI102: 0 | AJ102: 0 | AK102: 0 | AL102: 0 | AM102: 0
C103: 작업관련성질환 기타 | D103: 0 | E103: 0 | F103: 0 | G103: 0 | H103: 0 | I103: 0 | J103: 0 | K103: 0 | L103: 0 | M103: 0 | N103: 0 | O103: 0 | P103: 0 | Q103: 0 | R103: 0 | S103: 0 | T103: 0 | U103: 0 | V103: 0 | W103: 0 | X103: 0 | Y103: 0 | Z103: 0 | AA103: 0 | AB103: 0 | AC103: 0 | AD103: 0 | AE103: 0 | AF103: 0 | AG103: 0 | AH103: 0 | AI103: 0 | AJ103: 0 | AK103: 0 | AL103: 0 | AM103: 0

Sheet 경기
A1: 업종(소) | B1: 고용지청 | C1: 기준년월 | D1: 2021년 12월 | P1: 2022년 12월 | AB1: 2023년 11월
C2: 규모(소) | D2: 규모별 합계 | F2: 5인 미만 | H2: 5인 ~ 9인 | J2: 10인 ~ 19인 | L2: 20인 ~ 29인 | N2: 30인 ~ 49인 | P2: 규모별 합계 | R2: 5인 미만 | T2: 5인 ~ 9인 | V2: 10인 ~ 19인 | X2: 20인 ~ 29인 | Z2: 30인 ~ 49인 | AB2: 규모별 합계 | AD2: 5인 미만 | AF2: 5인 ~ 9인 | AH2: 10인 ~ 19인 | AJ2: 20인 ~ 29인 | AL2: 30인 ~ 49인
C3: 발생형태(중) | D3: 사고재해자수 합계 | E3: 사고사망자수 합계 | F3: 사고재해자수 | G3: 사고사망자수 | H3: 사고재해자수 | I3: 사고사망자수 | J3: 사고재해자수 | K3: 사고사망자수 | L3: 사고재해자수 | M3: 사고사망자수 | N3: 사고재해자수 | O3: 사고사망자수 | P3: 사고재해자수 합계 | Q3: 사고사망자수 합계 | R3: 사고재해자수 | S3: 사고사망자수 | T3: 사고재해자수 | U3: 사고사망자수 | V3: 사고재해자수 | W3: 사고사망자수 | X3: 사고재해자수 | Y3: 사고사망자수 | Z3: 사고재해자수 | AA3: 사고사망자수 | AB3: 사고재해자수 합계 | AC3: 사고사망자수 합계 | AD3: 사고재해자수 | AE3: 사고사망자수 | AF3: 사고재해자수 | AG3: 사고사망자수 | AH3: 사고재해자수 | AI3: 사고사망자수 | AJ3: 사고재해자수 | AK3: 사고사망자수 | AL3: 사고재해자수 | AM3: 사고사망자수
A4: 건물등의종합관리사업 | B4: 합계 | D4: =D5+D27+D45+D65+D85 -> 504 | E4: =E5+E27+E45+E65+E85 -> 1 | F4: 142 | G4: 1 | H4: 170 | I4: 0 | J4: 126 | K4: 0 | L4: 34 | M4: 0 | N4: 32 | O4: 0 | P4: 549 | Q4: 3 | R4: 179 | S4: 1 | T4: 169 | U4: 2 | V4: 127 | W4: 0 | X4: 34 | Y4: 0 | Z4: 40 | AA4: 0 | AB4: 510 | AC4: 2 | AD4: 163 | AE4: 0 | AF4: 164 | AG4: 2 | AH4: 103 | AI4: 0 | AJ4: 38 | AK4: 0 | AL4: 42 | AM4: 0
B5: 경 기 | C5: 합계 | D5: =F5+H5+J5+L5+N5 -> 176 | E5: =G5+I5+K5+M5+O5 -> 1 | F5: 55 | G5: 1 | H5: 64 | I5: 0 | J5: 41 | K5: 0 | L5: 8 | M5: 0 | N5: 8 | O5: 0 | P5: =R5+T5+V5+X5+Z5 -> 205 | Q5: =S5+U5+W5+Y5+AA5 -> 1 | R5: 64 | S5: 0 | T5: 75 | U5: 1 | V5: 47 | W5: 0 | X5: 6 | Y5: 0 | Z5: 13 | AA5: 0 | AB5: =AD5+AF5+AH5+AJ5+AL5 -> 181 | AC5: =AE5+AG5+AI5+AK5+AM5 -> 1 | AD5: 64 | AE5: 0 | AF5: 57 | AG5: 1 | AH5: 37 | AI5: 0 | AJ5: 10 | AK5: 0 | AL5: 13 | AM5: 0
C6: 떨어짐(높이가 있는 곳에서 사람이 떨어짐) | D6: 38 | E6: 1 | F6: 13 | G6: 1 | H6: 19 | I6: 0 | J6: 6 | K6: 0 | L6: 0 | M6: 0 | N6: 0 | O6: 0 | P6: 31 | Q6: 1 | R6: 11 | S6: 0 | T6: 13 | U6: 1 | V6: 4 | W6: 0 | X6: 2 | Y6: 0 | Z6: 1 | AA6: 0 | AB6: 39 | AC6: 1 | AD6: 16 | AE6: 0 | AF6: 12 | AG6: 1 | AH6: 9 | AI6: 0 | AJ6: 1 | AK6: 0 | AL6: 1 | AM6: 0
C7: 넘어짐(사람이 미끄러지거나 넘어짐) | D7: 93 | E7: 0 | F7: 31 | G7: 0 | H7: 27 | I7: 0 | J7: 23 | K7: 0 | L7: 5 | M7: 0 | N7: 7 | O7: 0 | P7: 111 | Q7: 0 | R7: 32 | S7: 0 | T7: 39 | U7: 0 | V7: 29 | W7: 0 | X7: 3 | Y7: 0 | Z7: 8 | AA7: 0 | AB7: 84 | AC7: 0 | AD7: 33 | AE7: 0 | AF7: 28 | AG7: 0 | AH7: 14 | AI7: 0 | AJ7: 4 | AK7: 0 | AL7: 5 | AM7: 0
C8: 깔림·뒤집힘(물체의 쓰러짐이나 뒤집힘) | D8: 0 | E8: 0 | F8: 0 | G8: 0 | H8: 0 | I8: 0 | J8: 0 | K8: 0 | L8: 0 | M8: 0 | N8: 0 | O8: 0 | P8: 2 | Q8: 0 | R8: 0 | S8: 0 | T8: 0 | U8: 0 | V8: 2 | W8: 0 | X8: 0 | Y8: 0 | Z8: 0 | AA8: 0 | AB8: 5 | AC8: 0 | AD8: 1 | AE8: 0 | AF8: 2 | AG8: 0 | AH8: 1 | AI8: 0 | AJ8: 0 | AK8: 0 | AL8: 1 | AM8: 0
C9: 부딪힘(물체에 부딪힘) | D9: 7 | E9: 0 | F9: 1 | G9: 0 | H9: 3 | I9: 0 | J9: 3 | K9: 0 | L9: 0 | M9: 0 | N9: 0 | O9: 0 | P9: 8 | Q9: 0 | R9: 4 | S9: 0 | T9: 2 | U9: 0 | V9: 1 | W9: 0 | X9: 0 | Y9: 0 | Z9: 1 | AA9: 0 | AB9: 17 | AC9: 0 | AD9: 5 | AE9: 0 | AF9: 4 | AG9: 0 | AH9: 3 | AI9: 0 | AJ9: 4 | AK9: 0 | AL9: 1 | AM9: 0
C10: 물체에 맞음(날아오거나 떨어진 물체에 맞음) | D10: 4 | E10: 0 | F10: 0 | G10: 0 | H10: 3 | I10: 0 | J10: 1 | K10: 0 | L10: 0 | M10: 0 | N10: 0 | O10: 0 | P10: 9 | Q10: 0 | R10: 2 | S10: 0 | T10: 5 | U10: 0 | V10: 1 | W10: 0 | X10: 0 | Y10: 0 | Z10: 1 | AA10: 0 | AB10: 5 | AC10: 0 | AD10: 0 | AE10: 0 | AF10: 1 | AG10: 0 | AH10: 2 | AI10: 0 | AJ10: 0 | AK10: 0 | AL10: 2 | AM10: 0
C11: 무너짐(건축물이나 쌓여진 물체가 무너짐) | D11: 0 | E11: 0 | F11: 0 | G11: 0 | H11: 0 | I11: 0 | J11: 0 | K11: 0 | L11: 0 | M11: 0 | N11: 0 | O11: 0 | P11: 1 | Q11: 0 | R11: 0 | S11: 0 | T11: 1 | U11: 0 | V11: 0 | W11: 0 | X11: 0 | Y11: 0 | Z11: 0 | AA11: 0 | AB11: 1 | AC11: 0 | AD11: 1 | AE11: 0 | AF11: 0 | AG11: 0 | AH11: 0 | AI11: 0 | AJ11: 0 | AK11: 0 | AL11: 0 | AM11: 0
C12: 끼임(기계설비에 끼이거나 감김) | D12: 8 | E12: 0 | F12: 1 | G12: 0 | H12: 4 | I12: 0 | J12: 2 | K12: 0 | L12: 1 | M12: 0 | N12: 0 | O12: 0 | P12: 5 | Q12: 0 | R12: 1 | S12: 0 | T12: 2 | U12: 0 | V12: 1 | W12: 0 | X12: 0 | Y12: 0 | Z12: 1 | AA12: 0 | AB12: 11 | AC12: 0 | AD12: 4 | AE12: 0 | AF12: 3 | AG12: 0 | AH12: 2 | AI12: 0 | AJ12: 0 | AK12: 0 | AL12: 2 | AM12: 0
C13: 절단·베임·찔림 | D13: 8 | E13: 0 | F13: 2 | G13: 0 | H13: 3 | I13: 0 | J13: 2 | K13: 0 | L13: 0 | M13: 0 | N13: 1 | O13: 0 | P13: 16 | Q13: 0 | R13: 6 | S13: 0 | T13: 6 | U13: 0 | V13: 4 | W13: 0 | X13: 0 | Y13: 0 | Z13: 0 | AA13: 0 | AB13: 6 | AC13: 0 | AD13: 1 | AE13: 0 | AF13: 4 | AG13: 0 | AH13: 1 | AI13: 0 | AJ13: 0 | AK13: 0 | AL13: 0 | AM13: 0
C14: 감전 | D14: 0 | E14: 0 | F14: 0 | G14: 0 | H14: 0 | I14: 0 | J14: 0 | K14: 0 | L14: 0 | M14: 0 | N14: 0 | O14: 0 | P14: 1 | Q14: 0 | R14: 1 | S14: 0 | T14: 0 | U14: 0 | V14: 0 | W14: 0 | X14: 0 | Y14: 0 | Z14: 0 | AA14: 0 | AB14: 0 | AC14: 0 | AD14: 0 | AE14: 0 | AF14: 0 | AG14: 0 | AH14: 0 | AI14: 0 | AJ14: 0 | AK14: 0 | AL14: 0 | AM14: 0
C15: 화재 | D15: 1 | E15: 0 | F15: 1 | G15: 0 | H15: 0 | I15: 0 | J15: 0 | K15: 0 | L15: 0 | M15: 0 | N15: 0 | O15: 0 | P15: 0 | Q15: 0 | R15: 0 | S15: 0 | T15: 0 | U15: 0 | V15: 0 | W15: 0 | X15: 0 | Y15: 0 | Z15: 0 | AA15: 0 | AB15: 2 | AC15: 0 | AD15: 1 | AE15: 0 | AF15: 0 | AG15: 0 | AH15: 1 | AI15: 0 | AJ15: 0 | AK15: 0 | AL15: 0 | AM15: 0
C16: 불균형 및 무리한 동작 | D16: 9 | E16: 0 | F16: 3 | G16: 0 | H16: 3 | I16: 0 | J16: 2 | K16: 0 | L16: 1 | M16: 0 | N16: 0 | O16: 0 | P16: 14 | Q16: 0 | R16: 5 | S16: 0 | T16: 5 | U16: 0 | V16: 2 | W16: 0 | X16: 1 | Y16: 0 | Z16: 1 | AA16: 0 | AB16: 9 | AC16: 0 | AD16: 2 | AE16: 0 | AF16: 2 | AG16: 0 | AH16: 3 | AI16: 0 | AJ16: 1 | AK16: 0 | AL16: 1 | AM16: 0
C17: 이상온도 접촉 | D17: 2 | E17: 0 | F17: 1 | G17: 0 | H17: 1 | I17: 0 | J17: 0 | K17: 0 | L17: 0 | M17: 0 | N17: 0 | O17: 0 | P17: 1 | Q17: 0 | R17: 0 | S17: 0 | T17: 1 | U17: 0 | V17: 0 | W17: 0 | X17: 0 | Y17: 0 | Z17: 0 | AA17: 0 | AB17: 0 | AC17: 0 | AD17: 0 | AE17: 0 | AF17: 0 | AG17: 0 | AH17: 0 | AI17: 0 | AJ17: 0 | AK17: 0 | AL17: 0 | AM17: 0
C18: 화학물질누출·접촉 | D18: 0 | E18: 0 | F18: 0 | G18: 0 | H18: 0 | I18: 0 | J18: 0 | K18: 0 | L18: 0 | M18: 0 | N18: 0 | O18: 0 | P18: 1 | Q18: 0 | R18: 1 | S18: 0 | T18: 0 | U18: 0 | V18: 0 | W18: 0 | X18: 0 | Y18: 0 | Z18: 0 | AA18: 0 | AB18: 0 | AC18: 0 | AD18: 0 | AE18: 0 | AF18: 0 | AG18: 0 | AH18: 0 | AI18: 0 | AJ18: 0 | AK18: 0 | AL18: 0 | AM18: 0
C19: 사업장외 교통사고 | D19: 3 | E19: 0 | F19: 1 | G19: 0 | H19: 1 | I19: 0 | J19: 0 | K19: 0 | L19: 1 | M19: 0 | N19: 0 | O19: 0 | P19: 2 | Q19: 0 | R19: 0 | S19: 0 | T19: 0 | U19: 0 | V19: 2 | W19: 0 | X19: 0 | Y19: 0 | Z19: 0 | AA19: 0 | AB19: 0 | AC19: 0 | AD19: 0 | AE19: 0 | AF19: 0 | AG19: 0 | AH19: 0 | AI19: 0 | AJ19: 0 | AK19: 0 | AL19: 0 | AM19: 0
C20: 체육행사 등의 사고 | D20: 0 | E20: 0 | F20: 0 | G20: 0 | H20: 0 | I20: 0 | J20: 0 | K20: 0 | L20: 0 | M20: 0 | N20: 0 | O20: 0 | P20: 1 | Q20: 0 | R20: 1 | S20: 0 | T20: 0 | U20: 0 | V20: 0 | W20: 0 | X20: 0 | Y20: 0 | Z20: 0 | AA20: 0 | AB20: 1 | AC20: 0 | AD20: 0 | AE20: 0 | AF20: 1 | AG20: 0 | AH20: 0 | AI20: 0 | AJ20: 0 | AK20: 0 | AL20: 0 | AM20: 0
C21: 폭력행위 | D21: 2 | E21: 0 | F21: 1 | G21: 0 | H21: 0 | I21: 0 | J21: 1 | K21: 0 | L21: 0 | M21: 0 | N21: 0 | O21: 0 | P21: 1 | Q21: 0 | R21: 0 | S21: 0 | T21: 0 | U21: 0 | V21: 1 | W21: 0 | X21: 0 | Y21: 0 | Z21: 0 | AA21: 0 | AB21: 1 | AC21: 0 | AD21: 0 | AE21: 0 | AF21: 0 | AG21: 0 | AH21: 1 | AI21: 0 | AJ21: 0 | AK21: 0 | AL21: 0 | AM21: 0
C22: 동물상해 | D22: 1 | E22: 0 | F22: 0 | G22: 0 | H22: 0 | I22: 0 | J22: 1 | K22: 0 | L22: 0 | M22: 0 | N22: 0 | O22: 0 | P22: 1 | Q22: 0 | R22: 0 | S22: 0 | T22: 1 | U22: 0 | V22: 0 | W22: 0 | X22: 0 | Y22: 0 | Z22: 0 | AA22: 0 | AB22: 0 | AC22: 0 | AD22: 0 | AE22: 0 | AF22: 0 | AG22: 0 | AH22: 0 | AI22: 0 | AJ22: 0 | AK22: 0 | AL22: 0 | AM22: 0
C23: 물리적인자 | D23: 0 | E23: 0 | F23: 0 | G23: 0 | H23: 0 | I23: 0 | J23: 0 | K23: 0 | L23: 0 | M23: 0 | N23: 0 | O23: 0 | P23: 0 | Q23: 0 | R23: 0 | S23: 0 | T23: 0 | U23: 0 | V23: 0 | W23: 0 | X23: 0 | Y23: 0 | Z23: 0 | AA23: 0 | AB23: 0 | AC23: 0 | AD23: 0 | AE23: 0 | AF23: 0 | AG23: 0 | AH23: 0 | AI23: 0 | AJ23: 0 | AK23: 0 | AL23: 0 | AM23: 0
C24: 생물학적인자 | D24: 0 | E24: 0 | F24: 0 | G24: 0 | H24: 0 | I24: 0 | J24: 0 | K24: 0 | L24: 0 | M24: 0 | N24: 0 | O24: 0 | P24: 0 | Q24: 0 | R24: 0 | S24: 0 | T24: 0 | U24: 0 | V24: 0 | W24: 0 | X24: 0 | Y24: 0 | Z24: 0 | AA24: 0 | AB24: 0 | AC24: 0 | AD24: 0 | AE24: 0 | AF24: 0 | AG24: 0 | AH24: 0 | AI24: 0 | AJ24: 0 | AK24: 0 | AL24: 0 | AM24: 0
C25: 뇌심혈관질환 | D25: 0 | E25: 0 | F25: 0 | G25: 0 | H25: 0 | I25: 0 | J25: 0 | K25: 0 | L25: 0 | M25: 0 | N25: 0 | O25: 0 | P25: 0 | Q25: 0 | R25: 0 | S25: 0 | T25: 0 | U25: 0 | V25: 0 | W25: 0 | X25: 0 | Y25: 0 | Z25: 0 | AA25: 0 | AB25: 0 | AC25: 0 | AD25: 0 | AE25: 0 | AF25: 0 | AG25: 0 | AH25: 0 | AI25: 0 | AJ25: 0 | AK25: 0 | AL25: 0 | AM25: 0
C26: 근골격계질환 | D26: 0 | E26: 0 | F26: 0 | G26: 0 | H26: 0 | I26: 0 | J26: 0 | K26: 0 | L26: 0 | M26: 0 | N26: 0 | O26: 0 | P26: 0 | Q26: 0 | R26: 0 | S26: 0 | T26: 0 | U26: 0 | V26: 0 | W26: 0 | X26: 0 | Y26: 0 | Z26: 0 | AA26: 0 | AB26: 0 | AC26: 0 | AD26: 0 | AE26: 0 | AF26: 0 | AG26: 0 | AH26: 0 | AI26: 0 | AJ26: 0 | AK26: 0 | AL26: 0 | AM26: 0
B27: 안 양 | C27: 합계 | D27: 72 | E27: 0 | F27: 22 | G27: 0 | H27: 27 | I27: 0 | J27: 13 | K27: 0 | L27: 3 | M27: 0 | N27: 7 | O27: 0 | P27: 81 | Q27: 0 | R27: 21 | S27: 0 | T27: 22 | U27: 0 | V27: 22 | W27: 0 | X27: 7 | Y27: 0 | Z27: 9 | AA27: 0 | AB27: 76 | AC27: 0 | AD27: 24 | AE27: 0 | AF27: 21 | AG27: 0 | AH27: 15 | AI27: 0 | AJ27: 10 | AK27: 0 | AL27: 6 | AM27: 0
C28: 떨어짐(높이가 있는 곳에서 사람이 떨어짐) | D28: 12 | E28: 0 | F28: 3 | G28: 0 | H28: 6 | I28: 0 | J28: 3 | K28: 0 | L28: 0 | M28: 0 | N28: 0 | O28: 0 | P28: 26 | Q28: 0 | R28: 8 | S28: 0 | T28: 5 | U28: 0 | V28: 7 | W28: 0 | X28: 3 | Y28: 0 | Z28: 3 | AA28: 0 | AB28: 10 | AC28: 0 | AD28: 4 | AE28: 0 | AF28: 3 | AG28: 0 | AH28: 2 | AI28: 0 | AJ28: 0 | AK28: 0 | AL28: 1 | AM28: 0
C29: 넘어짐(사람이 미끄러지거나 넘어짐) | D29: 38 | E29: 0 | F29: 13 | G29: 0 | H29: 11 | I29: 0 | J29: 7 | K29: 0 | L29: 2 | M29: 0 | N29: 5 | O29: 0 | P29: 34 | Q29: 0 | R29: 10 | S29: 0 | T29: 7 | U29: 0 | V29: 9 | W29: 0 | X29: 3 | Y29: 0 | Z29: 5 | AA29: 0 | AB29: 35 | AC29: 0 | AD29: 13 | AE29: 0 | AF29: 11 | AG29: 0 | AH29: 4 | AI29: 0 | AJ29: 5 | AK29: 0 | AL29: 2 | AM29: 0
C30: 깔림·뒤집힘(물체의 쓰러짐이나 뒤집힘) | D30: 1 | E30: 0 | F30: 0 | G30: 0 | H30: 1 | I30: 0 | J30: 0 | K30: 0 | L30: 0 | M30: 0 | N30: 0 | O30: 0 | P30: 1 | Q30: 0 | R30: 0 | S30: 0 | T30: 0 | U30: 0 | V30: 0 | W30: 0 | X30: 1 | Y30: 0 | Z30: 0 | AA30: 0 | AB30: 3 | AC30: 0 | AD30: 0 | AE30: 0 | AF30: 1 | AG30: 0 | AH30: 0 | AI30: 0 | AJ30: 1 | AK30: 0 | AL30: 1 | AM30: 0
C31: 부딪힘(물체에 부딪힘) | D31: 3 | E31: 0 | F31: 0 | G31: 0 | H31: 1 | I31: 0 | J31: 1 | K31: 0 | L31: 0 | M31: 0 | N31: 1 | O31: 0 | P31: 3 | Q31: 0 | R31: 1 | S31: 0 | T31: 1 | U31: 0 | V31: 1 | W31: 0 | X31: 0 | Y31: 0 | Z31: 0 | AA31: 0 | AB31: 4 | AC31: 0 | AD31: 2 | AE31: 0 | AF31: 0 | AG31: 0 | AH31: 1 | AI31: 0 | AJ31: 1 | AK31: 0 | AL31: 0 | AM31: 0
C32: 물체에 맞음(날아오거나 떨어진 물체에 맞음) | D32: 1 | E32: 0 | F32: 0 | G32: 0 | H32: 0 | I32: 0 | J32: 0 | K32: 0 | L32: 0 | M32: 0 | N32: 1 | O32: 0 | P32: 3 | Q32: 0 | R32: 0 | S32: 0 | T32: 1 | U32: 0 | V32: 1 | W32: 0 | X32: 0 | Y32: 0 | Z32: 1 | AA32: 0 | AB32: 5 | AC32: 0 | AD32: 0 | AE32: 0 | AF32: 2 | AG32: 0 | AH32: 2 | AI32: 0 | AJ32: 1 | AK32: 0 | AL32: 0 | AM32: 0
C33: 끼임(기계설비에 끼이거나 감김) | D33: 2 | E33: 0 | F33: 0 | G33: 0 | H33: 2 | I33: 0 | J33: 0 | K33: 0 | L33: 0 | M33: 0 | N33: 0 | O33: 0 | P33: 4 | Q33: 0 | R33: 1 | S33: 0 | T33: 2 | U33: 0 | V33: 1 | W33: 0 | X33: 0 | Y33: 0 | Z33: 0 | AA33: 0 | AB33: 3 | AC33: 0 | AD33: 2 | AE33: 0 | AF33: 0 | AG33: 0 | AH33: 0 | AI33: 0 | AJ33: 0 | AK33: 0 | AL33: 1 | AM33: 0
C34: 절단·베임·찔림 | D34: 8 | E34: 0 | F34: 3 | G34: 0 | H34: 3 | I34: 0 | J34: 1 | K34: 0 | L34: 1 | M34: 0 | N34: 0 | O34: 0 | P34: 5 | Q34: 0 | R34: 1 | S34: 0 | T34: 4 | U34: 0 | V34: 0 | W34: 0 | X34: 0 | Y34: 0 | Z34: 0 | AA34: 0 | AB34: 9 | AC34: 0 | AD34: 2 | AE34: 0 | AF34: 2 | AG34: 0 | AH34: 4 | AI34: 0 | AJ34: 1 | AK34: 0 | AL34: 0 | AM34: 0
C35: 감전 | D35: 2 | E35: 0 | F35: 1 | G35: 0 | H35: 1 | I35: 0 | J35: 0 | K35: 0 | L35: 0 | M35: 0 | N35: 0 | O35: 0 | P35: 1 | Q35: 0 | R35: 0 | S35: 0 | T35: 0 | U35: 0 | V35: 1 | W35: 0 | X35: 0 | Y35: 0 | Z35: 0 | AA35: 0 | AB35: 1 | AC35: 0 | AD35: 1 | AE35: 0 | AF35: 0 | AG35: 0 | AH35: 0 | AI35: 0 | AJ35: 0 | AK35: 0 | AL35: 0 | AM35: 0
C36: 불균형 및 무리한 동작 | D36: 0 | E36: 0 | F36: 0 | G36: 0 | H36: 0 | I36: 0 | J36: 0 | K36: 0 | L36: 0 | M36: 0 | N36: 0 | O36: 0 | P36: 2 | Q36: 0 | R36: 0 | S36: 0 | T36: 0 | U36: 0 | V36: 2 | W36: 0 | X36: 0 | Y36: 0 | Z36: 0 | AA36: 0 | AB36: 6 | AC36: 0 | AD36: 0 | AE36: 0 | AF36: 2 | AG36: 0 | AH36: 2 | AI36: 0 | AJ36: 1 | AK36: 0 | AL36: 1 | AM36: 0
C37: 이상온도 접촉 | D37: =F37+H37+J37+L37+N37 -> 1 | E37: =G37+I37+K37+M37+O37 -> 0 | F37: 0 | G37: 0 | H37: 1 | I37: 0 | J37: 0 | K37: 0 | L37: 0 | M37: 0 | N37: 0 | O37: 0 | P37: =R37+T37+V37+X37+Z37 -> 0 | Q37: =S37+U37+W37+Y37+AA37 -> 0 | R37: 0 | S37: 0 | T37: 0 | U37: 0 | V37: 0 | W37: 0 | X37: 0 | Y37: 0 | Z37: 0 | AA37: 0 | AB37: =AD37+AF37+AH37+AJ37+AL37 -> 0 | AC37: =AE37+AG37+AI37+AK37+AM37 -> 0 | AD37: 0 | AE37: 0 | AF37: 0 | AG37: 0 | AH37: 0 | AI37: 0 | AJ37: 0 | AK37: 0 | AL37: 0 | AM37: 0
C38: 사업장외 교통사고 | D38: 2 | E38: 0 | F38: 0 | G38: 0 | H38: 1 | I38: 0 | J38: 1 | K38: 0 | L38: 0 | M38: 0 | N38: 0 | O38: 0 | P38: 0 | Q38: 0 | R38: 0 | S38: 0 | T38: 0 | U38: 0 | V38: 0 | W38: 0 | X38: 0 | Y38: 0 | Z38: 0 | AA38: 0 | AB38: 0 | AC38: 0 | AD38: 0 | AE38: 0 | AF38: 0 | AG38: 0 | AH38: 0 | AI38: 0 | AJ38: 0 | AK38: 0 | AL38: 0 | AM38: 0
C39: 폭력행위 | D39: 1 | E39: 0 | F39: 1 | G39: 0 | H39: 0 | I39: 0 | J39: 0 | K39: 0 | L39: 0 | M39: 0 | N39: 0 | O39: 0 | P39: 1 | Q39: 0 | R39: 0 | S39: 0 | T39: 1 | U39: 0 | V39: 0 | W39: 0 | X39: 0 | Y39: 0 | Z39: 0 | AA39: 0 | AB39: 0 | AC39: 0 | AD39: 0 | AE39: 0 | AF39: 0 | AG39: 0 | AH39: 0 | AI39: 0 | AJ39: 0 | AK39: 0 | AL39: 0 | AM39: 0
C40: 동물상해 | D40: 1 | E40: 0 | F40: 1 | G40: 0 | H40: 0 | I40: 0 | J40: 0 | K40: 0 | L40: 0 | M40: 0 | N40: 0 | O40: 0 | P40: 1 | Q40: 0 | R40: 0 | S40: 0 | T40: 1 | U40: 0 | V40: 0 | W40: 0 | X40: 0 | Y40: 0 | Z40: 0 | AA40: 0 | AB40: 0 | AC40: 0 | AD40: 0 | AE40: 0 | AF40: 0 | AG40: 0 | AH40: 0 | AI40: 0 | AJ40: 0 | AK40: 0 | AL40: 0 | AM40: 0
C41: 화학적인자 | D41: 0 | E41: 0 | F41: 0 | G41: 0 | H41: 0 | I41: 0 | J41: 0 | K41: 0 | L41: 0 | M41: 0 | N41: 0 | O41: 0 | P41: 0 | Q41: 0 | R41: 0 | S41: 0 | T41: 0 | U41: 0 | V41: 0 | W41: 0 | X41: 0 | Y41: 0 | Z41: 0 | AA41: 0 | AB41: 0 | AC41: 0 | AD41: 0 | AE41: 0 | AF41: 0 | AG41: 0 | AH41: 0 | AI41: 0 | AJ41: 0 | AK41: 0 | AL41: 0 | AM41: 0
C42: 뇌심혈관질환 | D42: 0 | E42: 0 | F42: 0 | G42: 0 | H42: 0 | I42: 0 | J42: 0 | K42: 0 | L42: 0 | M42: 0 | N42: 0 | O42: 0 | P42: 0 | Q42: 0 | R42: 0 | S42: 0 | T42: 0 | U42: 0 | V42: 0 | W42: 0 | X42: 0 | Y42: 0 | Z42: 0 | AA42: 0 | AB42: 0 | AC42: 0 | AD42: 0 | AE42: 0 | AF42: 0 | AG42: 0 | AH42: 0 | AI42: 0 | AJ42: 0 | AK42: 0 | AL42: 0 | AM42: 0
C43: 근골격계질환 | D43: 0 | E43: 0 | F43: 0 | G43: 0 | H43: 0 | I43: 0 | J43: 0 | K43: 0 | L43: 0 | M43: 0 | N43: 0 | O43: 0 | P43: 0 | Q43: 0 | R43: 0 | S43: 0 | T43: 0 | U43: 0 | V43: 0 | W43: 0 | X43: 0 | Y43: 0 | Z43: 0 | AA43: 0 | AB43: 0 | AC43: 0 | AD43: 0 | AE43: 0 | AF43: 0 | AG43: 0 | AH43: 0 | AI43: 0 | AJ43: 0 | AK43: 0 | AL43: 0 | AM43: 0
C44: 작업관련성질환 기타 | D44: 0 | E44: 0 | F44: 0 | G44: 0 | H44: 0 | I44: 0 | J44: 0 | K44: 0 | L44: 0 | M44: 0 | N44: 0 | O44: 0 | P44: 0 | Q44: 0 | R44: 0 | S44: 0 | T44: 0 | U44: 0 | V44: 0 | W44: 0 | X44: 0 | Y44: 0 | Z44: 0 | AA44: 0 | AB44: 0 | AC44: 0 | AD44: 0 | AE44: 0 | AF44: 0 | AG44: 0 | AH44: 0 | AI44: 0 | AJ44: 0 | AK44: 0 | AL44: 0 | AM44: 0
B45: 안 산 | C45: 합계 | D45: 83 | E45: 0 | F45: 27 | G45: 0 | H45: 25 | I45: 0 | J45: 18 | K45: 0 | L45: 9 | M45: 0 | N45: 4 | O45: 0 | P45: 81 | Q45: 0 | R45: 35 | S45: 0 | T45: 24 | U45: 0 | V45: 11 | W45: 0 | X45: 7 | Y45: 0 | Z45: 4 | AA45: 0 | AB45: 57 | AC45: 0 | AD45: 15 | AE45: 0 | AF45: 14 | AG45: 0 | AH45: 14 | AI45: 0 | AJ45: 8 | AK45: 0 | AL45: 6 | AM45: 0
C46: 떨어짐(높이가 있는 곳에서 사람이 떨어짐) | D46: 15 | E46: 0 | F46: 1 | G46: 0 | H46: 7 | I46: 0 | J46: 3 | K46: 0 | L46: 3 | M46: 0 | N46: 1 | O46: 0 | P46: 14 | Q46: 0 | R46: 7 | S46: 0 | T46: 3 | U46: 0 | V46: 4 | W46: 0 | X46: 0 | Y46: 0 | Z46: 0 | AA46: 0 | AB46: 8 | AC46: 0 | AD46: 1 | AE46: 0 | AF46: 2 | AG46: 0 | AH46: 4 | AI46: 0 | AJ46: 1 | AK46: 0 | AL46: 0 | AM46: 0
C47: 넘어짐(사람이 미끄러지거나 넘어짐) | D47: 42 | E47: 0 | F47: 17 | G47: 0 | H47: 10 | I47: 0 | J47: 11 | K47: 0 | L47: 2 | M47: 0 | N47: 2 | O47: 0 | P47: 38 | Q47: 0 | R47: 19 | S47: 0 | T47: 9 | U47: 0 | V47: 3 | W47: 0 | X47: 4 | Y47: 0 | Z47: 3 | AA47: 0 | AB47: 28 | AC47: 0 | AD47: 9 | AE47: 0 | AF47: 5 | AG47: 0 | AH47: 5 | AI47: 0 | AJ47: 4 | AK47: 0 | AL47: 5 | AM47: 0
C48: 깔림·뒤집힘(물체의 쓰러짐이나 뒤집힘) | D48: 0 | E48: 0 | F48: 0 | G48: 0 | H48: 0 | I48: 0 | J48: 0 | K48: 0 | L48: 0 | M48: 0 | N48: 0 | O48: 0 | P48: 1 | Q48: 0 | R48: 1 | S48: 0 | T48: 0 | U48: 0 | V48: 0 | W48: 0 | X48: 0 | Y48: 0 | Z48: 0 | AA48: 0 | AB48: 2 | AC48: 0 | AD48: 1 | AE48: 0 | AF48: 1 | AG48: 0 | AH48: 0 | AI48: 0 | AJ48: 0 | AK48: 0 | AL48: 0 | AM48: 0
C49: 부딪힘(물체에 부딪힘) | D49: 2 | E49: 0 | F49: 1 | G49: 0 | H49: 0 | I49: 0 | J49: 0 | K49: 0 | L49: 1 | M49: 0 | N49: 0 | O49: 0 | P49: 4 | Q49: 0 | R49: 2 | S49: 0 | T49: 0 | U49: 0 | V49: 2 | W49: 0 | X49: 0 | Y49: 0 | Z49: 0 | AA49: 0 | AB49: 4 | AC49: 0 | AD49: 1 | AE49: 0 | AF49: 2 | AG49: 0 | AH49: 0 | AI49: 0 | AJ49: 1 | AK49: 0 | AL49: 0 | AM49: 0
C50: 물체에 맞음(날아오거나 떨어진 물체에 맞음) | D50: 8 | E50: 0 | F50: 2 | G50: 0 | H50: 3 | I50: 0 | J50: 1 | K50: 0 | L50: 1 | M50: 0 | N50: 1 | O50: 0 | P50: 4 | Q50: 0 | R50: 2 | S50: 0 | T50: 1 | U50: 0 | V50: 0 | W50: 0 | X50: 1 | Y50: 0 | Z50: 0 | AA50: 0 | AB50: 0 | AC50: 0 | AD50: 0 | AE50: 0 | AF50: 0 | AG50: 0 | AH50: 0 | AI50: 0 | AJ50: 0 | AK50: 0 | AL50: 0 | AM50: 0
C51: 끼임(기계설비에 끼이거나 감김) | D51: 4 | E51: 0 | F51: 2 | G51: 0 | H51: 1 | I51: 0 | J51: 1 | K51: 0 | L51: 0 | M51: 0 | N51: 0 | O51: 0 | P51: 2 | Q51: 0 | R51: 0 | S51: 0 | T51: 1 | U51: 0 | V51: 1 | W51: 0 | X51: 0 | Y51: 0 | Z51: 0 | AA51: 0 | AB51: 3 | AC51: 0 | AD51: 1 | AE51: 0 | AF51: 1 | AG51: 0 | AH51: 1 | AI51: 0 | AJ51: 0 | AK51: 0 | AL51: 0 | AM51: 0
C52: 절단·베임·찔림 | D52: 9 | E52: 0 | F52: 2 | G52: 0 | H52: 3 | I52: 0 | J52: 2 | K52: 0 | L52: 2 | M52: 0 | N52: 0 | O52: 0 | P52: 10 | Q52: 0 | R52: 2 | S52: 0 | T52: 7 | U52: 0 | V52: 0 | W52: 0 | X52: 1 | Y52: 0 | Z52: 0 | AA52: 0 | AB52: 3 | AC52: 0 | AD52: 1 | AE52: 0 | AF52: 0 | AG52: 0 | AH52: 1 | AI52: 0 | AJ52: 1 | AK52: 0 | AL52: 0 | AM52: 0
C53: 감전 | D53: 0 | E53: 0 | F53: 0 | G53: 0 | H53: 0 | I53: 0 | J53: 0 | K53: 0 | L53: 0 | M53: 0 | N53: 0 | O53: 0 | P53: 0 | Q53: 0 | R53: 0 | S53: 0 | T53: 0 | U53: 0 | V53: 0 | W53: 0 | X53: 0 | Y53: 0 | Z53: 0 | AA53: 0 | AB53: 1 | AC53: 0 | AD53: 0 | AE53: 0 | AF53: 0 | AG53: 0 | AH53: 1 | AI53: 0 | AJ53: 0 | AK53: 0 | AL53: 0 | AM53: 0
C54: 불균형 및 무리한 동작 | D54: 2 | E54: 0 | F54: 2 | G54: 0 | H54: 0 | I54: 0 | J54: 0 | K54: 0 | L54: 0 | M54: 0 | N54: 0 | O54: 0 | P54: 4 | Q54: 0 | R54: 0 | S54: 0 | T54: 2 | U54: 0 | V54: 0 | W54: 0 | X54: 1 | Y54: 0 | Z54: 1 | AA54: 0 | AB54: 3 | AC54: 0 | AD54: 0 | AE54: 0 | AF54: 2 | AG54: 0 | AH54: 1 | AI54: 0 | AJ54: 0 | AK54: 0 | AL54: 0 | AM54: 0
C55: 이상온도 접촉 | D55: 1 | E55: 0 | F55: 0 | G55: 0 | H55: 1 | I55: 0 | J55: 0 | K55: 0 | L55: 0 | M55: 0 | N55: 0 | O55: 0 | P55: 2 | Q55: 0 | R55: 1 | S55: 0 | T55: 1 | U55: 0 | V55: 0 | W55: 0 | X55: 0 | Y55: 0 | Z55: 0 | AA55: 0 | AB55: 0 | AC55: 0 | AD55: 0 | AE55: 0 | AF55: 0 | AG55: 0 | AH55: 0 | AI55: 0 | AJ55: 0 | AK55: 0 | AL55: 0 | AM55: 0
C56: 화학물질누출·접촉 | D56: 0 | E56: 0 | F56: 0 | G56: 0 | H56: 0 | I56: 0 | J56: 0 | K56: 0 | L56: 0 | M56: 0 | N56: 0 | O56: 0 | P56: 1 | Q56: 0 | R56: 1 | S56: 0 | T56: 0 | U56: 0 | V56: 0 | W56: 0 | X56: 0 | Y56: 0 | Z56: 0 | AA56: 0 | AB56: 1 | AC56: 0 | AD56: 0 | AE56: 0 | AF56: 0 | AG56: 0 | AH56: 0 | AI56: 0 | AJ56: 1 | AK56: 0 | AL56: 0 | AM56: 0
C57: 사업장외 교통사고 | D57: 0 | E57: 0 | F57: 0 | G57: 0 | H57: 0 | I57: 0 | J57: 0 | K57: 0 | L57: 0 | M57: 0 | N57: 0 | O57: 0 | P57: 0 | Q57: 0 | R57: 0 | S57: 0 | T57: 0 | U57: 0 | V57: 0 | W57: 0 | X57: 0 | Y57: 0 | Z57: 0 | AA57: 0 | AB57: 1 | AC57: 0 | AD57: 1 | AE57: 0 | AF57: 0 | AG57: 0 | AH57: 0 | AI57: 0 | AJ57: 0 | AK57: 0 | AL57: 0 | AM57: 0
C58: 체육행사 등의 사고 | D58: 0 | E58: 0 | F58: 0 | G58: 0 | H58: 0 | I58: 0 | J58: 0 | K58: 0 | L58: 0 | M58: 0 | N58: 0 | O58: 0 | P58: 0 | Q58: 0 | R58: 0 | S58: 0 | T58: 0 | U58: 0 | V58: 0 | W58: 0 | X58: 0 | Y58: 0 | Z58: 0 | AA58: 0 | AB58: 1 | AC58: 0 | AD58: 0 | AE58: 0 | AF58: 0 | AG58: 0 | AH58: 0 | AI58: 0 | AJ58: 0 | AK58: 0 | AL58: 1 | AM58: 0
C59: 폭력행위 | D59: 0 | E59: 0 | F59: 0 | G59: 0 | H59: 0 | I59: 0 | J59: 0 | K59: 0 | L59: 0 | M59: 0 | N59: 0 | O59: 0 | P59: 1 | Q59: 0 | R59: 0 | S59: 0 | T59: 0 | U59: 0 | V59: 1 | W59: 0 | X59: 0 | Y59: 0 | Z59: 0 | AA59: 0 | AB59: 1 | AC59: 0 | AD59: 0 | AE59: 0 | AF59: 1 | AG59: 0 | AH59: 0 | AI59: 0 | AJ59: 0 | AK59: 0 | AL59: 0 | AM59: 0
C60: 기타 | D60: 0 | E60: 0 | F60: 0 | G60: 0 | H60: 0 | I60: 0 | J60: 0 | K60: 0 | L60: 0 | M60: 0 | N60: 0 | O60: 0 | P60: 0 | Q60: 0 | R60: 0 | S60: 0 | T60: 0 | U60: 0 | V60: 0 | W60: 0 | X60: 0 | Y60: 0 | Z60: 0 | AA60: 0 | AB60: 1 | AC60: 0 | AD60: 0 | AE60: 0 | AF60: 0 | AG60: 0 | AH60: 1 | AI60: 0 | AJ60: 0 | AK60: 0 | AL60: 0 | AM60: 0
C61: 화학적인자 | D61: 0 | E61: 0 | F61: 0 | G61: 0 | H61: 0 | I61: 0 | J61: 0 | K61: 0 | L61: 0 | M61: 0 | N61: 0 | O61: 0 | P61: 0 | Q61: 0 | R61: 0 | S61: 0 | T61: 0 | U61: 0 | V61: 0 | W61: 0 | X61: 0 | Y61: 0 | Z61: 0 | AA61: 0 | AB61: 0 | AC61: 0 | AD61: 0 | AE61: 0 | AF61: 0 | AG61: 0 | AH61: 0 | AI61: 0 | AJ61: 0 | AK61: 0 | AL61: 0 | AM61: 0
C62: 생물학적인자 | D62: 0 | E62: 0 | F62: 0 | G62: 0 | H62: 0 | I62: 0 | J62: 0 | K62: 0 | L62: 0 | M62: 0 | N62: 0 | O62: 0 | P62: 0 | Q62: 0 | R62: 0 | S62: 0 | T62: 0 | U62: 0 | V62: 0 | W62: 0 | X62: 0 | Y62: 0 | Z62: 0 | AA62: 0 | AB62: 0 | AC62: 0 | AD62: 0 | AE62: 0 | AF62: 0 | AG62: 0 | AH62: 0 | AI62: 0 | AJ62: 0 | AK62: 0 | AL62: 0 | AM62: 0
C63: 뇌심혈관질환 | D63: 0 | E63: 0 | F63: 0 | G63: 0 | H63: 0 | I63: 0 | J63: 0 | K63: 0 | L63: 0 | M63: 0 | N63: 0 | O63: 0 | P63: 0 | Q63: 0 | R63: 0 | S63: 0 | T63: 0 | U63: 0 | V63: 0 | W63: 0 | X63: 0 | Y63: 0 | Z63: 0 | AA63: 0 | AB63: 0 | AC63: 0 | AD63: 0 | AE63: 0 | AF63: 0 | AG63: 0 | AH63: 0 | AI63: 0 | AJ63: 0 | AK63: 0 | AL63: 0 | AM63: 0
C64: 근골격계질환 | D64: 0 | E64: 0 | F64: 0 | G64: 0 | H64: 0 | I64: 0 | J64: 0 | K64: 0 | L64: 0 | M64: 0 | N64: 0 | O64: 0 | P64: 0 | Q64: 0 | R64: 0 | S64: 0 | T64: 0 | U64: 0 | V64: 0 | W64: 0 | X64: 0 | Y64: 0 | Z64: 0 | AA64: 0 | AB64: 0 | AC64: 0 | AD64: 0 | AE64: 0 | AF64: 0 | AG64: 0 | AH64: 0 | AI64: 0 | AJ64: 0 | AK64: 0 | AL64: 0 | AM64: 0
B65: 성 남 | C65: 합계 | D65: 115 | E65: 0 | F65: 25 | G65: 0 | H65: 31 | I65: 0 | J65: 41 | K65: 0 | L65: 11 | M65: 0 | N65: 7 | O65: 0 | P65: 126 | Q65: 0 | R65: 36 | S65: 0 | T65: 34 | U65: 0 | V65: 35 | W65: 0 | X65: 12 | Y65: 0 | Z65: 9 | AA65: 0 | AB65: 127 | AC65: 0 | AD65: 32 | AE65: 0 | AF65: 45 | AG65: 0 | AH65: 30 | AI65: 0 | AJ65: 8 | AK65: 0 | AL65: 12 | AM65: 0
C66: 떨어짐(높이가 있는 곳에서 사람이 떨어짐) | D66: 20 | E66: 0 | F66: 6 | G66: 0 | H66: 6 | I66: 0 | J66: 5 | K66: 0 | L66: 2 | M66: 0 | N66: 1 | O66: 0 | P66: 19 | Q66: 0 | R66: 4 | S66: 0 | T66: 7 | U66: 0 | V66: 6 | W66: 0 | X66: 2 | Y66: 0 | Z66: 0 | AA66: 0 | AB66: 24 | AC66: 0 | AD66: 3 | AE66: 0 | AF66: 11 | AG66: 0 | AH66: 8 | AI66: 0 | AJ66: 0 | AK66: 0 | AL66: 2 | AM66: 0
C67: 넘어짐(사람이 미끄러지거나 넘어짐) | D67: 59 | E67: 0 | F67: 11 | G67: 0 | H67: 16 | I67: 0 | J67: 22 | K67: 0 | L67: 6 | M67: 0 | N67: 4 | O67: 0 | P67: 69 | Q67: 0 | R67: 18 | S67: 0 | T67: 18 | U67: 0 | V67: 20 | W67: 0 | X67: 7 | Y67: 0 | Z67: 6 | AA67: 0 | AB67: 71 | AC67: 0 | AD67: 19 | AE67: 0 | AF67: 21 | AG67: 0 | AH67: 20 | AI67: 0 | AJ67: 5 | AK67: 0 | AL67: 6 | AM67: 0
C68: 깔림·뒤집힘(물체의 쓰러짐이나 뒤집힘) | D68: 0 | E68: 0 | F68: 0 | G68: 0 | H68: 0 | I68: 0 | J68: 0 | K68: 0 | L68: 0 | M68: 0 | N68: 0 | O68: 0 | P68: 2 | Q68: 0 | R68: 1 | S68: 0 | T68: 0 | U68: 0 | V68: 1 | W68: 0 | X68: 0 | Y68: 0 | Z68: 0 | AA68: 0 | AB68: 4 | AC68: 0 | AD68: 2 | AE68: 0 | AF68: 2 | AG68: 0 | AH68: 0 | AI68: 0 | AJ68: 0 | AK68: 0 | AL68: 0 | AM68: 0
C69: 부딪힘(물체에 부딪힘) | D69: =F69+H69+J69+L69+N69 -> 6 | E69: =G69+I69+K69+M69+O69 -> 0 | F69: 1 | G69: 0 | H69: 1 | I69: 0 | J69: 3 | K69: 0 | L69: 1 | M69: 0 | N69: 0 | O69: 0 | P69: =R69+T69+V69+X69+Z69 -> 5 | Q69: =S69+U69+W69+Y69+AA69 -> 0 | R69: 1 | S69: 0 | T69: 1 | U69: 0 | V69: 2 | W69: 0 | X69: 1 | Y69: 0 | Z69: 0 | AA69: 0 | AB69: =AD69+AF69+AH69+AJ69+AL69 -> 2 | AC69: =AE69+AG69+AI69+AK69+AM69 -> 0 | AD69: 0 | AE69: 0 | AF69: 2 | AG69: 0 | AH69: 0 | AI69: 0 | AJ69: 0 | AK69: 0 | AL69: 0 | AM69: 0
C70: 물체에 맞음(날아오거나 떨어진 물체에 맞음) | D70: 1 | E70: 0 | F70: 1 | G70: 0 | H70: 0 | I70: 0 | J70: 0 | K70: 0 | L70: 0 | M70: 0 | N70: 0 | O70: 0 | P70: 4 | Q70: 0 | R70: 3 | S70: 0 | T70: 0 | U70: 0 | V70: 1 | W70: 0 | X70: 0 | Y70: 0 | Z70: 0 | AA70: 0 | AB70: 2 | AC70: 0 | AD70: 0 | AE70: 0 | AF70: 1 | AG70: 0 | AH70: 1 | AI70: 0 | AJ70: 0 | AK70: 0 | AL70: 0 | AM70: 0
C71: 무너짐(건축물이나 쌓여진 물체가 무너짐) | D71: 0 | E71: 0 | F71: 0 | G71: 0 | H71: 0 | I71: 0 | J71: 0 | K71: 0 | L71: 0 | M71: 0 | N71: 0 | O71: 0 | P71: 0 | Q71: 0 | R71: 0 | S71: 0 | T71: 0 | U71: 0 | V71: 0 | W71: 0 | X71: 0 | Y71: 0 | Z71: 0 | AA71: 0 | AB71: 1 | AC71: 0 | AD71: 1 | AE71: 0 | AF71: 0 | AG71: 0 | AH71: 0 | AI71: 0 | AJ71: 0 | AK71: 0 | AL71: 0 | AM71: 0
C72: 끼임(기계설비에 끼이거나 감김) | D72: 6 | E72: 0 | F72: 2 | G72: 0 | H72: 0 | I72: 0 | J72: 3 | K72: 0 | L72: 0 | M72: 0 | N72: 1 | O72: 0 | P72: 5 | Q72: 0 | R72: 3 | S72: 0 | T72: 1 | U72: 0 | V72: 0 | W72: 0 | X72: 1 | Y72: 0 | Z72: 0 | AA72: 0 | AB72: 6 | AC72: 0 | AD72: 2 | AE72: 0 | AF72: 2 | AG72: 0 | AH72: 0 | AI72: 0 | AJ72: 0 | AK72: 0 | AL72: 2 | AM72: 0
C73: 절단·베임·찔림 | D73: 5 | E73: 0 | F73: 1 | G73: 0 | H73: 1 | I73: 0 | J73: 3 | K73: 0 | L73: 0 | M73: 0 | N73: 0 | O73: 0 | P73: 6 | Q73: 0 | R73: 3 | S73: 0 | T73: 2 | U73: 0 | V73: 1 | W73: 0 | X73: 0 | Y73: 0 | Z73: 0 | AA73: 0 | AB73: 10 | AC73: 0 | AD73: 1 | AE73: 0 | AF73: 5 | AG73: 0 | AH73: 1 | AI73: 0 | AJ73: 2 | AK73: 0 | AL73: 1 | AM73: 0
C74: 감전 | D74: 1 | E74: 0 | F74: 0 | G74: 0 | H74: 0 | I74: 0 | J74: 1 | K74: 0 | L74: 0 | M74: 0 | N74: 0 | O74: 0 | P74: 0 | Q74: 0 | R74: 0 | S74: 0 | T74: 0 | U74: 0 | V74: 0 | W74: 0 | X74: 0 | Y74: 0 | Z74: 0 | AA74: 0 | AB74: 0 | AC74: 0 | AD74: 0 | AE74: 0 | AF74: 0 | AG74: 0 | AH74: 0 | AI74: 0 | AJ74: 0 | AK74: 0 | AL74: 0 | AM74: 0
C75: 불균형 및 무리한 동작 | D75: 10 | E75: 0 | F75: 2 | G75: 0 | H75: 3 | I75: 0 | J75: 2 | K75: 0 | L75: 2 | M75: 0 | N75: 1 | O75: 0 | P75: 9 | Q75: 0 | R75: 0 | S75: 0 | T75: 4 | U75: 0 | V75: 2 | W75: 0 | X75: 1 | Y75: 0 | Z75: 2 | AA75: 0 | AB75: 3 | AC75: 0 | AD75: 0 | AE75: 0 | AF75: 1 | AG75: 0 | AH75: 0 | AI75: 0 | AJ75: 1 | AK75: 0 | AL75: 1 | AM75: 0
C76: 이상온도 접촉 | D76: 0 | E76: 0 | F76: 0 | G76: 0 | H76: 0 | I76: 0 | J76: 0 | K76: 0 | L76: 0 | M76: 0 | N76: 0 | O76: 0 | P76: 0 | Q76: 0 | R76: 0 | S76: 0 | T76: 0 | U76: 0 | V76: 0 | W76: 0 | X76: 0 | Y76: 0 | Z76: 0 | AA76: 0 | AB76: 1 | AC76: 0 | AD76: 1 | AE76: 0 | AF76: 0 | AG76: 0 | AH76: 0 | AI76: 0 | AJ76: 0 | AK76: 0 | AL76: 0 | AM76: 0
C77: 화학물질누출·접촉 | D77: 2 | E77: 0 | F77: 0 | G77: 0 | H77: 1 | I77: 0 | J77: 1 | K77: 0 | L77: 0 | M77: 0 | N77: 0 | O77: 0 | P77: 2 | Q77: 0 | R77: 1 | S77: 0 | T77: 0 | U77: 0 | V77: 1 | W77: 0 | X77: 0 | Y77: 0 | Z77: 0 | AA77: 0 | AB77: 1 | AC77: 0 | AD77: 1 | AE77: 0 | AF77: 0 | AG77: 0 | AH77: 0 | AI77: 0 | AJ77: 0 | AK77: 0 | AL77: 0 | AM77: 0
C78: 사업장외 교통사고 | D78: 4 | E78: 0 | F78: 1 | G78: 0 | H78: 3 | I78: 0 | J78: 0 | K78: 0 | L78: 0 | M78: 0 | N78: 0 | O78: 0 | P78: 2 | Q78: 0 | R78: 0 | S78: 0 | T78: 0 | U78: 0 | V78: 1 | W78: 0 | X78: 0 | Y78: 0 | Z78: 1 | AA78: 0 | AB78: 0 | AC78: 0 | AD78: 0 | AE78: 0 | AF78: 0 | AG78: 0 | AH78: 0 | AI78: 0 | AJ78: 0 | AK78: 0 | AL78: 0 | AM78: 0
C79: 폭력행위 | D79: 1 | E79: 0 | F79: 0 | G79: 0 | H79: 0 | I79: 0 | J79: 1 | K79: 0 | L79: 0 | M79: 0 | N79: 0 | O79: 0 | P79: 2 | Q79: 0 | R79: 2 | S79: 0 | T79: 0 | U79: 0 | V79: 0 | W79: 0 | X79: 0 | Y79: 0 | Z79: 0 | AA79: 0 | AB79: 1 | AC79: 0 | AD79: 1 | AE79: 0 | AF79: 0 | AG79: 0 | AH79: 0 | AI79: 0 | AJ79: 0 | AK79: 0 | AL79: 0 | AM79: 0
C80: 동물상해 | D80: 0 | E80: 0 | F80: 0 | G80: 0 | H80: 0 | I80: 0 | J80: 0 | K80: 0 | L80: 0 | M80: 0 | N80: 0 | O80: 0 | P80: 1 | Q80: 0 | R80: 0 | S80: 0 | T80: 1 | U80: 0 | V80: 0 | W80: 0 | X80: 0 | Y80: 0 | Z80: 0 | AA80: 0 | AB80: 1 | AC80: 0 | AD80: 1 | AE80: 0 | AF80: 0 | AG80: 0 | AH80: 0 | AI80: 0 | AJ80: 0 | AK80: 0 | AL80: 0 | AM80: 0
C81: 물리적인자 | D81: 0 | E81: 0 | F81: 0 | G81: 0 | H81: 0 | I81: 0 | J81: 0 | K81: 0 | L81: 0 | M81: 0 | N81: 0 | O81: 0 | P81: 0 | Q81: 0 | R81: 0 | S81: 0 | T81: 0 | U81: 0 | V81: 0 | W81: 0 | X81: 0 | Y81: 0 | Z81: 0 | AA81: 0 | AB81: 0 | AC81: 0 | AD81: 0 | AE81: 0 | AF81: 0 | AG81: 0 | AH81: 0 | AI81: 0 | AJ81: 0 | AK81: 0 | AL81: 0 | AM81: 0
C82: 생물학적인자 | D82: 0 | E82: 0 | F82: 0 | G82: 0 | H82: 0 | I82: 0 | J82: 0 | K82: 0 | L82: 0 | M82: 0 | N82: 0 | O82: 0 | P82: 0 | Q82: 0 | R82: 0 | S82: 0 | T82: 0 | U82: 0 | V82: 0 | W82: 0 | X82: 0 | Y82: 0 | Z82: 0 | AA82: 0 | AB82: 0 | AC82: 0 | AD82: 0 | AE82: 0 | AF82: 0 | AG82: 0 | AH82: 0 | AI82: 0 | AJ82: 0 | AK82: 0 | AL82: 0 | AM82: 0
C83: 뇌심혈관질환 | D83: 0 | E83: 0 | F83: 0 | G83: 0 | H83: 0 | I83: 0 | J83: 0 | K83: 0 | L83: 0 | M83: 0 | N83: 0 | O83: 0 | P83: 0 | Q83: 0 | R83: 0 | S83: 0 | T83: 0 | U83: 0 | V83: 0 | W83: 0 | X83: 0 | Y83: 0 | Z83: 0 | AA83: 0 | AB83: 0 | AC83: 0 | AD83: 0 | AE83: 0 | AF83: 0 | AG83: 0 | AH83: 0 | AI83: 0 | AJ83: 0 | AK83: 0 | AL83: 0 | AM83: 0
C84: 근골격계질환 | D84: 0 | E84: 0 | F84: 0 | G84: 0 | H84: 0 | I84: 0 | J84: 0 | K84: 0 | L84: 0 | M84: 0 | N84: 0 | O84: 0 | P84: 0 | Q84: 0 | R84: 0 | S84: 0 | T84: 0 | U84: 0 | V84: 0 | W84: 0 | X84: 0 | Y84: 0 | Z84: 0 | AA84: 0 | AB84: 0 | AC84: 0 | AD84: 0 | AE84: 0 | AF84: 0 | AG84: 0 | AH84: 0 | AI84: 0 | AJ84: 0 | AK84: 0 | AL84: 0 | AM84: 0
B85: 평 택 | C85: 합계 | D85: 58 | E85: 0 | F85: 13 | G85: 0 | H85: 23 | I85: 0 | J85: 13 | K85: 0 | L85: 3 | M85: 0 | N85: 6 | O85: 0 | P85: 56 | Q85: 2 | R85: 23 | S85: 1 | T85: 14 | U85: 1 | V85: 12 | W85: 0 | X85: 2 | Y85: 0 | Z85: 5 | AA85: 0 | AB85: 69 | AC85: 1 | AD85: 28 | AE85: 0 | AF85: 27 | AG85: 1 | AH85: 7 | AI85: 0 | AJ85: 2 | AK85: 0 | AL85: 5 | AM85: 0
C86: 떨어짐(높이가 있는 곳에서 사람이 떨어짐) | D86: 12 | E86: 0 | F86: 3 | G86: 0 | H86: 7 | I86: 0 | J86: 1 | K86: 0 | L86: 1 | M86: 0 | N86: 0 | O86: 0 | P86: 9 | Q86: 1 | R86: 4 | S86: 1 | T86: 3 | U86: 0 | V86: 2 | W86: 0 | X86: 0 | Y86: 0 | Z86: 0 | AA86: 0 | AB86: 11 | AC86: 0 | AD86: 3 | AE86: 0 | AF86: 5 | AG86: 0 | AH86: 2 | AI86: 0 | AJ86: 1 | AK86: 0 | AL86: 0 | AM86: 0
C87: 넘어짐(사람이 미끄러지거나 넘어짐) | D87: 27 | E87: 0 | F87: 7 | G87: 0 | H87: 7 | I87: 0 | J87: 7 | K87: 0 | L87: 2 | M87: 0 | N87: 4 | O87: 0 | P87: 27 | Q87: 1 | R87: 10 | S87: 0 | T87: 6 | U87: 1 | V87: 7 | W87: 0 | X87: 0 | Y87: 0 | Z87: 4 | AA87: 0 | AB87: 42 | AC87: 1 | AD87: 19 | AE87: 0 | AF87: 15 | AG87: 1 | AH87: 4 | AI87: 0 | AJ87: 0 | AK87: 0 | AL87: 4 | AM87: 0
C88: 깔림·뒤집힘(물체의 쓰러짐이나 뒤집힘) | D88: 0 | E88: 0 | F88: 0 | G88: 0 | H88: 0 | I88: 0 | J88: 0 | K88: 0 | L88: 0 | M88: 0 | N88: 0 | O88: 0 | P88: 1 | Q88: 0 | R88: 1 | S88: 0 | T88: 0 | U88: 0 | V88: 0 | W88: 0 | X88: 0 | Y88: 0 | Z88: 0 | AA88: 0 | AB88: 1 | AC88: 0 | AD88: 1 | AE88: 0 | AF88: 0 | AG88: 0 | AH88: 0 | AI88: 0 | AJ88: 0 | AK88: 0 | AL88: 0 | AM88: 0
C89: 부딪힘(물체에 부딪힘) | D89: 3 | E89: 0 | F89: 1 | G89: 0 | H89: 1 | I89: 0 | J89: 1 | K89: 0 | L89: 0 | M89: 0 | N89: 0 | O89: 0 | P89: 4 | Q89: 0 | R89: 2 | S89: 0 | T89: 1 | U89: 0 | V89: 1 | W89: 0 | X89: 0 | Y89: 0 | Z89: 0 | AA89: 0 | AB89: 3 | AC89: 0 | AD89: 0 | AE89: 0 | AF89: 2 | AG89: 0 | AH89: 1 | AI89: 0 | AJ89: 0 | AK89: 0 | AL89: 0 | AM89: 0
C90: 물체에 맞음(날아오거나 떨어진 물체에 맞음) | D90: 7 | E90: 0 | F90: 1 | G90: 0 | H90: 3 | I90: 0 | J90: 2 | K90: 0 | L90: 0 | M90: 0 | N90: 1 | O90: 0 | P90: 0 | Q90: 0 | R90: 0 | S90: 0 | T90: 0 | U90: 0 | V90: 0 | W90: 0 | X90: 0 | Y90: 0 | Z90: 0 | AA90: 0 | AB90: 1 | AC90: 0 | AD90: 0 | AE90: 0 | AF90: 1 | AG90: 0 | AH90: 0 | AI90: 0 | AJ90: 0 | AK90: 0 | AL90: 0 | AM90: 0
C91: 끼임(기계설비에 끼이거나 감김) | D91: 3 | E91: 0 | F91: 0 | G91: 0 | H91: 2 | I91: 0 | J91: 1 | K91: 0 | L91: 0 | M91: 0 | N91: 0 | O91: 0 | P91: 6 | Q91: 0 | R91: 3 | S91: 0 | T91: 2 | U91: 0 | V91: 1 | W91: 0 | X91: 0 | Y91: 0 | Z91: 0 | AA91: 0 | AB91: 3 | AC91: 0 | AD91: 1 | AE91: 0 | AF91: 1 | AG91: 0 | AH91: 0 | AI91: 0 | AJ91: 0 | AK91: 0 | AL91: 1 | AM91: 0
C92: 절단·베임·찔림 | D92: 0 | E92: 0 | F92: 0 | G92: 0 | H92: 0 | I92: 0 | J92: 0 | K92: 0 | L92: 0 | M92: 0 | N92: 0 | O92: 0 | P92: 2 | Q92: 0 | R92: 1 | S92: 0 | T92: 0 | U92: 0 | V92: 1 | W92: 0 | X92: 0 | Y92: 0 | Z92: 0 | AA92: 0 | AB92: 4 | AC92: 0 | AD92: 2 | AE92: 0 | AF92: 1 | AG92: 0 | AH92: 0 | AI92: 0 | AJ92: 1 | AK92: 0 | AL92: 0 | AM92: 0
C93: 불균형 및 무리한 동작 | D93: 5 | E93: 0 | F93: 0 | G93: 0 | H93: 3 | I93: 0 | J93: 1 | K93: 0 | L93: 0 | M93: 0 | N93: 1 | O93: 0 | P93: 4 | Q93: 0 | R93: 1 | S93: 0 | T93: 1 | U93: 0 | V93: 0 | W93: 0 | X93: 2 | Y93: 0 | Z93: 0 | AA93: 0 | AB93: 2 | AC93: 0 | AD93: 2 | AE93: 0 | AF93: 0 | AG93: 0 | AH93: 0 | AI93: 0 | AJ93: 0 | AK93: 0 | AL93: 0 | AM93: 0
C94: 화학물질누출·접촉 | D94: 0 | E94: 0 | F94: 0 | G94: 0 | H94: 0 | I94: 0 | J94: 0 | K94: 0 | L94: 0 | M94: 0 | N94: 0 | O94: 0 | P94: 0 | Q94: 0 | R94: 0 | S94: 0 | T94: 0 | U94: 0 | V94: 0 | W94: 0 | X94: 0 | Y94: 0 | Z94: 0 | AA94: 0 | AB94: 1 | AC94: 0 | AD94: 0 | AE94: 0 | AF94: 1 | AG94: 0 | AH94: 0 | AI94: 0 | AJ94: 0 | AK94: 0 | AL94: 0 | AM94: 0
C95: 체육행사 등의 사고 | D95: 0 | E95: 0 | F95: 0 | G95: 0 | H95: 0 | I95: 0 | J95: 0 | K95: 0 | L95: 0 | M95: 0 | N95: 0 | O95: 0 | P95: 2 | Q95: 0 | R95: 0 | S95: 0 | T95: 1 | U95: 0 | V95: 0 | W95: 0 | X95: 0 | Y95: 0 | Z95: 1 | AA95: 0 | AB95: 0 | AC95: 0 | AD95: 0 | AE95: 0 | AF95: 0 | AG95: 0 | AH95: 0 | AI95: 0 | AJ95: 0 | AK95: 0 | AL95: 0 | AM95: 0
C96: 폭력행위 | D96: 0 | E96: 0 | F96: 0 | G96: 0 | H96: 0 | I96: 0 | J96: 0 | K96: 0 | L96: 0 | M96: 0 | N96: 0 | O96: 0 | P96: 1 | Q96: 0 | R96: 1 | S96: 0 | T96: 0 | U96: 0 | V96: 0 | W96: 0 | X96: 0 | Y96: 0 | Z96: 0 | AA96: 0 | AB96: 1 | AC96: 0 | AD96: 0 | AE96: 0 | AF96: 1 | AG96: 0 | AH96: 0 | AI96: 0 | AJ96: 0 | AK96: 0 | AL96: 0 | AM96: 0
C97: 동물상해 | D97: 1 | E97: 0 | F97: 1 | G97: 0 | H97: 0 | I97: 0 | J97: 0 | K97: 0 | L97: 0 | M97: 0 | N97: 0 | O97: 0 | P97: 0 | Q97: 0 | R97: 0 | S97: 0 | T97: 0 | U97: 0 | V97: 0 | W97: 0 | X97: 0 | Y97: 0 | Z97: 0 | AA97: 0 | AB97: 0 | AC97: 0 | AD97: 0 | AE97: 0 | AF97: 0 | AG97: 0 | AH97: 0 | AI97: 0 | AJ97: 0 | AK97: 0 | AL97: 0 | AM97: 0
C98: 물리적인자 | D98: 0 | E98: 0 | F98: 0 | G98: 0 | H98: 0 | I98: 0 | J98: 0 | K98: 0 | L98: 0 | M98: 0 | N98: 0 | O98: 0 | P98: 0 | Q98: 0 | R98: 0 | S98: 0 | T98: 0 | U98: 0 | V98: 0 | W98: 0 | X98: 0 | Y98: 0 | Z98: 0 | AA98: 0 | AB98: 0 | AC98: 0 | AD98: 0 | AE98: 0 | AF98: 0 | AG98: 0 | AH98: 0 | AI98: 0 | AJ98: 0 | AK98: 0 | AL98: 0 | AM98: 0
C99: 생물학적인자 | D99: 0 | E99: 0 | F99: 0 | G99: 0 | H99: 0 | I99: 0 | J99: 0 | K99: 0 | L99: 0 | M99: 0 | N99: 0 | O99: 0 | P99: 0 | Q99: 0 | R99: 0 | S99: 0 | T99: 0 | U99: 0 | V99: 0 | W99: 0 | X99: 0 | Y99: 0 | Z99: 0 | AA99: 0 | AB99: 0 | AC99: 0 | AD99: 0 | AE99: 0 | AF99: 0 | AG99: 0 | AH99: 0 | AI99: 0 | AJ99: 0 | AK99: 0 | AL99: 0 | AM99: 0
C100: 뇌심혈관질환 | D100: 0 | E100: 0 | F100: 0 | G100: 0 | H100: 0 | I100: 0 | J100: 0 | K100: 0 | L100: 0 | M100: 0 | N100: 0 | O100: 0 | P100: 0 | Q100: 0 | R100: 0 | S100: 0 | T100: 0 | U100: 0 | V100: 0 | W100: 0 | X100: 0 | Y100: 0 | Z100: 0 | AA100: 0 | AB100: 0 | AC100: 0 | AD100: 0 | AE100: 0 | AF100: 0 | AG100: 0 | AH100: 0 | AI100: 0 | AJ100: 0 | AK100: 0 | AL100: 0 | AM100: 0
C101: 근골격계질환 | D101: 0 | E101: 0 | F101: 0 | G101: 0 | H101: 0 | I101: 0 | J101: 0 | K101: 0 | L101: 0 | M101: 0 | N101: 0 | O101: 0 | P101: 0 | Q101: 0 | R101: 0 | S101: 0 | T101: 0 | U101: 0 | V101: 0 | W101: 0 | X101: 0 | Y101: 0 | Z101: 0 | AA101: 0 | AB101: 0 | AC101: 0 | AD101: 0 | AE101: 0 | AF101: 0 | AG101: 0 | AH101: 0 | AI101: 0 | AJ101: 0 | AK101: 0 | AL101: 0 | AM101: 0
C102: 작업관련성질환 기타 | D102: 0 | E102: 0 | F102: 0 | G102: 0 | H102: 0 | I102: 0 | J102: 0 | K102: 0 | L102: 0 | M102: 0 | N102: 0 | O102: 0 | P102: 0 | Q102: 0 | R102: 0 | S102: 0 | T102: 0 | U102: 0 | V102: 0 | W102: 0 | X102: 0 | Y102: 0 | Z102: 0 | AA102: 0 | AB102: 0 | AC102: 0 | AD102: 0 | AE102: 0 | AF102: 0 | AG102: 0 | AH102: 0 | AI102: 0 | AJ102: 0 | AK102: 0 | AL102: 0 | AM102: 0

Sheet 광주
A1: 업종(소) | B1: 고용지청 | C1: 기준년월 | D1: 2021년 12월 | P1: 2022년 12월 | AB1: 2023년 11월
C2: 규모(소) | D2: 규모별 합계 | F2: 5인 미만 | H2: 5인 ~ 9인 | J2: 10인 ~ 19인 | L2: 20인 ~ 29인 | N2: 30인 ~ 49인 | P2: 규모별 합계 | R2: 5인 미만 | T2: 5인 ~ 9인 | V2: 10인 ~ 19인 | X2: 20인 ~ 29인 | Z2: 30인 ~ 49인 | AB2: 규모별 합계 | AD2: 5인 미만 | AF2: 5인 ~ 9인 | AH2: 10인 ~ 19인 | AJ2: 20인 ~ 29인 | AL2: 30인 ~ 49인
C3: 발생형태(중) | D3: 사고재해자수 합계 | E3: 사고사망자수 합계 | F3: 사고재해자수 | G3: 사고사망자수 | H3: 사고재해자수 | I3: 사고사망자수 | J3: 사고재해자수 | K3: 사고사망자수 | L3: 사고재해자수 | M3: 사고사망자수 | N3: 사고재해자수 | O3: 사고사망자수 | P3: 사고재해자수 합계 | Q3: 사고사망자수 합계 | R3: 사고재해자수 | S3: 사고사망자수 | T3: 사고재해자수 | U3: 사고사망자수 | V3: 사고재해자수 | W3: 사고사망자수 | X3: 사고재해자수 | Y3: 사고사망자수 | Z3: 사고재해자수 | AA3: 사고사망자수 | AB3: 사고재해자수 합계 | AC3: 사고사망자수 합계 | AD3: 사고재해자수 | AE3: 사고사망자수 | AF3: 사고재해자수 | AG3: 사고사망자수 | AH3: 사고재해자수 | AI3: 사고사망자수 | AJ3: 사고재해자수 | AK3: 사고사망자수 | AL3: 사고재해자수 | AM3: 사고사망자수
A4: 건물등의종합관리사업 | B4: 합계 | D4: =D5+D25+D44+D54+D64+D79+D93 -> 284 | E4: =E5+E25+E44+E54+E64+E79+E93 -> 2 | F4: 76 | G4: 0 | H4: 70 | I4: 0 | J4: 97 | K4: 1 | L4: 33 | M4: 1 | N4: 8 | O4: 0 | P4: 310 | Q4: 1 | R4: 76 | S4: 1 | T4: 90 | U4: 0 | V4: 96 | W4: 0 | X4: 22 | Y4: 0 | Z4: 26 | AA4: 0 | AB4: 301 | AC4: 3 | AD4: 63 | AE4: 0 | AF4: 89 | AG4: 2 | AH4: 105 | AI4: 1 | AJ4: 27 | AK4: 0 | AL4: 17 | AM4: 0
B5: 광 주 청 | C5: 합계 | D5: =F5+H5+J5+L5+N5 -> 144 | E5: =G5+I5+K5+M5+O5 -> 1 | F5: 31 | G5: 0 | H5: 29 | I5: 0 | J5: 56 | K5: 1 | L5: 24 | M5: 0 | N5: 4 | O5: 0 | P5: =R5+T5+V5+X5+Z5 -> 126 | Q5: =S5+U5+W5+Y5+AA5 -> 1 | R5: 31 | S5: 1 | T5: 42 | U5: 0 | V5: 37 | W5: 0 | X5: 7 | Y5: 0 | Z5: 9 | AA5: 0 | AB5: =AD5+AF5+AH5+AJ5+AL5 -> 151 | AC5: =AE5+AG5+AI5+AK5+AM5 -> 1 | AD5: 38 | AE5: 0 | AF5: 45 | AG5: 0 | AH5: 45 | AI5: 1 | AJ5: 16 | AK5: 0 | AL5: 7 | AM5: 0
C6: 떨어짐(높이가 있는 곳에서 사람이 떨어짐) | D6: 11 | E6: 0 | F6: 3 | G6: 0 | H6: 2 | I6: 0 | J6: 5 | K6: 0 | L6: 1 | M6: 0 | N6: 0 | O6: 0 | P6: 14 | Q6: 0 | R6: 5 | S6: 0 | T6: 5 | U6: 0 | V6: 4 | W6: 0 | X6: 0 | Y6: 0 | Z6: 0 | AA6: 0 | AB6: 19 | AC6: 0 | AD6: 7 | AE6: 0 | AF6: 5 | AG6: 0 | AH6: 7 | AI6: 0 | AJ6: 0 | AK6: 0 | AL6: 0 | AM6: 0
C7: 넘어짐(사람이 미끄러지거나 넘어짐) | D7: 89 | E7: 0 | F7: 23 | G7: 0 | H7: 17 | I7: 0 | J7: 33 | K7: 0 | L7: 14 | M7: 0 | N7: 2 | O7: 0 | P7: 58 | Q7: 1 | R7: 15 | S7: 1 | T7: 18 | U7: 0 | V7: 15 | W7: 0 | X7: 4 | Y7: 0 | Z7: 6 | AA7: 0 | AB7: 89 | AC7: 0 | AD7: 19 | AE7: 0 | AF7: 33 | AG7: 0 | AH7: 23 | AI7: 0 | AJ7: 10 | AK7: 0 | AL7: 4 | AM7: 0
C8: 깔림·뒤집힘(물체의 쓰러짐이나 뒤집힘) | D8: 2 | E8: 0 | F8: 0 | G8: 0 | H8: 1 | I8: 0 | J8: 1 | K8: 0 | L8: 0 | M8: 0 | N8: 0 | O8: 0 | P8: 3 | Q8: 0 | R8: 0 | S8: 0 | T8: 0 | U8: 0 | V8: 1 | W8: 0 | X8: 1 | Y8: 0 | Z8: 1 | AA8: 0 | AB8: 2 | AC8: 0 | AD8: 0 | AE8: 0 | AF8: 0 | AG8: 0 | AH8: 2 | AI8: 0 | AJ8: 0 | AK8: 0 | AL8: 0 | AM8: 0
C9: 부딪힘(물체에 부딪힘) | D9: 8 | E9: 0 | F9: 0 | G9: 0 | H9: 2 | I9: 0 | J9: 3 | K9: 0 | L9: 2 | M9: 0 | N9: 1 | O9: 0 | P9: 3 | Q9: 0 | R9: 0 | S9: 0 | T9: 1 | U9: 0 | V9: 2 | W9: 0 | X9: 0 | Y9: 0 | Z9: 0 | AA9: 0 | AB9: 13 | AC9: 1 | AD9: 3 | AE9: 0 | AF9: 1 | AG9: 0 | AH9: 4 | AI9: 1 | AJ9: 4 | AK9: 0 | AL9: 1 | AM9: 0
C10: 물체에 맞음(날아오거나 떨어진 물체에 맞음) | D10: 3 | E10: 0 | F10: 0 | G10: 0 | H10: 1 | I10: 0 | J10: 1 | K10: 0 | L10: 1 | M10: 0 | N10: 0 | O10: 0 | P10: 5 | Q10: 0 | R10: 2 | S10: 0 | T10: 0 | U10: 0 | V10: 2 | W10: 0 | X10: 0 | Y10: 0 | Z10: 1 | AA10: 0 | AB10: 5 | AC10: 0 | AD10: 2 | AE10: 0 | AF10: 1 | AG10: 0 | AH10: 2 | AI10: 0 | AJ10: 0 | AK10: 0 | AL10: 0 | AM10: 0
C11: 무너짐(건축물이나 쌓여진 물체가 무너짐) | D11: 1 | E11: 0 | F11: 0 | G11: 0 | H11: 0 | I11: 0 | J11: 1 | K11: 0 | L11: 0 | M11: 0 | N11: 0 | O11: 0 | P11: 0 | Q11: 0 | R11: 0 | S11: 0 | T11: 0 | U11: 0 | V11: 0 | W11: 0 | X11: 0 | Y11: 0 | Z11: 0 | AA11: 0 | AB11: 0 | AC11: 0 | AD11: 0 | AE11: 0 | AF11: 0 | AG11: 0 | AH11: 0 | AI11: 0 | AJ11: 0 | AK11: 0 | AL11: 0 | AM11: 0
C12: 끼임(기계설비에 끼이거나 감김) | D12: 4 | E12: 0 | F12: 0 | G12: 0 | H12: 2 | I12: 0 | J12: 0 | K12: 0 | L12: 1 | M12: 0 | N12: 1 | O12: 0 | P12: 5 | Q12: 0 | R12: 1 | S12: 0 | T12: 3 | U12: 0 | V12: 1 | W12: 0 | X12: 0 | Y12: 0 | Z12: 0 | AA12: 0 | AB12: 1 | AC12: 0 | AD12: 0 | AE12: 0 | AF12: 0 | AG12: 0 | AH12: 0 | AI12: 0 | AJ12: 0 | AK12: 0 | AL12: 1 | AM12: 0
C13: 절단·베임·찔림 | D13: 10 | E13: 0 | F13: 2 | G13: 0 | H13: 2 | I13: 0 | J13: 5 | K13: 0 | L13: 1 | M13: 0 | N13: 0 | O13: 0 | P13: 12 | Q13: 0 | R13: 3 | S13: 0 | T13: 5 | U13: 0 | V13: 4 | W13: 0 | X13: 0 | Y13: 0 | Z13: 0 | AA13: 0 | AB13: 4 | AC13: 0 | AD13: 0 | AE13: 0 | AF13: 3 | AG13: 0 | AH13: 1 | AI13: 0 | AJ13: 0 | AK13: 0 | AL13: 0 | AM13: 0
C14: 감전 | D14: 1 | E14: 0 | F14: 1 | G14: 0 | H14: 0 | I14: 0 | J14: 0 | K14: 0 | L14: 0 | M14: 0 | N14: 0 | O14: 0 | P14: 0 | Q14: 0 | R14: 0 | S14: 0 | T14: 0 | U14: 0 | V14: 0 | W14: 0 | X14: 0 | Y14: 0 | Z14: 0 | AA14: 0 | AB14: 0 | AC14: 0 | AD14: 0 | AE14: 0 | AF14: 0 | AG14: 0 | AH14: 0 | AI14: 0 | AJ14: 0 | AK14: 0 | AL14: 0 | AM14: 0
C15: 화재 | D15: 1 | E15: 0 | F15: 0 | G15: 0 | H15: 0 | I15: 0 | J15: 0 | K15: 0 | L15: 1 | M15: 0 | N15: 0 | O15: 0 | P15: 1 | Q15: 0 | R15: 0 | S15: 0 | T15: 0 | U15: 0 | V15: 1 | W15: 0 | X15: 0 | Y15: 0 | Z15: 0 | AA15: 0 | AB15: 1 | AC15: 0 | AD15: 0 | AE15: 0 | AF15: 0 | AG15: 0 | AH15: 1 | AI15: 0 | AJ15: 0 | AK15: 0 | AL15: 0 | AM15: 0
C16: 불균형 및 무리한 동작 | D16: 8 | E16: 0 | F16: 1 | G16: 0 | H16: 2 | I16: 0 | J16: 4 | K16: 0 | L16: 1 | M16: 0 | N16: 0 | O16: 0 | P16: 14 | Q16: 0 | R16: 4 | S16: 0 | T16: 5 | U16: 0 | V16: 4 | W16: 0 | X16: 1 | Y16: 0 | Z16: 0 | AA16: 0 | AB16: 12 | AC16: 0 | AD16: 4 | AE16: 0 | AF16: 1 | AG16: 0 | AH16: 5 | AI16: 0 | AJ16: 2 | AK16: 0 | AL16: 0 | AM16: 0
C17: 이상온도 접촉 | D17: 0 | E17: 0 | F17: 0 | G17: 0 | H17: 0 | I17: 0 | J17: 0 | K17: 0 | L17: 0 | M17: 0 | N17: 0 | O17: 0 | P17: 3 | Q17: 0 | R17: 0 | S17: 0 | T17: 1 | U17: 0 | V17: 0 | W17: 0 | X17: 1 | Y17: 0 | Z17: 1 | AA17: 0 | AB17: 1 | AC17: 0 | AD17: 0 | AE17: 0 | AF17: 0 | AG17: 0 | AH17: 0 | AI17: 0 | AJ17: 0 | AK17: 0 | AL17: 1 | AM17: 0
C18: 사업장외 교통사고 | D18: 3 | E18: 0 | F18: 1 | G18: 0 | H18: 0 | I18: 0 | J18: 0 | K18: 0 | L18: 2 | M18: 0 | N18: 0 | O18: 0 | P18: 1 | Q18: 0 | R18: 0 | S18: 0 | T18: 1 | U18: 0 | V18: 0 | W18: 0 | X18: 0 | Y18: 0 | Z18: 0 | AA18: 0 | AB18: 1 | AC18: 0 | AD18: 1 | AE18: 0 | AF18: 0 | AG18: 0 | AH18: 0 | AI18: 0 | AJ18: 0 | AK18: 0 | AL18: 0 | AM18: 0
C19: 체육행사 등의 사고 | D19: 0 | E19: 0 | F19: 0 | G19: 0 | H19: 0 | I19: 0 | J19: 0 | K19: 0 | L19: 0 | M19: 0 | N19: 0 | O19: 0 | P19: 0 | Q19: 0 | R19: 0 | S19: 0 | T19: 0 | U19: 0 | V19: 0 | W19: 0 | X19: 0 | Y19: 0 | Z19: 0 | AA19: 0 | AB19: 1 | AC19: 0 | AD19: 1 | AE19: 0 | AF19: 0 | AG19: 0 | AH19: 0 | AI19: 0 | AJ19: 0 | AK19: 0 | AL19: 0 | AM19: 0
C20: 폭력행위 | D20: 0 | E20: 0 | F20: 0 | G20: 0 | H20: 0 | I20: 0 | J20: 0 | K20: 0 | L20: 0 | M20: 0 | N20: 0 | O20: 0 | P20: 6 | Q20: 0 | R20: 1 | S20: 0 | T20: 3 | U20: 0 | V20: 2 | W20: 0 | X20: 0 | Y20: 0 | Z20: 0 | AA20: 0 | AB20: 1 | AC20: 0 | AD20: 0 | AE20: 0 | AF20: 1 | AG20: 0 | AH20: 0 | AI20: 0 | AJ20: 0 | AK20: 0 | AL20: 0 | AM20: 0
C21: 동물상해 | D21: 3 | E21: 1 | F21: 0 | G21: 0 | H21: 0 | I21: 0 | J21: 3 | K21: 1 | L21: 0 | M21: 0 | N21: 0 | O21: 0 | P21: 1 | Q21: 0 | R21: 0 | S21: 0 | T21: 0 | U21: 0 | V21: 1 | W21: 0 | X21: 0 | Y21: 0 | Z21: 0 | AA21: 0 | AB21: 1 | AC21: 0 | AD21: 1 | AE21: 0 | AF21: 0 | AG21: 0 | AH21: 0 | AI21: 0 | AJ21: 0 | AK21: 0 | AL21: 0 | AM21: 0
C22: 뇌심혈관질환 | D22: 0 | E22: 0 | F22: 0 | G22: 0 | H22: 0 | I22: 0 | J22: 0 | K22: 0 | L22: 0 | M22: 0 | N22: 0 | O22: 0 | P22: 0 | Q22: 0 | R22: 0 | S22: 0 | T22: 0 | U22: 0 | V22: 0 | W22: 0 | X22: 0 | Y22: 0 | Z22: 0 | AA22: 0 | AB22: 0 | AC22: 0 | AD22: 0 | AE22: 0 | AF22: 0 | AG22: 0 | AH22: 0 | AI22: 0 | AJ22: 0 | AK22: 0 | AL22: 0 | AM22: 0
C23: 근골격계질환 | D23: 0 | E23: 0 | F23: 0 | G23: 0 | H23: 0 | I23: 0 | J23: 0 | K23: 0 | L23: 0 | M23: 0 | N23: 0 | O23: 0 | P23: 0 | Q23: 0 | R23: 0 | S23: 0 | T23: 0 | U23: 0 | V23: 0 | W23: 0 | X23: 0 | Y23: 0 | Z23: 0 | AA23: 0 | AB23: 0 | AC23: 0 | AD23: 0 | AE23: 0 | AF23: 0 | AG23: 0 | AH23: 0 | AI23: 0 | AJ23: 0 | AK23: 0 | AL23: 0 | AM23: 0
C24: 작업관련성질환 기타 | D24: 0 | E24: 0 | F24: 0 | G24: 0 | H24: 0 | I24: 0 | J24: 0 | K24: 0 | L24: 0 | M24: 0 | N24: 0 | O24: 0 | P24: 0 | Q24: 0 | R24: 0 | S24: 0 | T24: 0 | U24: 0 | V24: 0 | W24: 0 | X24: 0 | Y24: 0 | Z24: 0 | AA24: 0 | AB24: 0 | AC24: 0 | AD24: 0 | AE24: 0 | AF24: 0 | AG24: 0 | AH24: 0 | AI24: 0 | AJ24: 0 | AK24: 0 | AL24: 0 | AM24: 0
B25: 전 주 | C25: 합계 | D25: 53 | E25: 0 | F25: 20 | G25: 0 | H25: 17 | I25: 0 | J25: 14 | K25: 0 | L25: 2 | M25: 0 | N25: 0 | O25: 0 | P25: 45 | Q25: 0 | R25: 10 | S25: 0 | T25: 19 | U25: 0 | V25: 11 | W25: 0 | X25: 4 | Y25: 0 | Z25: 1 | AA25: 0 | AB25: 47 | AC25: 1 | AD25: 8 | AE25: 0 | AF25: 17 | AG25: 1 | AH25: 18 | AI25: 0 | AJ25: 3 | AK25: 0 | AL25: 1 | AM25: 0
C26: 떨어짐(높이가 있는 곳에서 사람이 떨어짐) | D26: 8 | E26: 0 | F26: 3 | G26: 0 | H26: 3 | I26: 0 | J26: 1 | K26: 0 | L26: 1 | M26: 0 | N26: 0 | O26: 0 | P26: 10 | Q26: 0 | R26: 0 | S26: 0 | T26: 5 | U26: 0 | V26: 3 | W26: 0 | X26: 2 | Y26: 0 | Z26: 0 | AA26: 0 | AB26: 10 | AC26: 1 | AD26: 0 | AE26: 0 | AF26: 7 | AG26: 1 | AH26: 3 | AI26: 0 | AJ26: 0 | AK26: 0 | AL26: 0 | AM26: 0
C27: 넘어짐(사람이 미끄러지거나 넘어짐) | D27: 20 | E27: 0 | F27: 7 | G27: 0 | H27: 6 | I27: 0 | J27: 7 | K27: 0 | L27: 0 | M27: 0 | N27: 0 | O27: 0 | P27: 12 | Q27: 0 | R27: 5 | S27: 0 | T27: 5 | U27: 0 | V27: 0 | W27: 0 | X27: 1 | Y27: 0 | Z27: 1 | AA27: 0 | AB27: 16 | AC27: 0 | AD27: 2 | AE27: 0 | AF27: 6 | AG27: 0 | AH27: 7 | AI27: 0 | AJ27: 1 | AK27: 0 | AL27: 0 | AM27: 0
C28: 깔림·뒤집힘(물체의 쓰러짐이나 뒤집힘) | D28: 0 | E28: 0 | F28: 0 | G28: 0 | H28: 0 | I28: 0 | J28: 0 | K28: 0 | L28: 0 | M28: 0 | N28: 0 | O28: 0 | P28: 0 | Q28: 0 | R28: 0 | S28: 0 | T28: 0 | U28: 0 | V28: 0 | W28: 0 | X28: 0 | Y28: 0 | Z28: 0 | AA28: 0 | AB28: 1 | AC28: 0 | AD28: 0 | AE28: 0 | AF28: 0 | AG28: 0 | AH28: 1 | AI28: 0 | AJ28: 0 | AK28: 0 | AL28: 0 | AM28: 0
C29: 부딪힘(물체에 부딪힘) | D29: 3 | E29: 0 | F29: 1 | G29: 0 | H29: 2 | I29: 0 | J29: 0 | K29: 0 | L29: 0 | M29: 0 | N29: 0 | O29: 0 | P29: 2 | Q29: 0 | R29: 1 | S29: 0 | T29: 1 | U29: 0 | V29: 0 | W29: 0 | X29: 0 | Y29: 0 | Z29: 0 | AA29: 0 | AB29: 2 | AC29: 0 | AD29: 1 | AE29: 0 | AF29: 0 | AG29: 0 | AH29: 1 | AI29: 0 | AJ29: 0 | AK29: 0 | AL29: 0 | AM29: 0
C30: 물체에 맞음(날아오거나 떨어진 물체에 맞음) | D30: 1 | E30: 0 | F30: 0 | G30: 0 | H30: 1 | I30: 0 | J30: 0 | K30: 0 | L30: 0 | M30: 0 | N30: 0 | O30: 0 | P30: 4 | Q30: 0 | R30: 2 | S30: 0 | T30: 0 | U30: 0 | V30: 2 | W30: 0 | X30: 0 | Y30: 0 | Z30: 0 | AA30: 0 | AB30: 3 | AC30: 0 | AD30: 1 | AE30: 0 | AF30: 1 | AG30: 0 | AH30: 1 | AI30: 0 | AJ30: 0 | AK30: 0 | AL30: 0 | AM30: 0
C31: 끼임(기계설비에 끼이거나 감김) | D31: 4 | E31: 0 | F31: 0 | G31: 0 | H31: 2 | I31: 0 | J31: 1 | K31: 0 | L31: 1 | M31: 0 | N31: 0 | O31: 0 | P31: 3 | Q31: 0 | R31: 0 | S31: 0 | T31: 2 | U31: 0 | V31: 0 | W31: 0 | X31: 1 | Y31: 0 | Z31: 0 | AA31: 0 | AB31: 3 | AC31: 0 | AD31: 1 | AE31: 0 | AF31: 0 | AG31: 0 | AH31: 1 | AI31: 0 | AJ31: 0 | AK31: 0 | AL31: 1 | AM31: 0
C32: 절단·베임·찔림 | D32: 7 | E32: 0 | F32: 4 | G32: 0 | H32: 0 | I32: 0 | J32: 3 | K32: 0 | L32: 0 | M32: 0 | N32: 0 | O32: 0 | P32: 5 | Q32: 0 | R32: 0 | S32: 0 | T32: 3 | U32: 0 | V32: 2 | W32: 0 | X32: 0 | Y32: 0 | Z32: 0 | AA32: 0 | AB32: 4 | AC32: 0 | AD32: 1 | AE32: 0 | AF32: 1 | AG32: 0 | AH32: 2 | AI32: 0 | AJ32: 0 | AK32: 0 | AL32: 0 | AM32: 0
C33: 감전 | D33: 2 | E33: 0 | F33: 1 | G33: 0 | H33: 1 | I33: 0 | J33: 0 | K33: 0 | L33: 0 | M33: 0 | N33: 0 | O33: 0 | P33: 1 | Q33: 0 | R33: 0 | S33: 0 | T33: 0 | U33: 0 | V33: 1 | W33: 0 | X33: 0 | Y33: 0 | Z33: 0 | AA33: 0 | AB33: 1 | AC33: 0 | AD33: 0 | AE33: 0 | AF33: 1 | AG33: 0 | AH33: 0 | AI33: 0 | AJ33: 0 | AK33: 0 | AL33: 0 | AM33: 0
C34: 화재 | D34: 0 | E34: 0 | F34: 0 | G34: 0 | H34: 0 | I34: 0 | J34: 0 | K34: 0 | L34: 0 | M34: 0 | N34: 0 | O34: 0 | P34: 1 | Q34: 0 | R34: 0 | S34: 0 | T34: 0 | U34: 0 | V34: 1 | W34: 0 | X34: 0 | Y34: 0 | Z34: 0 | AA34: 0 | AB34: 0 | AC34: 0 | AD34: 0 | AE34: 0 | AF34: 0 | AG34: 0 | AH34: 0 | AI34: 0 | AJ34: 0 | AK34: 0 | AL34: 0 | AM34: 0
C35: 불균형 및 무리한 동작 | D35: 5 | E35: 0 | F35: 2 | G35: 0 | H35: 2 | I35: 0 | J35: 1 | K35: 0 | L35: 0 | M35: 0 | N35: 0 | O35: 0 | P35: 2 | Q35: 0 | R35: 1 | S35: 0 | T35: 1 | U35: 0 | V35: 0 | W35: 0 | X35: 0 | Y35: 0 | Z35: 0 | AA35: 0 | AB35: 3 | AC35: 0 | AD35: 0 | AE35: 0 | AF35: 0 | AG35: 0 | AH35: 1 | AI35: 0 | AJ35: 2 | AK35: 0 | AL35: 0 | AM35: 0
C36: 이상온도 접촉 | D36: 1 | E36: 0 | F36: 1 | G36: 0 | H36: 0 | I36: 0 | J36: 0 | K36: 0 | L36: 0 | M36: 0 | N36: 0 | O36: 0 | P36: 0 | Q36: 0 | R36: 0 | S36: 0 | T36: 0 | U36: 0 | V36: 0 | W36: 0 | X36: 0 | Y36: 0 | Z36: 0 | AA36: 0 | AB36: 0 | AC36: 0 | AD36: 0 | AE36: 0 | AF36: 0 | AG36: 0 | AH36: 0 | AI36: 0 | AJ36: 0 | AK36: 0 | AL36: 0 | AM36: 0
C37: 화학물질누출·접촉 | D37: =F37+H37+J37+L37+N37 -> 1 | E37: =G37+I37+K37+M37+O37 -> 0 | F37: 1 | G37: 0 | H37: 0 | I37: 0 | J37: 0 | K37: 0 | L37: 0 | M37: 0 | N37: 0 | O37: 0 | P37: =R37+T37+V37+X37+Z37 -> 1 | Q37: =S37+U37+W37+Y37+AA37 -> 0 | R37: 1 | S37: 0 | T37: 0 | U37: 0 | V37: 0 | W37: 0 | X37: 0 | Y37: 0 | Z37: 0 | AA37: 0 | AB37: =AD37+AF37+AH37+AJ37+AL37 -> 2 | AC37: =AE37+AG37+AI37+AK37+AM37 -> 0 | AD37: 2 | AE37: 0 | AF37: 0 | AG37: 0 | AH37: 0 | AI37: 0 | AJ37: 0 | AK37: 0 | AL37: 0 | AM37: 0
C38: 사업장외 교통사고 | D38: 0 | E38: 0 | F38: 0 | G38: 0 | H38: 0 | I38: 0 | J38: 0 | K38: 0 | L38: 0 | M38: 0 | N38: 0 | O38: 0 | P38: 2 | Q38: 0 | R38: 0 | S38: 0 | T38: 0 | U38: 0 | V38: 2 | W38: 0 | X38: 0 | Y38: 0 | Z38: 0 | AA38: 0 | AB38: 2 | AC38: 0 | AD38: 0 | AE38: 0 | AF38: 1 | AG38: 0 | AH38: 1 | AI38: 0 | AJ38: 0 | AK38: 0 | AL38: 0 | AM38: 0
C39: 폭력행위 | D39: 1 | E39: 0 | F39: 0 | G39: 0 | H39: 0 | I39: 0 | J39: 1 | K39: 0 | L39: 0 | M39: 0 | N39: 0 | O39: 0 | P39: 2 | Q39: 0 | R39: 0 | S39: 0 | T39: 2 | U39: 0 | V39: 0 | W39: 0 | X39: 0 | Y39: 0 | Z39: 0 | AA39: 0 | AB39: 0 | AC39: 0 | AD39: 0 | AE39: 0 | AF39: 0 | AG39: 0 | AH39: 0 | AI39: 0 | AJ39: 0 | AK39: 0 | AL39: 0 | AM39: 0
C40: 물리적인자 | D40: 0 | E40: 0 | F40: 0 | G40: 0 | H40: 0 | I40: 0 | J40: 0 | K40: 0 | L40: 0 | M40: 0 | N40: 0 | O40: 0 | P40: 0 | Q40: 0 | R40: 0 | S40: 0 | T40: 0 | U40: 0 | V40: 0 | W40: 0 | X40: 0 | Y40: 0 | Z40: 0 | AA40: 0 | AB40: 0 | AC40: 0 | AD40: 0 | AE40: 0 | AF40: 0 | AG40: 0 | AH40: 0 | AI40: 0 | AJ40: 0 | AK40: 0 | AL40: 0 | AM40: 0
C41: 뇌심혈관질환 | D41: 0 | E41: 0 | F41: 0 | G41: 0 | H41: 0 | I41: 0 | J41: 0 | K41: 0 | L41: 0 | M41: 0 | N41: 0 | O41: 0 | P41: 0 | Q41: 0 | R41: 0 | S41: 0 | T41: 0 | U41: 0 | V41: 0 | W41: 0 | X41: 0 | Y41: 0 | Z41: 0 | AA41: 0 | AB41: 0 | AC41: 0 | AD41: 0 | AE41: 0 | AF41: 0 | AG41: 0 | AH41: 0 | AI41: 0 | AJ41: 0 | AK41: 0 | AL41: 0 | AM41: 0
C42: 근골격계질환 | D42: 0 | E42: 0 | F42: 0 | G42: 0 | H42: 0 | I42: 0 | J42: 0 | K42: 0 | L42: 0 | M42: 0 | N42: 0 | O42: 0 | P42: 0 | Q42: 0 | R42: 0 | S42: 0 | T42: 0 | U42: 0 | V42: 0 | W42: 0 | X42: 0 | Y42: 0 | Z42: 0 | AA42: 0 | AB42: 0 | AC42: 0 | AD42: 0 | AE42: 0 | AF42: 0 | AG42: 0 | AH42: 0 | AI42: 0 | AJ42: 0 | AK42: 0 | AL42: 0 | AM42: 0
C43: 작업관련성질환 기타 | D43: 0 | E43: 0 | F43: 0 | G43: 0 | H43: 0 | I43: 0 | J43: 0 | K43: 0 | L43: 0 | M43: 0 | N43: 0 | O43: 0 | P43: 0 | Q43: 0 | R43: 0 | S43: 0 | T43: 0 | U43: 0 | V43: 0 | W43: 0 | X43: 0 | Y43: 0 | Z43: 0 | AA43: 0 | AB43: 0 | AC43: 0 | AD43: 0 | AE43: 0 | AF43: 0 | AG43: 0 | AH43: 0 | AI43: 0 | AJ43: 0 | AK43: 0 | AL43: 0 | AM43: 0
B44: 익 산 | C44: 합계 | D44: 9 | E44: 1 | F44: 1 | G44: 0 | H44: 6 | I44: 0 | J44: 1 | K44: 0 | L44: 1 | M44: 1 | N44: 0 | O44: 0 | P44: 12 | Q44: 0 | R44: 2 | S44: 0 | T44: 3 | U44: 0 | V44: 4 | W44: 0 | X44: 2 | Y44: 0 | Z44: 1 | AA44: 0 | AB44: 9 | AC44: 0 | AD44: 1 | AE44: 0 | AF44: 3 | AG44: 0 | AH44: 3 | AI44: 0 | AJ44: 2 | AK44: 0 | AL44: 0 | AM44: 0
C45: 떨어짐(높이가 있는 곳에서 사람이 떨어짐) | D45: 2 | E45: 0 | F45: 0 | G45: 0 | H45: 2 | I45: 0 | J45: 0 | K45: 0 | L45: 0 | M45: 0 | N45: 0 | O45: 0 | P45: 3 | Q45: 0 | R45: 1 | S45: 0 | T45: 0 | U45: 0 | V45: 1 | W45: 0 | X45: 0 | Y45: 0 | Z45: 1 | AA45: 0 | AB45: 1 | AC45: 0 | AD45: 0 | AE45: 0 | AF45: 1 | AG45: 0 | AH45: 0 | AI45: 0 | AJ45: 0 | AK45: 0 | AL45: 0 | AM45: 0
C46: 넘어짐(사람이 미끄러지거나 넘어짐) | D46: 4 | E46: 0 | F46: 1 | G46: 0 | H46: 2 | I46: 0 | J46: 1 | K46: 0 | L46: 0 | M46: 0 | N46: 0 | O46: 0 | P46: 7 | Q46: 0 | R46: 1 | S46: 0 | T46: 3 | U46: 0 | V46: 2 | W46: 0 | X46: 1 | Y46: 0 | Z46: 0 | AA46: 0 | AB46: 2 | AC46: 0 | AD46: 1 | AE46: 0 | AF46: 0 | AG46: 0 | AH46: 1 | AI46: 0 | AJ46: 0 | AK46: 0 | AL46: 0 | AM46: 0
C47: 부딪힘(물체에 부딪힘) | D47: 1 | E47: 1 | F47: 0 | G47: 0 | H47: 0 | I47: 0 | J47: 0 | K47: 0 | L47: 1 | M47: 1 | N47: 0 | O47: 0 | P47: 0 | Q47: 0 | R47: 0 | S47: 0 | T47: 0 | U47: 0 | V47: 0 | W47: 0 | X47: 0 | Y47: 0 | Z47: 0 | AA47: 0 | AB47: 1 | AC47: 0 | AD47: 0 | AE47: 0 | AF47: 0 | AG47: 0 | AH47: 1 | AI47: 0 | AJ47: 0 | AK47: 0 | AL47: 0 | AM47: 0
C48: 물체에 맞음(날아오거나 떨어진 물체에 맞음) | D48: 0 | E48: 0 | F48: 0 | G48: 0 | H48: 0 | I48: 0 | J48: 0 | K48: 0 | L48: 0 | M48: 0 | N48: 0 | O48: 0 | P48: 1 | Q48: 0 | R48: 0 | S48: 0 | T48: 0 | U48: 0 | V48: 1 | W48: 0 | X48: 0 | Y48: 0 | Z48: 0 | AA48: 0 | AB48: 3 | AC48: 0 | AD48: 0 | AE48: 0 | AF48: 1 | AG48: 0 | AH48: 0 | AI48: 0 | AJ48: 2 | AK48: 0 | AL48: 0 | AM48: 0
C49: 끼임(기계설비에 끼이거나 감김) | D49: 0 | E49: 0 | F49: 0 | G49: 0 | H49: 0 | I49: 0 | J49: 0 | K49: 0 | L49: 0 | M49: 0 | N49: 0 | O49: 0 | P49: 1 | Q49: 0 | R49: 0 | S49: 0 | T49: 0 | U49: 0 | V49: 0 | W49: 0 | X49: 1 | Y49: 0 | Z49: 0 | AA49: 0 | AB49: 1 | AC49: 0 | AD49: 0 | AE49: 0 | AF49: 0 | AG49: 0 | AH49: 1 | AI49: 0 | AJ49: 0 | AK49: 0 | AL49: 0 | AM49: 0
C50: 절단·베임·찔림 | D50: 1 | E50: 0 | F50: 0 | G50: 0 | H50: 1 | I50: 0 | J50: 0 | K50: 0 | L50: 0 | M50: 0 | N50: 0 | O50: 0 | P50: 0 | Q50: 0 | R50: 0 | S50: 0 | T50: 0 | U50: 0 | V50: 0 | W50: 0 | X50: 0 | Y50: 0 | Z50: 0 | AA50: 0 | AB50: 1 | AC50: 0 | AD50: 0 | AE50: 0 | AF50: 1 | AG50: 0 | AH50: 0 | AI50: 0 | AJ50: 0 | AK50: 0 | AL50: 0 | AM50: 0
C51: 이상온도 접촉 | D51: 1 | E51: 0 | F51: 0 | G51: 0 | H51: 1 | I51: 0 | J51: 0 | K51: 0 | L51: 0 | M51: 0 | N51: 0 | O51: 0 | P51: 0 | Q51: 0 | R51: 0 | S51: 0 | T51: 0 | U51: 0 | V51: 0 | W51: 0 | X51: 0 | Y51: 0 | Z51: 0 | AA51: 0 | AB51: 0 | AC51: 0 | AD51: 0 | AE51: 0 | AF51: 0 | AG51: 0 | AH51: 0 | AI51: 0 | AJ51: 0 | AK51: 0 | AL51: 0 | AM51: 0
C52: 뇌심혈관질환 | D52: 0 | E52: 0 | F52: 0 | G52: 0 | H52: 0 | I52: 0 | J52: 0 | K52: 0 | L52: 0 | M52: 0 | N52: 0 | O52: 0 | P52: 0 | Q52: 0 | R52: 0 | S52: 0 | T52: 0 | U52: 0 | V52: 0 | W52: 0 | X52: 0 | Y52: 0 | Z52: 0 | AA52: 0 | AB52: 0 | AC52: 0 | AD52: 0 | AE52: 0 | AF52: 0 | AG52: 0 | AH52: 0 | AI52: 0 | AJ52: 0 | AK52: 0 | AL52: 0 | AM52: 0
C53: 근골격계질환 | D53: 0 | E53: 0 | F53: 0 | G53: 0 | H53: 0 | I53: 0 | J53: 0 | K53: 0 | L53: 0 | M53: 0 | N53: 0 | O53: 0 | P53: 0 | Q53: 0 | R53: 0 | S53: 0 | T53: 0 | U53: 0 | V53: 0 | W53: 0 | X53: 0 | Y53: 0 | Z53: 0 | AA53: 0 | AB53: 0 | AC53: 0 | AD53: 0 | AE53: 0 | AF53: 0 | AG53: 0 | AH53: 0 | AI53: 0 | AJ53: 0 | AK53: 0 | AL53: 0 | AM53: 0
B54: 군 산 | C54: 합계 | D54: 4 | E54: 0 | F54: 3 | G54: 0 | H54: 1 | I54: 0 | J54: 0 | K54: 0 | L54: 0 | M54: 0 | N54: 0 | O54: 0 | P54: 16 | Q54: 0 | R54: 6 | S54: 0 | T54: 5 | U54: 0 | V54: 4 | W54: 0 | X54: 1 | Y54: 0 | Z54: 0 | AA54: 0 | AB54: 15 | AC54: 0 | AD54: 4 | AE54: 0 | AF54: 2 | AG54: 0 | AH54: 9 | AI54: 0 | AJ54: 0 | AK54: 0 | AL54: 0 | AM54: 0
C55: 떨어짐(높이가 있는 곳에서 사람이 떨어짐) | D55: 1 | E55: 0 | F55: 0 | G55: 0 | H55: 1 | I55: 0 | J55: 0 | K55: 0 | L55: 0 | M55: 0 | N55: 0 | O55: 0 | P55: 3 | Q55: 0 | R55: 2 | S55: 0 | T55: 0 | U55: 0 | V55: 1 | W55: 0 | X55: 0 | Y55: 0 | Z55: 0 | AA55: 0 | AB55: 2 | AC55: 0 | AD55: 1 | AE55: 0 | AF55: 0 | AG55: 0 | AH55: 1 | AI55: 0 | AJ55: 0 | AK55: 0 | AL55: 0 | AM55: 0
C56: 넘어짐(사람이 미끄러지거나 넘어짐) | D56: 2 | E56: 0 | F56: 2 | G56: 0 | H56: 0 | I56: 0 | J56: 0 | K56: 0 | L56: 0 | M56: 0 | N56: 0 | O56: 0 | P56: 8 | Q56: 0 | R56: 3 | S56: 0 | T56: 3 | U56: 0 | V56: 1 | W56: 0 | X56: 1 | Y56: 0 | Z56: 0 | AA56: 0 | AB56: 6 | AC56: 0 | AD56: 1 | AE56: 0 | AF56: 1 | AG56: 0 | AH56: 4 | AI56: 0 | AJ56: 0 | AK56: 0 | AL56: 0 | AM56: 0
C57: 깔림·뒤집힘(물체의 쓰러짐이나 뒤집힘) | D57: 0 | E57: 0 | F57: 0 | G57: 0 | H57: 0 | I57: 0 | J57: 0 | K57: 0 | L57: 0 | M57: 0 | N57: 0 | O57: 0 | P57: 0 | Q57: 0 | R57: 0 | S57: 0 | T57: 0 | U57: 0 | V57: 0 | W57: 0 | X57: 0 | Y57: 0 | Z57: 0 | AA57: 0 | AB57: 1 | AC57: 0 | AD57: 1 | AE57: 0 | AF57: 0 | AG57: 0 | AH57: 0 | AI57: 0 | AJ57: 0 | AK57: 0 | AL57: 0 | AM57: 0
C58: 물체에 맞음(날아오거나 떨어진 물체에 맞음) | D58: 0 | E58: 0 | F58: 0 | G58: 0 | H58: 0 | I58: 0 | J58: 0 | K58: 0 | L58: 0 | M58: 0 | N58: 0 | O58: 0 | P58: 1 | Q58: 0 | R58: 0 | S58: 0 | T58: 0 | U58: 0 | V58: 1 | W58: 0 | X58: 0 | Y58: 0 | Z58: 0 | AA58: 0 | AB58: 3 | AC58: 0 | AD58: 1 | AE58: 0 | AF58: 0 | AG58: 0 | AH58: 2 | AI58: 0 | AJ58: 0 | AK58: 0 | AL58: 0 | AM58: 0
C59: 끼임(기계설비에 끼이거나 감김) | D59: 0 | E59: 0 | F59: 0 | G59: 0 | H59: 0 | I59: 0 | J59: 0 | K59: 0 | L59: 0 | M59: 0 | N59: 0 | O59: 0 | P59: 1 | Q59: 0 | R59: 0 | S59: 0 | T59: 0 | U59: 0 | V59: 1 | W59: 0 | X59: 0 | Y59: 0 | Z59: 0 | AA59: 0 | AB59: 1 | AC59: 0 | AD59: 0 | AE59: 0 | AF59: 0 | AG59: 0 | AH59: 1 | AI59: 0 | AJ59: 0 | AK59: 0 | AL59: 0 | AM59: 0
C60: 절단·베임·찔림 | D60: 1 | E60: 0 | F60: 1 | G60: 0 | H60: 0 | I60: 0 | J60: 0 | K60: 0 | L60: 0 | M60: 0 | N60: 0 | O60: 0 | P60: 1 | Q60: 0 | R60: 1 | S60: 0 | T60: 0 | U60: 0 | V60: 0 | W60: 0 | X60: 0 | Y60: 0 | Z60: 0 | AA60: 0 | AB60: 0 | AC60: 0 | AD60: 0 | AE60: 0 | AF60: 0 | AG60: 0 | AH60: 0 | AI60: 0 | AJ60: 0 | AK60: 0 | AL60: 0 | AM60: 0
C61: 불균형 및 무리한 동작 | D61: 0 | E61: 0 | F61: 0 | G61: 0 | H61: 0 | I61: 0 | J61: 0 | K61: 0 | L61: 0 | M61: 0 | N61: 0 | O61: 0 | P61: 1 | Q61: 0 | R61: 0 | S61: 0 | T61: 1 | U61: 0 | V61: 0 | W61: 0 | X61: 0 | Y61: 0 | Z61: 0 | AA61: 0 | AB61: 1 | AC61: 0 | AD61: 0 | AE61: 0 | AF61: 1 | AG61: 0 | AH61: 0 | AI61: 0 | AJ61: 0 | AK61: 0 | AL61: 0 | AM61: 0
C62: 이상온도 접촉 | D62: 0 | E62: 0 | F62: 0 | G62: 0 | H62: 0 | I62: 0 | J62: 0 | K62: 0 | L62: 0 | M62: 0 | N62: 0 | O62: 0 | P62: 1 | Q62: 0 | R62: 0 | S62: 0 | T62: 1 | U62: 0 | V62: 0 | W62: 0 | X62: 0 | Y62: 0 | Z62: 0 | AA62: 0 | AB62: 1 | AC62: 0 | AD62: 0 | AE62: 0 | AF62: 0 | AG62: 0 | AH62: 1 | AI62: 0 | AJ62: 0 | AK62: 0 | AL62: 0 | AM62: 0
C63: 뇌심혈관질환 | D63: 0 | E63: 0 | F63: 0 | G63: 0 | H63: 0 | I63: 0 | J63: 0 | K63: 0 | L63: 0 | M63: 0 | N63: 0 | O63: 0 | P63: 0 | Q63: 0 | R63: 0 | S63: 0 | T63: 0 | U63: 0 | V63: 0 | W63: 0 | X63: 0 | Y63: 0 | Z63: 0 | AA63: 0 | AB63: 0 | AC63: 0 | AD63: 0 | AE63: 0 | AF63: 0 | AG63: 0 | AH63: 0 | AI63: 0 | AJ63: 0 | AK63: 0 | AL63: 0 | AM63: 0
B64: 목 포 | C64: 합계 | D64: 21 | E64: 0 | F64: 6 | G64: 0 | H64: 7 | I64: 0 | J64: 8 | K64: 0 | L64: 0 | M64: 0 | N64: 0 | O64: 0 | P64: 33 | Q64: 0 | R64: 11 | S64: 0 | T64: 6 | U64: 0 | V64: 11 | W64: 0 | X64: 1 | Y64: 0 | Z64: 4 | AA64: 0 | AB64: 14 | AC64: 0 | AD64: 5 | AE64: 0 | AF64: 6 | AG64: 0 | AH64: 3 | AI64: 0 | AJ64: 0 | AK64: 0 | AL64: 0 | AM64: 0
C65: 떨어짐(높이가 있는 곳에서 사람이 떨어짐) | D65: 2 | E65: 0 | F65: 1 | G65: 0 | H65: 0 | I65: 0 | J65: 1 | K65: 0 | L65: 0 | M65: 0 | N65: 0 | O65: 0 | P65: 4 | Q65: 0 | R65: 4 | S65: 0 | T65: 0 | U65: 0 | V65: 0 | W65: 0 | X65: 0 | Y65: 0 | Z65: 0 | AA65: 0 | AB65: 2 | AC65: 0 | AD65: 2 | AE65: 0 | AF65: 0 | AG65: 0 | AH65: 0 | AI65: 0 | AJ65: 0 | AK65: 0 | AL65: 0 | AM65: 0
C66: 넘어짐(사람이 미끄러지거나 넘어짐) | D66: 14 | E66: 0 | F66: 5 | G66: 0 | H66: 4 | I66: 0 | J66: 5 | K66: 0 | L66: 0 | M66: 0 | N66: 0 | O66: 0 | P66: 15 | Q66: 0 | R66: 3 | S66: 0 | T66: 3 | U66: 0 | V66: 6 | W66: 0 | X66: 1 | Y66: 0 | Z66: 2 | AA66: 0 | AB66: 3 | AC66: 0 | AD66: 2 | AE66: 0 | AF66: 1 | AG66: 0 | AH66: 0 | AI66: 0 | AJ66: 0 | AK66: 0 | AL66: 0 | AM66: 0
C67: 부딪힘(물체에 부딪힘) | D67: 1 | E67: 0 | F67: 0 | G67: 0 | H67: 1 | I67: 0 | J67: 0 | K67: 0 | L67: 0 | M67: 0 | N67: 0 | O67: 0 | P67: 0 | Q67: 0 | R67: 0 | S67: 0 | T67: 0 | U67: 0 | V67: 0 | W67: 0 | X67: 0 | Y67: 0 | Z67: 0 | AA67: 0 | AB67: 0 | AC67: 0 | AD67: 0 | AE67: 0 | AF67: 0 | AG67: 0 | AH67: 0 | AI67: 0 | AJ67: 0 | AK67: 0 | AL67: 0 | AM67: 0
C68: 물체에 맞음(날아오거나 떨어진 물체에 맞음) | D68: 0 | E68: 0 | F68: 0 | G68: 0 | H68: 0 | I68: 0 | J68: 0 | K68: 0 | L68: 0 | M68: 0 | N68: 0 | O68: 0 | P68: 1 | Q68: 0 | R68: 0 | S68: 0 | T68: 0 | U68: 0 | V68: 1 | W68: 0 | X68: 0 | Y68: 0 | Z68: 0 | AA68: 0 | AB68: 3 | AC68: 0 | AD68: 1 | AE68: 0 | AF68: 1 | AG68: 0 | AH68: 1 | AI68: 0 | AJ68: 0 | AK68: 0 | AL68: 0 | AM68: 0
C69: 끼임(기계설비에 끼이거나 감김) | D69: =F69+H69+J69+L69+N69 -> 0 | E69: =G69+I69+K69+M69+O69 -> 0 | F69: 0 | G69: 0 | H69: 0 | I69: 0 | J69: 0 | K69: 0 | L69: 0 | M69: 0 | N69: 0 | O69: 0 | P69: =R69+T69+V69+X69+Z69 -> 0 | Q69: =S69+U69+W69+Y69+AA69 -> 0 | R69: 0 | S69: 0 | T69: 0 | U69: 0 | V69: 0 | W69: 0 | X69: 0 | Y69: 0 | Z69: 0 | AA69: 0 | AB69: =AD69+AF69+AH69+AJ69+AL69 -> 1 | AC69: =AE69+AG69+AI69+AK69+AM69 -> 0 | AD69: 0 | AE69: 0 | AF69: 0 | AG69: 0 | AH69: 1 | AI69: 0 | AJ69: 0 | AK69: 0 | AL69: 0 | AM69: 0
C70: 절단·베임·찔림 | D70: 2 | E70: 0 | F70: 0 | G70: 0 | H70: 0 | I70: 0 | J70: 2 | K70: 0 | L70: 0 | M70: 0 | N70: 0 | O70: 0 | P70: 4 | Q70: 0 | R70: 1 | S70: 0 | T70: 2 | U70: 0 | V70: 1 | W70: 0 | X70: 0 | Y70: 0 | Z70: 0 | AA70: 0 | AB70: 0 | AC70: 0 | AD70: 0 | AE70: 0 | AF70: 0 | AG70: 0 | AH70: 0 | AI70: 0 | AJ70: 0 | AK70: 0 | AL70: 0 | AM70: 0
C71: 불균형 및 무리한 동작 | D71: 2 | E71: 0 | F71: 0 | G71: 0 | H71: 2 | I71: 0 | J71: 0 | K71: 0 | L71: 0 | M71: 0 | N71: 0 | O71: 0 | P71: 4 | Q71: 0 | R71: 0 | S71: 0 | T71: 1 | U71: 0 | V71: 3 | W71: 0 | X71: 0 | Y71: 0 | Z71: 0 | AA71: 0 | AB71: 0 | AC71: 0 | AD71: 0 | AE71: 0 | AF71: 0 | AG71: 0 | AH71: 0 | AI71: 0 | AJ71: 0 | AK71: 0 | AL71: 0 | AM71: 0
C72: 이상온도 접촉 | D72: 0 | E72: 0 | F72: 0 | G72: 0 | H72: 0 | I72: 0 | J72: 0 | K72: 0 | L72: 0 | M72: 0 | N72: 0 | O72: 0 | P72: 1 | Q72: 0 | R72: 0 | S72: 0 | T72: 0 | U72: 0 | V72: 0 | W72: 0 | X72: 0 | Y72: 0 | Z72: 1 | AA72: 0 | AB72: 0 | AC72: 0 | AD72: 0 | AE72: 0 | AF72: 0 | AG72: 0 | AH72: 0 | AI72: 0 | AJ72: 0 | AK72: 0 | AL72: 0 | AM72: 0
C73: 화학물질누출·접촉 | D73: 0 | E73: 0 | F73: 0 | G73: 0 | H73: 0 | I73: 0 | J73: 0 | K73: 0 | L73: 0 | M73: 0 | N73: 0 | O73: 0 | P73: 0 | Q73: 0 | R73: 0 | S73: 0 | T73: 0 | U73: 0 | V73: 0 | W73: 0 | X73: 0 | Y73: 0 | Z73: 0 | AA73: 0 | AB73: 1 | AC73: 0 | AD73: 0 | AE73: 0 | AF73: 0 | AG73: 0 | AH73: 1 | AI73: 0 | AJ73: 0 | AK73: 0 | AL73: 0 | AM73: 0
C74: 산소결핍 | D74: 0 | E74: 0 | F74: 0 | G74: 0 | H74: 0 | I74: 0 | J74: 0 | K74: 0 | L74: 0 | M74: 0 | N74: 0 | O74: 0 | P74: 0 | Q74: 0 | R74: 0 | S74: 0 | T74: 0 | U74: 0 | V74: 0 | W74: 0 | X74: 0 | Y74: 0 | Z74: 0 | AA74: 0 | AB74: 4 | AC74: 0 | AD74: 0 | AE74: 0 | AF74: 4 | AG74: 0 | AH74: 0 | AI74: 0 | AJ74: 0 | AK74: 0 | AL74: 0 | AM74: 0
C75: 사업장내 교통사고 | D75: 0 | E75: 0 | F75: 0 | G75: 0 | H75: 0 | I75: 0 | J75: 0 | K75: 0 | L75: 0 | M75: 0 | N75: 0 | O75: 0 | P75: 1 | Q75: 0 | R75: 0 | S75: 0 | T75: 0 | U75: 0 | V75: 0 | W75: 0 | X75: 0 | Y75: 0 | Z75: 1 | AA75: 0 | AB75: 0 | AC75: 0 | AD75: 0 | AE75: 0 | AF75: 0 | AG75: 0 | AH75: 0 | AI75: 0 | AJ75: 0 | AK75: 0 | AL75: 0 | AM75: 0
C76: 사업장외 교통사고 | D76: 0 | E76: 0 | F76: 0 | G76: 0 | H76: 0 | I76: 0 | J76: 0 | K76: 0 | L76: 0 | M76: 0 | N76: 0 | O76: 0 | P76: 2 | Q76: 0 | R76: 2 | S76: 0 | T76: 0 | U76: 0 | V76: 0 | W76: 0 | X76: 0 | Y76: 0 | Z76: 0 | AA76: 0 | AB76: 0 | AC76: 0 | AD76: 0 | AE76: 0 | AF76: 0 | AG76: 0 | AH76: 0 | AI76: 0 | AJ76: 0 | AK76: 0 | AL76: 0 | AM76: 0
C77: 폭력행위 | D77: 0 | E77: 0 | F77: 0 | G77: 0 | H77: 0 | I77: 0 | J77: 0 | K77: 0 | L77: 0 | M77: 0 | N77: 0 | O77: 0 | P77: 1 | Q77: 0 | R77: 1 | S77: 0 | T77: 0 | U77: 0 | V77: 0 | W77: 0 | X77: 0 | Y77: 0 | Z77: 0 | AA77: 0 | AB77: 0 | AC77: 0 | AD77: 0 | AE77: 0 | AF77: 0 | AG77: 0 | AH77: 0 | AI77: 0 | AJ77: 0 | AK77: 0 | AL77: 0 | AM77: 0
C78: 근골격계질환 | D78: 0 | E78: 0 | F78: 0 | G78: 0 | H78: 0 | I78: 0 | J78: 0 | K78: 0 | L78: 0 | M78: 0 | N78: 0 | O78: 0 | P78: 0 | Q78: 0 | R78: 0 | S78: 0 | T78: 0 | U78: 0 | V78: 0 | W78: 0 | X78: 0 | Y78: 0 | Z78: 0 | AA78: 0 | AB78: 0 | AC78: 0 | AD78: 0 | AE78: 0 | AF78: 0 | AG78: 0 | AH78: 0 | AI78: 0 | AJ78: 0 | AK78: 0 | AL78: 0 | AM78: 0
B79: 여 수 | C79: 합계 | D79: 35 | E79: 0 | F79: 5 | G79: 0 | H79: 7 | I79: 0 | J79: 17 | K79: 0 | L79: 5 | M79: 0 | N79: 1 | O79: 0 | P79: 42 | Q79: 0 | R79: 9 | S79: 0 | T79: 5 | U79: 0 | V79: 18 | W79: 0 | X79: 7 | Y79: 0 | Z79: 3 | AA79: 0 | AB79: 43 | AC79: 1 | AD79: 3 | AE79: 0 | AF79: 8 | AG79: 1 | AH79: 19 | AI79: 0 | AJ79: 6 | AK79: 0 | AL79: 7 | AM79: 0
C80: 떨어짐(높이가 있는 곳에서 사람이 떨어짐) | D80: 6 | E80: 0 | F80: 3 | G80: 0 | H80: 0 | I80: 0 | J80: 3 | K80: 0 | L80: 0 | M80: 0 | N80: 0 | O80: 0 | P80: 6 | Q80: 0 | R80: 2 | S80: 0 | T80: 1 | U80: 0 | V80: 1 | W80: 0 | X80: 1 | Y80: 0 | Z80: 1 | AA80: 0 | AB80: 6 | AC80: 1 | AD80: 1 | AE80: 0 | AF80: 1 | AG80: 1 | AH80: 3 | AI80: 0 | AJ80: 1 | AK80: 0 | AL80: 0 | AM80: 0
C81: 넘어짐(사람이 미끄러지거나 넘어짐) | D81: 16 | E81: 0 | F81: 1 | G81: 0 | H81: 3 | I81: 0 | J81: 9 | K81: 0 | L81: 2 | M81: 0 | N81: 1 | O81: 0 | P81: 19 | Q81: 0 | R81: 5 | S81: 0 | T81: 2 | U81: 0 | V81: 7 | W81: 0 | X81: 4 | Y81: 0 | Z81: 1 | AA81: 0 | AB81: 19 | AC81: 0 | AD81: 0 | AE81: 0 | AF81: 4 | AG81: 0 | AH81: 9 | AI81: 0 | AJ81: 2 | AK81: 0 | AL81: 4 | AM81: 0
C82: 깔림·뒤집힘(물체의 쓰러짐이나 뒤집힘) | D82: 0 | E82: 0 | F82: 0 | G82: 0 | H82: 0 | I82: 0 | J82: 0 | K82: 0 | L82: 0 | M82: 0 | N82: 0 | O82: 0 | P82: 1 | Q82: 0 | R82: 0 | S82: 0 | T82: 0 | U82: 0 | V82: 1 | W82: 0 | X82: 0 | Y82: 0 | Z82: 0 | AA82: 0 | AB82: 0 | AC82: 0 | AD82: 0 | AE82: 0 | AF82: 0 | AG82: 0 | AH82: 0 | AI82: 0 | AJ82: 0 | AK82: 0 | AL82: 0 | AM82: 0
C83: 부딪힘(물체에 부딪힘) | D83: 3 | E83: 0 | F83: 0 | G83: 0 | H83: 1 | I83: 0 | J83: 1 | K83: 0 | L83: 1 | M83: 0 | N83: 0 | O83: 0 | P83: 5 | Q83: 0 | R83: 2 | S83: 0 | T83: 1 | U83: 0 | V83: 2 | W83: 0 | X83: 0 | Y83: 0 | Z83: 0 | AA83: 0 | AB83: 5 | AC83: 0 | AD83: 1 | AE83: 0 | AF83: 1 | AG83: 0 | AH83: 1 | AI83: 0 | AJ83: 0 | AK83: 0 | AL83: 2 | AM83: 0
C84: 물체에 맞음(날아오거나 떨어진 물체에 맞음) | D84: 2 | E84: 0 | F84: 0 | G84: 0 | H84: 0 | I84: 0 | J84: 1 | K84: 0 | L84: 1 | M84: 0 | N84: 0 | O84: 0 | P84: 0 | Q84: 0 | R84: 0 | S84: 0 | T84: 0 | U84: 0 | V84: 0 | W84: 0 | X84: 0 | Y84: 0 | Z84: 0 | AA84: 0 | AB84: 4 | AC84: 0 | AD84: 0 | AE84: 0 | AF84: 1 | AG84: 0 | AH84: 2 | AI84: 0 | AJ84: 1 | AK84: 0 | AL84: 0 | AM84: 0
C85: 끼임(기계설비에 끼이거나 감김) | D85: 1 | E85: 0 | F85: 0 | G85: 0 | H85: 1 | I85: 0 | J85: 0 | K85: 0 | L85: 0 | M85: 0 | N85: 0 | O85: 0 | P85: 0 | Q85: 0 | R85: 0 | S85: 0 | T85: 0 | U85: 0 | V85: 0 | W85: 0 | X85: 0 | Y85: 0 | Z85: 0 | AA85: 0 | AB85: 2 | AC85: 0 | AD85: 1 | AE85: 0 | AF85: 0 | AG85: 0 | AH85: 1 | AI85: 0 | AJ85: 0 | AK85: 0 | AL85: 0 | AM85: 0
C86: 절단·베임·찔림 | D86: 3 | E86: 0 | F86: 0 | G86: 0 | H86: 1 | I86: 0 | J86: 2 | K86: 0 | L86: 0 | M86: 0 | N86: 0 | O86: 0 | P86: 5 | Q86: 0 | R86: 0 | S86: 0 | T86: 1 | U86: 0 | V86: 2 | W86: 0 | X86: 1 | Y86: 0 | Z86: 1 | AA86: 0 | AB86: 5 | AC86: 0 | AD86: 0 | AE86: 0 | AF86: 1 | AG86: 0 | AH86: 2 | AI86: 0 | AJ86: 1 | AK86: 0 | AL86: 1 | AM86: 0
C87: 불균형 및 무리한 동작 | D87: 3 | E87: 0 | F87: 1 | G87: 0 | H87: 1 | I87: 0 | J87: 0 | K87: 0 | L87: 1 | M87: 0 | N87: 0 | O87: 0 | P87: 5 | Q87: 0 | R87: 0 | S87: 0 | T87: 0 | U87: 0 | V87: 4 | W87: 0 | X87: 1 | Y87: 0 | Z87: 0 | AA87: 0 | AB87: 2 | AC87: 0 | AD87: 0 | AE87: 0 | AF87: 0 | AG87: 0 | AH87: 1 | AI87: 0 | AJ87: 1 | AK87: 0 | AL87: 0 | AM87: 0
C88: 이상온도 접촉 | D88: 1 | E88: 0 | F88: 0 | G88: 0 | H88: 0 | I88: 0 | J88: 1 | K88: 0 | L88: 0 | M88: 0 | N88: 0 | O88: 0 | P88: 0 | Q88: 0 | R88: 0 | S88: 0 | T88: 0 | U88: 0 | V88: 0 | W88: 0 | X88: 0 | Y88: 0 | Z88: 0 | AA88: 0 | AB88: 0 | AC88: 0 | AD88: 0 | AE88: 0 | AF88: 0 | AG88: 0 | AH88: 0 | AI88: 0 | AJ88: 0 | AK88: 0 | AL88: 0 | AM88: 0
C89: 폭력행위 | D89: 0 | E89: 0 | F89: 0 | G89: 0 | H89: 0 | I89: 0 | J89: 0 | K89: 0 | L89: 0 | M89: 0 | N89: 0 | O89: 0 | P89: 1 | Q89: 0 | R89: 0 | S89: 0 | T89: 0 | U89: 0 | V89: 1 | W89: 0 | X89: 0 | Y89: 0 | Z89: 0 | AA89: 0 | AB89: 0 | AC89: 0 | AD89: 0 | AE89: 0 | AF89: 0 | AG89: 0 | AH89: 0 | AI89: 0 | AJ89: 0 | AK89: 0 | AL89: 0 | AM89: 0
C90: 생물학적인자 | D90: 0 | E90: 0 | F90: 0 | G90: 0 | H90: 0 | I90: 0 | J90: 0 | K90: 0 | L90: 0 | M90: 0 | N90: 0 | O90: 0 | P90: 0 | Q90: 0 | R90: 0 | S90: 0 | T90: 0 | U90: 0 | V90: 0 | W90: 0 | X90: 0 | Y90: 0 | Z90: 0 | AA90: 0 | AB90: 0 | AC90: 0 | AD90: 0 | AE90: 0 | AF90: 0 | AG90: 0 | AH90: 0 | AI90: 0 | AJ90: 0 | AK90: 0 | AL90: 0 | AM90: 0
C91: 뇌심혈관질환 | D91: 0 | E91: 0 | F91: 0 | G91: 0 | H91: 0 | I91: 0 | J91: 0 | K91: 0 | L91: 0 | M91: 0 | N91: 0 | O91: 0 | P91: 0 | Q91: 0 | R91: 0 | S91: 0 | T91: 0 | U91: 0 | V91: 0 | W91: 0 | X91: 0 | Y91: 0 | Z91: 0 | AA91: 0 | AB91: 0 | AC91: 0 | AD91: 0 | AE91: 0 | AF91: 0 | AG91: 0 | AH91: 0 | AI91: 0 | AJ91: 0 | AK91: 0 | AL91: 0 | AM91: 0
C92: 근골격계질환 | D92: 0 | E92: 0 | F92: 0 | G92: 0 | H92: 0 | I92: 0 | J92: 0 | K92: 0 | L92: 0 | M92: 0 | N92: 0 | O92: 0 | P92: 0 | Q92: 0 | R92: 0 | S92: 0 | T92: 0 | U92: 0 | V92: 0 | W92: 0 | X92: 0 | Y92: 0 | Z92: 0 | AA92: 0 | AB92: 0 | AC92: 0 | AD92: 0 | AE92: 0 | AF92: 0 | AG92: 0 | AH92: 0 | AI92: 0 | AJ92: 0 | AK92: 0 | AL92: 0 | AM92: 0
B93: 제 주 | C93: 합계 | D93: 18 | E93: 0 | F93: 10 | G93: 0 | H93: 3 | I93: 0 | J93: 1 | K93: 0 | L93: 1 | M93: 0 | N93: 3 | O93: 0 | P93: 36 | Q93: 0 | R93: 7 | S93: 0 | T93: 10 | U93: 0 | V93: 11 | W93: 0 | X93: 0 | Y93: 0 | Z93: 8 | AA93: 0 | AB93: 22 | AC93: 0 | AD93: 4 | AE93: 0 | AF93: 8 | AG93: 0 | AH93: 8 | AI93: 0 | AJ93: 0 | AK93: 0 | AL93: 2 | AM93: 0
C94: 떨어짐(높이가 있는 곳에서 사람이 떨어짐) | D94: 3 | E94: 0 | F94: 2 | G94: 0 | H94: 1 | I94: 0 | J94: 0 | K94: 0 | L94: 0 | M94: 0 | N94: 0 | O94: 0 | P94: 4 | Q94: 0 | R94: 1 | S94: 0 | T94: 1 | U94: 0 | V94: 0 | W94: 0 | X94: 0 | Y94: 0 | Z94: 2 | AA94: 0 | AB94: 4 | AC94: 0 | AD94: 1 | AE94: 0 | AF94: 2 | AG94: 0 | AH94: 1 | AI94: 0 | AJ94: 0 | AK94: 0 | AL94: 0 | AM94: 0
C95: 넘어짐(사람이 미끄러지거나 넘어짐) | D95: 10 | E95: 0 | F95: 6 | G95: 0 | H95: 1 | I95: 0 | J95: 0 | K95: 0 | L95: 0 | M95: 0 | N95: 3 | O95: 0 | P95: 13 | Q95: 0 | R95: 5 | S95: 0 | T95: 3 | U95: 0 | V95: 5 | W95: 0 | X95: 0 | Y95: 0 | Z95: 0 | AA95: 0 | AB95: 10 | AC95: 0 | AD95: 2 | AE95: 0 | AF95: 4 | AG95: 0 | AH95: 3 | AI95: 0 | AJ95: 0 | AK95: 0 | AL95: 1 | AM95: 0
C96: 깔림·뒤집힘(물체의 쓰러짐이나 뒤집힘) | D96: 1 | E96: 0 | F96: 0 | G96: 0 | H96: 0 | I96: 0 | J96: 1 | K96: 0 | L96: 0 | M96: 0 | N96: 0 | O96: 0 | P96: 1 | Q96: 0 | R96: 0 | S96: 0 | T96: 0 | U96: 0 | V96: 1 | W96: 0 | X96: 0 | Y96: 0 | Z96: 0 | AA96: 0 | AB96: 0 | AC96: 0 | AD96: 0 | AE96: 0 | AF96: 0 | AG96: 0 | AH96: 0 | AI96: 0 | AJ96: 0 | AK96: 0 | AL96: 0 | AM96: 0
C97: 부딪힘(물체에 부딪힘) | D97: 1 | E97: 0 | F97: 0 | G97: 0 | H97: 1 | I97: 0 | J97: 0 | K97: 0 | L97: 0 | M97: 0 | N97: 0 | O97: 0 | P97: 6 | Q97: 0 | R97: 1 | S97: 0 | T97: 2 | U97: 0 | V97: 1 | W97: 0 | X97: 0 | Y97: 0 | Z97: 2 | AA97: 0 | AB97: 2 | AC97: 0 | AD97: 0 | AE97: 0 | AF97: 0 | AG97: 0 | AH97: 2 | AI97: 0 | AJ97: 0 | AK97: 0 | AL97: 0 | AM97: 0
C98: 물체에 맞음(날아오거나 떨어진 물체에 맞음) | D98: 0 | E98: 0 | F98: 0 | G98: 0 | H98: 0 | I98: 0 | J98: 0 | K98: 0 | L98: 0 | M98: 0 | N98: 0 | O98: 0 | P98: 0 | Q98: 0 | R98: 0 | S98: 0 | T98: 0 | U98: 0 | V98: 0 | W98: 0 | X98: 0 | Y98: 0 | Z98: 0 | AA98: 0 | AB98: 1 | AC98: 0 | AD98: 0 | AE98: 0 | AF98: 1 | AG98: 0 | AH98: 0 | AI98: 0 | AJ98: 0 | AK98: 0 | AL98: 0 | AM98: 0
C99: 끼임(기계설비에 끼이거나 감김) | D99: 1 | E99: 0 | F99: 0 | G99: 0 | H99: 0 | I99: 0 | J99: 0 | K99: 0 | L99: 1 | M99: 0 | N99: 0 | O99: 0 | P99: 5 | Q99: 0 | R99: 0 | S99: 0 | T99: 3 | U99: 0 | V99: 0 | W99: 0 | X99: 0 | Y99: 0 | Z99: 2 | AA99: 0 | AB99: 2 | AC99: 0 | AD99: 0 | AE99: 0 | AF99: 0 | AG99: 0 | AH99: 1 | AI99: 0 | AJ99: 0 | AK99: 0 | AL99: 1 | AM99: 0
C100: 절단·베임·찔림 | D100: 1 | E100: 0 | F100: 1 | G100: 0 | H100: 0 | I100: 0 | J100: 0 | K100: 0 | L100: 0 | M100: 0 | N100: 0 | O100: 0 | P100: 4 | Q100: 0 | R100: 0 | S100: 0 | T100: 1 | U100: 0 | V100: 2 | W100: 0 | X100: 0 | Y100: 0 | Z100: 1 | AA100: 0 | AB100: 0 | AC100: 0 | AD100: 0 | AE100: 0 | AF100: 0 | AG100: 0 | AH100: 0 | AI100: 0 | AJ100: 0 | AK100: 0 | AL100: 0 | AM100: 0
C101: 폭발·파열 | D101: =F101+H101+J101+L101+N101 -> 0 | E101: =G101+I101+K101+M101+O101 -> 0 | F101: 0 | G101: 0 | H101: 0 | I101: 0 | J101: 0 | K101: 0 | L101: 0 | M101: 0 | N101: 0 | O101: 0 | P101: =R101+T101+V101+X101+Z101 -> 1 | Q101: =S101+U101+W101+Y101+AA101 -> 0 | R101: 0 | S101: 0 | T101: 0 | U101: 0 | V101: 1 | W101: 0 | X101: 0 | Y101: 0 | Z101: 0 | AA101: 0 | AB101: =AD101+AF101+AH101+AJ101+AL101 -> 0 | AC101: =AE101+AG101+AI101+AK101+AM101 -> 0 | AD101: 0 | AE101: 0 | AF101: 0 | AG101: 0 | AH101: 0 | AI101: 0 | AJ101: 0 | AK101: 0 | AL101: 0 | AM101: 0
C102: 불균형 및 무리한 동작 | D102: 0 | E102: 0 | F102: 0 | G102: 0 | H102: 0 | I102: 0 | J102: 0 | K102: 0 | L102: 0 | M102: 0 | N102: 0 | O102: 0 | P102: 2 | Q102: 0 | R102: 0 | S102: 0 | T102: 0 | U102: 0 | V102: 1 | W102: 0 | X102: 0 | Y102: 0 | Z102: 1 | AA102: 0 | AB102: 2 | AC102: 0 | AD102: 0 | AE102: 0 | AF102: 1 | AG102: 0 | AH102: 1 | AI102: 0 | AJ102: 0 | AK102: 0 | AL102: 0 | AM102: 0
C103: 폭력행위 | D103: 0 | E103: 0 | F103: 0 | G103: 0 | H103: 0 | I103: 0 | J103: 0 | K103: 0 | L103: 0 | M103: 0 | N103: 0 | O103: 0 | P103: 0 | Q103: 0 | R103: 0 | S103: 0 | T103: 0 | U103: 0 | V103: 0 | W103: 0 | X103: 0 | Y103: 0 | Z103: 0 | AA103: 0 | AB103: 1 | AC103: 0 | AD103: 1 | AE103: 0 | AF103: 0 | AG103: 0 | AH103: 0 | AI103: 0 | AJ103: 0 | AK103: 0 | AL103: 0 | AM103: 0
C104: 동물상해 | D104: 1 | E104: 0 | F104: 1 | G104: 0 | H104: 0 | I104: 0 | J104: 0 | K104: 0 | L104: 0 | M104: 0 | N104: 0 | O104: 0 | P104: 0 | Q104: 0 | R104: 0 | S104: 0 | T104: 0 | U104: 0 | V104: 0 | W104: 0 | X104: 0 | Y104: 0 | Z104: 0 | AA104: 0 | AB104: 0 | AC104: 0 | AD104: 0 | AE104: 0 | AF104: 0 | AG104: 0 | AH104: 0 | AI104: 0 | AJ104: 0 | AK104: 0 | AL104: 0 | AM104: 0
C105: 뇌심혈관질환 | D105: 0 | E105: 0 | F105: 0 | G105: 0 | H105: 0 | I105: 0 | J105: 0 | K105: 0 | L105: 0 | M105: 0 | N105: 0 | O105: 0 | P105: 0 | Q105: 0 | R105: 0 | S105: 0 | T105: 0 | U105: 0 | V105: 0 | W105: 0 | X105: 0 | Y105: 0 | Z105: 0 | AA105: 0 | AB105: 0 | AC105: 0 | AD105: 0 | AE105: 0 | AF105: 0 | AG105: 0 | AH105: 0 | AI105: 0 | AJ105: 0 | AK105: 0 | AL105: 0 | AM105: 0
C106: 근골격계질환 | D106: 0 | E106: 0 | F106: 0 | G106: 0 | H106: 0 | I106: 0 | J106: 0 | K106: 0 | L106: 0 | M106: 0 | N106: 0 | O106: 0 | P106: 0 | Q106: 0 | R106: 0 | S106: 0 | T106: 0 | U106: 0 | V106: 0 | W106: 0 | X106: 0 | Y106: 0 | Z106: 0 | AA106: 0 | AB106: 0 | AC106: 0 | AD106: 0 | AE106: 0 | AF106: 0 | AG106: 0 | AH106: 0 | AI106: 0 | AJ106: 0 | AK106: 0 | AL106: 0 | AM106: 0

Sheet 대전세종
A1: 업종(소) | B1: 고용지청 | C1: 기준년월 | D1: 2021년 12월 | P1: 2022년 12월 | AB1: 2023년 11월
C2: 규모(소) | D2: 규모별 합계 | F2: 5인 미만 | H2: 5인 ~ 9인 | J2: 10인 ~ 19인 | L2: 20인 ~ 29인 | N2: 30인 ~ 49인 | P2: 규모별 합계 | R2: 5인 미만 | T2: 5인 ~ 9인 | V2: 10인 ~ 19인 | X2: 20인 ~ 29인 | Z2: 30인 ~ 49인 | AB2: 규모별 합계 | AD2: 5인 미만 | AF2: 5인 ~ 9인 | AH2: 10인 ~ 19인 | AJ2: 20인 ~ 29인 | AL2: 30인 ~ 49인
C3: 발생형태(중) | D3: 사고재해자수 합계 | E3: 사고사망자수 합계 | F3: 사고재해자수 | G3: 사고사망자수 | H3: 사고재해자수 | I3: 사고사망자수 | J3: 사고재해자수 | K3: 사고사망자수 | L3: 사고재해자수 | M3: 사고사망자수 | N3: 사고재해자수 | O3: 사고사망자수 | P3: 사고재해자수 합계 | Q3: 사고사망자수 합계 | R3: 사고재해자수 | S3: 사고사망자수 | T3: 사고재해자수 | U3: 사고사망자수 | V3: 사고재해자수 | W3: 사고사망자수 | X3: 사고재해자수 | Y3: 사고사망자수 | Z3: 사고재해자수 | AA3: 사고사망자수 | AB3: 사고재해자수 합계 | AC3: 사고사망자수 합계 | AD3: 사고재해자수 | AE3: 사고사망자수 | AF3: 사고재해자수 | AG3: 사고사망자수 | AH3: 사고재해자수 | AI3: 사고사망자수 | AJ3: 사고재해자수 | AK3: 사고사망자수 | AL3: 사고재해자수 | AM3: 사고사망자수
A4: 건물등의종합관리사업 | B4: 합계 | D4: =D5+D26+D39+D55+D72+D84 -> 312 | E4: =E5+E26+E39+E55+E72+E84 -> 3 | F4: 87 | G4: 0 | H4: 84 | I4: 2 | J4: 90 | K4: 0 | L4: 28 | M4: 0 | N4: 23 | O4: 1 | P4: 315 | Q4: 1 | R4: 94 | S4: 0 | T4: 79 | U4: 0 | V4: 82 | W4: 0 | X4: 34 | Y4: 1 | Z4: 26 | AA4: 0 | AB4: 333 | AC4: 3 | AD4: 94 | AE4: 0 | AF4: 100 | AG4: 0 | AH4: 106 | AI4: 2 | AJ4: 19 | AK4: 1 | AL4: 14 | AM4: 0
B5: 대 전 청 | C5: 합계 | D5: =F5+H5+J5+L5+N5 -> 130 | E5: =G5+I5+K5+M5+O5 -> 1 | F5: 33 | G5: 0 | H5: 36 | I5: 1 | J5: 40 | K5: 0 | L5: 11 | M5: 0 | N5: 10 | O5: 0 | P5: =R5+T5+V5+X5+Z5 -> 131 | Q5: =S5+U5+W5+Y5+AA5 -> 1 | R5: 32 | S5: 0 | T5: 36 | U5: 0 | V5: 34 | W5: 0 | X5: 17 | Y5: 1 | Z5: 12 | AA5: 0 | AB5: =AD5+AF5+AH5+AJ5+AL5 -> 149 | AC5: =AE5+AG5+AI5+AK5+AM5 -> 0 | AD5: 39 | AE5: 0 | AF5: 43 | AG5: 0 | AH5: 47 | AI5: 0 | AJ5: 10 | AK5: 0 | AL5: 10 | AM5: 0
C6: 떨어짐(높이가 있는 곳에서 사람이 떨어짐) | D6: 15 | E6: 1 | F6: 4 | G6: 0 | H6: 6 | I6: 1 | J6: 4 | K6: 0 | L6: 1 | M6: 0 | N6: 0 | O6: 0 | P6: 21 | Q6: 0 | R6: 5 | S6: 0 | T6: 10 | U6: 0 | V6: 3 | W6: 0 | X6: 1 | Y6: 0 | Z6: 2 | AA6: 0 | AB6: 19 | AC6: 0 | AD6: 6 | AE6: 0 | AF6: 3 | AG6: 0 | AH6: 8 | AI6: 0 | AJ6: 1 | AK6: 0 | AL6: 1 | AM6: 0
C7: 넘어짐(사람이 미끄러지거나 넘어짐) | D7: 72 | E7: 0 | F7: 20 | G7: 0 | H7: 20 | I7: 0 | J7: 21 | K7: 0 | L7: 7 | M7: 0 | N7: 4 | O7: 0 | P7: 70 | Q7: 0 | R7: 19 | S7: 0 | T7: 17 | U7: 0 | V7: 19 | W7: 0 | X7: 8 | Y7: 0 | Z7: 7 | AA7: 0 | AB7: 70 | AC7: 0 | AD7: 21 | AE7: 0 | AF7: 20 | AG7: 0 | AH7: 19 | AI7: 0 | AJ7: 5 | AK7: 0 | AL7: 5 | AM7: 0
C8: 깔림·뒤집힘(물체의 쓰러짐이나 뒤집힘) | D8: 6 | E8: 0 | F8: 3 | G8: 0 | H8: 1 | I8: 0 | J8: 0 | K8: 0 | L8: 0 | M8: 0 | N8: 2 | O8: 0 | P8: 0 | Q8: 0 | R8: 0 | S8: 0 | T8: 0 | U8: 0 | V8: 0 | W8: 0 | X8: 0 | Y8: 0 | Z8: 0 | AA8: 0 | AB8: 1 | AC8: 0 | AD8: 0 | AE8: 0 | AF8: 0 | AG8: 0 | AH8: 0 | AI8: 0 | AJ8: 0 | AK8: 0 | AL8: 1 | AM8: 0
C9: 부딪힘(물체에 부딪힘) | D9: 6 | E9: 0 | F9: 1 | G9: 0 | H9: 2 | I9: 0 | J9: 2 | K9: 0 | L9: 0 | M9: 0 | N9: 1 | O9: 0 | P9: 6 | Q9: 0 | R9: 1 | S9: 0 | T9: 1 | U9: 0 | V9: 1 | W9: 0 | X9: 3 | Y9: 0 | Z9: 0 | AA9: 0 | AB9: 17 | AC9: 0 | AD9: 1 | AE9: 0 | AF9: 6 | AG9: 0 | AH9: 7 | AI9: 0 | AJ9: 1 | AK9: 0 | AL9: 2 | AM9: 0
C10: 물체에 맞음(날아오거나 떨어진 물체에 맞음) | D10: 6 | E10: 0 | F10: 2 | G10: 0 | H10: 1 | I10: 0 | J10: 2 | K10: 0 | L10: 0 | M10: 0 | N10: 1 | O10: 0 | P10: 5 | Q10: 0 | R10: 2 | S10: 0 | T10: 0 | U10: 0 | V10: 3 | W10: 0 | X10: 0 | Y10: 0 | Z10: 0 | AA10: 0 | AB10: 7 | AC10: 0 | AD10: 3 | AE10: 0 | AF10: 1 | AG10: 0 | AH10: 2 | AI10: 0 | AJ10: 1 | AK10: 0 | AL10: 0 | AM10: 0
C11: 끼임(기계설비에 끼이거나 감김) | D11: 2 | E11: 0 | F11: 0 | G11: 0 | H11: 0 | I11: 0 | J11: 1 | K11: 0 | L11: 1 | M11: 0 | N11: 0 | O11: 0 | P11: 2 | Q11: 0 | R11: 0 | S11: 0 | T11: 0 | U11: 0 | V11: 0 | W11: 0 | X11: 1 | Y11: 0 | Z11: 1 | AA11: 0 | AB11: 4 | AC11: 0 | AD11: 2 | AE11: 0 | AF11: 1 | AG11: 0 | AH11: 1 | AI11: 0 | AJ11: 0 | AK11: 0 | AL11: 0 | AM11: 0
C12: 절단·베임·찔림 | D12: 10 | E12: 0 | F12: 3 | G12: 0 | H12: 2 | I12: 0 | J12: 4 | K12: 0 | L12: 0 | M12: 0 | N12: 1 | O12: 0 | P12: 7 | Q12: 0 | R12: 1 | S12: 0 | T12: 4 | U12: 0 | V12: 2 | W12: 0 | X12: 0 | Y12: 0 | Z12: 0 | AA12: 0 | AB12: 15 | AC12: 0 | AD12: 6 | AE12: 0 | AF12: 6 | AG12: 0 | AH12: 3 | AI12: 0 | AJ12: 0 | AK12: 0 | AL12: 0 | AM12: 0
C13: 감전 | D13: 0 | E13: 0 | F13: 0 | G13: 0 | H13: 0 | I13: 0 | J13: 0 | K13: 0 | L13: 0 | M13: 0 | N13: 0 | O13: 0 | P13: 3 | Q13: 0 | R13: 0 | S13: 0 | T13: 0 | U13: 0 | V13: 2 | W13: 0 | X13: 1 | Y13: 0 | Z13: 0 | AA13: 0 | AB13: 0 | AC13: 0 | AD13: 0 | AE13: 0 | AF13: 0 | AG13: 0 | AH13: 0 | AI13: 0 | AJ13: 0 | AK13: 0 | AL13: 0 | AM13: 0
C14: 화재 | D14: 0 | E14: 0 | F14: 0 | G14: 0 | H14: 0 | I14: 0 | J14: 0 | K14: 0 | L14: 0 | M14: 0 | N14: 0 | O14: 0 | P14: 1 | Q14: 1 | R14: 0 | S14: 0 | T14: 0 | U14: 0 | V14: 0 | W14: 0 | X14: 1 | Y14: 1 | Z14: 0 | AA14: 0 | AB14: 0 | AC14: 0 | AD14: 0 | AE14: 0 | AF14: 0 | AG14: 0 | AH14: 0 | AI14: 0 | AJ14: 0 | AK14: 0 | AL14: 0 | AM14: 0
C15: 불균형 및 무리한 동작 | D15: 8 | E15: 0 | F15: 0 | G15: 0 | H15: 4 | I15: 0 | J15: 3 | K15: 0 | L15: 1 | M15: 0 | N15: 0 | O15: 0 | P15: 11 | Q15: 0 | R15: 1 | S15: 0 | T15: 3 | U15: 0 | V15: 3 | W15: 0 | X15: 2 | Y15: 0 | Z15: 2 | AA15: 0 | AB15: 11 | AC15: 0 | AD15: 0 | AE15: 0 | AF15: 5 | AG15: 0 | AH15: 4 | AI15: 0 | AJ15: 1 | AK15: 0 | AL15: 1 | AM15: 0
C16: 이상온도 접촉 | D16: 0 | E16: 0 | F16: 0 | G16: 0 | H16: 0 | I16: 0 | J16: 0 | K16: 0 | L16: 0 | M16: 0 | N16: 0 | O16: 0 | P16: 0 | Q16: 0 | R16: 0 | S16: 0 | T16: 0 | U16: 0 | V16: 0 | W16: 0 | X16: 0 | Y16: 0 | Z16: 0 | AA16: 0 | AB16: 3 | AC16: 0 | AD16: 0 | AE16: 0 | AF16: 1 | AG16: 0 | AH16: 2 | AI16: 0 | AJ16: 0 | AK16: 0 | AL16: 0 | AM16: 0
C17: 화학물질누출·접촉 | D17: 0 | E17: 0 | F17: 0 | G17: 0 | H17: 0 | I17: 0 | J17: 0 | K17: 0 | L17: 0 | M17: 0 | N17: 0 | O17: 0 | P17: 2 | Q17: 0 | R17: 1 | S17: 0 | T17: 0 | U17: 0 | V17: 1 | W17: 0 | X17: 0 | Y17: 0 | Z17: 0 | AA17: 0 | AB17: 0 | AC17: 0 | AD17: 0 | AE17: 0 | AF17: 0 | AG17: 0 | AH17: 0 | AI17: 0 | AJ17: 0 | AK17: 0 | AL17: 0 | AM17: 0
C18: 사업장외 교통사고 | D18: 1 | E18: 0 | F18: 0 | G18: 0 | H18: 0 | I18: 0 | J18: 1 | K18: 0 | L18: 0 | M18: 0 | N18: 0 | O18: 0 | P18: 3 | Q18: 0 | R18: 2 | S18: 0 | T18: 1 | U18: 0 | V18: 0 | W18: 0 | X18: 0 | Y18: 0 | Z18: 0 | AA18: 0 | AB18: 0 | AC18: 0 | AD18: 0 | AE18: 0 | AF18: 0 | AG18: 0 | AH18: 0 | AI18: 0 | AJ18: 0 | AK18: 0 | AL18: 0 | AM18: 0
C19: 체육행사 등의 사고 | D19: 0 | E19: 0 | F19: 0 | G19: 0 | H19: 0 | I19: 0 | J19: 0 | K19: 0 | L19: 0 | M19: 0 | N19: 0 | O19: 0 | P19: 0 | Q19: 0 | R19: 0 | S19: 0 | T19: 0 | U19: 0 | V19: 0 | W19: 0 | X19: 0 | Y19: 0 | Z19: 0 | AA19: 0 | AB19: 2 | AC19: 0 | AD19: 0 | AE19: 0 | AF19: 0 | AG19: 0 | AH19: 1 | AI19: 0 | AJ19: 1 | AK19: 0 | AL19: 0 | AM19: 0
C20: 폭력행위 | D20: 3 | E20: 0 | F20: 0 | G20: 0 | H20: 0 | I20: 0 | J20: 1 | K20: 0 | L20: 1 | M20: 0 | N20: 1 | O20: 0 | P20: 0 | Q20: 0 | R20: 0 | S20: 0 | T20: 0 | U20: 0 | V20: 0 | W20: 0 | X20: 0 | Y20: 0 | Z20: 0 | AA20: 0 | AB20: 0 | AC20: 0 | AD20: 0 | AE20: 0 | AF20: 0 | AG20: 0 | AH20: 0 | AI20: 0 | AJ20: 0 | AK20: 0 | AL20: 0 | AM20: 0
C21: 동물상해 | D21: 1 | E21: 0 | F21: 0 | G21: 0 | H21: 0 | I21: 0 | J21: 1 | K21: 0 | L21: 0 | M21: 0 | N21: 0 | O21: 0 | P21: 0 | Q21: 0 | R21: 0 | S21: 0 | T21: 0 | U21: 0 | V21: 0 | W21: 0 | X21: 0 | Y21: 0 | Z21: 0 | AA21: 0 | AB21: 0 | AC21: 0 | AD21: 0 | AE21: 0 | AF21: 0 | AG21: 0 | AH21: 0 | AI21: 0 | AJ21: 0 | AK21: 0 | AL21: 0 | AM21: 0
C22: 직업병기타 | D22: 0 | E22: 0 | F22: 0 | G22: 0 | H22: 0 | I22: 0 | J22: 0 | K22: 0 | L22: 0 | M22: 0 | N22: 0 | O22: 0 | P22: 0 | Q22: 0 | R22: 0 | S22: 0 | T22: 0 | U22: 0 | V22: 0 | W22: 0 | X22: 0 | Y22: 0 | Z22: 0 | AA22: 0 | AB22: 0 | AC22: 0 | AD22: 0 | AE22: 0 | AF22: 0 | AG22: 0 | AH22: 0 | AI22: 0 | AJ22: 0 | AK22: 0 | AL22: 0 | AM22: 0
C23: 뇌심혈관질환 | D23: 0 | E23: 0 | F23: 0 | G23: 0 | H23: 0 | I23: 0 | J23: 0 | K23: 0 | L23: 0 | M23: 0 | N23: 0 | O23: 0 | P23: 0 | Q23: 0 | R23: 0 | S23: 0 | T23: 0 | U23: 0 | V23: 0 | W23: 0 | X23: 0 | Y23: 0 | Z23: 0 | AA23: 0 | AB23: 0 | AC23: 0 | AD23: 0 | AE23: 0 | AF23: 0 | AG23: 0 | AH23: 0 | AI23: 0 | AJ23: 0 | AK23: 0 | AL23: 0 | AM23: 0
C24: 근골격계질환 | D24: 0 | E24: 0 | F24: 0 | G24: 0 | H24: 0 | I24: 0 | J24: 0 | K24: 0 | L24: 0 | M24: 0 | N24: 0 | O24: 0 | P24: 0 | Q24: 0 | R24: 0 | S24: 0 | T24: 0 | U24: 0 | V24: 0 | W24: 0 | X24: 0 | Y24: 0 | Z24: 0 | AA24: 0 | AB24: 0 | AC24: 0 | AD24: 0 | AE24: 0 | AF24: 0 | AG24: 0 | AH24: 0 | AI24: 0 | AJ24: 0 | AK24: 0 | AL24: 0 | AM24: 0
C25: 작업관련성질환 기타 | D25: 0 | E25: 0 | F25: 0 | G25: 0 | H25: 0 | I25: 0 | J25: 0 | K25: 0 | L25: 0 | M25: 0 | N25: 0 | O25: 0 | P25: 0 | Q25: 0 | R25: 0 | S25: 0 | T25: 0 | U25: 0 | V25: 0 | W25: 0 | X25: 0 | Y25: 0 | Z25: 0 | AA25: 0 | AB25: 0 | AC25: 0 | AD25: 0 | AE25: 0 | AF25: 0 | AG25: 0 | AH25: 0 | AI25: 0 | AJ25: 0 | AK25: 0 | AL25: 0 | AM25: 0
B26: 청 주 | C26: 합계 | D26: 68 | E26: 1 | F26: 21 | G26: 0 | H26: 13 | I26: 0 | J26: 18 | K26: 0 | L26: 9 | M26: 0 | N26: 7 | O26: 1 | P26: 45 | Q26: 0 | R26: 12 | S26: 0 | T26: 9 | U26: 0 | V26: 14 | W26: 0 | X26: 8 | Y26: 0 | Z26: 2 | AA26: 0 | AB26: 56 | AC26: 1 | AD26: 15 | AE26: 0 | AF26: 11 | AG26: 0 | AH26: 25 | AI26: 1 | AJ26: 4 | AK26: 0 | AL26: 1 | AM26: 0
C27: 떨어짐(높이가 있는 곳에서 사람이 떨어짐) | D27: 11 | E27: 0 | F27: 3 | G27: 0 | H27: 4 | I27: 0 | J27: 2 | K27: 0 | L27: 2 | M27: 0 | N27: 0 | O27: 0 | P27: 6 | Q27: 0 | R27: 1 | S27: 0 | T27: 2 | U27: 0 | V27: 3 | W27: 0 | X27: 0 | Y27: 0 | Z27: 0 | AA27: 0 | AB27: 12 | AC27: 0 | AD27: 2 | AE27: 0 | AF27: 3 | AG27: 0 | AH27: 6 | AI27: 0 | AJ27: 0 | AK27: 0 | AL27: 1 | AM27: 0
C28: 넘어짐(사람이 미끄러지거나 넘어짐) | D28: 35 | E28: 0 | F28: 13 | G28: 0 | H28: 3 | I28: 0 | J28: 9 | K28: 0 | L28: 7 | M28: 0 | N28: 3 | O28: 0 | P28: 20 | Q28: 0 | R28: 6 | S28: 0 | T28: 5 | U28: 0 | V28: 4 | W28: 0 | X28: 4 | Y28: 0 | Z28: 1 | AA28: 0 | AB28: 23 | AC28: 0 | AD28: 8 | AE28: 0 | AF28: 4 | AG28: 0 | AH28: 10 | AI28: 0 | AJ28: 1 | AK28: 0 | AL28: 0 | AM28: 0
C29: 깔림·뒤집힘(물체의 쓰러짐이나 뒤집힘) | D29: 2 | E29: 0 | F29: 1 | G29: 0 | H29: 1 | I29: 0 | J29: 0 | K29: 0 | L29: 0 | M29: 0 | N29: 0 | O29: 0 | P29: 0 | Q29: 0 | R29: 0 | S29: 0 | T29: 0 | U29: 0 | V29: 0 | W29: 0 | X29: 0 | Y29: 0 | Z29: 0 | AA29: 0 | AB29: 1 | AC29: 0 | AD29: 0 | AE29: 0 | AF29: 0 | AG29: 0 | AH29: 1 | AI29: 0 | AJ29: 0 | AK29: 0 | AL29: 0 | AM29: 0
C30: 부딪힘(물체에 부딪힘) | D30: 9 | E30: 1 | F30: 2 | G30: 0 | H30: 3 | I30: 0 | J30: 0 | K30: 0 | L30: 0 | M30: 0 | N30: 4 | O30: 1 | P30: 0 | Q30: 0 | R30: 0 | S30: 0 | T30: 0 | U30: 0 | V30: 0 | W30: 0 | X30: 0 | Y30: 0 | Z30: 0 | AA30: 0 | AB30: 0 | AC30: 0 | AD30: 0 | AE30: 0 | AF30: 0 | AG30: 0 | AH30: 0 | AI30: 0 | AJ30: 0 | AK30: 0 | AL30: 0 | AM30: 0
C31: 물체에 맞음(날아오거나 떨어진 물체에 맞음) | D31: 4 | E31: 0 | F31: 1 | G31: 0 | H31: 1 | I31: 0 | J31: 2 | K31: 0 | L31: 0 | M31: 0 | N31: 0 | O31: 0 | P31: 4 | Q31: 0 | R31: 2 | S31: 0 | T31: 0 | U31: 0 | V31: 1 | W31: 0 | X31: 1 | Y31: 0 | Z31: 0 | AA31: 0 | AB31: 1 | AC31: 0 | AD31: 1 | AE31: 0 | AF31: 0 | AG31: 0 | AH31: 0 | AI31: 0 | AJ31: 0 | AK31: 0 | AL31: 0 | AM31: 0
C32: 끼임(기계설비에 끼이거나 감김) | D32: 0 | E32: 0 | F32: 0 | G32: 0 | H32: 0 | I32: 0 | J32: 0 | K32: 0 | L32: 0 | M32: 0 | N32: 0 | O32: 0 | P32: 2 | Q32: 0 | R32: 0 | S32: 0 | T32: 1 | U32: 0 | V32: 0 | W32: 0 | X32: 0 | Y32: 0 | Z32: 1 | AA32: 0 | AB32: 5 | AC32: 1 | AD32: 2 | AE32: 0 | AF32: 0 | AG32: 0 | AH32: 3 | AI32: 1 | AJ32: 0 | AK32: 0 | AL32: 0 | AM32: 0
C33: 절단·베임·찔림 | D33: 3 | E33: 0 | F33: 0 | G33: 0 | H33: 1 | I33: 0 | J33: 2 | K33: 0 | L33: 0 | M33: 0 | N33: 0 | O33: 0 | P33: 9 | Q33: 0 | R33: 2 | S33: 0 | T33: 1 | U33: 0 | V33: 3 | W33: 0 | X33: 3 | Y33: 0 | Z33: 0 | AA33: 0 | AB33: 7 | AC33: 0 | AD33: 0 | AE33: 0 | AF33: 3 | AG33: 0 | AH33: 3 | AI33: 0 | AJ33: 1 | AK33: 0 | AL33: 0 | AM33: 0
C34: 불균형 및 무리한 동작 | D34: 3 | E34: 0 | F34: 1 | G34: 0 | H34: 0 | I34: 0 | J34: 2 | K34: 0 | L34: 0 | M34: 0 | N34: 0 | O34: 0 | P34: 3 | Q34: 0 | R34: 0 | S34: 0 | T34: 0 | U34: 0 | V34: 3 | W34: 0 | X34: 0 | Y34: 0 | Z34: 0 | AA34: 0 | AB34: 7 | AC34: 0 | AD34: 2 | AE34: 0 | AF34: 1 | AG34: 0 | AH34: 2 | AI34: 0 | AJ34: 2 | AK34: 0 | AL34: 0 | AM34: 0
C35: 폭력행위 | D35: 1 | E35: 0 | F35: 0 | G35: 0 | H35: 0 | I35: 0 | J35: 1 | K35: 0 | L35: 0 | M35: 0 | N35: 0 | O35: 0 | P35: 1 | Q35: 0 | R35: 1 | S35: 0 | T35: 0 | U35: 0 | V35: 0 | W35: 0 | X35: 0 | Y35: 0 | Z35: 0 | AA35: 0 | AB35: 0 | AC35: 0 | AD35: 0 | AE35: 0 | AF35: 0 | AG35: 0 | AH35: 0 | AI35: 0 | AJ35: 0 | AK35: 0 | AL35: 0 | AM35: 0
C36: 뇌심혈관질환 | D36: 0 | E36: 0 | F36: 0 | G36: 0 | H36: 0 | I36: 0 | J36: 0 | K36: 0 | L36: 0 | M36: 0 | N36: 0 | O36: 0 | P36: 0 | Q36: 0 | R36: 0 | S36: 0 | T36: 0 | U36: 0 | V36: 0 | W36: 0 | X36: 0 | Y36: 0 | Z36: 0 | AA36: 0 | AB36: 0 | AC36: 0 | AD36: 0 | AE36: 0 | AF36: 0 | AG36: 0 | AH36: 0 | AI36: 0 | AJ36: 0 | AK36: 0 | AL36: 0 | AM36: 0
C37: 근골격계질환 | D37: =F37+H37+J37+L37+N37 -> 0 | E37: =G37+I37+K37+M37+O37 -> 0 | F37: 0 | G37: 0 | H37: 0 | I37: 0 | J37: 0 | K37: 0 | L37: 0 | M37: 0 | N37: 0 | O37: 0 | P37: =R37+T37+V37+X37+Z37 -> 0 | Q37: =S37+U37+W37+Y37+AA37 -> 0 | R37: 0 | S37: 0 | T37: 0 | U37: 0 | V37: 0 | W37: 0 | X37: 0 | Y37: 0 | Z37: 0 | AA37: 0 | AB37: =AD37+AF37+AH37+AJ37+AL37 -> 0 | AC37: =AE37+AG37+AI37+AK37+AM37 -> 0 | AD37: 0 | AE37: 0 | AF37: 0 | AG37: 0 | AH37: 0 | AI37: 0 | AJ37: 0 | AK37: 0 | AL37: 0 | AM37: 0
C38: 작업관련성질환 기타 | D38: 0 | E38: 0 | F38: 0 | G38: 0 | H38: 0 | I38: 0 | J38: 0 | K38: 0 | L38: 0 | M38: 0 | N38: 0 | O38: 0 | P38: 0 | Q38: 0 | R38: 0 | S38: 0 | T38: 0 | U38: 0 | V38: 0 | W38: 0 | X38: 0 | Y38: 0 | Z38: 0 | AA38: 0 | AB38: 0 | AC38: 0 | AD38: 0 | AE38: 0 | AF38: 0 | AG38: 0 | AH38: 0 | AI38: 0 | AJ38: 0 | AK38: 0 | AL38: 0 | AM38: 0
B39: 충 주 | C39: 합계 | D39: 32 | E39: 0 | F39: 10 | G39: 0 | H39: 10 | I39: 0 | J39: 8 | K39: 0 | L39: 3 | M39: 0 | N39: 1 | O39: 0 | P39: 36 | Q39: 0 | R39: 10 | S39: 0 | T39: 5 | U39: 0 | V39: 9 | W39: 0 | X39: 3 | Y39: 0 | Z39: 9 | AA39: 0 | AB39: 32 | AC39: 0 | AD39: 9 | AE39: 0 | AF39: 8 | AG39: 0 | AH39: 12 | AI39: 0 | AJ39: 1 | AK39: 0 | AL39: 2 | AM39: 0
C40: 떨어짐(높이가 있는 곳에서 사람이 떨어짐) | D40: 2 | E40: 0 | F40: 0 | G40: 0 | H40: 1 | I40: 0 | J40: 1 | K40: 0 | L40: 0 | M40: 0 | N40: 0 | O40: 0 | P40: 7 | Q40: 0 | R40: 2 | S40: 0 | T40: 2 | U40: 0 | V40: 1 | W40: 0 | X40: 0 | Y40: 0 | Z40: 2 | AA40: 0 | AB40: 3 | AC40: 0 | AD40: 1 | AE40: 0 | AF40: 0 | AG40: 0 | AH40: 2 | AI40: 0 | AJ40: 0 | AK40: 0 | AL40: 0 | AM40: 0
C41: 넘어짐(사람이 미끄러지거나 넘어짐) | D41: 17 | E41: 0 | F41: 4 | G41: 0 | H41: 5 | I41: 0 | J41: 5 | K41: 0 | L41: 2 | M41: 0 | N41: 1 | O41: 0 | P41: 11 | Q41: 0 | R41: 1 | S41: 0 | T41: 1 | U41: 0 | V41: 5 | W41: 0 | X41: 1 | Y41: 0 | Z41: 3 | AA41: 0 | AB41: 18 | AC41: 0 | AD41: 7 | AE41: 0 | AF41: 4 | AG41: 0 | AH41: 5 | AI41: 0 | AJ41: 1 | AK41: 0 | AL41: 1 | AM41: 0
C42: 깔림·뒤집힘(물체의 쓰러짐이나 뒤집힘) | D42: 1 | E42: 0 | F42: 1 | G42: 0 | H42: 0 | I42: 0 | J42: 0 | K42: 0 | L42: 0 | M42: 0 | N42: 0 | O42: 0 | P42: 2 | Q42: 0 | R42: 2 | S42: 0 | T42: 0 | U42: 0 | V42: 0 | W42: 0 | X42: 0 | Y42: 0 | Z42: 0 | AA42: 0 | AB42: 0 | AC42: 0 | AD42: 0 | AE42: 0 | AF42: 0 | AG42: 0 | AH42: 0 | AI42: 0 | AJ42: 0 | AK42: 0 | AL42: 0 | AM42: 0
C43: 부딪힘(물체에 부딪힘) | D43: 2 | E43: 0 | F43: 2 | G43: 0 | H43: 0 | I43: 0 | J43: 0 | K43: 0 | L43: 0 | M43: 0 | N43: 0 | O43: 0 | P43: 4 | Q43: 0 | R43: 0 | S43: 0 | T43: 0 | U43: 0 | V43: 2 | W43: 0 | X43: 0 | Y43: 0 | Z43: 2 | AA43: 0 | AB43: 5 | AC43: 0 | AD43: 0 | AE43: 0 | AF43: 2 | AG43: 0 | AH43: 3 | AI43: 0 | AJ43: 0 | AK43: 0 | AL43: 0 | AM43: 0
C44: 물체에 맞음(날아오거나 떨어진 물체에 맞음) | D44: 3 | E44: 0 | F44: 0 | G44: 0 | H44: 2 | I44: 0 | J44: 0 | K44: 0 | L44: 1 | M44: 0 | N44: 0 | O44: 0 | P44: 2 | Q44: 0 | R44: 2 | S44: 0 | T44: 0 | U44: 0 | V44: 0 | W44: 0 | X44: 0 | Y44: 0 | Z44: 0 | AA44: 0 | AB44: 3 | AC44: 0 | AD44: 1 | AE44: 0 | AF44: 0 | AG44: 0 | AH44: 2 | AI44: 0 | AJ44: 0 | AK44: 0 | AL44: 0 | AM44: 0
C45: 끼임(기계설비에 끼이거나 감김) | D45: 1 | E45: 0 | F45: 0 | G45: 0 | H45: 1 | I45: 0 | J45: 0 | K45: 0 | L45: 0 | M45: 0 | N45: 0 | O45: 0 | P45: 0 | Q45: 0 | R45: 0 | S45: 0 | T45: 0 | U45: 0 | V45: 0 | W45: 0 | X45: 0 | Y45: 0 | Z45: 0 | AA45: 0 | AB45: 1 | AC45: 0 | AD45: 0 | AE45: 0 | AF45: 0 | AG45: 0 | AH45: 0 | AI45: 0 | AJ45: 0 | AK45: 0 | AL45: 1 | AM45: 0
C46: 절단·베임·찔림 | D46: 3 | E46: 0 | F46: 2 | G46: 0 | H46: 0 | I46: 0 | J46: 1 | K46: 0 | L46: 0 | M46: 0 | N46: 0 | O46: 0 | P46: 3 | Q46: 0 | R46: 1 | S46: 0 | T46: 1 | U46: 0 | V46: 0 | W46: 0 | X46: 1 | Y46: 0 | Z46: 0 | AA46: 0 | AB46: 0 | AC46: 0 | AD46: 0 | AE46: 0 | AF46: 0 | AG46: 0 | AH46: 0 | AI46: 0 | AJ46: 0 | AK46: 0 | AL46: 0 | AM46: 0
C47: 감전 | D47: 1 | E47: 0 | F47: 0 | G47: 0 | H47: 0 | I47: 0 | J47: 1 | K47: 0 | L47: 0 | M47: 0 | N47: 0 | O47: 0 | P47: 1 | Q47: 0 | R47: 0 | S47: 0 | T47: 0 | U47: 0 | V47: 1 | W47: 0 | X47: 0 | Y47: 0 | Z47: 0 | AA47: 0 | AB47: 0 | AC47: 0 | AD47: 0 | AE47: 0 | AF47: 0 | AG47: 0 | AH47: 0 | AI47: 0 | AJ47: 0 | AK47: 0 | AL47: 0 | AM47: 0
C48: 불균형 및 무리한 동작 | D48: 1 | E48: 0 | F48: 1 | G48: 0 | H48: 0 | I48: 0 | J48: 0 | K48: 0 | L48: 0 | M48: 0 | N48: 0 | O48: 0 | P48: 5 | Q48: 0 | R48: 2 | S48: 0 | T48: 0 | U48: 0 | V48: 0 | W48: 0 | X48: 1 | Y48: 0 | Z48: 2 | AA48: 0 | AB48: 1 | AC48: 0 | AD48: 0 | AE48: 0 | AF48: 1 | AG48: 0 | AH48: 0 | AI48: 0 | AJ48: 0 | AK48: 0 | AL48: 0 | AM48: 0
C49: 사업장외 교통사고 | D49: 1 | E49: 0 | F49: 0 | G49: 0 | H49: 1 | I49: 0 | J49: 0 | K49: 0 | L49: 0 | M49: 0 | N49: 0 | O49: 0 | P49: 0 | Q49: 0 | R49: 0 | S49: 0 | T49: 0 | U49: 0 | V49: 0 | W49: 0 | X49: 0 | Y49: 0 | Z49: 0 | AA49: 0 | AB49: 0 | AC49: 0 | AD49: 0 | AE49: 0 | AF49: 0 | AG49: 0 | AH49: 0 | AI49: 0 | AJ49: 0 | AK49: 0 | AL49: 0 | AM49: 0
C50: 폭력행위 | D50: 0 | E50: 0 | F50: 0 | G50: 0 | H50: 0 | I50: 0 | J50: 0 | K50: 0 | L50: 0 | M50: 0 | N50: 0 | O50: 0 | P50: 1 | Q50: 0 | R50: 0 | S50: 0 | T50: 1 | U50: 0 | V50: 0 | W50: 0 | X50: 0 | Y50: 0 | Z50: 0 | AA50: 0 | AB50: 1 | AC50: 0 | AD50: 0 | AE50: 0 | AF50: 1 | AG50: 0 | AH50: 0 | AI50: 0 | AJ50: 0 | AK50: 0 | AL50: 0 | AM50: 0
C51: 물리적인자 | D51: 0 | E51: 0 | F51: 0 | G51: 0 | H51: 0 | I51: 0 | J51: 0 | K51: 0 | L51: 0 | M51: 0 | N51: 0 | O51: 0 | P51: 0 | Q51: 0 | R51: 0 | S51: 0 | T51: 0 | U51: 0 | V51: 0 | W51: 0 | X51: 0 | Y51: 0 | Z51: 0 | AA51: 0 | AB51: 0 | AC51: 0 | AD51: 0 | AE51: 0 | AF51: 0 | AG51: 0 | AH51: 0 | AI51: 0 | AJ51: 0 | AK51: 0 | AL51: 0 | AM51: 0
C52: 화학적인자 | D52: 0 | E52: 0 | F52: 0 | G52: 0 | H52: 0 | I52: 0 | J52: 0 | K52: 0 | L52: 0 | M52: 0 | N52: 0 | O52: 0 | P52: 0 | Q52: 0 | R52: 0 | S52: 0 | T52: 0 | U52: 0 | V52: 0 | W52: 0 | X52: 0 | Y52: 0 | Z52: 0 | AA52: 0 | AB52: 0 | AC52: 0 | AD52: 0 | AE52: 0 | AF52: 0 | AG52: 0 | AH52: 0 | AI52: 0 | AJ52: 0 | AK52: 0 | AL52: 0 | AM52: 0
C53: 뇌심혈관질환 | D53: 0 | E53: 0 | F53: 0 | G53: 0 | H53: 0 | I53: 0 | J53: 0 | K53: 0 | L53: 0 | M53: 0 | N53: 0 | O53: 0 | P53: 0 | Q53: 0 | R53: 0 | S53: 0 | T53: 0 | U53: 0 | V53: 0 | W53: 0 | X53: 0 | Y53: 0 | Z53: 0 | AA53: 0 | AB53: 0 | AC53: 0 | AD53: 0 | AE53: 0 | AF53: 0 | AG53: 0 | AH53: 0 | AI53: 0 | AJ53: 0 | AK53: 0 | AL53: 0 | AM53: 0
C54: 근골격계질환 | D54: 0 | E54: 0 | F54: 0 | G54: 0 | H54: 0 | I54: 0 | J54: 0 | K54: 0 | L54: 0 | M54: 0 | N54: 0 | O54: 0 | P54: 0 | Q54: 0 | R54: 0 | S54: 0 | T54: 0 | U54: 0 | V54: 0 | W54: 0 | X54: 0 | Y54: 0 | Z54: 0 | AA54: 0 | AB54: 0 | AC54: 0 | AD54: 0 | AE54: 0 | AF54: 0 | AG54: 0 | AH54: 0 | AI54: 0 | AJ54: 0 | AK54: 0 | AL54: 0 | AM54: 0
B55: 천 안 | C55: 합계 | D55: 66 | E55: 1 | F55: 19 | G55: 0 | H55: 18 | I55: 1 | J55: 20 | K55: 0 | L55: 5 | M55: 0 | N55: 4 | O55: 0 | P55: 81 | Q55: 0 | R55: 36 | S55: 0 | T55: 23 | U55: 0 | V55: 16 | W55: 0 | X55: 4 | Y55: 0 | Z55: 2 | AA55: 0 | AB55: 71 | AC55: 1 | AD55: 26 | AE55: 0 | AF55: 27 | AG55: 0 | AH55: 14 | AI55: 1 | AJ55: 3 | AK55: 0 | AL55: 1 | AM55: 0
C56: 떨어짐(높이가 있는 곳에서 사람이 떨어짐) | D56: 16 | E56: 0 | F56: 6 | G56: 0 | H56: 5 | I56: 0 | J56: 5 | K56: 0 | L56: 0 | M56: 0 | N56: 0 | O56: 0 | P56: 14 | Q56: 0 | R56: 7 | S56: 0 | T56: 6 | U56: 0 | V56: 1 | W56: 0 | X56: 0 | Y56: 0 | Z56: 0 | AA56: 0 | AB56: 15 | AC56: 0 | AD56: 6 | AE56: 0 | AF56: 6 | AG56: 0 | AH56: 2 | AI56: 0 | AJ56: 1 | AK56: 0 | AL56: 0 | AM56: 0
C57: 넘어짐(사람이 미끄러지거나 넘어짐) | D57: 34 | E57: 1 | F57: 9 | G57: 0 | H57: 11 | I57: 1 | J57: 9 | K57: 0 | L57: 3 | M57: 0 | N57: 2 | O57: 0 | P57: 45 | Q57: 0 | R57: 17 | S57: 0 | T57: 10 | U57: 0 | V57: 12 | W57: 0 | X57: 4 | Y57: 0 | Z57: 2 | AA57: 0 | AB57: 34 | AC57: 1 | AD57: 13 | AE57: 0 | AF57: 11 | AG57: 0 | AH57: 7 | AI57: 1 | AJ57: 2 | AK57: 0 | AL57: 1 | AM57: 0
C58: 깔림·뒤집힘(물체의 쓰러짐이나 뒤집힘) | D58: 0 | E58: 0 | F58: 0 | G58: 0 | H58: 0 | I58: 0 | J58: 0 | K58: 0 | L58: 0 | M58: 0 | N58: 0 | O58: 0 | P58: 1 | Q58: 0 | R58: 0 | S58: 0 | T58: 0 | U58: 0 | V58: 1 | W58: 0 | X58: 0 | Y58: 0 | Z58: 0 | AA58: 0 | AB58: 1 | AC58: 0 | AD58: 0 | AE58: 0 | AF58: 1 | AG58: 0 | AH58: 0 | AI58: 0 | AJ58: 0 | AK58: 0 | AL58: 0 | AM58: 0
C59: 부딪힘(물체에 부딪힘) | D59: 6 | E59: 0 | F59: 2 | G59: 0 | H59: 1 | I59: 0 | J59: 2 | K59: 0 | L59: 0 | M59: 0 | N59: 1 | O59: 0 | P59: 5 | Q59: 0 | R59: 3 | S59: 0 | T59: 1 | U59: 0 | V59: 1 | W59: 0 | X59: 0 | Y59: 0 | Z59: 0 | AA59: 0 | AB59: 5 | AC59: 0 | AD59: 2 | AE59: 0 | AF59: 2 | AG59: 0 | AH59: 1 | AI59: 0 | AJ59: 0 | AK59: 0 | AL59: 0 | AM59: 0
C60: 물체에 맞음(날아오거나 떨어진 물체에 맞음) | D60: 0 | E60: 0 | F60: 0 | G60: 0 | H60: 0 | I60: 0 | J60: 0 | K60: 0 | L60: 0 | M60: 0 | N60: 0 | O60: 0 | P60: 1 | Q60: 0 | R60: 1 | S60: 0 | T60: 0 | U60: 0 | V60: 0 | W60: 0 | X60: 0 | Y60: 0 | Z60: 0 | AA60: 0 | AB60: 1 | AC60: 0 | AD60: 0 | AE60: 0 | AF60: 1 | AG60: 0 | AH60: 0 | AI60: 0 | AJ60: 0 | AK60: 0 | AL60: 0 | AM60: 0
C61: 끼임(기계설비에 끼이거나 감김) | D61: 1 | E61: 0 | F61: 0 | G61: 0 | H61: 0 | I61: 0 | J61: 0 | K61: 0 | L61: 1 | M61: 0 | N61: 0 | O61: 0 | P61: 4 | Q61: 0 | R61: 2 | S61: 0 | T61: 1 | U61: 0 | V61: 1 | W61: 0 | X61: 0 | Y61: 0 | Z61: 0 | AA61: 0 | AB61: 2 | AC61: 0 | AD61: 1 | AE61: 0 | AF61: 1 | AG61: 0 | AH61: 0 | AI61: 0 | AJ61: 0 | AK61: 0 | AL61: 0 | AM61: 0
C62: 절단·베임·찔림 | D62: 5 | E62: 0 | F62: 1 | G62: 0 | H62: 1 | I62: 0 | J62: 2 | K62: 0 | L62: 1 | M62: 0 | N62: 0 | O62: 0 | P62: 5 | Q62: 0 | R62: 2 | S62: 0 | T62: 3 | U62: 0 | V62: 0 | W62: 0 | X62: 0 | Y62: 0 | Z62: 0 | AA62: 0 | AB62: 4 | AC62: 0 | AD62: 2 | AE62: 0 | AF62: 1 | AG62: 0 | AH62: 1 | AI62: 0 | AJ62: 0 | AK62: 0 | AL62: 0 | AM62: 0
C63: 감전 | D63: 0 | E63: 0 | F63: 0 | G63: 0 | H63: 0 | I63: 0 | J63: 0 | K63: 0 | L63: 0 | M63: 0 | N63: 0 | O63: 0 | P63: 0 | Q63: 0 | R63: 0 | S63: 0 | T63: 0 | U63: 0 | V63: 0 | W63: 0 | X63: 0 | Y63: 0 | Z63: 0 | AA63: 0 | AB63: 2 | AC63: 0 | AD63: 0 | AE63: 0 | AF63: 0 | AG63: 0 | AH63: 2 | AI63: 0 | AJ63: 0 | AK63: 0 | AL63: 0 | AM63: 0
C64: 불균형 및 무리한 동작 | D64: 4 | E64: 0 | F64: 1 | G64: 0 | H64: 0 | I64: 0 | J64: 2 | K64: 0 | L64: 0 | M64: 0 | N64: 1 | O64: 0 | P64: 5 | Q64: 0 | R64: 3 | S64: 0 | T64: 2 | U64: 0 | V64: 0 | W64: 0 | X64: 0 | Y64: 0 | Z64: 0 | AA64: 0 | AB64: 5 | AC64: 0 | AD64: 1 | AE64: 0 | AF64: 3 | AG64: 0 | AH64: 1 | AI64: 0 | AJ64: 0 | AK64: 0 | AL64: 0 | AM64: 0
C65: 화학물질누출·접촉 | D65: 0 | E65: 0 | F65: 0 | G65: 0 | H65: 0 | I65: 0 | J65: 0 | K65: 0 | L65: 0 | M65: 0 | N65: 0 | O65: 0 | P65: 1 | Q65: 0 | R65: 1 | S65: 0 | T65: 0 | U65: 0 | V65: 0 | W65: 0 | X65: 0 | Y65: 0 | Z65: 0 | AA65: 0 | AB65: 0 | AC65: 0 | AD65: 0 | AE65: 0 | AF65: 0 | AG65: 0 | AH65: 0 | AI65: 0 | AJ65: 0 | AK65: 0 | AL65: 0 | AM65: 0
C66: 사업장외 교통사고 | D66: 0 | E66: 0 | F66: 0 | G66: 0 | H66: 0 | I66: 0 | J66: 0 | K66: 0 | L66: 0 | M66: 0 | N66: 0 | O66: 0 | P66: 0 | Q66: 0 | R66: 0 | S66: 0 | T66: 0 | U66: 0 | V66: 0 | W66: 0 | X66: 0 | Y66: 0 | Z66: 0 | AA66: 0 | AB66: 1 | AC66: 0 | AD66: 1 | AE66: 0 | AF66: 0 | AG66: 0 | AH66: 0 | AI66: 0 | AJ66: 0 | AK66: 0 | AL66: 0 | AM66: 0
C67: 폭력행위 | D67: 0 | E67: 0 | F67: 0 | G67: 0 | H67: 0 | I67: 0 | J67: 0 | K67: 0 | L67: 0 | M67: 0 | N67: 0 | O67: 0 | P67: 0 | Q67: 0 | R67: 0 | S67: 0 | T67: 0 | U67: 0 | V67: 0 | W67: 0 | X67: 0 | Y67: 0 | Z67: 0 | AA67: 0 | AB67: 1 | AC67: 0 | AD67: 0 | AE67: 0 | AF67: 1 | AG67: 0 | AH67: 0 | AI67: 0 | AJ67: 0 | AK67: 0 | AL67: 0 | AM67: 0
C68: 직업병기타 | D68: 0 | E68: 0 | F68: 0 | G68: 0 | H68: 0 | I68: 0 | J68: 0 | K68: 0 | L68: 0 | M68: 0 | N68: 0 | O68: 0 | P68: 0 | Q68: 0 | R68: 0 | S68: 0 | T68: 0 | U68: 0 | V68: 0 | W68: 0 | X68: 0 | Y68: 0 | Z68: 0 | AA68: 0 | AB68: 0 | AC68: 0 | AD68: 0 | AE68: 0 | AF68: 0 | AG68: 0 | AH68: 0 | AI68: 0 | AJ68: 0 | AK68: 0 | AL68: 0 | AM68: 0
C69: 뇌심혈관질환 | D69: =F69+H69+J69+L69+N69 -> 0 | E69: =G69+I69+K69+M69+O69 -> 0 | F69: 0 | G69: 0 | H69: 0 | I69: 0 | J69: 0 | K69: 0 | L69: 0 | M69: 0 | N69: 0 | O69: 0 | P69: =R69+T69+V69+X69+Z69 -> 0 | Q69: =S69+U69+W69+Y69+AA69 -> 0 | R69: 0 | S69: 0 | T69: 0 | U69: 0 | V69: 0 | W69: 0 | X69: 0 | Y69: 0 | Z69: 0 | AA69: 0 | AB69: =AD69+AF69+AH69+AJ69+AL69 -> 0 | AC69: =AE69+AG69+AI69+AK69+AM69 -> 0 | AD69: 0 | AE69: 0 | AF69: 0 | AG69: 0 | AH69: 0 | AI69: 0 | AJ69: 0 | AK69: 0 | AL69: 0 | AM69: 0
C70: 근골격계질환 | D70: 0 | E70: 0 | F70: 0 | G70: 0 | H70: 0 | I70: 0 | J70: 0 | K70: 0 | L70: 0 | M70: 0 | N70: 0 | O70: 0 | P70: 0 | Q70: 0 | R70: 0 | S70: 0 | T70: 0 | U70: 0 | V70: 0 | W70: 0 | X70: 0 | Y70: 0 | Z70: 0 | AA70: 0 | AB70: 0 | AC70: 0 | AD70: 0 | AE70: 0 | AF70: 0 | AG70: 0 | AH70: 0 | AI70: 0 | AJ70: 0 | AK70: 0 | AL70: 0 | AM70: 0
C71: 작업관련성질환 기타 | D71: 0 | E71: 0 | F71: 0 | G71: 0 | H71: 0 | I71: 0 | J71: 0 | K71: 0 | L71: 0 | M71: 0 | N71: 0 | O71: 0 | P71: 0 | Q71: 0 | R71: 0 | S71: 0 | T71: 0 | U71: 0 | V71: 0 | W71: 0 | X71: 0 | Y71: 0 | Z71: 0 | AA71: 0 | AB71: 0 | AC71: 0 | AD71: 0 | AE71: 0 | AF71: 0 | AG71: 0 | AH71: 0 | AI71: 0 | AJ71: 0 | AK71: 0 | AL71: 0 | AM71: 0
B72: 보 령 | C72: 합계 | D72: 10 | E72: 0 | F72: 4 | G72: 0 | H72: 3 | I72: 0 | J72: 2 | K72: 0 | L72: 0 | M72: 0 | N72: 1 | O72: 0 | P72: 8 | Q72: 0 | R72: 1 | S72: 0 | T72: 3 | U72: 0 | V72: 4 | W72: 0 | X72: 0 | Y72: 0 | Z72: 0 | AA72: 0 | AB72: 18 | AC72: 1 | AD72: 2 | AE72: 0 | AF72: 8 | AG72: 0 | AH72: 7 | AI72: 0 | AJ72: 1 | AK72: 1 | AL72: 0 | AM72: 0
C73: 떨어짐(높이가 있는 곳에서 사람이 떨어짐) | D73: 2 | E73: 0 | F73: 1 | G73: 0 | H73: 0 | I73: 0 | J73: 1 | K73: 0 | L73: 0 | M73: 0 | N73: 0 | O73: 0 | P73: 1 | Q73: 0 | R73: 1 | S73: 0 | T73: 0 | U73: 0 | V73: 0 | W73: 0 | X73: 0 | Y73: 0 | Z73: 0 | AA73: 0 | AB73: 2 | AC73: 0 | AD73: 0 | AE73: 0 | AF73: 2 | AG73: 0 | AH73: 0 | AI73: 0 | AJ73: 0 | AK73: 0 | AL73: 0 | AM73: 0
C74: 넘어짐(사람이 미끄러지거나 넘어짐) | D74: 5 | E74: 0 | F74: 2 | G74: 0 | H74: 2 | I74: 0 | J74: 0 | K74: 0 | L74: 0 | M74: 0 | N74: 1 | O74: 0 | P74: 3 | Q74: 0 | R74: 0 | S74: 0 | T74: 2 | U74: 0 | V74: 1 | W74: 0 | X74: 0 | Y74: 0 | Z74: 0 | AA74: 0 | AB74: 9 | AC74: 0 | AD74: 1 | AE74: 0 | AF74: 3 | AG74: 0 | AH74: 5 | AI74: 0 | AJ74: 0 | AK74: 0 | AL74: 0 | AM74: 0
C75: 부딪힘(물체에 부딪힘) | D75: 0 | E75: 0 | F75: 0 | G75: 0 | H75: 0 | I75: 0 | J75: 0 | K75: 0 | L75: 0 | M75: 0 | N75: 0 | O75: 0 | P75: 0 | Q75: 0 | R75: 0 | S75: 0 | T75: 0 | U75: 0 | V75: 0 | W75: 0 | X75: 0 | Y75: 0 | Z75: 0 | AA75: 0 | AB75: 2 | AC75: 0 | AD75: 0 | AE75: 0 | AF75: 1 | AG75: 0 | AH75: 1 | AI75: 0 | AJ75: 0 | AK75: 0 | AL75: 0 | AM75: 0
C76: 물체에 맞음(날아오거나 떨어진 물체에 맞음) | D76: 0 | E76: 0 | F76: 0 | G76: 0 | H76: 0 | I76: 0 | J76: 0 | K76: 0 | L76: 0 | M76: 0 | N76: 0 | O76: 0 | P76: 0 | Q76: 0 | R76: 0 | S76: 0 | T76: 0 | U76: 0 | V76: 0 | W76: 0 | X76: 0 | Y76: 0 | Z76: 0 | AA76: 0 | AB76: 2 | AC76: 0 | AD76: 0 | AE76: 0 | AF76: 2 | AG76: 0 | AH76: 0 | AI76: 0 | AJ76: 0 | AK76: 0 | AL76: 0 | AM76: 0
C77: 끼임(기계설비에 끼이거나 감김) | D77: 0 | E77: 0 | F77: 0 | G77: 0 | H77: 0 | I77: 0 | J77: 0 | K77: 0 | L77: 0 | M77: 0 | N77: 0 | O77: 0 | P77: 2 | Q77: 0 | R77: 0 | S77: 0 | T77: 1 | U77: 0 | V77: 1 | W77: 0 | X77: 0 | Y77: 0 | Z77: 0 | AA77: 0 | AB77: 0 | AC77: 0 | AD77: 0 | AE77: 0 | AF77: 0 | AG77: 0 | AH77: 0 | AI77: 0 | AJ77: 0 | AK77: 0 | AL77: 0 | AM77: 0
C78: 절단·베임·찔림 | D78: 0 | E78: 0 | F78: 0 | G78: 0 | H78: 0 | I78: 0 | J78: 0 | K78: 0 | L78: 0 | M78: 0 | N78: 0 | O78: 0 | P78: 1 | Q78: 0 | R78: 0 | S78: 0 | T78: 0 | U78: 0 | V78: 1 | W78: 0 | X78: 0 | Y78: 0 | Z78: 0 | AA78: 0 | AB78: 0 | AC78: 0 | AD78: 0 | AE78: 0 | AF78: 0 | AG78: 0 | AH78: 0 | AI78: 0 | AJ78: 0 | AK78: 0 | AL78: 0 | AM78: 0
C79: 감전 | D79: 0 | E79: 0 | F79: 0 | G79: 0 | H79: 0 | I79: 0 | J79: 0 | K79: 0 | L79: 0 | M79: 0 | N79: 0 | O79: 0 | P79: 0 | Q79: 0 | R79: 0 | S79: 0 | T79: 0 | U79: 0 | V79: 0 | W79: 0 | X79: 0 | Y79: 0 | Z79: 0 | AA79: 0 | AB79: 1 | AC79: 1 | AD79: 0 | AE79: 0 | AF79: 0 | AG79: 0 | AH79: 0 | AI79: 0 | AJ79: 1 | AK79: 1 | AL79: 0 | AM79: 0
C80: 불균형 및 무리한 동작 | D80: 2 | E80: 0 | F80: 1 | G80: 0 | H80: 1 | I80: 0 | J80: 0 | K80: 0 | L80: 0 | M80: 0 | N80: 0 | O80: 0 | P80: 1 | Q80: 0 | R80: 0 | S80: 0 | T80: 0 | U80: 0 | V80: 1 | W80: 0 | X80: 0 | Y80: 0 | Z80: 0 | AA80: 0 | AB80: 2 | AC80: 0 | AD80: 1 | AE80: 0 | AF80: 0 | AG80: 0 | AH80: 1 | AI80: 0 | AJ80: 0 | AK80: 0 | AL80: 0 | AM80: 0
C81: 이상온도 접촉 | D81: 1 | E81: 0 | F81: 0 | G81: 0 | H81: 0 | I81: 0 | J81: 1 | K81: 0 | L81: 0 | M81: 0 | N81: 0 | O81: 0 | P81: 0 | Q81: 0 | R81: 0 | S81: 0 | T81: 0 | U81: 0 | V81: 0 | W81: 0 | X81: 0 | Y81: 0 | Z81: 0 | AA81: 0 | AB81: 0 | AC81: 0 | AD81: 0 | AE81: 0 | AF81: 0 | AG81: 0 | AH81: 0 | AI81: 0 | AJ81: 0 | AK81: 0 | AL81: 0 | AM81: 0
